Workbook

Sheet Velkomst

Sheet Tabel 1 NJ
A1: Tabel 1. Forsikrede medlemmer
A3: Nordjylland
C5: Mænd | E5: Kvinder | G5: I alt
A7: Civ. ing. | C7: 2860 | E7: 857 | G7: 3717
A8: Diplom ing. | C8: 1244 | E8: 232 | G8: 1476
A9: Cand. Scient. Tek. | C9: 917 | E9: 462 | G9: 1379
A10: MA. Hum. | C10: 960 | E10: 1953 | G10: 2913
A11: MA. Nat. | C11: 385 | E11: 307 | G11: 692
A12: MA. Ph.d. | C12: 54 | E12: 35 | G12: 89
A13: MA. Samf. | C13: 73 | E13: 240 | G13: 313
A14: Øvrige Mag. | C14: 76 | E14: 136 | G14: 212
A15: Agronom | C15: 77 | E15: 61 | G15: 138
A16: Landsk. Arkt. | C16: 2 | E16: 11 | G16: 13
A17: Hortonom | C17: 2 | E17: 2 | G17: 4
A18: Forstkand. | C18: 14 | E18: 9 | G18: 23
A19: Jordbrugsakad. | C19: 95 | E19: 83 | G19: 178
A20: Mejeriing. | C20: 13 | E20: 8 | G20: 21
A21: Levn.m.kand. | C21: 0 | E21: 4 | G21: 4
A22: Dyrlæge | C22: 34 | E22: 149 | G22: 183
A23: Farmaceut | C23: 16 | E23: 95 | G23: 111
A24: Læge | C24: 241 | E24: 494 | G24: 735
A25: Tandlæge | C25: 15 | E25: 110 | G25: 125
A26: Arkitekt | C26: 58 | E26: 72 | G26: 130
A27: Landinspek. | C27: 155 | E27: 70 | G27: 225
A28: Bibliotekar | C28: 77 | E28: 251 | G28: 328
A29: Musikudd. | C29: 51 | E29: 58 | G29: 109
A30: Teolog | C30: 54 | E30: 97 | G30: 151
A31: Psykolog | C31: 102 | E31: 546 | G31: 648
A32: Jurist | C32: 181 | E32: 412 | G32: 593
A33: Økonom | C33: 246 | E33: 181 | G33: 427
A34: Samf. Adm. | C34: 565 | E34: 888 | G34: 1453
A35: Cand. Merc. | C35: 1029 | E35: 910 | G35: 1939
A36: HA | C36: 232 | E36: 174 | G36: 406
A37: HD | C37: 202 | E37: 132 | G37: 334
A38: Komm. og Sprog | C38: 68 | E38: 309 | G38: 377
A39: Cand. IT. | C39: 268 | E39: 208 | G39: 476
A40: Bac. Samf. | C40: 40 | E40: 28 | G40: 68
A41: Bac. Hum. | C41: 101 | E41: 142 | G41: 243
A42: Bac. Nat. | C42: 147 | E42: 64 | G42: 211
A43: Andre | C43: 674 | E43: 430 | G43: 1104
A45: Total | C45: 11233 | E45: 10137 | G45: 21370
A47: Ingeniører i alt | C47: 4104 | E47: 1089 | G47: 5193
A48: Magistre i alt | C48: 1548 | E48: 2671 | G48: 4219
A49: DJØF'ere i alt | C49: 2253 | E49: 2565 | G49: 4818
A56: Morsø
C58: Mænd | E58: Kvinder | G58: I alt
A60: Civ. ing. | C60: 14 | E60: 7 | G60: 21
A61: Diplom ing. | C61: 16 | E61: 8 | G61: 24
A62: Cand. Scient. Tek. | C62: 5 | E62: 3 | G62: 8
A63: MA. Hum. | C63: 10 | E63: 20 | G63: 30
A64: MA. Nat. | C64: 10 | E64: 10 | G64: 20
A65: MA. Ph.d. | C65: 2 | E65: 2 | G65: 4
A66: MA. Samf. | C66: 1 | E66: 1 | G66: 2
A67: Øvrige Mag. | C67: 1 | E67: 0 | G67: 1
A68: Agronom | C68: 4 | E68: 0 | G68: 4
A69: Landsk. Arkt. | C69: 1 | E69: 1 | G69: 2
A70: Hortonom | C70: 0 | E70: 0 | G70: 0
A71: Forstkand. | C71: 0 | E71: 0 | G71: 0
A72: Jordbrugsakad. | C72: 5 | E72: 1 | G72: 6
A73: Mejeriing. | C73: 0 | E73: 0 | G73: 0
A74: Levn.m.kand. | C74: 0 | E74: 0 | G74: 0
A75: Dyrlæge | C75: 0 | E75: 5 | G75: 5
A76: Farmaceut | C76: 0 | E76: 1 | G76: 1
A77: Læge | C77: 0 | E77: 0 | G77: 0
A78: Tandlæge | C78: 0 | E78: 4 | G78: 4
A79: Arkitekt | C79: 3 | E79: 2 | G79: 5
A80: Landinspek. | C80: 2 | E80: 0 | G80: 2
A81: Bibliotekar | C81: 1 | E81: 5 | G81: 6
A82: Musikudd. | C82: 0 | E82: 0 | G82: 0
A83: Teolog | C83: 3 | E83: 3 | G83: 6
A84: Psykolog | C84: 0 | E84: 8 | G84: 8
A85: Jurist | C85: 0 | E85: 6 | G85: 6
A86: Økonom | C86: 3 | E86: 1 | G86: 4
A87: Samf. Adm. | C87: 1 | E87: 7 | G87: 8
A88: Cand. Merc. | C88: 7 | E88: 9 | G88: 16
A89: HA | C89: 8 | E89: 0 | G89: 8
A90: HD | C90: 5 | E90: 3 | G90: 8
A91: Komm. og Sprog | C91: 2 | E91: 4 | G91: 6
A92: Cand. IT. | C92: 1 | E92: 0 | G92: 1
A93: Bac. Samf. | C93: 0 | E93: 2 | G93: 2
A94: Bac. Hum. | C94: 0 | E94: 2 | G94: 2
A95: Bac. Nat. | C95: 1 | E95: 0 | G95: 1
A96: Andre | C96: 9 | E96: 7 | G96: 16
A98: Total | C98: 110 | E98: 121 | G98: 231
A100: Ingeniører i alt | C100: 30 | E100: 15 | G100: 45
A101: Magistre i alt | C101: 24 | E101: 33 | G101: 57
A102: DJØF'ere i alt | C102: 19 | E102: 23 | G102: 42
A109: Thisted
C111: Mænd | E111: Kvinder | G111: I alt
A113: Civ. ing. | C113: 32 | E113: 13 | G113: 45
A114: Diplom ing. | C114: 52 | E114: 9 | G114: 61
A115: Cand. Scient. Tek. | C115: 21 | E115: 16 | G115: 37
A116: MA. Hum. | C116: 43 | E116: 79 | G116: 122
A117: MA. Nat. | C117: 17 | E117: 22 | G117: 39
A118: MA. Ph.d. | C118: 1 | E118: 1 | G118: 2
A119: MA. Samf. | C119: 2 | E119: 11 | G119: 13
A120: Øvrige Mag. | C120: 7 | E120: 8 | G120: 15
A121: Agronom | C121: 8 | E121: 1 | G121: 9
A122: Landsk. Arkt. | C122: 0 | E122: 1 | G122: 1
A123: Hortonom | C123: 0 | E123: 0 | G123: 0
A124: Forstkand. | C124: 2 | E124: 1 | G124: 3
A125: Jordbrugsakad. | C125: 10 | E125: 3 | G125: 13
A126: Mejeriing. | C126: 3 | E126: 2 | G126: 5
A127: Levn.m.kand. | C127: 0 | E127: 1 | G127: 1
A128: Dyrlæge | C128: 3 | E128: 14 | G128: 17
A129: Farmaceut | C129: 1 | E129: 6 | G129: 7
A130: Læge | C130: 16 | E130: 16 | G130: 32
A131: Tandlæge | C131: 2 | E131: 5 | G131: 7
A132: Arkitekt | C132: 4 | E132: 7 | G132: 11
A133: Landinspek. | C133: 3 | E133: 2 | G133: 5
A134: Bibliotekar | C134: 3 | E134: 11 | G134: 14
A135: Musikudd. | C135: 3 | E135: 2 | G135: 5
A136: Teolog | C136: 2 | E136: 9 | G136: 11
A137: Psykolog | C137: 3 | E137: 12 | G137: 15
A138: Jurist | C138: 6 | E138: 10 | G138: 16
A139: Økonom | C139: 8 | E139: 9 | G139: 17
A140: Samf. Adm. | C140: 17 | E140: 24 | G140: 41
A141: Cand. Merc. | C141: 20 | E141: 14 | G141: 34
A142: HA | C142: 8 | E142: 6 | G142: 14
A143: HD | C143: 11 | E143: 4 | G143: 15
A144: Komm. og Sprog | C144: 1 | E144: 11 | G144: 12
A145: Cand. IT. | C145: 5 | E145: 3 | G145: 8
A146: Bac. Samf. | C146: 2 | E146: 1 | G146: 3
A147: Bac. Hum. | C147: 1 | E147: 6 | G147: 7
A148: Bac. Nat. | C148: 2 | E148: 2 | G148: 4
A149: Andre | C149: 18 | E149: 19 | G149: 37
A151: Total | C151: 327 | E151: 358 | G151: 685
A153: Ingeniører i alt | C153: 84 | E153: 22 | G153: 106
A154: Magistre i alt | C154: 70 | E154: 121 | G154: 191
A155: DJØF'ere i alt | C155: 59 | E155: 63 | G155: 122
A162: Brønderslev
C164: Mænd | E164: Kvinder | G164: I alt
A166: Civ. ing. | C166: 107 | E166: 40 | G166: 147
A167: Diplom ing. | C167: 67 | E167: 9 | G167: 76
A168: Cand. Scient. Tek. | C168: 30 | E168: 13 | G168: 43
A169: MA. Hum. | C169: 36 | E169: 73 | G169: 109
A170: MA. Nat. | C170: 17 | E170: 11 | G170: 28
A171: MA. Ph.d. | C171: 1 | E171: 1 | G171: 2
A172: MA. Samf. | C172: 2 | E172: 5 | G172: 7
A173: Øvrige Mag. | C173: 3 | E173: 8 | G173: 11
A174: Agronom | C174: 8 | E174: 2 | G174: 10
A175: Landsk. Arkt. | C175: 0 | E175: 2 | G175: 2
A176: Hortonom | C176: 0 | E176: 0 | G176: 0
A177: Forstkand. | C177: 0 | E177: 1 | G177: 1
A178: Jordbrugsakad. | C178: 8 | E178: 5 | G178: 13
A179: Mejeriing. | C179: 1 | E179: 0 | G179: 1
A180: Levn.m.kand. | C180: 0 | E180: 0 | G180: 0
A181: Dyrlæge | C181: 5 | E181: 11 | G181: 16
A182: Farmaceut | C182: 0 | E182: 5 | G182: 5
A183: Læge | C183: 8 | E183: 13 | G183: 21
A184: Tandlæge | C184: 0 | E184: 8 | G184: 8
A185: Arkitekt | C185: 1 | E185: 0 | G185: 1
A186: Landinspek. | C186: 6 | E186: 3 | G186: 9
A187: Bibliotekar | C187: 4 | E187: 12 | G187: 16
A188: Musikudd. | C188: 4 | E188: 3 | G188: 7
A189: Teolog | C189: 4 | E189: 4 | G189: 8
A190: Psykolog | C190: 2 | E190: 24 | G190: 26
A191: Jurist | C191: 7 | E191: 21 | G191: 28
A192: Økonom | C192: 8 | E192: 5 | G192: 13
A193: Samf. Adm. | C193: 22 | E193: 19 | G193: 41
A194: Cand. Merc. | C194: 46 | E194: 44 | G194: 90
A195: HA | C195: 11 | E195: 6 | G195: 17
A196: HD | C196: 12 | E196: 6 | G196: 18
A197: Komm. og Sprog | C197: 2 | E197: 15 | G197: 17
A198: Cand. IT. | C198: 4 | E198: 6 | G198: 10
A199: Bac. Samf. | C199: 1 | E199: 1 | G199: 2
A200: Bac. Hum. | C200: 6 | E200: 8 | G200: 14
A201: Bac. Nat. | C201: 2 | E201: 0 | G201: 2
A202: Andre | C202: 23 | E202: 22 | G202: 45
A204: Total | C204: 450 | E204: 401 | G204: 851
A206: Ingeniører i alt | C206: 174 | E206: 49 | G206: 223
A207: Magistre i alt | C207: 59 | E207: 98 | G207: 157
A208: DJØF'ere i alt | C208: 94 | E208: 95 | G208: 189
A215: Frederikshavn
C217: Mænd | E217: Kvinder | G217: I alt
A219: Civ. ing. | C219: 59 | E219: 17 | G219: 76
A220: Diplom ing. | C220: 63 | E220: 16 | G220: 79
A221: Cand. Scient. Tek. | C221: 12 | E221: 9 | G221: 21
A222: MA. Hum. | C222: 26 | E222: 94 | G222: 120
A223: MA. Nat. | C223: 12 | E223: 5 | G223: 17
A224: MA. Ph.d. | C224: 2 | E224: 1 | G224: 3
A225: MA. Samf. | C225: 4 | E225: 5 | G225: 9
A226: Øvrige Mag. | C226: 4 | E226: 4 | G226: 8
A227: Agronom | C227: 4 | E227: 4 | G227: 8
A228: Landsk. Arkt. | C228: 0 | E228: 0 | G228: 0
A229: Hortonom | C229: 0 | E229: 0 | G229: 0
A230: Forstkand. | C230: 1 | E230: 2 | G230: 3
A231: Jordbrugsakad. | C231: 5 | E231: 6 | G231: 11
A232: Mejeriing. | C232: 0 | E232: 1 | G232: 1
A233: Levn.m.kand. | C233: 0 | E233: 0 | G233: 0
A234: Dyrlæge | C234: 3 | E234: 13 | G234: 16
A235: Farmaceut | C235: 2 | E235: 7 | G235: 9
A236: Læge | C236: 3 | E236: 14 | G236: 17
A237: Tandlæge | C237: 2 | E237: 7 | G237: 9
A238: Arkitekt | C238: 2 | E238: 5 | G238: 7
A239: Landinspek. | C239: 6 | E239: 4 | G239: 10
A240: Bibliotekar | C240: 4 | E240: 14 | G240: 18
A241: Musikudd. | C241: 2 | E241: 6 | G241: 8
A242: Teolog | C242: 3 | E242: 10 | G242: 13
A243: Psykolog | C243: 3 | E243: 17 | G243: 20
... 318 more rows

Sheet Tabel 2 NJ
A1: Tabel 2. Antal bruttoledighedsberørte og gennemsnitlig antal ledige brutto
A3: Nordjylland
C5: Mænd | F5: Kvinder | I5: I alt
C6: Ledigheds- berørte | D6: Gns. brutto- ledighed | F6: Ledigheds- berørte | G6: Gns. brutto- ledighed | I6: Ledigheds- berørte | J6: Gns. brutto- ledighed
A9: Civ. ing. | C9: 110 | D9: 96.8976486 | F9: 31 | G9: 26.72675108 | I9: 141 | J9: 123.6243997
A10: Diplom ing. | C10: 37 | D10: 31.32726252 | F10: 11 | G10: 10.05613422 | I10: 48 | J10: 41.38339674
A11: Cand. Scient. Tek. | C11: 125 | D11: 106.4810079 | F11: 79 | G11: 68.97898085 | I11: 204 | J11: 175.4599888
A12: MA. Hum. | C12: 120 | D12: 98.46379343 | F12: 236 | G12: 196.4604254 | I12: 356 | J12: 294.9242188
A13: MA. Nat. | C13: 22 | D13: 20.44408408 | F13: 18 | G13: 13.16347533 | I13: 40 | J13: 33.60755941
A14: MA. Ph.d. | C14: 3 | D14: 2.154930456 | F14: 2 | G14: 1.4869332 | I14: 5 | J14: 3.641863656
A15: MA. Samf. | C15: 14 | D15: 12.93207759 | F15: 47 | G15: 40.00187114 | I15: 61 | J15: 52.93394873
A16: Øvrige Mag. | C16: 7 | D16: 6.455435664 | F16: 11 | G16: 9.959458617 | I16: 18 | J16: 16.41489428
A17: Agronom | C17: 2 | D17: 1.999625772 | F17: 1 | G17: 0.8613484688 | I17: 3 | J17: 2.860974241
A18: Landsk. Arkt. | C18: 0 | D18: 0 | F18: 1 | G18: 0.5320276929 | I18: 1 | J18: 0.5320276929
A19: Hortonom | C19: 0 | D19: 0 | F19: 0 | G19: 0 | I19: 0 | J19: 0
A20: Forstkand. | C20: 0 | D20: 0 | F20: 0 | G20: 0 | I20: 0 | J20: 0
A21: Jordbrugsakad. | C21: 2 | D21: 1.999625772 | F21: 2 | G21: 1.393376162 | I21: 4 | J21: 3.393001934
A22: Mejeriing. | C22: 0 | D22: 0 | F22: 0 | G22: 0 | I22: 0 | J22: 0
A23: Levn.m.kand. | C23: 0 | D23: 0 | F23: 0 | G23: 0 | I23: 0 | J23: 0
A24: Dyrlæge | C24: 0 | D24: 0 | F24: 1 | G24: 0.9536580802 | I24: 1 | J24: 0.9536580802
A25: Farmaceut | C25: 1 | D25: 0.9998128859 | F25: 3 | G25: 1.984032932 | I25: 4 | J25: 2.983845818
A26: Læge | C26: 4 | D26: 2.429988149 | F26: 12 | G26: 6.553982411 | I26: 16 | J26: 8.983970561
A27: Tandlæge | C27: 0 | D27: 0 | F27: 0 | G27: 0 | I27: 0 | J27: 0
A28: Arkitekt | C28: 4 | D28: 3.999251544 | F28: 3 | G28: 2.860974241 | I28: 7 | J28: 6.860225784
A29: Landinspek. | C29: 2 | D29: 1.815006549 | F29: 2 | G29: 1.076529658 | I29: 4 | J29: 2.891536207
A30: Bibliotekar | C30: 6 | D30: 5.075781201 | F30: 9 | G30: 7.767105345 | I30: 15 | J30: 12.84288655
A31: Musikudd. | C31: 2 | D31: 1.999625772 | F31: 1 | G31: 0.9998128859 | I31: 3 | J31: 2.999438658
A32: Teolog | C32: 0 | D32: 0 | F32: 2 | G32: 1.565521113 | I32: 2 | J32: 1.565521113
A33: Psykolog | C33: 7 | D33: 6.45294081 | F33: 34 | G33: 29.43429177 | I33: 41 | J33: 35.88723258
A34: Jurist | C34: 6 | D34: 5.675793676 | F34: 9 | G34: 8.352148693 | I34: 15 | J34: 14.02794237
A35: Økonom | C35: 10 | D35: 8.683964324 | F35: 3 | G35: 2.999438658 | I35: 13 | J35: 11.68340298
A36: Samf. Adm. | C36: 57 | D36: 48.66961891 | F36: 91 | G36: 79.70435976 | I36: 148 | J36: 128.3739787
A37: Cand. Merc. | C37: 56 | D37: 48.30848874 | F37: 56 | G37: 49.36318842 | I37: 112 | J37: 97.67167717
A38: HA | C38: 17 | D38: 13.21399613 | F38: 19 | G38: 15.97143392 | I38: 36 | J38: 29.18543005
A39: HD | C39: 18 | D39: 14.05039606 | F39: 10 | G39: 8.538639057 | I39: 28 | J39: 22.58903512
A40: Komm. og Sprog | C40: 17 | D40: 14.65914052 | F40: 33 | G40: 26.68246741 | I40: 50 | J40: 41.34160793
A41: Cand. IT. | C41: 45 | D41: 41.09025136 | F41: 46 | G41: 37.34110896 | I41: 91 | J41: 78.43136032
A42: Bac. Samf. | C42: 8 | D42: 6.475394499 | F42: 7 | G42: 5.171209381 | I42: 15 | J42: 11.64660388
A43: Bac. Hum. | C43: 20 | D43: 18.53364935 | F43: 26 | G43: 22.81856172 | I43: 46 | J43: 41.35221106
A44: Bac. Nat. | C44: 17 | D44: 14.67161479 | F44: 8 | G44: 6.600137217 | I44: 25 | J44: 21.27175201
A45: Andre | C45: 38 | D45: 30.93868895 | F45: 37 | G45: 30.94056009 | I45: 75 | J45: 61.87924905
A47: Total | C47: 775 | D47: 664.8992703 | F47: 849 | G47: 715.9065677 | I47: 1624 | J47: 1380.805838
A49: Ingeniører i alt | C49: 147 | D49: 128.2249111 | F49: 42 | G49: 36.7828853 | I49: 189 | J49: 165.0077964
A50: Magistre i alt | C50: 166 | D50: 140.4503212 | F50: 314 | G50: 261.0721637 | I50: 480 | J50: 401.5224849
A51: DJØF'ere i alt | C51: 146 | D51: 124.5518618 | F51: 178 | G51: 156.3905695 | I51: 324 | J51: 280.9424312
A56: Morsø
C58: Mænd | F58: Kvinder | I58: I alt
C59: Ledigheds- berørte | D59: Gns. brutto- ledighed | F59: Ledigheds- berørte | G59: Gns. brutto- ledighed | I59: Ledigheds- berørte | J59: Gns. brutto- ledighed
A62: Civ. ing. | C62: 0 | D62: 0 | F62: 0 | G62: 0 | I62: 0 | J62: 0
A63: Diplom ing. | C63: 0 | D63: 0 | F63: 1 | G63: 0.9998128859 | I63: 1 | J63: 0.9998128859
A64: Cand. Scient. Tek. | C64: 0 | D64: 0 | F64: 1 | G64: 0.7054200711 | I64: 1 | J64: 0.7054200711
A65: MA. Hum. | C65: 0 | D65: 0 | F65: 3 | G65: 2.260961766 | I65: 3 | J65: 2.260961766
A66: MA. Nat. | C66: 0 | D66: 0 | F66: 1 | G66: 0.4459552174 | I66: 1 | J66: 0.4459552174
A67: MA. Ph.d. | C67: 0 | D67: 0 | F67: 0 | G67: 0 | I67: 0 | J67: 0
A68: MA. Samf. | C68: 0 | D68: 0 | F68: 0 | G68: 0 | I68: 0 | J68: 0
A69: Øvrige Mag. | C69: 0 | D69: 0 | F69: 0 | G69: 0 | I69: 0 | J69: 0
A70: Agronom | C70: 0 | D70: 0 | F70: 0 | G70: 0 | I70: 0 | J70: 0
A71: Landsk. Arkt. | C71: 0 | D71: 0 | F71: 0 | G71: 0 | I71: 0 | J71: 0
A72: Hortonom | C72: 0 | D72: 0 | F72: 0 | G72: 0 | I72: 0 | J72: 0
A73: Forstkand. | C73: 0 | D73: 0 | F73: 0 | G73: 0 | I73: 0 | J73: 0
A74: Jordbrugsakad. | C74: 0 | D74: 0 | F74: 0 | G74: 0 | I74: 0 | J74: 0
A75: Mejeriing. | C75: 0 | D75: 0 | F75: 0 | G75: 0 | I75: 0 | J75: 0
A76: Levn.m.kand. | C76: 0 | D76: 0 | F76: 0 | G76: 0 | I76: 0 | J76: 0
A77: Dyrlæge | C77: 0 | D77: 0 | F77: 0 | G77: 0 | I77: 0 | J77: 0
A78: Farmaceut | C78: 0 | D78: 0 | F78: 0 | G78: 0 | I78: 0 | J78: 0
A79: Læge | C79: 0 | D79: 0 | F79: 0 | G79: 0 | I79: 0 | J79: 0
A80: Tandlæge | C80: 0 | D80: 0 | F80: 0 | G80: 0 | I80: 0 | J80: 0
A81: Arkitekt | C81: 0 | D81: 0 | F81: 0 | G81: 0 | I81: 0 | J81: 0
A82: Landinspek. | C82: 0 | D82: 0 | F82: 0 | G82: 0 | I82: 0 | J82: 0
A83: Bibliotekar | C83: 0 | D83: 0 | F83: 0 | G83: 0 | I83: 0 | J83: 0
A84: Musikudd. | C84: 0 | D84: 0 | F84: 0 | G84: 0 | I84: 0 | J84: 0
A85: Teolog | C85: 0 | D85: 0 | F85: 0 | G85: 0 | I85: 0 | J85: 0
A86: Psykolog | C86: 0 | D86: 0 | F86: 0 | G86: 0 | I86: 0 | J86: 0
A87: Jurist | C87: 0 | D87: 0 | F87: 0 | G87: 0 | I87: 0 | J87: 0
A88: Økonom | C88: 0 | D88: 0 | F88: 0 | G88: 0 | I88: 0 | J88: 0
A89: Samf. Adm. | C89: 0 | D89: 0 | F89: 1 | G89: 0.9536580802 | I89: 1 | J89: 0.9536580802
A90: Cand. Merc. | C90: 0 | D90: 0 | F90: 0 | G90: 0 | I90: 0 | J90: 0
A91: HA | C91: 0 | D91: 0 | F91: 0 | G91: 0 | I91: 0 | J91: 0
A92: HD | C92: 0 | D92: 0 | F92: 0 | G92: 0 | I92: 0 | J92: 0
A93: Komm. og Sprog | C93: 0 | D93: 0 | F93: 0 | G93: 0 | I93: 0 | J93: 0
A94: Cand. IT. | C94: 0 | D94: 0 | F94: 0 | G94: 0 | I94: 0 | J94: 0
A95: Bac. Samf. | C95: 0 | D95: 0 | F95: 2 | G95: 1.168839269 | I95: 2 | J95: 1.168839269
A96: Bac. Hum. | C96: 0 | D96: 0 | F96: 2 | G96: 1.168839269 | I96: 2 | J96: 1.168839269
A97: Bac. Nat. | C97: 0 | D97: 0 | F97: 0 | G97: 0 | I97: 0 | J97: 0
A98: Andre | C98: 1 | D98: 0.4459552174 | F98: 0 | G98: 0 | I98: 1 | J98: 0.4459552174
A100: Total | C100: 1 | D100: 0.4459552174 | F100: 11 | G100: 7.703486559 | I100: 12 | J100: 8.149441776
A102: Ingeniører i alt | C102: 0 | D102: 0 | F102: 1 | G102: 0.9998128859 | I102: 1 | J102: 0.9998128859
A103: Magistre i alt | C103: 0 | D103: 0 | F103: 4 | G103: 2.706916984 | I103: 4 | J103: 2.706916984
A104: DJØF'ere i alt | C104: 0 | D104: 0 | F104: 1 | G104: 0.9536580802 | I104: 1 | J104: 0.9536580802
A109: Thisted
C111: Mænd | F111: Kvinder | I111: I alt
C112: Ledigheds- berørte | D112: Gns. brutto- ledighed | F112: Ledigheds- berørte | G112: Gns. brutto- ledighed | I112: Ledigheds- berørte | J112: Gns. brutto- ledighed
A115: Civ. ing. | C115: 1 | D115: 0.9075032745 | F115: 0 | G115: 0 | I115: 1 | J115: 0.9075032745
A116: Diplom ing. | C116: 1 | D116: 0.9998128859 | F116: 0 | G116: 0 | I116: 1 | J116: 0.9998128859
A117: Cand. Scient. Tek. | C117: 1 | D117: 0.9998128859 | F117: 5 | G117: 3.814632321 | I117: 6 | J117: 4.814445207
A118: MA. Hum. | C118: 5 | D118: 3.858915986 | F118: 7 | G118: 4.597392877 | I118: 12 | J118: 8.456308863
A119: MA. Nat. | C119: 0 | D119: 0 | F119: 1 | G119: 0.9998128859 | I119: 1 | J119: 0.9998128859
A120: MA. Ph.d. | C120: 1 | D120: 0.8750701678 | F120: 0 | G120: 0 | I120: 1 | J120: 0.8750701678
A121: MA. Samf. | C121: 0 | D121: 0 | F121: 1 | G121: 0.9998128859 | I121: 1 | J121: 0.9998128859
A122: Øvrige Mag. | C122: 0 | D122: 0 | F122: 3 | G122: 2.854737105 | I122: 3 | J122: 2.854737105
A123: Agronom | C123: 0 | D123: 0 | F123: 0 | G123: 0 | I123: 0 | J123: 0
A124: Landsk. Arkt. | C124: 0 | D124: 0 | F124: 0 | G124: 0 | I124: 0 | J124: 0
A125: Hortonom | C125: 0 | D125: 0 | F125: 0 | G125: 0 | I125: 0 | J125: 0
A126: Forstkand. | C126: 0 | D126: 0 | F126: 0 | G126: 0 | I126: 0 | J126: 0
A127: Jordbrugsakad. | C127: 0 | D127: 0 | F127: 0 | G127: 0 | I127: 0 | J127: 0
A128: Mejeriing. | C128: 0 | D128: 0 | F128: 0 | G128: 0 | I128: 0 | J128: 0
A129: Levn.m.kand. | C129: 0 | D129: 0 | F129: 0 | G129: 0 | I129: 0 | J129: 0
A130: Dyrlæge | C130: 0 | D130: 0 | F130: 0 | G130: 0 | I130: 0 | J130: 0
A131: Farmaceut | C131: 0 | D131: 0 | F131: 0 | G131: 0 | I131: 0 | J131: 0
A132: Læge | C132: 1 | D132: 0.6767292459 | F132: 1 | G132: 0.9075032745 | I132: 2 | J132: 1.58423252
A133: Tandlæge | C133: 0 | D133: 0 | F133: 0 | G133: 0 | I133: 0 | J133: 0
A134: Arkitekt | C134: 1 | D134: 0.9998128859 | F134: 1 | G134: 0.9998128859 | I134: 2 | J134: 1.999625772
A135: Landinspek. | C135: 0 | D135: 0 | F135: 0 | G135: 0 | I135: 0 | J135: 0
A136: Bibliotekar | C136: 0 | D136: 0 | F136: 0 | G136: 0 | I136: 0 | J136: 0
A137: Musikudd. | C137: 0 | D137: 0 | F137: 0 | G137: 0 | I137: 0 | J137: 0
A138: Teolog | C138: 0 | D138: 0 | F138: 0 | G138: 0 | I138: 0 | J138: 0
A139: Psykolog | C139: 0 | D139: 0 | F139: 0 | G139: 0 | I139: 0 | J139: 0
A140: Jurist | C140: 0 | D140: 0 | F140: 0 | G140: 0 | I140: 0 | J140: 0
A141: Økonom | C141: 1 | D141: 0.4702800474 | F141: 0 | G141: 0 | I141: 1 | J141: 0.4702800474
A142: Samf. Adm. | C142: 2 | D142: 1.953470966 | F142: 3 | G142: 2.328946548 | I142: 5 | J142: 4.282417514
A143: Cand. Merc. | C143: 0 | D143: 0 | F143: 0 | G143: 0 | I143: 0 | J143: 0
A144: HA | C144: 1 | D144: 0.9998128859 | F144: 0 | G144: 0 | I144: 1 | J144: 0.9998128859
A145: HD | C145: 0 | D145: 0 | F145: 1 | G145: 0.7628017214 | I145: 1 | J145: 0.7628017214
A146: Komm. og Sprog | C146: 0 | D146: 0 | F146: 2 | G146: 1.999625772 | I146: 2 | J146: 1.999625772
A147: Cand. IT. | C147: 0 | D147: 0 | F147: 0 | G147: 0 | I147: 0 | J147: 0
A148: Bac. Samf. | C148: 1 | D148: 0.2151811888 | F148: 0 | G148: 0 | I148: 1 | J148: 0.2151811888
A149: Bac. Hum. | C149: 0 | D149: 0 | F149: 0 | G149: 0 | I149: 0 | J149: 0
A150: Bac. Nat. | C150: 1 | D150: 0.9998128859 | F150: 0 | G150: 0 | I150: 1 | J150: 0.9998128859
A151: Andre | C151: 0 | D151: 0 | F151: 2 | G151: 1.9871515 | I151: 2 | J151: 1.9871515
A153: Total | C153: 17 | D153: 13.95621531 | F153: 27 | G153: 22.25222978 | I153: 44 | J153: 36.20844508
A155: Ingeniører i alt | C155: 2 | D155: 1.90731616 | F155: 0 | G155: 0 | I155: 2 | J155: 1.90731616
A156: Magistre i alt | C156: 6 | D156: 4.733986154 | F156: 12 | G156: 9.451755754 | I156: 18 | J156: 14.18574191
A157: DJØF'ere i alt | C157: 4 | D157: 3.423563899 | F157: 3 | G157: 2.328946548 | I157: 7 | J157: 5.752510447
A162: Brønderslev
C164: Mænd | F164: Kvinder | I164: I alt
C165: Ledigheds- berørte | D165: Gns. brutto- ledighed | F165: Ledigheds- berørte | G165: Gns. brutto- ledighed | I165: Ledigheds- berørte | J165: Gns. brutto- ledighed
A168: Civ. ing. | C168: 2 | D168: 1.999625772 | F168: 0 | G168: 0 | I168: 2 | J168: 1.999625772
A169: Diplom ing. | C169: 1 | D169: 0.9998128859 | F169: 0 | G169: 0 | I169: 1 | J169: 0.9998128859
A170: Cand. Scient. Tek. | C170: 2 | D170: 1.83247053 | F170: 3 | G170: 2.722509823 | I170: 5 | J170: 4.554980353
A171: MA. Hum. | C171: 7 | D171: 5.60531404 | F171: 6 | G171: 5.256658143 | I171: 13 | J171: 10.86197218
A172: MA. Nat. | C172: 0 | D172: 0 | F172: 0 | G172: 0 | I172: 0 | J172: 0
A173: MA. Ph.d. | C173: 0 | D173: 0 | F173: 0 | G173: 0 | I173: 0 | J173: 0
A174: MA. Samf. | C174: 0 | D174: 0 | F174: 2 | G174: 1.999625772 | I174: 2 | J174: 1.999625772
A175: Øvrige Mag. | C175: 0 | D175: 0 | F175: 0 | G175: 0 | I175: 0 | J175: 0
A176: Agronom | C176: 0 | D176: 0 | F176: 0 | G176: 0 | I176: 0 | J176: 0
A177: Landsk. Arkt. | C177: 0 | D177: 0 | F177: 1 | G177: 0.5320276929 | I177: 1 | J177: 0.5320276929
A178: Hortonom | C178: 0 | D178: 0 | F178: 0 | G178: 0 | I178: 0 | J178: 0
A179: Forstkand. | C179: 0 | D179: 0 | F179: 0 | G179: 0 | I179: 0 | J179: 0
A180: Jordbrugsakad. | C180: 0 | D180: 0 | F180: 1 | G180: 0.5320276929 | I180: 1 | J180: 0.5320276929
A181: Mejeriing. | C181: 0 | D181: 0 | F181: 0 | G181: 0 | I181: 0 | J181: 0
A182: Levn.m.kand. | C182: 0 | D182: 0 | F182: 0 | G182: 0 | I182: 0 | J182: 0
A183: Dyrlæge | C183: 0 | D183: 0 | F183: 0 | G183: 0 | I183: 0 | J183: 0
A184: Farmaceut | C184: 0 | D184: 0 | F184: 0 | G184: 0 | I184: 0 | J184: 0
A185: Læge | C185: 0 | D185: 0 | F185: 0 | G185: 0 | I185: 0 | J185: 0
A186: Tandlæge | C186: 0 | D186: 0 | F186: 0 | G186: 0 | I186: 0 | J186: 0
A187: Arkitekt | C187: 0 | D187: 0 | F187: 0 | G187: 0 | I187: 0 | J187: 0
A188: Landinspek. | C188: 0 | D188: 0 | F188: 0 | G188: 0 | I188: 0 | J188: 0
A189: Bibliotekar | C189: 0 | D189: 0 | F189: 0 | G189: 0 | I189: 0 | J189: 0
A190: Musikudd. | C190: 0 | D190: 0 | F190: 0 | G190: 0 | I190: 0 | J190: 0
A191: Teolog | C191: 0 | D191: 0 | F191: 0 | G191: 0 | I191: 0 | J191: 0
A192: Psykolog | C192: 0 | D192: 0 | F192: 0 | G192: 0 | I192: 0 | J192: 0
A193: Jurist | C193: 0 | D193: 0 | F193: 0 | G193: 0 | I193: 0 | J193: 0
A194: Økonom | C194: 1 | D194: 0.9998128859 | F194: 0 | G194: 0 | I194: 1 | J194: 0.9998128859
A195: Samf. Adm. | C195: 0 | D195: 0 | F195: 3 | G195: 2.949541571 | I195: 3 | J195: 2.949541571
A196: Cand. Merc. | C196: 1 | D196: 0.9075032745 | F196: 4 | G196: 3.445393875 | I196: 5 | J196: 4.35289715
A197: HA | C197: 0 | D197: 0 | F197: 0 | G197: 0 | I197: 0 | J197: 0
A198: HD | C198: 0 | D198: 0 | F198: 0 | G198: 0 | I198: 0 | J198: 0
A199: Komm. og Sprog | C199: 0 | D199: 0 | F199: 2 | G199: 1.579866525 | I199: 2 | J199: 1.579866525
A200: Cand. IT. | C200: 0 | D200: 0 | F200: 2 | G200: 1.999625772 | I200: 2 | J200: 1.999625772
A201: Bac. Samf. | C201: 0 | D201: 0 | F201: 0 | G201: 0 | I201: 0 | J201: 0
A202: Bac. Hum. | C202: 2 | D202: 1.999625772 | F202: 0 | G202: 0 | I202: 2 | J202: 1.999625772
A203: Bac. Nat. | C203: 0 | D203: 0 | F203: 0 | G203: 0 | I203: 0 | J203: 0
A204: Andre | C204: 1 | D204: 0.7266263332 | F204: 0 | G204: 0 | I204: 1 | J204: 0.7266263332
A206: Total | C206: 17 | D206: 15.07079149 | F206: 23 | G206: 20.48524917 | I206: 40 | J206: 35.55604067
A208: Ingeniører i alt | C208: 3 | D208: 2.999438658 | F208: 0 | G208: 0 | I208: 3 | J208: 2.999438658
A209: Magistre i alt | C209: 7 | D209: 5.60531404 | F209: 8 | G209: 7.256283914 | I209: 15 | J209: 12.86159795
A210: DJØF'ere i alt | C210: 2 | D210: 1.90731616 | F210: 7 | G210: 6.394935446 | I210: 9 | J210: 8.302251606
A215: Frederikshavn
C217: Mænd | F217: Kvinder | I217: I alt
C218: Ledigheds- berørte | D218: Gns. brutto- ledighed | F218: Ledigheds- berørte | G218: Gns. brutto- ledighed | I218: Ledigheds- berørte | J218: Gns. brutto- ledighed
A221: Civ. ing. | C221: 0 | D221: 0 | F221: 0 | G221: 0 | I221: 0 | J221: 0
A222: Diplom ing. | C222: 1 | D222: 0.9998128859 | F222: 1 | G222: 0.5844196345 | I222: 2 | J222: 1.58423252
A223: Cand. Scient. Tek. | C223: 2 | D223: 1.861161355 | F223: 2 | G223: 1.58423252 | I223: 4 | J223: 3.445393875
A224: MA. Hum. | C224: 1 | D224: 0.8108276679 | F224: 12 | G224: 9.310796482 | I224: 13 | J224: 10.12162415
A225: MA. Nat. | C225: 1 | D225: 0.9998128859 | F225: 0 | G225: 0 | I225: 1 | J225: 0.9998128859
A226: MA. Ph.d. | C226: 0 | D226: 0 | F226: 0 | G226: 0 | I226: 0 | J226: 0
A227: MA. Samf. | C227: 0 | D227: 0 | F227: 1 | G227: 0.1690263831 | I227: 1 | J227: 0.1690263831
A228: Øvrige Mag. | C228: 1 | D228: 0.6998066488 | F228: 0 | G228: 0 | I228: 1 | J228: 0.6998066488
A229: Agronom | C229: 0 | D229: 0 | F229: 0 | G229: 0 | I229: 0 | J229: 0
A230: Landsk. Arkt. | C230: 0 | D230: 0 | F230: 0 | G230: 0 | I230: 0 | J230: 0
A231: Hortonom | C231: 0 | D231: 0 | F231: 0 | G231: 0 | I231: 0 | J231: 0
A232: Forstkand. | C232: 0 | D232: 0 | F232: 0 | G232: 0 | I232: 0 | J232: 0
A233: Jordbrugsakad. | C233: 0 | D233: 0 | F233: 0 | G233: 0 | I233: 0 | J233: 0
A234: Mejeriing. | C234: 0 | D234: 0 | F234: 0 | G234: 0 | I234: 0 | J234: 0
A235: Levn.m.kand. | C235: 0 | D235: 0 | F235: 0 | G235: 0 | I235: 0 | J235: 0
A236: Dyrlæge | C236: 0 | D236: 0 | F236: 0 | G236: 0 | I236: 0 | J236: 0
A237: Farmaceut | C237: 0 | D237: 0 | F237: 1 | G237: 0.5844196345 | I237: 1 | J237: 0.5844196345
A238: Læge | C238: 0 | D238: 0 | F238: 0 | G238: 0 | I238: 0 | J238: 0
A239: Tandlæge | C239: 0 | D239: 0 | F239: 0 | G239: 0 | I239: 0 | J239: 0
A240: Arkitekt | C240: 1 | D240: 0.9998128859 | F240: 1 | G240: 0.8613484688 | I240: 2 | J240: 1.861161355
... 329 more rows

Sheet Tabel 3 NJ
A1: Tabel 3. Ledige i procent af forsikrede
A3: Nordjylland
C5: Mænd | F5: Kvinder | I5: I alt
C6: Ledigheds- berørte | D6: Gns. brutto- ledighed | F6: Ledigheds- berørte | G6: Gns. brutto- ledighed | I6: Ledigheds- berørte | J6: Gns. brutto- ledighed
A9: Civ. ing. | C9: =IF(OR('Tabel 1 NJ'!C7<5,'Tabel 2 NJ'!C9<0.5),"-",IFERROR('Tabel 2 NJ'!C9/'Tabel 1 NJ'!C7*100,"-")) -> 3.846153846 | D9: =IF(OR('Tabel 1 NJ'!C7<5,'Tabel 2 NJ'!D9<0.5),"-",IFERROR('Tabel 2 NJ'!D9/'Tabel 1 NJ'!C7*100,"-")) -> 3.388029671 | F9: =IF(OR('Tabel 1 NJ'!E7<5,'Tabel 2 NJ'!F9<0.5),"-",IFERROR('Tabel 2 NJ'!F9/'Tabel 1 NJ'!E7*100,"-")) -> 3.617269545 | G9: =IF(OR('Tabel 1 NJ'!E7<5,'Tabel 2 NJ'!G9<0.5),"-",IFERROR('Tabel 2 NJ'!G9/'Tabel 1 NJ'!E7*100,"-")) -> 3.118640732 | I9: =IF(OR('Tabel 1 NJ'!G7<5,'Tabel 2 NJ'!I9<0.5),"-",IFERROR('Tabel 2 NJ'!I9/'Tabel 1 NJ'!G7*100,"-")) -> 3.793381759 | J9: =IF(OR('Tabel 1 NJ'!G7<5,'Tabel 2 NJ'!J9<0.5),"-",IFERROR('Tabel 2 NJ'!J9/'Tabel 1 NJ'!G7*100,"-")) -> 3.325918743
A10: Diplom ing. | C10: =IF(OR('Tabel 1 NJ'!C8<5,'Tabel 2 NJ'!C10<0.5),"-",IFERROR('Tabel 2 NJ'!C10/'Tabel 1 NJ'!C8*100,"-")) -> 2.974276527 | D10: =IF(OR('Tabel 1 NJ'!C8<5,'Tabel 2 NJ'!D10<0.5),"-",IFERROR('Tabel 2 NJ'!D10/'Tabel 1 NJ'!C8*100,"-")) -> 2.518268691 | F10: =IF(OR('Tabel 1 NJ'!E8<5,'Tabel 2 NJ'!F10<0.5),"-",IFERROR('Tabel 2 NJ'!F10/'Tabel 1 NJ'!E8*100,"-")) -> 4.74137931 | G10: =IF(OR('Tabel 1 NJ'!E8<5,'Tabel 2 NJ'!G10<0.5),"-",IFERROR('Tabel 2 NJ'!G10/'Tabel 1 NJ'!E8*100,"-")) -> 4.334540613 | I10: =IF(OR('Tabel 1 NJ'!G8<5,'Tabel 2 NJ'!I10<0.5),"-",IFERROR('Tabel 2 NJ'!I10/'Tabel 1 NJ'!G8*100,"-")) -> 3.25203252 | J10: =IF(OR('Tabel 1 NJ'!G8<5,'Tabel 2 NJ'!J10<0.5),"-",IFERROR('Tabel 2 NJ'!J10/'Tabel 1 NJ'!G8*100,"-")) -> 2.803753167
A11: Cand. Scient. Tek. | C11: =IF(OR('Tabel 1 NJ'!C9<5,'Tabel 2 NJ'!C11<0.5),"-",IFERROR('Tabel 2 NJ'!C11/'Tabel 1 NJ'!C9*100,"-")) -> 13.63140676 | D11: =IF(OR('Tabel 1 NJ'!C9<5,'Tabel 2 NJ'!D11<0.5),"-",IFERROR('Tabel 2 NJ'!D11/'Tabel 1 NJ'!C9*100,"-")) -> 11.61188745 | F11: =IF(OR('Tabel 1 NJ'!E9<5,'Tabel 2 NJ'!F11<0.5),"-",IFERROR('Tabel 2 NJ'!F11/'Tabel 1 NJ'!E9*100,"-")) -> 17.0995671 | G11: =IF(OR('Tabel 1 NJ'!E9<5,'Tabel 2 NJ'!G11<0.5),"-",IFERROR('Tabel 2 NJ'!G11/'Tabel 1 NJ'!E9*100,"-")) -> 14.93051534 | I11: =IF(OR('Tabel 1 NJ'!G9<5,'Tabel 2 NJ'!I11<0.5),"-",IFERROR('Tabel 2 NJ'!I11/'Tabel 1 NJ'!G9*100,"-")) -> 14.7933285 | J11: =IF(OR('Tabel 1 NJ'!G9<5,'Tabel 2 NJ'!J11<0.5),"-",IFERROR('Tabel 2 NJ'!J11/'Tabel 1 NJ'!G9*100,"-")) -> 12.72371202
A12: MA. Hum. | C12: =IF(OR('Tabel 1 NJ'!C10<5,'Tabel 2 NJ'!C12<0.5),"-",IFERROR('Tabel 2 NJ'!C12/'Tabel 1 NJ'!C10*100,"-")) -> 12.5 | D12: =IF(OR('Tabel 1 NJ'!C10<5,'Tabel 2 NJ'!D12<0.5),"-",IFERROR('Tabel 2 NJ'!D12/'Tabel 1 NJ'!C10*100,"-")) -> 10.25664515 | F12: =IF(OR('Tabel 1 NJ'!E10<5,'Tabel 2 NJ'!F12<0.5),"-",IFERROR('Tabel 2 NJ'!F12/'Tabel 1 NJ'!E10*100,"-")) -> 12.08397337 | G12: =IF(OR('Tabel 1 NJ'!E10<5,'Tabel 2 NJ'!G12<0.5),"-",IFERROR('Tabel 2 NJ'!G12/'Tabel 1 NJ'!E10*100,"-")) -> 10.05941758 | I12: =IF(OR('Tabel 1 NJ'!G10<5,'Tabel 2 NJ'!I12<0.5),"-",IFERROR('Tabel 2 NJ'!I12/'Tabel 1 NJ'!G10*100,"-")) -> 12.22107793 | J12: =IF(OR('Tabel 1 NJ'!G10<5,'Tabel 2 NJ'!J12<0.5),"-",IFERROR('Tabel 2 NJ'!J12/'Tabel 1 NJ'!G10*100,"-")) -> 10.12441534
A13: MA. Nat. | C13: =IF(OR('Tabel 1 NJ'!C11<5,'Tabel 2 NJ'!C13<0.5),"-",IFERROR('Tabel 2 NJ'!C13/'Tabel 1 NJ'!C11*100,"-")) -> 5.714285714 | D13: =IF(OR('Tabel 1 NJ'!C11<5,'Tabel 2 NJ'!D13<0.5),"-",IFERROR('Tabel 2 NJ'!D13/'Tabel 1 NJ'!C11*100,"-")) -> 5.310151708 | F13: =IF(OR('Tabel 1 NJ'!E11<5,'Tabel 2 NJ'!F13<0.5),"-",IFERROR('Tabel 2 NJ'!F13/'Tabel 1 NJ'!E11*100,"-")) -> 5.863192182 | G13: =IF(OR('Tabel 1 NJ'!E11<5,'Tabel 2 NJ'!G13<0.5),"-",IFERROR('Tabel 2 NJ'!G13/'Tabel 1 NJ'!E11*100,"-")) -> 4.287776981 | I13: =IF(OR('Tabel 1 NJ'!G11<5,'Tabel 2 NJ'!I13<0.5),"-",IFERROR('Tabel 2 NJ'!I13/'Tabel 1 NJ'!G11*100,"-")) -> 5.780346821 | J13: =IF(OR('Tabel 1 NJ'!G11<5,'Tabel 2 NJ'!J13<0.5),"-",IFERROR('Tabel 2 NJ'!J13/'Tabel 1 NJ'!G11*100,"-")) -> 4.85658373
A14: MA. Ph.d. | C14: =IF(OR('Tabel 1 NJ'!C12<5,'Tabel 2 NJ'!C14<0.5),"-",IFERROR('Tabel 2 NJ'!C14/'Tabel 1 NJ'!C12*100,"-")) -> 5.555555556 | D14: =IF(OR('Tabel 1 NJ'!C12<5,'Tabel 2 NJ'!D14<0.5),"-",IFERROR('Tabel 2 NJ'!D14/'Tabel 1 NJ'!C12*100,"-")) -> 3.990611955 | F14: =IF(OR('Tabel 1 NJ'!E12<5,'Tabel 2 NJ'!F14<0.5),"-",IFERROR('Tabel 2 NJ'!F14/'Tabel 1 NJ'!E12*100,"-")) -> 5.714285714 | G14: =IF(OR('Tabel 1 NJ'!E12<5,'Tabel 2 NJ'!G14<0.5),"-",IFERROR('Tabel 2 NJ'!G14/'Tabel 1 NJ'!E12*100,"-")) -> 4.248380572 | I14: =IF(OR('Tabel 1 NJ'!G12<5,'Tabel 2 NJ'!I14<0.5),"-",IFERROR('Tabel 2 NJ'!I14/'Tabel 1 NJ'!G12*100,"-")) -> 5.617977528 | J14: =IF(OR('Tabel 1 NJ'!G12<5,'Tabel 2 NJ'!J14<0.5),"-",IFERROR('Tabel 2 NJ'!J14/'Tabel 1 NJ'!G12*100,"-")) -> 4.091981636
A15: MA. Samf. | C15: =IF(OR('Tabel 1 NJ'!C13<5,'Tabel 2 NJ'!C15<0.5),"-",IFERROR('Tabel 2 NJ'!C15/'Tabel 1 NJ'!C13*100,"-")) -> 19.17808219 | D15: =IF(OR('Tabel 1 NJ'!C13<5,'Tabel 2 NJ'!D15<0.5),"-",IFERROR('Tabel 2 NJ'!D15/'Tabel 1 NJ'!C13*100,"-")) -> 17.71517478 | F15: =IF(OR('Tabel 1 NJ'!E13<5,'Tabel 2 NJ'!F15<0.5),"-",IFERROR('Tabel 2 NJ'!F15/'Tabel 1 NJ'!E13*100,"-")) -> 19.58333333 | G15: =IF(OR('Tabel 1 NJ'!E13<5,'Tabel 2 NJ'!G15<0.5),"-",IFERROR('Tabel 2 NJ'!G15/'Tabel 1 NJ'!E13*100,"-")) -> 16.66744631 | I15: =IF(OR('Tabel 1 NJ'!G13<5,'Tabel 2 NJ'!I15<0.5),"-",IFERROR('Tabel 2 NJ'!I15/'Tabel 1 NJ'!G13*100,"-")) -> 19.48881789 | J15: =IF(OR('Tabel 1 NJ'!G13<5,'Tabel 2 NJ'!J15<0.5),"-",IFERROR('Tabel 2 NJ'!J15/'Tabel 1 NJ'!G13*100,"-")) -> 16.91180471
A16: Øvrige Mag. | C16: =IF(OR('Tabel 1 NJ'!C14<5,'Tabel 2 NJ'!C16<0.5),"-",IFERROR('Tabel 2 NJ'!C16/'Tabel 1 NJ'!C14*100,"-")) -> 9.210526316 | D16: =IF(OR('Tabel 1 NJ'!C14<5,'Tabel 2 NJ'!D16<0.5),"-",IFERROR('Tabel 2 NJ'!D16/'Tabel 1 NJ'!C14*100,"-")) -> 8.493994295 | F16: =IF(OR('Tabel 1 NJ'!E14<5,'Tabel 2 NJ'!F16<0.5),"-",IFERROR('Tabel 2 NJ'!F16/'Tabel 1 NJ'!E14*100,"-")) -> 8.088235294 | G16: =IF(OR('Tabel 1 NJ'!E14<5,'Tabel 2 NJ'!G16<0.5),"-",IFERROR('Tabel 2 NJ'!G16/'Tabel 1 NJ'!E14*100,"-")) -> 7.323131336 | I16: =IF(OR('Tabel 1 NJ'!G14<5,'Tabel 2 NJ'!I16<0.5),"-",IFERROR('Tabel 2 NJ'!I16/'Tabel 1 NJ'!G14*100,"-")) -> 8.490566038 | J16: =IF(OR('Tabel 1 NJ'!G14<5,'Tabel 2 NJ'!J16<0.5),"-",IFERROR('Tabel 2 NJ'!J16/'Tabel 1 NJ'!G14*100,"-")) -> 7.742874661
A17: Agronom | C17: =IF(OR('Tabel 1 NJ'!C15<5,'Tabel 2 NJ'!C17<0.5),"-",IFERROR('Tabel 2 NJ'!C17/'Tabel 1 NJ'!C15*100,"-")) -> 2.597402597 | D17: =IF(OR('Tabel 1 NJ'!C15<5,'Tabel 2 NJ'!D17<0.5),"-",IFERROR('Tabel 2 NJ'!D17/'Tabel 1 NJ'!C15*100,"-")) -> 2.596916587 | F17: =IF(OR('Tabel 1 NJ'!E15<5,'Tabel 2 NJ'!F17<0.5),"-",IFERROR('Tabel 2 NJ'!F17/'Tabel 1 NJ'!E15*100,"-")) -> 1.639344262 | G17: =IF(OR('Tabel 1 NJ'!E15<5,'Tabel 2 NJ'!G17<0.5),"-",IFERROR('Tabel 2 NJ'!G17/'Tabel 1 NJ'!E15*100,"-")) -> 1.41204667 | I17: =IF(OR('Tabel 1 NJ'!G15<5,'Tabel 2 NJ'!I17<0.5),"-",IFERROR('Tabel 2 NJ'!I17/'Tabel 1 NJ'!G15*100,"-")) -> 2.173913043 | J17: =IF(OR('Tabel 1 NJ'!G15<5,'Tabel 2 NJ'!J17<0.5),"-",IFERROR('Tabel 2 NJ'!J17/'Tabel 1 NJ'!G15*100,"-")) -> 2.07316974
A18: Landsk. Arkt. | C18: =IF(OR('Tabel 1 NJ'!C16<5,'Tabel 2 NJ'!C18<0.5),"-",IFERROR('Tabel 2 NJ'!C18/'Tabel 1 NJ'!C16*100,"-")) -> - | D18: =IF(OR('Tabel 1 NJ'!C16<5,'Tabel 2 NJ'!D18<0.5),"-",IFERROR('Tabel 2 NJ'!D18/'Tabel 1 NJ'!C16*100,"-")) -> - | F18: =IF(OR('Tabel 1 NJ'!E16<5,'Tabel 2 NJ'!F18<0.5),"-",IFERROR('Tabel 2 NJ'!F18/'Tabel 1 NJ'!E16*100,"-")) -> 9.090909091 | G18: =IF(OR('Tabel 1 NJ'!E16<5,'Tabel 2 NJ'!G18<0.5),"-",IFERROR('Tabel 2 NJ'!G18/'Tabel 1 NJ'!E16*100,"-")) -> 4.83661539 | I18: =IF(OR('Tabel 1 NJ'!G16<5,'Tabel 2 NJ'!I18<0.5),"-",IFERROR('Tabel 2 NJ'!I18/'Tabel 1 NJ'!G16*100,"-")) -> 7.692307692 | J18: =IF(OR('Tabel 1 NJ'!G16<5,'Tabel 2 NJ'!J18<0.5),"-",IFERROR('Tabel 2 NJ'!J18/'Tabel 1 NJ'!G16*100,"-")) -> 4.092520714
A19: Hortonom | C19: =IF(OR('Tabel 1 NJ'!C17<5,'Tabel 2 NJ'!C19<0.5),"-",IFERROR('Tabel 2 NJ'!C19/'Tabel 1 NJ'!C17*100,"-")) -> - | D19: =IF(OR('Tabel 1 NJ'!C17<5,'Tabel 2 NJ'!D19<0.5),"-",IFERROR('Tabel 2 NJ'!D19/'Tabel 1 NJ'!C17*100,"-")) -> - | F19: =IF(OR('Tabel 1 NJ'!E17<5,'Tabel 2 NJ'!F19<0.5),"-",IFERROR('Tabel 2 NJ'!F19/'Tabel 1 NJ'!E17*100,"-")) -> - | G19: =IF(OR('Tabel 1 NJ'!E17<5,'Tabel 2 NJ'!G19<0.5),"-",IFERROR('Tabel 2 NJ'!G19/'Tabel 1 NJ'!E17*100,"-")) -> - | I19: =IF(OR('Tabel 1 NJ'!G17<5,'Tabel 2 NJ'!I19<0.5),"-",IFERROR('Tabel 2 NJ'!I19/'Tabel 1 NJ'!G17*100,"-")) -> - | J19: =IF(OR('Tabel 1 NJ'!G17<5,'Tabel 2 NJ'!J19<0.5),"-",IFERROR('Tabel 2 NJ'!J19/'Tabel 1 NJ'!G17*100,"-")) -> -
A20: Forstkand. | C20: =IF(OR('Tabel 1 NJ'!C18<5,'Tabel 2 NJ'!C20<0.5),"-",IFERROR('Tabel 2 NJ'!C20/'Tabel 1 NJ'!C18*100,"-")) -> - | D20: =IF(OR('Tabel 1 NJ'!C18<5,'Tabel 2 NJ'!D20<0.5),"-",IFERROR('Tabel 2 NJ'!D20/'Tabel 1 NJ'!C18*100,"-")) -> - | F20: =IF(OR('Tabel 1 NJ'!E18<5,'Tabel 2 NJ'!F20<0.5),"-",IFERROR('Tabel 2 NJ'!F20/'Tabel 1 NJ'!E18*100,"-")) -> - | G20: =IF(OR('Tabel 1 NJ'!E18<5,'Tabel 2 NJ'!G20<0.5),"-",IFERROR('Tabel 2 NJ'!G20/'Tabel 1 NJ'!E18*100,"-")) -> - | I20: =IF(OR('Tabel 1 NJ'!G18<5,'Tabel 2 NJ'!I20<0.5),"-",IFERROR('Tabel 2 NJ'!I20/'Tabel 1 NJ'!G18*100,"-")) -> - | J20: =IF(OR('Tabel 1 NJ'!G18<5,'Tabel 2 NJ'!J20<0.5),"-",IFERROR('Tabel 2 NJ'!J20/'Tabel 1 NJ'!G18*100,"-")) -> -
A21: Jordbrugsakad. | C21: =IF(OR('Tabel 1 NJ'!C19<5,'Tabel 2 NJ'!C21<0.5),"-",IFERROR('Tabel 2 NJ'!C21/'Tabel 1 NJ'!C19*100,"-")) -> 2.105263158 | D21: =IF(OR('Tabel 1 NJ'!C19<5,'Tabel 2 NJ'!D21<0.5),"-",IFERROR('Tabel 2 NJ'!D21/'Tabel 1 NJ'!C19*100,"-")) -> 2.104869234 | F21: =IF(OR('Tabel 1 NJ'!E19<5,'Tabel 2 NJ'!F21<0.5),"-",IFERROR('Tabel 2 NJ'!F21/'Tabel 1 NJ'!E19*100,"-")) -> 2.409638554 | G21: =IF(OR('Tabel 1 NJ'!E19<5,'Tabel 2 NJ'!G21<0.5),"-",IFERROR('Tabel 2 NJ'!G21/'Tabel 1 NJ'!E19*100,"-")) -> 1.67876646 | I21: =IF(OR('Tabel 1 NJ'!G19<5,'Tabel 2 NJ'!I21<0.5),"-",IFERROR('Tabel 2 NJ'!I21/'Tabel 1 NJ'!G19*100,"-")) -> 2.247191011 | J21: =IF(OR('Tabel 1 NJ'!G19<5,'Tabel 2 NJ'!J21<0.5),"-",IFERROR('Tabel 2 NJ'!J21/'Tabel 1 NJ'!G19*100,"-")) -> 1.906180862
A22: Mejeriing. | C22: =IF(OR('Tabel 1 NJ'!C20<5,'Tabel 2 NJ'!C22<0.5),"-",IFERROR('Tabel 2 NJ'!C22/'Tabel 1 NJ'!C20*100,"-")) -> - | D22: =IF(OR('Tabel 1 NJ'!C20<5,'Tabel 2 NJ'!D22<0.5),"-",IFERROR('Tabel 2 NJ'!D22/'Tabel 1 NJ'!C20*100,"-")) -> - | F22: =IF(OR('Tabel 1 NJ'!E20<5,'Tabel 2 NJ'!F22<0.5),"-",IFERROR('Tabel 2 NJ'!F22/'Tabel 1 NJ'!E20*100,"-")) -> - | G22: =IF(OR('Tabel 1 NJ'!E20<5,'Tabel 2 NJ'!G22<0.5),"-",IFERROR('Tabel 2 NJ'!G22/'Tabel 1 NJ'!E20*100,"-")) -> - | I22: =IF(OR('Tabel 1 NJ'!G20<5,'Tabel 2 NJ'!I22<0.5),"-",IFERROR('Tabel 2 NJ'!I22/'Tabel 1 NJ'!G20*100,"-")) -> - | J22: =IF(OR('Tabel 1 NJ'!G20<5,'Tabel 2 NJ'!J22<0.5),"-",IFERROR('Tabel 2 NJ'!J22/'Tabel 1 NJ'!G20*100,"-")) -> -
A23: Levn.m.kand. | C23: =IF(OR('Tabel 1 NJ'!C21<5,'Tabel 2 NJ'!C23<0.5),"-",IFERROR('Tabel 2 NJ'!C23/'Tabel 1 NJ'!C21*100,"-")) -> - | D23: =IF(OR('Tabel 1 NJ'!C21<5,'Tabel 2 NJ'!D23<0.5),"-",IFERROR('Tabel 2 NJ'!D23/'Tabel 1 NJ'!C21*100,"-")) -> - | F23: =IF(OR('Tabel 1 NJ'!E21<5,'Tabel 2 NJ'!F23<0.5),"-",IFERROR('Tabel 2 NJ'!F23/'Tabel 1 NJ'!E21*100,"-")) -> - | G23: =IF(OR('Tabel 1 NJ'!E21<5,'Tabel 2 NJ'!G23<0.5),"-",IFERROR('Tabel 2 NJ'!G23/'Tabel 1 NJ'!E21*100,"-")) -> - | I23: =IF(OR('Tabel 1 NJ'!G21<5,'Tabel 2 NJ'!I23<0.5),"-",IFERROR('Tabel 2 NJ'!I23/'Tabel 1 NJ'!G21*100,"-")) -> - | J23: =IF(OR('Tabel 1 NJ'!G21<5,'Tabel 2 NJ'!J23<0.5),"-",IFERROR('Tabel 2 NJ'!J23/'Tabel 1 NJ'!G21*100,"-")) -> -
A24: Dyrlæge | C24: =IF(OR('Tabel 1 NJ'!C22<5,'Tabel 2 NJ'!C24<0.5),"-",IFERROR('Tabel 2 NJ'!C24/'Tabel 1 NJ'!C22*100,"-")) -> - | D24: =IF(OR('Tabel 1 NJ'!C22<5,'Tabel 2 NJ'!D24<0.5),"-",IFERROR('Tabel 2 NJ'!D24/'Tabel 1 NJ'!C22*100,"-")) -> - | F24: =IF(OR('Tabel 1 NJ'!E22<5,'Tabel 2 NJ'!F24<0.5),"-",IFERROR('Tabel 2 NJ'!F24/'Tabel 1 NJ'!E22*100,"-")) -> 0.6711409396 | G24: =IF(OR('Tabel 1 NJ'!E22<5,'Tabel 2 NJ'!G24<0.5),"-",IFERROR('Tabel 2 NJ'!G24/'Tabel 1 NJ'!E22*100,"-")) -> 0.64003898 | I24: =IF(OR('Tabel 1 NJ'!G22<5,'Tabel 2 NJ'!I24<0.5),"-",IFERROR('Tabel 2 NJ'!I24/'Tabel 1 NJ'!G22*100,"-")) -> 0.5464480874 | J24: =IF(OR('Tabel 1 NJ'!G22<5,'Tabel 2 NJ'!J24<0.5),"-",IFERROR('Tabel 2 NJ'!J24/'Tabel 1 NJ'!G22*100,"-")) -> 0.521124634
A25: Farmaceut | C25: =IF(OR('Tabel 1 NJ'!C23<5,'Tabel 2 NJ'!C25<0.5),"-",IFERROR('Tabel 2 NJ'!C25/'Tabel 1 NJ'!C23*100,"-")) -> 6.25 | D25: =IF(OR('Tabel 1 NJ'!C23<5,'Tabel 2 NJ'!D25<0.5),"-",IFERROR('Tabel 2 NJ'!D25/'Tabel 1 NJ'!C23*100,"-")) -> 6.248830537 | F25: =IF(OR('Tabel 1 NJ'!E23<5,'Tabel 2 NJ'!F25<0.5),"-",IFERROR('Tabel 2 NJ'!F25/'Tabel 1 NJ'!E23*100,"-")) -> 3.157894737 | G25: =IF(OR('Tabel 1 NJ'!E23<5,'Tabel 2 NJ'!G25<0.5),"-",IFERROR('Tabel 2 NJ'!G25/'Tabel 1 NJ'!E23*100,"-")) -> 2.088455718 | I25: =IF(OR('Tabel 1 NJ'!G23<5,'Tabel 2 NJ'!I25<0.5),"-",IFERROR('Tabel 2 NJ'!I25/'Tabel 1 NJ'!G23*100,"-")) -> 3.603603604 | J25: =IF(OR('Tabel 1 NJ'!G23<5,'Tabel 2 NJ'!J25<0.5),"-",IFERROR('Tabel 2 NJ'!J25/'Tabel 1 NJ'!G23*100,"-")) -> 2.688149386
A26: Læge | C26: =IF(OR('Tabel 1 NJ'!C24<5,'Tabel 2 NJ'!C26<0.5),"-",IFERROR('Tabel 2 NJ'!C26/'Tabel 1 NJ'!C24*100,"-")) -> 1.659751037 | D26: =IF(OR('Tabel 1 NJ'!C24<5,'Tabel 2 NJ'!D26<0.5),"-",IFERROR('Tabel 2 NJ'!D26/'Tabel 1 NJ'!C24*100,"-")) -> 1.008293838 | F26: =IF(OR('Tabel 1 NJ'!E24<5,'Tabel 2 NJ'!F26<0.5),"-",IFERROR('Tabel 2 NJ'!F26/'Tabel 1 NJ'!E24*100,"-")) -> 2.429149798 | G26: =IF(OR('Tabel 1 NJ'!E24<5,'Tabel 2 NJ'!G26<0.5),"-",IFERROR('Tabel 2 NJ'!G26/'Tabel 1 NJ'!E24*100,"-")) -> 1.326717087 | I26: =IF(OR('Tabel 1 NJ'!G24<5,'Tabel 2 NJ'!I26<0.5),"-",IFERROR('Tabel 2 NJ'!I26/'Tabel 1 NJ'!G24*100,"-")) -> 2.176870748 | J26: =IF(OR('Tabel 1 NJ'!G24<5,'Tabel 2 NJ'!J26<0.5),"-",IFERROR('Tabel 2 NJ'!J26/'Tabel 1 NJ'!G24*100,"-")) -> 1.22230892
A27: Tandlæge | C27: =IF(OR('Tabel 1 NJ'!C25<5,'Tabel 2 NJ'!C27<0.5),"-",IFERROR('Tabel 2 NJ'!C27/'Tabel 1 NJ'!C25*100,"-")) -> - | D27: =IF(OR('Tabel 1 NJ'!C25<5,'Tabel 2 NJ'!D27<0.5),"-",IFERROR('Tabel 2 NJ'!D27/'Tabel 1 NJ'!C25*100,"-")) -> - | F27: =IF(OR('Tabel 1 NJ'!E25<5,'Tabel 2 NJ'!F27<0.5),"-",IFERROR('Tabel 2 NJ'!F27/'Tabel 1 NJ'!E25*100,"-")) -> - | G27: =IF(OR('Tabel 1 NJ'!E25<5,'Tabel 2 NJ'!G27<0.5),"-",IFERROR('Tabel 2 NJ'!G27/'Tabel 1 NJ'!E25*100,"-")) -> - | I27: =IF(OR('Tabel 1 NJ'!G25<5,'Tabel 2 NJ'!I27<0.5),"-",IFERROR('Tabel 2 NJ'!I27/'Tabel 1 NJ'!G25*100,"-")) -> - | J27: =IF(OR('Tabel 1 NJ'!G25<5,'Tabel 2 NJ'!J27<0.5),"-",IFERROR('Tabel 2 NJ'!J27/'Tabel 1 NJ'!G25*100,"-")) -> -
A28: Arkitekt | C28: =IF(OR('Tabel 1 NJ'!C26<5,'Tabel 2 NJ'!C28<0.5),"-",IFERROR('Tabel 2 NJ'!C28/'Tabel 1 NJ'!C26*100,"-")) -> 6.896551724 | D28: =IF(OR('Tabel 1 NJ'!C26<5,'Tabel 2 NJ'!D28<0.5),"-",IFERROR('Tabel 2 NJ'!D28/'Tabel 1 NJ'!C26*100,"-")) -> 6.895261282 | F28: =IF(OR('Tabel 1 NJ'!E26<5,'Tabel 2 NJ'!F28<0.5),"-",IFERROR('Tabel 2 NJ'!F28/'Tabel 1 NJ'!E26*100,"-")) -> 4.166666667 | G28: =IF(OR('Tabel 1 NJ'!E26<5,'Tabel 2 NJ'!G28<0.5),"-",IFERROR('Tabel 2 NJ'!G28/'Tabel 1 NJ'!E26*100,"-")) -> 3.973575334 | I28: =IF(OR('Tabel 1 NJ'!G26<5,'Tabel 2 NJ'!I28<0.5),"-",IFERROR('Tabel 2 NJ'!I28/'Tabel 1 NJ'!G26*100,"-")) -> 5.384615385 | J28: =IF(OR('Tabel 1 NJ'!G26<5,'Tabel 2 NJ'!J28<0.5),"-",IFERROR('Tabel 2 NJ'!J28/'Tabel 1 NJ'!G26*100,"-")) -> 5.277096757
A29: Landinspek. | C29: =IF(OR('Tabel 1 NJ'!C27<5,'Tabel 2 NJ'!C29<0.5),"-",IFERROR('Tabel 2 NJ'!C29/'Tabel 1 NJ'!C27*100,"-")) -> 1.290322581 | D29: =IF(OR('Tabel 1 NJ'!C27<5,'Tabel 2 NJ'!D29<0.5),"-",IFERROR('Tabel 2 NJ'!D29/'Tabel 1 NJ'!C27*100,"-")) -> 1.170971967 | F29: =IF(OR('Tabel 1 NJ'!E27<5,'Tabel 2 NJ'!F29<0.5),"-",IFERROR('Tabel 2 NJ'!F29/'Tabel 1 NJ'!E27*100,"-")) -> 2.857142857 | G29: =IF(OR('Tabel 1 NJ'!E27<5,'Tabel 2 NJ'!G29<0.5),"-",IFERROR('Tabel 2 NJ'!G29/'Tabel 1 NJ'!E27*100,"-")) -> 1.537899511 | I29: =IF(OR('Tabel 1 NJ'!G27<5,'Tabel 2 NJ'!I29<0.5),"-",IFERROR('Tabel 2 NJ'!I29/'Tabel 1 NJ'!G27*100,"-")) -> 1.777777778 | J29: =IF(OR('Tabel 1 NJ'!G27<5,'Tabel 2 NJ'!J29<0.5),"-",IFERROR('Tabel 2 NJ'!J29/'Tabel 1 NJ'!G27*100,"-")) -> 1.285127203
A30: Bibliotekar | C30: =IF(OR('Tabel 1 NJ'!C28<5,'Tabel 2 NJ'!C30<0.5),"-",IFERROR('Tabel 2 NJ'!C30/'Tabel 1 NJ'!C28*100,"-")) -> 7.792207792 | D30: =IF(OR('Tabel 1 NJ'!C28<5,'Tabel 2 NJ'!D30<0.5),"-",IFERROR('Tabel 2 NJ'!D30/'Tabel 1 NJ'!C28*100,"-")) -> 6.591923638 | F30: =IF(OR('Tabel 1 NJ'!E28<5,'Tabel 2 NJ'!F30<0.5),"-",IFERROR('Tabel 2 NJ'!F30/'Tabel 1 NJ'!E28*100,"-")) -> 3.585657371 | G30: =IF(OR('Tabel 1 NJ'!E28<5,'Tabel 2 NJ'!G30<0.5),"-",IFERROR('Tabel 2 NJ'!G30/'Tabel 1 NJ'!E28*100,"-")) -> 3.094464281 | I30: =IF(OR('Tabel 1 NJ'!G28<5,'Tabel 2 NJ'!I30<0.5),"-",IFERROR('Tabel 2 NJ'!I30/'Tabel 1 NJ'!G28*100,"-")) -> 4.573170732 | J30: =IF(OR('Tabel 1 NJ'!G28<5,'Tabel 2 NJ'!J30<0.5),"-",IFERROR('Tabel 2 NJ'!J30/'Tabel 1 NJ'!G28*100,"-")) -> 3.915514191
A31: Musikudd. | C31: =IF(OR('Tabel 1 NJ'!C29<5,'Tabel 2 NJ'!C31<0.5),"-",IFERROR('Tabel 2 NJ'!C31/'Tabel 1 NJ'!C29*100,"-")) -> 3.921568627 | D31: =IF(OR('Tabel 1 NJ'!C29<5,'Tabel 2 NJ'!D31<0.5),"-",IFERROR('Tabel 2 NJ'!D31/'Tabel 1 NJ'!C29*100,"-")) -> 3.920834847 | F31: =IF(OR('Tabel 1 NJ'!E29<5,'Tabel 2 NJ'!F31<0.5),"-",IFERROR('Tabel 2 NJ'!F31/'Tabel 1 NJ'!E29*100,"-")) -> 1.724137931 | G31: =IF(OR('Tabel 1 NJ'!E29<5,'Tabel 2 NJ'!G31<0.5),"-",IFERROR('Tabel 2 NJ'!G31/'Tabel 1 NJ'!E29*100,"-")) -> 1.723815321 | I31: =IF(OR('Tabel 1 NJ'!G29<5,'Tabel 2 NJ'!I31<0.5),"-",IFERROR('Tabel 2 NJ'!I31/'Tabel 1 NJ'!G29*100,"-")) -> 2.752293578 | J31: =IF(OR('Tabel 1 NJ'!G29<5,'Tabel 2 NJ'!J31<0.5),"-",IFERROR('Tabel 2 NJ'!J31/'Tabel 1 NJ'!G29*100,"-")) -> 2.751778585
A32: Teolog | C32: =IF(OR('Tabel 1 NJ'!C30<5,'Tabel 2 NJ'!C32<0.5),"-",IFERROR('Tabel 2 NJ'!C32/'Tabel 1 NJ'!C30*100,"-")) -> - | D32: =IF(OR('Tabel 1 NJ'!C30<5,'Tabel 2 NJ'!D32<0.5),"-",IFERROR('Tabel 2 NJ'!D32/'Tabel 1 NJ'!C30*100,"-")) -> - | F32: =IF(OR('Tabel 1 NJ'!E30<5,'Tabel 2 NJ'!F32<0.5),"-",IFERROR('Tabel 2 NJ'!F32/'Tabel 1 NJ'!E30*100,"-")) -> 2.06185567 | G32: =IF(OR('Tabel 1 NJ'!E30<5,'Tabel 2 NJ'!G32<0.5),"-",IFERROR('Tabel 2 NJ'!G32/'Tabel 1 NJ'!E30*100,"-")) -> 1.613939291 | I32: =IF(OR('Tabel 1 NJ'!G30<5,'Tabel 2 NJ'!I32<0.5),"-",IFERROR('Tabel 2 NJ'!I32/'Tabel 1 NJ'!G30*100,"-")) -> 1.324503311 | J32: =IF(OR('Tabel 1 NJ'!G30<5,'Tabel 2 NJ'!J32<0.5),"-",IFERROR('Tabel 2 NJ'!J32/'Tabel 1 NJ'!G30*100,"-")) -> 1.036768949
A33: Psykolog | C33: =IF(OR('Tabel 1 NJ'!C31<5,'Tabel 2 NJ'!C33<0.5),"-",IFERROR('Tabel 2 NJ'!C33/'Tabel 1 NJ'!C31*100,"-")) -> 6.862745098 | D33: =IF(OR('Tabel 1 NJ'!C31<5,'Tabel 2 NJ'!D33<0.5),"-",IFERROR('Tabel 2 NJ'!D33/'Tabel 1 NJ'!C31*100,"-")) -> 6.326412558 | F33: =IF(OR('Tabel 1 NJ'!E31<5,'Tabel 2 NJ'!F33<0.5),"-",IFERROR('Tabel 2 NJ'!F33/'Tabel 1 NJ'!E31*100,"-")) -> 6.227106227 | G33: =IF(OR('Tabel 1 NJ'!E31<5,'Tabel 2 NJ'!G33<0.5),"-",IFERROR('Tabel 2 NJ'!G33/'Tabel 1 NJ'!E31*100,"-")) -> 5.390895929 | I33: =IF(OR('Tabel 1 NJ'!G31<5,'Tabel 2 NJ'!I33<0.5),"-",IFERROR('Tabel 2 NJ'!I33/'Tabel 1 NJ'!G31*100,"-")) -> 6.327160494 | J33: =IF(OR('Tabel 1 NJ'!G31<5,'Tabel 2 NJ'!J33<0.5),"-",IFERROR('Tabel 2 NJ'!J33/'Tabel 1 NJ'!G31*100,"-")) -> 5.538153176
A34: Jurist | C34: =IF(OR('Tabel 1 NJ'!C32<5,'Tabel 2 NJ'!C34<0.5),"-",IFERROR('Tabel 2 NJ'!C34/'Tabel 1 NJ'!C32*100,"-")) -> 3.314917127 | D34: =IF(OR('Tabel 1 NJ'!C32<5,'Tabel 2 NJ'!D34<0.5),"-",IFERROR('Tabel 2 NJ'!D34/'Tabel 1 NJ'!C32*100,"-")) -> 3.135797611 | F34: =IF(OR('Tabel 1 NJ'!E32<5,'Tabel 2 NJ'!F34<0.5),"-",IFERROR('Tabel 2 NJ'!F34/'Tabel 1 NJ'!E32*100,"-")) -> 2.184466019 | G34: =IF(OR('Tabel 1 NJ'!E32<5,'Tabel 2 NJ'!G34<0.5),"-",IFERROR('Tabel 2 NJ'!G34/'Tabel 1 NJ'!E32*100,"-")) -> 2.027220557 | I34: =IF(OR('Tabel 1 NJ'!G32<5,'Tabel 2 NJ'!I34<0.5),"-",IFERROR('Tabel 2 NJ'!I34/'Tabel 1 NJ'!G32*100,"-")) -> 2.529510961 | J34: =IF(OR('Tabel 1 NJ'!G32<5,'Tabel 2 NJ'!J34<0.5),"-",IFERROR('Tabel 2 NJ'!J34/'Tabel 1 NJ'!G32*100,"-")) -> 2.365588932
A35: Økonom | C35: =IF(OR('Tabel 1 NJ'!C33<5,'Tabel 2 NJ'!C35<0.5),"-",IFERROR('Tabel 2 NJ'!C35/'Tabel 1 NJ'!C33*100,"-")) -> 4.06504065 | D35: =IF(OR('Tabel 1 NJ'!C33<5,'Tabel 2 NJ'!D35<0.5),"-",IFERROR('Tabel 2 NJ'!D35/'Tabel 1 NJ'!C33*100,"-")) -> 3.530066798 | F35: =IF(OR('Tabel 1 NJ'!E33<5,'Tabel 2 NJ'!F35<0.5),"-",IFERROR('Tabel 2 NJ'!F35/'Tabel 1 NJ'!E33*100,"-")) -> 1.657458564 | G35: =IF(OR('Tabel 1 NJ'!E33<5,'Tabel 2 NJ'!G35<0.5),"-",IFERROR('Tabel 2 NJ'!G35/'Tabel 1 NJ'!E33*100,"-")) -> 1.65714843 | I35: =IF(OR('Tabel 1 NJ'!G33<5,'Tabel 2 NJ'!I35<0.5),"-",IFERROR('Tabel 2 NJ'!I35/'Tabel 1 NJ'!G33*100,"-")) -> 3.044496487 | J35: =IF(OR('Tabel 1 NJ'!G33<5,'Tabel 2 NJ'!J35<0.5),"-",IFERROR('Tabel 2 NJ'!J35/'Tabel 1 NJ'!G33*100,"-")) -> 2.736159949
A36: Samf. Adm. | C36: =IF(OR('Tabel 1 NJ'!C34<5,'Tabel 2 NJ'!C36<0.5),"-",IFERROR('Tabel 2 NJ'!C36/'Tabel 1 NJ'!C34*100,"-")) -> 10.08849558 | D36: =IF(OR('Tabel 1 NJ'!C34<5,'Tabel 2 NJ'!D36<0.5),"-",IFERROR('Tabel 2 NJ'!D36/'Tabel 1 NJ'!C34*100,"-")) -> 8.614091843 | F36: =IF(OR('Tabel 1 NJ'!E34<5,'Tabel 2 NJ'!F36<0.5),"-",IFERROR('Tabel 2 NJ'!F36/'Tabel 1 NJ'!E34*100,"-")) -> 10.24774775 | G36: =IF(OR('Tabel 1 NJ'!E34<5,'Tabel 2 NJ'!G36<0.5),"-",IFERROR('Tabel 2 NJ'!G36/'Tabel 1 NJ'!E34*100,"-")) -> 8.975716189 | I36: =IF(OR('Tabel 1 NJ'!G34<5,'Tabel 2 NJ'!I36<0.5),"-",IFERROR('Tabel 2 NJ'!I36/'Tabel 1 NJ'!G34*100,"-")) -> 10.18582244 | J36: =IF(OR('Tabel 1 NJ'!G34<5,'Tabel 2 NJ'!J36<0.5),"-",IFERROR('Tabel 2 NJ'!J36/'Tabel 1 NJ'!G34*100,"-")) -> 8.835098325
A37: Cand. Merc. | C37: =IF(OR('Tabel 1 NJ'!C35<5,'Tabel 2 NJ'!C37<0.5),"-",IFERROR('Tabel 2 NJ'!C37/'Tabel 1 NJ'!C35*100,"-")) -> 5.442176871 | D37: =IF(OR('Tabel 1 NJ'!C35<5,'Tabel 2 NJ'!D37<0.5),"-",IFERROR('Tabel 2 NJ'!D37/'Tabel 1 NJ'!C35*100,"-")) -> 4.694702502 | F37: =IF(OR('Tabel 1 NJ'!E35<5,'Tabel 2 NJ'!F37<0.5),"-",IFERROR('Tabel 2 NJ'!F37/'Tabel 1 NJ'!E35*100,"-")) -> 6.153846154 | G37: =IF(OR('Tabel 1 NJ'!E35<5,'Tabel 2 NJ'!G37<0.5),"-",IFERROR('Tabel 2 NJ'!G37/'Tabel 1 NJ'!E35*100,"-")) -> 5.4245262 | I37: =IF(OR('Tabel 1 NJ'!G35<5,'Tabel 2 NJ'!I37<0.5),"-",IFERROR('Tabel 2 NJ'!I37/'Tabel 1 NJ'!G35*100,"-")) -> 5.776173285 | J37: =IF(OR('Tabel 1 NJ'!G35<5,'Tabel 2 NJ'!J37<0.5),"-",IFERROR('Tabel 2 NJ'!J37/'Tabel 1 NJ'!G35*100,"-")) -> 5.037219039
A38: HA | C38: =IF(OR('Tabel 1 NJ'!C36<5,'Tabel 2 NJ'!C38<0.5),"-",IFERROR('Tabel 2 NJ'!C38/'Tabel 1 NJ'!C36*100,"-")) -> 7.327586207 | D38: =IF(OR('Tabel 1 NJ'!C36<5,'Tabel 2 NJ'!D38<0.5),"-",IFERROR('Tabel 2 NJ'!D38/'Tabel 1 NJ'!C36*100,"-")) -> 5.695687988 | F38: =IF(OR('Tabel 1 NJ'!E36<5,'Tabel 2 NJ'!F38<0.5),"-",IFERROR('Tabel 2 NJ'!F38/'Tabel 1 NJ'!E36*100,"-")) -> 10.91954023 | G38: =IF(OR('Tabel 1 NJ'!E36<5,'Tabel 2 NJ'!G38<0.5),"-",IFERROR('Tabel 2 NJ'!G38/'Tabel 1 NJ'!E36*100,"-")) -> 9.17898501 | I38: =IF(OR('Tabel 1 NJ'!G36<5,'Tabel 2 NJ'!I38<0.5),"-",IFERROR('Tabel 2 NJ'!I38/'Tabel 1 NJ'!G36*100,"-")) -> 8.866995074 | J38: =IF(OR('Tabel 1 NJ'!G36<5,'Tabel 2 NJ'!J38<0.5),"-",IFERROR('Tabel 2 NJ'!J38/'Tabel 1 NJ'!G36*100,"-")) -> 7.188529569
A39: HD | C39: =IF(OR('Tabel 1 NJ'!C37<5,'Tabel 2 NJ'!C39<0.5),"-",IFERROR('Tabel 2 NJ'!C39/'Tabel 1 NJ'!C37*100,"-")) -> 8.910891089 | D39: =IF(OR('Tabel 1 NJ'!C37<5,'Tabel 2 NJ'!D39<0.5),"-",IFERROR('Tabel 2 NJ'!D39/'Tabel 1 NJ'!C37*100,"-")) -> 6.955641613 | F39: =IF(OR('Tabel 1 NJ'!E37<5,'Tabel 2 NJ'!F39<0.5),"-",IFERROR('Tabel 2 NJ'!F39/'Tabel 1 NJ'!E37*100,"-")) -> 7.575757576 | G39: =IF(OR('Tabel 1 NJ'!E37<5,'Tabel 2 NJ'!G39<0.5),"-",IFERROR('Tabel 2 NJ'!G39/'Tabel 1 NJ'!E37*100,"-")) -> 6.468665952 | I39: =IF(OR('Tabel 1 NJ'!G37<5,'Tabel 2 NJ'!I39<0.5),"-",IFERROR('Tabel 2 NJ'!I39/'Tabel 1 NJ'!G37*100,"-")) -> 8.383233533 | J39: =IF(OR('Tabel 1 NJ'!G37<5,'Tabel 2 NJ'!J39<0.5),"-",IFERROR('Tabel 2 NJ'!J39/'Tabel 1 NJ'!G37*100,"-")) -> 6.763184166
A40: Komm. og Sprog | C40: =IF(OR('Tabel 1 NJ'!C38<5,'Tabel 2 NJ'!C40<0.5),"-",IFERROR('Tabel 2 NJ'!C40/'Tabel 1 NJ'!C38*100,"-")) -> 25 | D40: =IF(OR('Tabel 1 NJ'!C38<5,'Tabel 2 NJ'!D40<0.5),"-",IFERROR('Tabel 2 NJ'!D40/'Tabel 1 NJ'!C38*100,"-")) -> 21.55755959 | F40: =IF(OR('Tabel 1 NJ'!E38<5,'Tabel 2 NJ'!F40<0.5),"-",IFERROR('Tabel 2 NJ'!F40/'Tabel 1 NJ'!E38*100,"-")) -> 10.67961165 | G40: =IF(OR('Tabel 1 NJ'!E38<5,'Tabel 2 NJ'!G40<0.5),"-",IFERROR('Tabel 2 NJ'!G40/'Tabel 1 NJ'!E38*100,"-")) -> 8.635102722 | I40: =IF(OR('Tabel 1 NJ'!G38<5,'Tabel 2 NJ'!I40<0.5),"-",IFERROR('Tabel 2 NJ'!I40/'Tabel 1 NJ'!G38*100,"-")) -> 13.26259947 | J40: =IF(OR('Tabel 1 NJ'!G38<5,'Tabel 2 NJ'!J40<0.5),"-",IFERROR('Tabel 2 NJ'!J40/'Tabel 1 NJ'!G38*100,"-")) -> 10.96594375
A41: Cand. IT. | C41: =IF(OR('Tabel 1 NJ'!C39<5,'Tabel 2 NJ'!C41<0.5),"-",IFERROR('Tabel 2 NJ'!C41/'Tabel 1 NJ'!C39*100,"-")) -> 16.79104478 | D41: =IF(OR('Tabel 1 NJ'!C39<5,'Tabel 2 NJ'!D41<0.5),"-",IFERROR('Tabel 2 NJ'!D41/'Tabel 1 NJ'!C39*100,"-")) -> 15.33218334 | F41: =IF(OR('Tabel 1 NJ'!E39<5,'Tabel 2 NJ'!F41<0.5),"-",IFERROR('Tabel 2 NJ'!F41/'Tabel 1 NJ'!E39*100,"-")) -> 22.11538462 | G41: =IF(OR('Tabel 1 NJ'!E39<5,'Tabel 2 NJ'!G41<0.5),"-",IFERROR('Tabel 2 NJ'!G41/'Tabel 1 NJ'!E39*100,"-")) -> 17.95245623 | I41: =IF(OR('Tabel 1 NJ'!G39<5,'Tabel 2 NJ'!I41<0.5),"-",IFERROR('Tabel 2 NJ'!I41/'Tabel 1 NJ'!G39*100,"-")) -> 19.11764706 | J41: =IF(OR('Tabel 1 NJ'!G39<5,'Tabel 2 NJ'!J41<0.5),"-",IFERROR('Tabel 2 NJ'!J41/'Tabel 1 NJ'!G39*100,"-")) -> 16.47717654
A42: Bac. Samf. | C42: =IF(OR('Tabel 1 NJ'!C40<5,'Tabel 2 NJ'!C42<0.5),"-",IFERROR('Tabel 2 NJ'!C42/'Tabel 1 NJ'!C40*100,"-")) -> 20 | D42: =IF(OR('Tabel 1 NJ'!C40<5,'Tabel 2 NJ'!D42<0.5),"-",IFERROR('Tabel 2 NJ'!D42/'Tabel 1 NJ'!C40*100,"-")) -> 16.18848625 | F42: =IF(OR('Tabel 1 NJ'!E40<5,'Tabel 2 NJ'!F42<0.5),"-",IFERROR('Tabel 2 NJ'!F42/'Tabel 1 NJ'!E40*100,"-")) -> 25 | G42: =IF(OR('Tabel 1 NJ'!E40<5,'Tabel 2 NJ'!G42<0.5),"-",IFERROR('Tabel 2 NJ'!G42/'Tabel 1 NJ'!E40*100,"-")) -> 18.46860493 | I42: =IF(OR('Tabel 1 NJ'!G40<5,'Tabel 2 NJ'!I42<0.5),"-",IFERROR('Tabel 2 NJ'!I42/'Tabel 1 NJ'!G40*100,"-")) -> 22.05882353 | J42: =IF(OR('Tabel 1 NJ'!G40<5,'Tabel 2 NJ'!J42<0.5),"-",IFERROR('Tabel 2 NJ'!J42/'Tabel 1 NJ'!G40*100,"-")) -> 17.12735865
A43: Bac. Hum. | C43: =IF(OR('Tabel 1 NJ'!C41<5,'Tabel 2 NJ'!C43<0.5),"-",IFERROR('Tabel 2 NJ'!C43/'Tabel 1 NJ'!C41*100,"-")) -> 19.8019802 | D43: =IF(OR('Tabel 1 NJ'!C41<5,'Tabel 2 NJ'!D43<0.5),"-",IFERROR('Tabel 2 NJ'!D43/'Tabel 1 NJ'!C41*100,"-")) -> 18.35014787 | F43: =IF(OR('Tabel 1 NJ'!E41<5,'Tabel 2 NJ'!F43<0.5),"-",IFERROR('Tabel 2 NJ'!F43/'Tabel 1 NJ'!E41*100,"-")) -> 18.30985915 | G43: =IF(OR('Tabel 1 NJ'!E41<5,'Tabel 2 NJ'!G43<0.5),"-",IFERROR('Tabel 2 NJ'!G43/'Tabel 1 NJ'!E41*100,"-")) -> 16.06940966 | I43: =IF(OR('Tabel 1 NJ'!G41<5,'Tabel 2 NJ'!I43<0.5),"-",IFERROR('Tabel 2 NJ'!I43/'Tabel 1 NJ'!G41*100,"-")) -> 18.93004115 | J43: =IF(OR('Tabel 1 NJ'!G41<5,'Tabel 2 NJ'!J43<0.5),"-",IFERROR('Tabel 2 NJ'!J43/'Tabel 1 NJ'!G41*100,"-")) -> 17.01737081
A44: Bac. Nat. | C44: =IF(OR('Tabel 1 NJ'!C42<5,'Tabel 2 NJ'!C44<0.5),"-",IFERROR('Tabel 2 NJ'!C44/'Tabel 1 NJ'!C42*100,"-")) -> 11.56462585 | D44: =IF(OR('Tabel 1 NJ'!C42<5,'Tabel 2 NJ'!D44<0.5),"-",IFERROR('Tabel 2 NJ'!D44/'Tabel 1 NJ'!C42*100,"-")) -> 9.980690336 | F44: =IF(OR('Tabel 1 NJ'!E42<5,'Tabel 2 NJ'!F44<0.5),"-",IFERROR('Tabel 2 NJ'!F44/'Tabel 1 NJ'!E42*100,"-")) -> 12.5 | G44: =IF(OR('Tabel 1 NJ'!E42<5,'Tabel 2 NJ'!G44<0.5),"-",IFERROR('Tabel 2 NJ'!G44/'Tabel 1 NJ'!E42*100,"-")) -> 10.3127144 | I44: =IF(OR('Tabel 1 NJ'!G42<5,'Tabel 2 NJ'!I44<0.5),"-",IFERROR('Tabel 2 NJ'!I44/'Tabel 1 NJ'!G42*100,"-")) -> 11.84834123 | J44: =IF(OR('Tabel 1 NJ'!G42<5,'Tabel 2 NJ'!J44<0.5),"-",IFERROR('Tabel 2 NJ'!J44/'Tabel 1 NJ'!G42*100,"-")) -> 10.08139906
A45: Andre | C45: =IF(OR('Tabel 1 NJ'!C43<5,'Tabel 2 NJ'!C45<0.5),"-",IFERROR('Tabel 2 NJ'!C45/'Tabel 1 NJ'!C43*100,"-")) -> 5.637982196 | D45: =IF(OR('Tabel 1 NJ'!C43<5,'Tabel 2 NJ'!D45<0.5),"-",IFERROR('Tabel 2 NJ'!D45/'Tabel 1 NJ'!C43*100,"-")) -> 4.590309934 | F45: =IF(OR('Tabel 1 NJ'!E43<5,'Tabel 2 NJ'!F45<0.5),"-",IFERROR('Tabel 2 NJ'!F45/'Tabel 1 NJ'!E43*100,"-")) -> 8.604651163 | G45: =IF(OR('Tabel 1 NJ'!E43<5,'Tabel 2 NJ'!G45<0.5),"-",IFERROR('Tabel 2 NJ'!G45/'Tabel 1 NJ'!E43*100,"-")) -> 7.195479092 | I45: =IF(OR('Tabel 1 NJ'!G43<5,'Tabel 2 NJ'!I45<0.5),"-",IFERROR('Tabel 2 NJ'!I45/'Tabel 1 NJ'!G43*100,"-")) -> 6.793478261 | J45: =IF(OR('Tabel 1 NJ'!G43<5,'Tabel 2 NJ'!J45<0.5),"-",IFERROR('Tabel 2 NJ'!J45/'Tabel 1 NJ'!G43*100,"-")) -> 5.605004443
A47: Total | C47: =IF(OR('Tabel 1 NJ'!C45<5,'Tabel 2 NJ'!C47<0.5),"-",IFERROR('Tabel 2 NJ'!C47/'Tabel 1 NJ'!C45*100,"-")) -> 6.89931452 | D47: =IF(OR('Tabel 1 NJ'!C45<5,'Tabel 2 NJ'!D47<0.5),"-",IFERROR('Tabel 2 NJ'!D47/'Tabel 1 NJ'!C45*100,"-")) -> 5.919160244 | F47: =IF(OR('Tabel 1 NJ'!E45<5,'Tabel 2 NJ'!F47<0.5),"-",IFERROR('Tabel 2 NJ'!F47/'Tabel 1 NJ'!E45*100,"-")) -> 8.375258952 | G47: =IF(OR('Tabel 1 NJ'!E45<5,'Tabel 2 NJ'!G47<0.5),"-",IFERROR('Tabel 2 NJ'!G47/'Tabel 1 NJ'!E45*100,"-")) -> 7.062312003 | I47: =IF(OR('Tabel 1 NJ'!G45<5,'Tabel 2 NJ'!I47<0.5),"-",IFERROR('Tabel 2 NJ'!I47/'Tabel 1 NJ'!G45*100,"-")) -> 7.599438465 | J47: =IF(OR('Tabel 1 NJ'!G45<5,'Tabel 2 NJ'!J47<0.5),"-",IFERROR('Tabel 2 NJ'!J47/'Tabel 1 NJ'!G45*100,"-")) -> 6.461421797
A49: Ingeniører i alt | C49: =IF(OR('Tabel 1 NJ'!C47<5,'Tabel 2 NJ'!C49<0.5),"-",IFERROR('Tabel 2 NJ'!C49/'Tabel 1 NJ'!C47*100,"-")) -> 3.581871345 | D49: =IF(OR('Tabel 1 NJ'!C47<5,'Tabel 2 NJ'!D49<0.5),"-",IFERROR('Tabel 2 NJ'!D49/'Tabel 1 NJ'!C47*100,"-")) -> 3.124388673 | F49: =IF(OR('Tabel 1 NJ'!E47<5,'Tabel 2 NJ'!F49<0.5),"-",IFERROR('Tabel 2 NJ'!F49/'Tabel 1 NJ'!E47*100,"-")) -> 3.856749311 | G49: =IF(OR('Tabel 1 NJ'!E47<5,'Tabel 2 NJ'!G49<0.5),"-",IFERROR('Tabel 2 NJ'!G49/'Tabel 1 NJ'!E47*100,"-")) -> 3.377675418 | I49: =IF(OR('Tabel 1 NJ'!G47<5,'Tabel 2 NJ'!I49<0.5),"-",IFERROR('Tabel 2 NJ'!I49/'Tabel 1 NJ'!G47*100,"-")) -> 3.639514731 | J49: =IF(OR('Tabel 1 NJ'!G47<5,'Tabel 2 NJ'!J49<0.5),"-",IFERROR('Tabel 2 NJ'!J49/'Tabel 1 NJ'!G47*100,"-")) -> 3.177504264
A50: Magistre i alt | C50: =IF(OR('Tabel 1 NJ'!C48<5,'Tabel 2 NJ'!C50<0.5),"-",IFERROR('Tabel 2 NJ'!C50/'Tabel 1 NJ'!C48*100,"-")) -> 10.72351421 | D50: =IF(OR('Tabel 1 NJ'!C48<5,'Tabel 2 NJ'!D50<0.5),"-",IFERROR('Tabel 2 NJ'!D50/'Tabel 1 NJ'!C48*100,"-")) -> 9.073018166 | F50: =IF(OR('Tabel 1 NJ'!E48<5,'Tabel 2 NJ'!F50<0.5),"-",IFERROR('Tabel 2 NJ'!F50/'Tabel 1 NJ'!E48*100,"-")) -> 11.75589667 | G50: =IF(OR('Tabel 1 NJ'!E48<5,'Tabel 2 NJ'!G50<0.5),"-",IFERROR('Tabel 2 NJ'!G50/'Tabel 1 NJ'!E48*100,"-")) -> 9.774322863 | I50: =IF(OR('Tabel 1 NJ'!G48<5,'Tabel 2 NJ'!I50<0.5),"-",IFERROR('Tabel 2 NJ'!I50/'Tabel 1 NJ'!G48*100,"-")) -> 11.37710358 | J50: =IF(OR('Tabel 1 NJ'!G48<5,'Tabel 2 NJ'!J50<0.5),"-",IFERROR('Tabel 2 NJ'!J50/'Tabel 1 NJ'!G48*100,"-")) -> 9.517006041
A51: DJØF'ere i alt | C51: =IF(OR('Tabel 1 NJ'!C49<5,'Tabel 2 NJ'!C51<0.5),"-",IFERROR('Tabel 2 NJ'!C51/'Tabel 1 NJ'!C49*100,"-")) -> 6.480248557 | D51: =IF(OR('Tabel 1 NJ'!C49<5,'Tabel 2 NJ'!D51<0.5),"-",IFERROR('Tabel 2 NJ'!D51/'Tabel 1 NJ'!C49*100,"-")) -> 5.528267279 | F51: =IF(OR('Tabel 1 NJ'!E49<5,'Tabel 2 NJ'!F51<0.5),"-",IFERROR('Tabel 2 NJ'!F51/'Tabel 1 NJ'!E49*100,"-")) -> 6.93957115 | G51: =IF(OR('Tabel 1 NJ'!E49<5,'Tabel 2 NJ'!G51<0.5),"-",IFERROR('Tabel 2 NJ'!G51/'Tabel 1 NJ'!E49*100,"-")) -> 6.097098224 | I51: =IF(OR('Tabel 1 NJ'!G49<5,'Tabel 2 NJ'!I51<0.5),"-",IFERROR('Tabel 2 NJ'!I51/'Tabel 1 NJ'!G49*100,"-")) -> 6.724782067 | J51: =IF(OR('Tabel 1 NJ'!G49<5,'Tabel 2 NJ'!J51<0.5),"-",IFERROR('Tabel 2 NJ'!J51/'Tabel 1 NJ'!G49*100,"-")) -> 5.83110069
A56: Morsø
C58: Mænd | F58: Kvinder | I58: I alt
C59: Ledigheds- berørte | D59: Gns. brutto- ledighed | F59: Ledigheds- berørte | G59: Gns. brutto- ledighed | I59: Ledigheds- berørte | J59: Gns. brutto- ledighed
A62: Civ. ing. | C62: =IF(OR('Tabel 1 NJ'!C60<5,'Tabel 2 NJ'!C62<0.5),"-",IFERROR('Tabel 2 NJ'!C62/'Tabel 1 NJ'!C60*100,"-")) -> - | D62: =IF(OR('Tabel 1 NJ'!C60<5,'Tabel 2 NJ'!D62<0.5),"-",IFERROR('Tabel 2 NJ'!D62/'Tabel 1 NJ'!C60*100,"-")) -> - | F62: =IF(OR('Tabel 1 NJ'!E60<5,'Tabel 2 NJ'!F62<0.5),"-",IFERROR('Tabel 2 NJ'!F62/'Tabel 1 NJ'!E60*100,"-")) -> - | G62: =IF(OR('Tabel 1 NJ'!E60<5,'Tabel 2 NJ'!G62<0.5),"-",IFERROR('Tabel 2 NJ'!G62/'Tabel 1 NJ'!E60*100,"-")) -> - | I62: =IF(OR('Tabel 1 NJ'!G60<5,'Tabel 2 NJ'!I62<0.5),"-",IFERROR('Tabel 2 NJ'!I62/'Tabel 1 NJ'!G60*100,"-")) -> - | J62: =IF(OR('Tabel 1 NJ'!G60<5,'Tabel 2 NJ'!J62<0.5),"-",IFERROR('Tabel 2 NJ'!J62/'Tabel 1 NJ'!G60*100,"-")) -> -
A63: Diplom ing. | C63: =IF(OR('Tabel 1 NJ'!C61<5,'Tabel 2 NJ'!C63<0.5),"-",IFERROR('Tabel 2 NJ'!C63/'Tabel 1 NJ'!C61*100,"-")) -> - | D63: =IF(OR('Tabel 1 NJ'!C61<5,'Tabel 2 NJ'!D63<0.5),"-",IFERROR('Tabel 2 NJ'!D63/'Tabel 1 NJ'!C61*100,"-")) -> - | F63: =IF(OR('Tabel 1 NJ'!E61<5,'Tabel 2 NJ'!F63<0.5),"-",IFERROR('Tabel 2 NJ'!F63/'Tabel 1 NJ'!E61*100,"-")) -> 12.5 | G63: =IF(OR('Tabel 1 NJ'!E61<5,'Tabel 2 NJ'!G63<0.5),"-",IFERROR('Tabel 2 NJ'!G63/'Tabel 1 NJ'!E61*100,"-")) -> 12.49766107 | I63: =IF(OR('Tabel 1 NJ'!G61<5,'Tabel 2 NJ'!I63<0.5),"-",IFERROR('Tabel 2 NJ'!I63/'Tabel 1 NJ'!G61*100,"-")) -> 4.166666667 | J63: =IF(OR('Tabel 1 NJ'!G61<5,'Tabel 2 NJ'!J63<0.5),"-",IFERROR('Tabel 2 NJ'!J63/'Tabel 1 NJ'!G61*100,"-")) -> 4.165887025
A64: Cand. Scient. Tek. | C64: =IF(OR('Tabel 1 NJ'!C62<5,'Tabel 2 NJ'!C64<0.5),"-",IFERROR('Tabel 2 NJ'!C64/'Tabel 1 NJ'!C62*100,"-")) -> - | D64: =IF(OR('Tabel 1 NJ'!C62<5,'Tabel 2 NJ'!D64<0.5),"-",IFERROR('Tabel 2 NJ'!D64/'Tabel 1 NJ'!C62*100,"-")) -> - | F64: =IF(OR('Tabel 1 NJ'!E62<5,'Tabel 2 NJ'!F64<0.5),"-",IFERROR('Tabel 2 NJ'!F64/'Tabel 1 NJ'!E62*100,"-")) -> - | G64: =IF(OR('Tabel 1 NJ'!E62<5,'Tabel 2 NJ'!G64<0.5),"-",IFERROR('Tabel 2 NJ'!G64/'Tabel 1 NJ'!E62*100,"-")) -> - | I64: =IF(OR('Tabel 1 NJ'!G62<5,'Tabel 2 NJ'!I64<0.5),"-",IFERROR('Tabel 2 NJ'!I64/'Tabel 1 NJ'!G62*100,"-")) -> 12.5 | J64: =IF(OR('Tabel 1 NJ'!G62<5,'Tabel 2 NJ'!J64<0.5),"-",IFERROR('Tabel 2 NJ'!J64/'Tabel 1 NJ'!G62*100,"-")) -> 8.817750889
A65: MA. Hum. | C65: =IF(OR('Tabel 1 NJ'!C63<5,'Tabel 2 NJ'!C65<0.5),"-",IFERROR('Tabel 2 NJ'!C65/'Tabel 1 NJ'!C63*100,"-")) -> - | D65: =IF(OR('Tabel 1 NJ'!C63<5,'Tabel 2 NJ'!D65<0.5),"-",IFERROR('Tabel 2 NJ'!D65/'Tabel 1 NJ'!C63*100,"-")) -> - | F65: =IF(OR('Tabel 1 NJ'!E63<5,'Tabel 2 NJ'!F65<0.5),"-",IFERROR('Tabel 2 NJ'!F65/'Tabel 1 NJ'!E63*100,"-")) -> 15 | G65: =IF(OR('Tabel 1 NJ'!E63<5,'Tabel 2 NJ'!G65<0.5),"-",IFERROR('Tabel 2 NJ'!G65/'Tabel 1 NJ'!E63*100,"-")) -> 11.30480883 | I65: =IF(OR('Tabel 1 NJ'!G63<5,'Tabel 2 NJ'!I65<0.5),"-",IFERROR('Tabel 2 NJ'!I65/'Tabel 1 NJ'!G63*100,"-")) -> 10 | J65: =IF(OR('Tabel 1 NJ'!G63<5,'Tabel 2 NJ'!J65<0.5),"-",IFERROR('Tabel 2 NJ'!J65/'Tabel 1 NJ'!G63*100,"-")) -> 7.536539221
A66: MA. Nat. | C66: =IF(OR('Tabel 1 NJ'!C64<5,'Tabel 2 NJ'!C66<0.5),"-",IFERROR('Tabel 2 NJ'!C66/'Tabel 1 NJ'!C64*100,"-")) -> - | D66: =IF(OR('Tabel 1 NJ'!C64<5,'Tabel 2 NJ'!D66<0.5),"-",IFERROR('Tabel 2 NJ'!D66/'Tabel 1 NJ'!C64*100,"-")) -> - | F66: =IF(OR('Tabel 1 NJ'!E64<5,'Tabel 2 NJ'!F66<0.5),"-",IFERROR('Tabel 2 NJ'!F66/'Tabel 1 NJ'!E64*100,"-")) -> 10 | G66: =IF(OR('Tabel 1 NJ'!E64<5,'Tabel 2 NJ'!G66<0.5),"-",IFERROR('Tabel 2 NJ'!G66/'Tabel 1 NJ'!E64*100,"-")) -> - | I66: =IF(OR('Tabel 1 NJ'!G64<5,'Tabel 2 NJ'!I66<0.5),"-",IFERROR('Tabel 2 NJ'!I66/'Tabel 1 NJ'!G64*100,"-")) -> 5 | J66: =IF(OR('Tabel 1 NJ'!G64<5,'Tabel 2 NJ'!J66<0.5),"-",IFERROR('Tabel 2 NJ'!J66/'Tabel 1 NJ'!G64*100,"-")) -> -
A67: MA. Ph.d. | C67: =IF(OR('Tabel 1 NJ'!C65<5,'Tabel 2 NJ'!C67<0.5),"-",IFERROR('Tabel 2 NJ'!C67/'Tabel 1 NJ'!C65*100,"-")) -> - | D67: =IF(OR('Tabel 1 NJ'!C65<5,'Tabel 2 NJ'!D67<0.5),"-",IFERROR('Tabel 2 NJ'!D67/'Tabel 1 NJ'!C65*100,"-")) -> - | F67: =IF(OR('Tabel 1 NJ'!E65<5,'Tabel 2 NJ'!F67<0.5),"-",IFERROR('Tabel 2 NJ'!F67/'Tabel 1 NJ'!E65*100,"-")) -> - | G67: =IF(OR('Tabel 1 NJ'!E65<5,'Tabel 2 NJ'!G67<0.5),"-",IFERROR('Tabel 2 NJ'!G67/'Tabel 1 NJ'!E65*100,"-")) -> - | I67: =IF(OR('Tabel 1 NJ'!G65<5,'Tabel 2 NJ'!I67<0.5),"-",IFERROR('Tabel 2 NJ'!I67/'Tabel 1 NJ'!G65*100,"-")) -> - | J67: =IF(OR('Tabel 1 NJ'!G65<5,'Tabel 2 NJ'!J67<0.5),"-",IFERROR('Tabel 2 NJ'!J67/'Tabel 1 NJ'!G65*100,"-")) -> -
A68: MA. Samf. | C68: =IF(OR('Tabel 1 NJ'!C66<5,'Tabel 2 NJ'!C68<0.5),"-",IFERROR('Tabel 2 NJ'!C68/'Tabel 1 NJ'!C66*100,"-")) -> - | D68: =IF(OR('Tabel 1 NJ'!C66<5,'Tabel 2 NJ'!D68<0.5),"-",IFERROR('Tabel 2 NJ'!D68/'Tabel 1 NJ'!C66*100,"-")) -> - | F68: =IF(OR('Tabel 1 NJ'!E66<5,'Tabel 2 NJ'!F68<0.5),"-",IFERROR('Tabel 2 NJ'!F68/'Tabel 1 NJ'!E66*100,"-")) -> - | G68: =IF(OR('Tabel 1 NJ'!E66<5,'Tabel 2 NJ'!G68<0.5),"-",IFERROR('Tabel 2 NJ'!G68/'Tabel 1 NJ'!E66*100,"-")) -> - | I68: =IF(OR('Tabel 1 NJ'!G66<5,'Tabel 2 NJ'!I68<0.5),"-",IFERROR('Tabel 2 NJ'!I68/'Tabel 1 NJ'!G66*100,"-")) -> - | J68: =IF(OR('Tabel 1 NJ'!G66<5,'Tabel 2 NJ'!J68<0.5),"-",IFERROR('Tabel 2 NJ'!J68/'Tabel 1 NJ'!G66*100,"-")) -> -
A69: Øvrige Mag. | C69: =IF(OR('Tabel 1 NJ'!C67<5,'Tabel 2 NJ'!C69<0.5),"-",IFERROR('Tabel 2 NJ'!C69/'Tabel 1 NJ'!C67*100,"-")) -> - | D69: =IF(OR('Tabel 1 NJ'!C67<5,'Tabel 2 NJ'!D69<0.5),"-",IFERROR('Tabel 2 NJ'!D69/'Tabel 1 NJ'!C67*100,"-")) -> - | F69: =IF(OR('Tabel 1 NJ'!E67<5,'Tabel 2 NJ'!F69<0.5),"-",IFERROR('Tabel 2 NJ'!F69/'Tabel 1 NJ'!E67*100,"-")) -> - | G69: =IF(OR('Tabel 1 NJ'!E67<5,'Tabel 2 NJ'!G69<0.5),"-",IFERROR('Tabel 2 NJ'!G69/'Tabel 1 NJ'!E67*100,"-")) -> - | I69: =IF(OR('Tabel 1 NJ'!G67<5,'Tabel 2 NJ'!I69<0.5),"-",IFERROR('Tabel 2 NJ'!I69/'Tabel 1 NJ'!G67*100,"-")) -> - | J69: =IF(OR('Tabel 1 NJ'!G67<5,'Tabel 2 NJ'!J69<0.5),"-",IFERROR('Tabel 2 NJ'!J69/'Tabel 1 NJ'!G67*100,"-")) -> -
A70: Agronom | C70: =IF(OR('Tabel 1 NJ'!C68<5,'Tabel 2 NJ'!C70<0.5),"-",IFERROR('Tabel 2 NJ'!C70/'Tabel 1 NJ'!C68*100,"-")) -> - | D70: =IF(OR('Tabel 1 NJ'!C68<5,'Tabel 2 NJ'!D70<0.5),"-",IFERROR('Tabel 2 NJ'!D70/'Tabel 1 NJ'!C68*100,"-")) -> - | F70: =IF(OR('Tabel 1 NJ'!E68<5,'Tabel 2 NJ'!F70<0.5),"-",IFERROR('Tabel 2 NJ'!F70/'Tabel 1 NJ'!E68*100,"-")) -> - | G70: =IF(OR('Tabel 1 NJ'!E68<5,'Tabel 2 NJ'!G70<0.5),"-",IFERROR('Tabel 2 NJ'!G70/'Tabel 1 NJ'!E68*100,"-")) -> - | I70: =IF(OR('Tabel 1 NJ'!G68<5,'Tabel 2 NJ'!I70<0.5),"-",IFERROR('Tabel 2 NJ'!I70/'Tabel 1 NJ'!G68*100,"-")) -> - | J70: =IF(OR('Tabel 1 NJ'!G68<5,'Tabel 2 NJ'!J70<0.5),"-",IFERROR('Tabel 2 NJ'!J70/'Tabel 1 NJ'!G68*100,"-")) -> -
A71: Landsk. Arkt. | C71: =IF(OR('Tabel 1 NJ'!C69<5,'Tabel 2 NJ'!C71<0.5),"-",IFERROR('Tabel 2 NJ'!C71/'Tabel 1 NJ'!C69*100,"-")) -> - | D71: =IF(OR('Tabel 1 NJ'!C69<5,'Tabel 2 NJ'!D71<0.5),"-",IFERROR('Tabel 2 NJ'!D71/'Tabel 1 NJ'!C69*100,"-")) -> - | F71: =IF(OR('Tabel 1 NJ'!E69<5,'Tabel 2 NJ'!F71<0.5),"-",IFERROR('Tabel 2 NJ'!F71/'Tabel 1 NJ'!E69*100,"-")) -> - | G71: =IF(OR('Tabel 1 NJ'!E69<5,'Tabel 2 NJ'!G71<0.5),"-",IFERROR('Tabel 2 NJ'!G71/'Tabel 1 NJ'!E69*100,"-")) -> - | I71: =IF(OR('Tabel 1 NJ'!G69<5,'Tabel 2 NJ'!I71<0.5),"-",IFERROR('Tabel 2 NJ'!I71/'Tabel 1 NJ'!G69*100,"-")) -> - | J71: =IF(OR('Tabel 1 NJ'!G69<5,'Tabel 2 NJ'!J71<0.5),"-",IFERROR('Tabel 2 NJ'!J71/'Tabel 1 NJ'!G69*100,"-")) -> -
A72: Hortonom | C72: =IF(OR('Tabel 1 NJ'!C70<5,'Tabel 2 NJ'!C72<0.5),"-",IFERROR('Tabel 2 NJ'!C72/'Tabel 1 NJ'!C70*100,"-")) -> - | D72: =IF(OR('Tabel 1 NJ'!C70<5,'Tabel 2 NJ'!D72<0.5),"-",IFERROR('Tabel 2 NJ'!D72/'Tabel 1 NJ'!C70*100,"-")) -> - | F72: =IF(OR('Tabel 1 NJ'!E70<5,'Tabel 2 NJ'!F72<0.5),"-",IFERROR('Tabel 2 NJ'!F72/'Tabel 1 NJ'!E70*100,"-")) -> - | G72: =IF(OR('Tabel 1 NJ'!E70<5,'Tabel 2 NJ'!G72<0.5),"-",IFERROR('Tabel 2 NJ'!G72/'Tabel 1 NJ'!E70*100,"-")) -> - | I72: =IF(OR('Tabel 1 NJ'!G70<5,'Tabel 2 NJ'!I72<0.5),"-",IFERROR('Tabel 2 NJ'!I72/'Tabel 1 NJ'!G70*100,"-")) -> - | J72: =IF(OR('Tabel 1 NJ'!G70<5,'Tabel 2 NJ'!J72<0.5),"-",IFERROR('Tabel 2 NJ'!J72/'Tabel 1 NJ'!G70*100,"-")) -> -
A73: Forstkand. | C73: =IF(OR('Tabel 1 NJ'!C71<5,'Tabel 2 NJ'!C73<0.5),"-",IFERROR('Tabel 2 NJ'!C73/'Tabel 1 NJ'!C71*100,"-")) -> - | D73: =IF(OR('Tabel 1 NJ'!C71<5,'Tabel 2 NJ'!D73<0.5),"-",IFERROR('Tabel 2 NJ'!D73/'Tabel 1 NJ'!C71*100,"-")) -> - | F73: =IF(OR('Tabel 1 NJ'!E71<5,'Tabel 2 NJ'!F73<0.5),"-",IFERROR('Tabel 2 NJ'!F73/'Tabel 1 NJ'!E71*100,"-")) -> - | G73: =IF(OR('Tabel 1 NJ'!E71<5,'Tabel 2 NJ'!G73<0.5),"-",IFERROR('Tabel 2 NJ'!G73/'Tabel 1 NJ'!E71*100,"-")) -> - | I73: =IF(OR('Tabel 1 NJ'!G71<5,'Tabel 2 NJ'!I73<0.5),"-",IFERROR('Tabel 2 NJ'!I73/'Tabel 1 NJ'!G71*100,"-")) -> - | J73: =IF(OR('Tabel 1 NJ'!G71<5,'Tabel 2 NJ'!J73<0.5),"-",IFERROR('Tabel 2 NJ'!J73/'Tabel 1 NJ'!G71*100,"-")) -> -
A74: Jordbrugsakad. | C74: =IF(OR('Tabel 1 NJ'!C72<5,'Tabel 2 NJ'!C74<0.5),"-",IFERROR('Tabel 2 NJ'!C74/'Tabel 1 NJ'!C72*100,"-")) -> - | D74: =IF(OR('Tabel 1 NJ'!C72<5,'Tabel 2 NJ'!D74<0.5),"-",IFERROR('Tabel 2 NJ'!D74/'Tabel 1 NJ'!C72*100,"-")) -> - | F74: =IF(OR('Tabel 1 NJ'!E72<5,'Tabel 2 NJ'!F74<0.5),"-",IFERROR('Tabel 2 NJ'!F74/'Tabel 1 NJ'!E72*100,"-")) -> - | G74: =IF(OR('Tabel 1 NJ'!E72<5,'Tabel 2 NJ'!G74<0.5),"-",IFERROR('Tabel 2 NJ'!G74/'Tabel 1 NJ'!E72*100,"-")) -> - | I74: =IF(OR('Tabel 1 NJ'!G72<5,'Tabel 2 NJ'!I74<0.5),"-",IFERROR('Tabel 2 NJ'!I74/'Tabel 1 NJ'!G72*100,"-")) -> - | J74: =IF(OR('Tabel 1 NJ'!G72<5,'Tabel 2 NJ'!J74<0.5),"-",IFERROR('Tabel 2 NJ'!J74/'Tabel 1 NJ'!G72*100,"-")) -> -
A75: Mejeriing. | C75: =IF(OR('Tabel 1 NJ'!C73<5,'Tabel 2 NJ'!C75<0.5),"-",IFERROR('Tabel 2 NJ'!C75/'Tabel 1 NJ'!C73*100,"-")) -> - | D75: =IF(OR('Tabel 1 NJ'!C73<5,'Tabel 2 NJ'!D75<0.5),"-",IFERROR('Tabel 2 NJ'!D75/'Tabel 1 NJ'!C73*100,"-")) -> - | F75: =IF(OR('Tabel 1 NJ'!E73<5,'Tabel 2 NJ'!F75<0.5),"-",IFERROR('Tabel 2 NJ'!F75/'Tabel 1 NJ'!E73*100,"-")) -> - | G75: =IF(OR('Tabel 1 NJ'!E73<5,'Tabel 2 NJ'!G75<0.5),"-",IFERROR('Tabel 2 NJ'!G75/'Tabel 1 NJ'!E73*100,"-")) -> - | I75: =IF(OR('Tabel 1 NJ'!G73<5,'Tabel 2 NJ'!I75<0.5),"-",IFERROR('Tabel 2 NJ'!I75/'Tabel 1 NJ'!G73*100,"-")) -> - | J75: =IF(OR('Tabel 1 NJ'!G73<5,'Tabel 2 NJ'!J75<0.5),"-",IFERROR('Tabel 2 NJ'!J75/'Tabel 1 NJ'!G73*100,"-")) -> -
A76: Levn.m.kand. | C76: =IF(OR('Tabel 1 NJ'!C74<5,'Tabel 2 NJ'!C76<0.5),"-",IFERROR('Tabel 2 NJ'!C76/'Tabel 1 NJ'!C74*100,"-")) -> - | D76: =IF(OR('Tabel 1 NJ'!C74<5,'Tabel 2 NJ'!D76<0.5),"-",IFERROR('Tabel 2 NJ'!D76/'Tabel 1 NJ'!C74*100,"-")) -> - | F76: =IF(OR('Tabel 1 NJ'!E74<5,'Tabel 2 NJ'!F76<0.5),"-",IFERROR('Tabel 2 NJ'!F76/'Tabel 1 NJ'!E74*100,"-")) -> - | G76: =IF(OR('Tabel 1 NJ'!E74<5,'Tabel 2 NJ'!G76<0.5),"-",IFERROR('Tabel 2 NJ'!G76/'Tabel 1 NJ'!E74*100,"-")) -> - | I76: =IF(OR('Tabel 1 NJ'!G74<5,'Tabel 2 NJ'!I76<0.5),"-",IFERROR('Tabel 2 NJ'!I76/'Tabel 1 NJ'!G74*100,"-")) -> - | J76: =IF(OR('Tabel 1 NJ'!G74<5,'Tabel 2 NJ'!J76<0.5),"-",IFERROR('Tabel 2 NJ'!J76/'Tabel 1 NJ'!G74*100,"-")) -> -
A77: Dyrlæge | C77: =IF(OR('Tabel 1 NJ'!C75<5,'Tabel 2 NJ'!C77<0.5),"-",IFERROR('Tabel 2 NJ'!C77/'Tabel 1 NJ'!C75*100,"-")) -> - | D77: =IF(OR('Tabel 1 NJ'!C75<5,'Tabel 2 NJ'!D77<0.5),"-",IFERROR('Tabel 2 NJ'!D77/'Tabel 1 NJ'!C75*100,"-")) -> - | F77: =IF(OR('Tabel 1 NJ'!E75<5,'Tabel 2 NJ'!F77<0.5),"-",IFERROR('Tabel 2 NJ'!F77/'Tabel 1 NJ'!E75*100,"-")) -> - | G77: =IF(OR('Tabel 1 NJ'!E75<5,'Tabel 2 NJ'!G77<0.5),"-",IFERROR('Tabel 2 NJ'!G77/'Tabel 1 NJ'!E75*100,"-")) -> - | I77: =IF(OR('Tabel 1 NJ'!G75<5,'Tabel 2 NJ'!I77<0.5),"-",IFERROR('Tabel 2 NJ'!I77/'Tabel 1 NJ'!G75*100,"-")) -> - | J77: =IF(OR('Tabel 1 NJ'!G75<5,'Tabel 2 NJ'!J77<0.5),"-",IFERROR('Tabel 2 NJ'!J77/'Tabel 1 NJ'!G75*100,"-")) -> -
A78: Farmaceut | C78: =IF(OR('Tabel 1 NJ'!C76<5,'Tabel 2 NJ'!C78<0.5),"-",IFERROR('Tabel 2 NJ'!C78/'Tabel 1 NJ'!C76*100,"-")) -> - | D78: =IF(OR('Tabel 1 NJ'!C76<5,'Tabel 2 NJ'!D78<0.5),"-",IFERROR('Tabel 2 NJ'!D78/'Tabel 1 NJ'!C76*100,"-")) -> - | F78: =IF(OR('Tabel 1 NJ'!E76<5,'Tabel 2 NJ'!F78<0.5),"-",IFERROR('Tabel 2 NJ'!F78/'Tabel 1 NJ'!E76*100,"-")) -> - | G78: =IF(OR('Tabel 1 NJ'!E76<5,'Tabel 2 NJ'!G78<0.5),"-",IFERROR('Tabel 2 NJ'!G78/'Tabel 1 NJ'!E76*100,"-")) -> - | I78: =IF(OR('Tabel 1 NJ'!G76<5,'Tabel 2 NJ'!I78<0.5),"-",IFERROR('Tabel 2 NJ'!I78/'Tabel 1 NJ'!G76*100,"-")) -> - | J78: =IF(OR('Tabel 1 NJ'!G76<5,'Tabel 2 NJ'!J78<0.5),"-",IFERROR('Tabel 2 NJ'!J78/'Tabel 1 NJ'!G76*100,"-")) -> -
A79: Læge | C79: =IF(OR('Tabel 1 NJ'!C77<5,'Tabel 2 NJ'!C79<0.5),"-",IFERROR('Tabel 2 NJ'!C79/'Tabel 1 NJ'!C77*100,"-")) -> - | D79: =IF(OR('Tabel 1 NJ'!C77<5,'Tabel 2 NJ'!D79<0.5),"-",IFERROR('Tabel 2 NJ'!D79/'Tabel 1 NJ'!C77*100,"-")) -> - | F79: =IF(OR('Tabel 1 NJ'!E77<5,'Tabel 2 NJ'!F79<0.5),"-",IFERROR('Tabel 2 NJ'!F79/'Tabel 1 NJ'!E77*100,"-")) -> - | G79: =IF(OR('Tabel 1 NJ'!E77<5,'Tabel 2 NJ'!G79<0.5),"-",IFERROR('Tabel 2 NJ'!G79/'Tabel 1 NJ'!E77*100,"-")) -> - | I79: =IF(OR('Tabel 1 NJ'!G77<5,'Tabel 2 NJ'!I79<0.5),"-",IFERROR('Tabel 2 NJ'!I79/'Tabel 1 NJ'!G77*100,"-")) -> - | J79: =IF(OR('Tabel 1 NJ'!G77<5,'Tabel 2 NJ'!J79<0.5),"-",IFERROR('Tabel 2 NJ'!J79/'Tabel 1 NJ'!G77*100,"-")) -> -
A80: Tandlæge | C80: =IF(OR('Tabel 1 NJ'!C78<5,'Tabel 2 NJ'!C80<0.5),"-",IFERROR('Tabel 2 NJ'!C80/'Tabel 1 NJ'!C78*100,"-")) -> - | D80: =IF(OR('Tabel 1 NJ'!C78<5,'Tabel 2 NJ'!D80<0.5),"-",IFERROR('Tabel 2 NJ'!D80/'Tabel 1 NJ'!C78*100,"-")) -> - | F80: =IF(OR('Tabel 1 NJ'!E78<5,'Tabel 2 NJ'!F80<0.5),"-",IFERROR('Tabel 2 NJ'!F80/'Tabel 1 NJ'!E78*100,"-")) -> - | G80: =IF(OR('Tabel 1 NJ'!E78<5,'Tabel 2 NJ'!G80<0.5),"-",IFERROR('Tabel 2 NJ'!G80/'Tabel 1 NJ'!E78*100,"-")) -> - | I80: =IF(OR('Tabel 1 NJ'!G78<5,'Tabel 2 NJ'!I80<0.5),"-",IFERROR('Tabel 2 NJ'!I80/'Tabel 1 NJ'!G78*100,"-")) -> - | J80: =IF(OR('Tabel 1 NJ'!G78<5,'Tabel 2 NJ'!J80<0.5),"-",IFERROR('Tabel 2 NJ'!J80/'Tabel 1 NJ'!G78*100,"-")) -> -
A81: Arkitekt | C81: =IF(OR('Tabel 1 NJ'!C79<5,'Tabel 2 NJ'!C81<0.5),"-",IFERROR('Tabel 2 NJ'!C81/'Tabel 1 NJ'!C79*100,"-")) -> - | D81: =IF(OR('Tabel 1 NJ'!C79<5,'Tabel 2 NJ'!D81<0.5),"-",IFERROR('Tabel 2 NJ'!D81/'Tabel 1 NJ'!C79*100,"-")) -> - | F81: =IF(OR('Tabel 1 NJ'!E79<5,'Tabel 2 NJ'!F81<0.5),"-",IFERROR('Tabel 2 NJ'!F81/'Tabel 1 NJ'!E79*100,"-")) -> - | G81: =IF(OR('Tabel 1 NJ'!E79<5,'Tabel 2 NJ'!G81<0.5),"-",IFERROR('Tabel 2 NJ'!G81/'Tabel 1 NJ'!E79*100,"-")) -> - | I81: =IF(OR('Tabel 1 NJ'!G79<5,'Tabel 2 NJ'!I81<0.5),"-",IFERROR('Tabel 2 NJ'!I81/'Tabel 1 NJ'!G79*100,"-")) -> - | J81: =IF(OR('Tabel 1 NJ'!G79<5,'Tabel 2 NJ'!J81<0.5),"-",IFERROR('Tabel 2 NJ'!J81/'Tabel 1 NJ'!G79*100,"-")) -> -
A82: Landinspek. | C82: =IF(OR('Tabel 1 NJ'!C80<5,'Tabel 2 NJ'!C82<0.5),"-",IFERROR('Tabel 2 NJ'!C82/'Tabel 1 NJ'!C80*100,"-")) -> - | D82: =IF(OR('Tabel 1 NJ'!C80<5,'Tabel 2 NJ'!D82<0.5),"-",IFERROR('Tabel 2 NJ'!D82/'Tabel 1 NJ'!C80*100,"-")) -> - | F82: =IF(OR('Tabel 1 NJ'!E80<5,'Tabel 2 NJ'!F82<0.5),"-",IFERROR('Tabel 2 NJ'!F82/'Tabel 1 NJ'!E80*100,"-")) -> - | G82: =IF(OR('Tabel 1 NJ'!E80<5,'Tabel 2 NJ'!G82<0.5),"-",IFERROR('Tabel 2 NJ'!G82/'Tabel 1 NJ'!E80*100,"-")) -> - | I82: =IF(OR('Tabel 1 NJ'!G80<5,'Tabel 2 NJ'!I82<0.5),"-",IFERROR('Tabel 2 NJ'!I82/'Tabel 1 NJ'!G80*100,"-")) -> - | J82: =IF(OR('Tabel 1 NJ'!G80<5,'Tabel 2 NJ'!J82<0.5),"-",IFERROR('Tabel 2 NJ'!J82/'Tabel 1 NJ'!G80*100,"-")) -> -
A83: Bibliotekar | C83: =IF(OR('Tabel 1 NJ'!C81<5,'Tabel 2 NJ'!C83<0.5),"-",IFERROR('Tabel 2 NJ'!C83/'Tabel 1 NJ'!C81*100,"-")) -> - | D83: =IF(OR('Tabel 1 NJ'!C81<5,'Tabel 2 NJ'!D83<0.5),"-",IFERROR('Tabel 2 NJ'!D83/'Tabel 1 NJ'!C81*100,"-")) -> - | F83: =IF(OR('Tabel 1 NJ'!E81<5,'Tabel 2 NJ'!F83<0.5),"-",IFERROR('Tabel 2 NJ'!F83/'Tabel 1 NJ'!E81*100,"-")) -> - | G83: =IF(OR('Tabel 1 NJ'!E81<5,'Tabel 2 NJ'!G83<0.5),"-",IFERROR('Tabel 2 NJ'!G83/'Tabel 1 NJ'!E81*100,"-")) -> - | I83: =IF(OR('Tabel 1 NJ'!G81<5,'Tabel 2 NJ'!I83<0.5),"-",IFERROR('Tabel 2 NJ'!I83/'Tabel 1 NJ'!G81*100,"-")) -> - | J83: =IF(OR('Tabel 1 NJ'!G81<5,'Tabel 2 NJ'!J83<0.5),"-",IFERROR('Tabel 2 NJ'!J83/'Tabel 1 NJ'!G81*100,"-")) -> -
A84: Musikudd. | C84: =IF(OR('Tabel 1 NJ'!C82<5,'Tabel 2 NJ'!C84<0.5),"-",IFERROR('Tabel 2 NJ'!C84/'Tabel 1 NJ'!C82*100,"-")) -> - | D84: =IF(OR('Tabel 1 NJ'!C82<5,'Tabel 2 NJ'!D84<0.5),"-",IFERROR('Tabel 2 NJ'!D84/'Tabel 1 NJ'!C82*100,"-")) -> - | F84: =IF(OR('Tabel 1 NJ'!E82<5,'Tabel 2 NJ'!F84<0.5),"-",IFERROR('Tabel 2 NJ'!F84/'Tabel 1 NJ'!E82*100,"-")) -> - | G84: =IF(OR('Tabel 1 NJ'!E82<5,'Tabel 2 NJ'!G84<0.5),"-",IFERROR('Tabel 2 NJ'!G84/'Tabel 1 NJ'!E82*100,"-")) -> - | I84: =IF(OR('Tabel 1 NJ'!G82<5,'Tabel 2 NJ'!I84<0.5),"-",IFERROR('Tabel 2 NJ'!I84/'Tabel 1 NJ'!G82*100,"-")) -> - | J84: =IF(OR('Tabel 1 NJ'!G82<5,'Tabel 2 NJ'!J84<0.5),"-",IFERROR('Tabel 2 NJ'!J84/'Tabel 1 NJ'!G82*100,"-")) -> -
A85: Teolog | C85: =IF(OR('Tabel 1 NJ'!C83<5,'Tabel 2 NJ'!C85<0.5),"-",IFERROR('Tabel 2 NJ'!C85/'Tabel 1 NJ'!C83*100,"-")) -> - | D85: =IF(OR('Tabel 1 NJ'!C83<5,'Tabel 2 NJ'!D85<0.5),"-",IFERROR('Tabel 2 NJ'!D85/'Tabel 1 NJ'!C83*100,"-")) -> - | F85: =IF(OR('Tabel 1 NJ'!E83<5,'Tabel 2 NJ'!F85<0.5),"-",IFERROR('Tabel 2 NJ'!F85/'Tabel 1 NJ'!E83*100,"-")) -> - | G85: =IF(OR('Tabel 1 NJ'!E83<5,'Tabel 2 NJ'!G85<0.5),"-",IFERROR('Tabel 2 NJ'!G85/'Tabel 1 NJ'!E83*100,"-")) -> - | I85: =IF(OR('Tabel 1 NJ'!G83<5,'Tabel 2 NJ'!I85<0.5),"-",IFERROR('Tabel 2 NJ'!I85/'Tabel 1 NJ'!G83*100,"-")) -> - | J85: =IF(OR('Tabel 1 NJ'!G83<5,'Tabel 2 NJ'!J85<0.5),"-",IFERROR('Tabel 2 NJ'!J85/'Tabel 1 NJ'!G83*100,"-")) -> -
A86: Psykolog | C86: =IF(OR('Tabel 1 NJ'!C84<5,'Tabel 2 NJ'!C86<0.5),"-",IFERROR('Tabel 2 NJ'!C86/'Tabel 1 NJ'!C84*100,"-")) -> - | D86: =IF(OR('Tabel 1 NJ'!C84<5,'Tabel 2 NJ'!D86<0.5),"-",IFERROR('Tabel 2 NJ'!D86/'Tabel 1 NJ'!C84*100,"-")) -> - | F86: =IF(OR('Tabel 1 NJ'!E84<5,'Tabel 2 NJ'!F86<0.5),"-",IFERROR('Tabel 2 NJ'!F86/'Tabel 1 NJ'!E84*100,"-")) -> - | G86: =IF(OR('Tabel 1 NJ'!E84<5,'Tabel 2 NJ'!G86<0.5),"-",IFERROR('Tabel 2 NJ'!G86/'Tabel 1 NJ'!E84*100,"-")) -> - | I86: =IF(OR('Tabel 1 NJ'!G84<5,'Tabel 2 NJ'!I86<0.5),"-",IFERROR('Tabel 2 NJ'!I86/'Tabel 1 NJ'!G84*100,"-")) -> - | J86: =IF(OR('Tabel 1 NJ'!G84<5,'Tabel 2 NJ'!J86<0.5),"-",IFERROR('Tabel 2 NJ'!J86/'Tabel 1 NJ'!G84*100,"-")) -> -
A87: Jurist | C87: =IF(OR('Tabel 1 NJ'!C85<5,'Tabel 2 NJ'!C87<0.5),"-",IFERROR('Tabel 2 NJ'!C87/'Tabel 1 NJ'!C85*100,"-")) -> - | D87: =IF(OR('Tabel 1 NJ'!C85<5,'Tabel 2 NJ'!D87<0.5),"-",IFERROR('Tabel 2 NJ'!D87/'Tabel 1 NJ'!C85*100,"-")) -> - | F87: =IF(OR('Tabel 1 NJ'!E85<5,'Tabel 2 NJ'!F87<0.5),"-",IFERROR('Tabel 2 NJ'!F87/'Tabel 1 NJ'!E85*100,"-")) -> - | G87: =IF(OR('Tabel 1 NJ'!E85<5,'Tabel 2 NJ'!G87<0.5),"-",IFERROR('Tabel 2 NJ'!G87/'Tabel 1 NJ'!E85*100,"-")) -> - | I87: =IF(OR('Tabel 1 NJ'!G85<5,'Tabel 2 NJ'!I87<0.5),"-",IFERROR('Tabel 2 NJ'!I87/'Tabel 1 NJ'!G85*100,"-")) -> - | J87: =IF(OR('Tabel 1 NJ'!G85<5,'Tabel 2 NJ'!J87<0.5),"-",IFERROR('Tabel 2 NJ'!J87/'Tabel 1 NJ'!G85*100,"-")) -> -
A88: Økonom | C88: =IF(OR('Tabel 1 NJ'!C86<5,'Tabel 2 NJ'!C88<0.5),"-",IFERROR('Tabel 2 NJ'!C88/'Tabel 1 NJ'!C86*100,"-")) -> - | D88: =IF(OR('Tabel 1 NJ'!C86<5,'Tabel 2 NJ'!D88<0.5),"-",IFERROR('Tabel 2 NJ'!D88/'Tabel 1 NJ'!C86*100,"-")) -> - | F88: =IF(OR('Tabel 1 NJ'!E86<5,'Tabel 2 NJ'!F88<0.5),"-",IFERROR('Tabel 2 NJ'!F88/'Tabel 1 NJ'!E86*100,"-")) -> - | G88: =IF(OR('Tabel 1 NJ'!E86<5,'Tabel 2 NJ'!G88<0.5),"-",IFERROR('Tabel 2 NJ'!G88/'Tabel 1 NJ'!E86*100,"-")) -> - | I88: =IF(OR('Tabel 1 NJ'!G86<5,'Tabel 2 NJ'!I88<0.5),"-",IFERROR('Tabel 2 NJ'!I88/'Tabel 1 NJ'!G86*100,"-")) -> - | J88: =IF(OR('Tabel 1 NJ'!G86<5,'Tabel 2 NJ'!J88<0.5),"-",IFERROR('Tabel 2 NJ'!J88/'Tabel 1 NJ'!G86*100,"-")) -> -
A89: Samf. Adm. | C89: =IF(OR('Tabel 1 NJ'!C87<5,'Tabel 2 NJ'!C89<0.5),"-",IFERROR('Tabel 2 NJ'!C89/'Tabel 1 NJ'!C87*100,"-")) -> - | D89: =IF(OR('Tabel 1 NJ'!C87<5,'Tabel 2 NJ'!D89<0.5),"-",IFERROR('Tabel 2 NJ'!D89/'Tabel 1 NJ'!C87*100,"-")) -> - | F89: =IF(OR('Tabel 1 NJ'!E87<5,'Tabel 2 NJ'!F89<0.5),"-",IFERROR('Tabel 2 NJ'!F89/'Tabel 1 NJ'!E87*100,"-")) -> 14.28571429 | G89: =IF(OR('Tabel 1 NJ'!E87<5,'Tabel 2 NJ'!G89<0.5),"-",IFERROR('Tabel 2 NJ'!G89/'Tabel 1 NJ'!E87*100,"-")) -> 13.62368686 | I89: =IF(OR('Tabel 1 NJ'!G87<5,'Tabel 2 NJ'!I89<0.5),"-",IFERROR('Tabel 2 NJ'!I89/'Tabel 1 NJ'!G87*100,"-")) -> 12.5 | J89: =IF(OR('Tabel 1 NJ'!G87<5,'Tabel 2 NJ'!J89<0.5),"-",IFERROR('Tabel 2 NJ'!J89/'Tabel 1 NJ'!G87*100,"-")) -> 11.920726
A90: Cand. Merc. | C90: =IF(OR('Tabel 1 NJ'!C88<5,'Tabel 2 NJ'!C90<0.5),"-",IFERROR('Tabel 2 NJ'!C90/'Tabel 1 NJ'!C88*100,"-")) -> - | D90: =IF(OR('Tabel 1 NJ'!C88<5,'Tabel 2 NJ'!D90<0.5),"-",IFERROR('Tabel 2 NJ'!D90/'Tabel 1 NJ'!C88*100,"-")) -> - | F90: =IF(OR('Tabel 1 NJ'!E88<5,'Tabel 2 NJ'!F90<0.5),"-",IFERROR('Tabel 2 NJ'!F90/'Tabel 1 NJ'!E88*100,"-")) -> - | G90: =IF(OR('Tabel 1 NJ'!E88<5,'Tabel 2 NJ'!G90<0.5),"-",IFERROR('Tabel 2 NJ'!G90/'Tabel 1 NJ'!E88*100,"-")) -> - | I90: =IF(OR('Tabel 1 NJ'!G88<5,'Tabel 2 NJ'!I90<0.5),"-",IFERROR('Tabel 2 NJ'!I90/'Tabel 1 NJ'!G88*100,"-")) -> - | J90: =IF(OR('Tabel 1 NJ'!G88<5,'Tabel 2 NJ'!J90<0.5),"-",IFERROR('Tabel 2 NJ'!J90/'Tabel 1 NJ'!G88*100,"-")) -> -
A91: HA | C91: =IF(OR('Tabel 1 NJ'!C89<5,'Tabel 2 NJ'!C91<0.5),"-",IFERROR('Tabel 2 NJ'!C91/'Tabel 1 NJ'!C89*100,"-")) -> - | D91: =IF(OR('Tabel 1 NJ'!C89<5,'Tabel 2 NJ'!D91<0.5),"-",IFERROR('Tabel 2 NJ'!D91/'Tabel 1 NJ'!C89*100,"-")) -> - | F91: =IF(OR('Tabel 1 NJ'!E89<5,'Tabel 2 NJ'!F91<0.5),"-",IFERROR('Tabel 2 NJ'!F91/'Tabel 1 NJ'!E89*100,"-")) -> - | G91: =IF(OR('Tabel 1 NJ'!E89<5,'Tabel 2 NJ'!G91<0.5),"-",IFERROR('Tabel 2 NJ'!G91/'Tabel 1 NJ'!E89*100,"-")) -> - | I91: =IF(OR('Tabel 1 NJ'!G89<5,'Tabel 2 NJ'!I91<0.5),"-",IFERROR('Tabel 2 NJ'!I91/'Tabel 1 NJ'!G89*100,"-")) -> - | J91: =IF(OR('Tabel 1 NJ'!G89<5,'Tabel 2 NJ'!J91<0.5),"-",IFERROR('Tabel 2 NJ'!J91/'Tabel 1 NJ'!G89*100,"-")) -> -
A92: HD | C92: =IF(OR('Tabel 1 NJ'!C90<5,'Tabel 2 NJ'!C92<0.5),"-",IFERROR('Tabel 2 NJ'!C92/'Tabel 1 NJ'!C90*100,"-")) -> - | D92: =IF(OR('Tabel 1 NJ'!C90<5,'Tabel 2 NJ'!D92<0.5),"-",IFERROR('Tabel 2 NJ'!D92/'Tabel 1 NJ'!C90*100,"-")) -> - | F92: =IF(OR('Tabel 1 NJ'!E90<5,'Tabel 2 NJ'!F92<0.5),"-",IFERROR('Tabel 2 NJ'!F92/'Tabel 1 NJ'!E90*100,"-")) -> - | G92: =IF(OR('Tabel 1 NJ'!E90<5,'Tabel 2 NJ'!G92<0.5),"-",IFERROR('Tabel 2 NJ'!G92/'Tabel 1 NJ'!E90*100,"-")) -> - | I92: =IF(OR('Tabel 1 NJ'!G90<5,'Tabel 2 NJ'!I92<0.5),"-",IFERROR('Tabel 2 NJ'!I92/'Tabel 1 NJ'!G90*100,"-")) -> - | J92: =IF(OR('Tabel 1 NJ'!G90<5,'Tabel 2 NJ'!J92<0.5),"-",IFERROR('Tabel 2 NJ'!J92/'Tabel 1 NJ'!G90*100,"-")) -> -
A93: Komm. og Sprog | C93: =IF(OR('Tabel 1 NJ'!C91<5,'Tabel 2 NJ'!C93<0.5),"-",IFERROR('Tabel 2 NJ'!C93/'Tabel 1 NJ'!C91*100,"-")) -> - | D93: =IF(OR('Tabel 1 NJ'!C91<5,'Tabel 2 NJ'!D93<0.5),"-",IFERROR('Tabel 2 NJ'!D93/'Tabel 1 NJ'!C91*100,"-")) -> - | F93: =IF(OR('Tabel 1 NJ'!E91<5,'Tabel 2 NJ'!F93<0.5),"-",IFERROR('Tabel 2 NJ'!F93/'Tabel 1 NJ'!E91*100,"-")) -> - | G93: =IF(OR('Tabel 1 NJ'!E91<5,'Tabel 2 NJ'!G93<0.5),"-",IFERROR('Tabel 2 NJ'!G93/'Tabel 1 NJ'!E91*100,"-")) -> - | I93: =IF(OR('Tabel 1 NJ'!G91<5,'Tabel 2 NJ'!I93<0.5),"-",IFERROR('Tabel 2 NJ'!I93/'Tabel 1 NJ'!G91*100,"-")) -> - | J93: =IF(OR('Tabel 1 NJ'!G91<5,'Tabel 2 NJ'!J93<0.5),"-",IFERROR('Tabel 2 NJ'!J93/'Tabel 1 NJ'!G91*100,"-")) -> -
A94: Cand. IT. | C94: =IF(OR('Tabel 1 NJ'!C92<5,'Tabel 2 NJ'!C94<0.5),"-",IFERROR('Tabel 2 NJ'!C94/'Tabel 1 NJ'!C92*100,"-")) -> - | D94: =IF(OR('Tabel 1 NJ'!C92<5,'Tabel 2 NJ'!D94<0.5),"-",IFERROR('Tabel 2 NJ'!D94/'Tabel 1 NJ'!C92*100,"-")) -> - | F94: =IF(OR('Tabel 1 NJ'!E92<5,'Tabel 2 NJ'!F94<0.5),"-",IFERROR('Tabel 2 NJ'!F94/'Tabel 1 NJ'!E92*100,"-")) -> - | G94: =IF(OR('Tabel 1 NJ'!E92<5,'Tabel 2 NJ'!G94<0.5),"-",IFERROR('Tabel 2 NJ'!G94/'Tabel 1 NJ'!E92*100,"-")) -> - | I94: =IF(OR('Tabel 1 NJ'!G92<5,'Tabel 2 NJ'!I94<0.5),"-",IFERROR('Tabel 2 NJ'!I94/'Tabel 1 NJ'!G92*100,"-")) -> - | J94: =IF(OR('Tabel 1 NJ'!G92<5,'Tabel 2 NJ'!J94<0.5),"-",IFERROR('Tabel 2 NJ'!J94/'Tabel 1 NJ'!G92*100,"-")) -> -
A95: Bac. Samf. | C95: =IF(OR('Tabel 1 NJ'!C93<5,'Tabel 2 NJ'!C95<0.5),"-",IFERROR('Tabel 2 NJ'!C95/'Tabel 1 NJ'!C93*100,"-")) -> - | D95: =IF(OR('Tabel 1 NJ'!C93<5,'Tabel 2 NJ'!D95<0.5),"-",IFERROR('Tabel 2 NJ'!D95/'Tabel 1 NJ'!C93*100,"-")) -> - | F95: =IF(OR('Tabel 1 NJ'!E93<5,'Tabel 2 NJ'!F95<0.5),"-",IFERROR('Tabel 2 NJ'!F95/'Tabel 1 NJ'!E93*100,"-")) -> - | G95: =IF(OR('Tabel 1 NJ'!E93<5,'Tabel 2 NJ'!G95<0.5),"-",IFERROR('Tabel 2 NJ'!G95/'Tabel 1 NJ'!E93*100,"-")) -> - | I95: =IF(OR('Tabel 1 NJ'!G93<5,'Tabel 2 NJ'!I95<0.5),"-",IFERROR('Tabel 2 NJ'!I95/'Tabel 1 NJ'!G93*100,"-")) -> - | J95: =IF(OR('Tabel 1 NJ'!G93<5,'Tabel 2 NJ'!J95<0.5),"-",IFERROR('Tabel 2 NJ'!J95/'Tabel 1 NJ'!G93*100,"-")) -> -
A96: Bac. Hum. | C96: =IF(OR('Tabel 1 NJ'!C94<5,'Tabel 2 NJ'!C96<0.5),"-",IFERROR('Tabel 2 NJ'!C96/'Tabel 1 NJ'!C94*100,"-")) -> - | D96: =IF(OR('Tabel 1 NJ'!C94<5,'Tabel 2 NJ'!D96<0.5),"-",IFERROR('Tabel 2 NJ'!D96/'Tabel 1 NJ'!C94*100,"-")) -> - | F96: =IF(OR('Tabel 1 NJ'!E94<5,'Tabel 2 NJ'!F96<0.5),"-",IFERROR('Tabel 2 NJ'!F96/'Tabel 1 NJ'!E94*100,"-")) -> - | G96: =IF(OR('Tabel 1 NJ'!E94<5,'Tabel 2 NJ'!G96<0.5),"-",IFERROR('Tabel 2 NJ'!G96/'Tabel 1 NJ'!E94*100,"-")) -> - | I96: =IF(OR('Tabel 1 NJ'!G94<5,'Tabel 2 NJ'!I96<0.5),"-",IFERROR('Tabel 2 NJ'!I96/'Tabel 1 NJ'!G94*100,"-")) -> - | J96: =IF(OR('Tabel 1 NJ'!G94<5,'Tabel 2 NJ'!J96<0.5),"-",IFERROR('Tabel 2 NJ'!J96/'Tabel 1 NJ'!G94*100,"-")) -> -
A97: Bac. Nat. | C97: =IF(OR('Tabel 1 NJ'!C95<5,'Tabel 2 NJ'!C97<0.5),"-",IFERROR('Tabel 2 NJ'!C97/'Tabel 1 NJ'!C95*100,"-")) -> - | D97: =IF(OR('Tabel 1 NJ'!C95<5,'Tabel 2 NJ'!D97<0.5),"-",IFERROR('Tabel 2 NJ'!D97/'Tabel 1 NJ'!C95*100,"-")) -> - | F97: =IF(OR('Tabel 1 NJ'!E95<5,'Tabel 2 NJ'!F97<0.5),"-",IFERROR('Tabel 2 NJ'!F97/'Tabel 1 NJ'!E95*100,"-")) -> - | G97: =IF(OR('Tabel 1 NJ'!E95<5,'Tabel 2 NJ'!G97<0.5),"-",IFERROR('Tabel 2 NJ'!G97/'Tabel 1 NJ'!E95*100,"-")) -> - | I97: =IF(OR('Tabel 1 NJ'!G95<5,'Tabel 2 NJ'!I97<0.5),"-",IFERROR('Tabel 2 NJ'!I97/'Tabel 1 NJ'!G95*100,"-")) -> - | J97: =IF(OR('Tabel 1 NJ'!G95<5,'Tabel 2 NJ'!J97<0.5),"-",IFERROR('Tabel 2 NJ'!J97/'Tabel 1 NJ'!G95*100,"-")) -> -
A98: Andre | C98: =IF(OR('Tabel 1 NJ'!C96<5,'Tabel 2 NJ'!C98<0.5),"-",IFERROR('Tabel 2 NJ'!C98/'Tabel 1 NJ'!C96*100,"-")) -> 11.11111111 | D98: =IF(OR('Tabel 1 NJ'!C96<5,'Tabel 2 NJ'!D98<0.5),"-",IFERROR('Tabel 2 NJ'!D98/'Tabel 1 NJ'!C96*100,"-")) -> - | F98: =IF(OR('Tabel 1 NJ'!E96<5,'Tabel 2 NJ'!F98<0.5),"-",IFERROR('Tabel 2 NJ'!F98/'Tabel 1 NJ'!E96*100,"-")) -> - | G98: =IF(OR('Tabel 1 NJ'!E96<5,'Tabel 2 NJ'!G98<0.5),"-",IFERROR('Tabel 2 NJ'!G98/'Tabel 1 NJ'!E96*100,"-")) -> - | I98: =IF(OR('Tabel 1 NJ'!G96<5,'Tabel 2 NJ'!I98<0.5),"-",IFERROR('Tabel 2 NJ'!I98/'Tabel 1 NJ'!G96*100,"-")) -> 6.25 | J98: =IF(OR('Tabel 1 NJ'!G96<5,'Tabel 2 NJ'!J98<0.5),"-",IFERROR('Tabel 2 NJ'!J98/'Tabel 1 NJ'!G96*100,"-")) -> -
A100: Total | C100: =IF(OR('Tabel 1 NJ'!C98<5,'Tabel 2 NJ'!C100<0.5),"-",IFERROR('Tabel 2 NJ'!C100/'Tabel 1 NJ'!C98*100,"-")) -> 0.9090909091 | D100: =IF(OR('Tabel 1 NJ'!C98<5,'Tabel 2 NJ'!D100<0.5),"-",IFERROR('Tabel 2 NJ'!D100/'Tabel 1 NJ'!C98*100,"-")) -> - | F100: =IF(OR('Tabel 1 NJ'!E98<5,'Tabel 2 NJ'!F100<0.5),"-",IFERROR('Tabel 2 NJ'!F100/'Tabel 1 NJ'!E98*100,"-")) -> 9.090909091 | G100: =IF(OR('Tabel 1 NJ'!E98<5,'Tabel 2 NJ'!G100<0.5),"-",IFERROR('Tabel 2 NJ'!G100/'Tabel 1 NJ'!E98*100,"-")) -> 6.366517817 | I100: =IF(OR('Tabel 1 NJ'!G98<5,'Tabel 2 NJ'!I100<0.5),"-",IFERROR('Tabel 2 NJ'!I100/'Tabel 1 NJ'!G98*100,"-")) -> 5.194805195 | J100: =IF(OR('Tabel 1 NJ'!G98<5,'Tabel 2 NJ'!J100<0.5),"-",IFERROR('Tabel 2 NJ'!J100/'Tabel 1 NJ'!G98*100,"-")) -> 3.527896873
A102: Ingeniører i alt | C102: =IF(OR('Tabel 1 NJ'!C100<5,'Tabel 2 NJ'!C102<0.5),"-",IFERROR('Tabel 2 NJ'!C102/'Tabel 1 NJ'!C100*100,"-")) -> - | D102: =IF(OR('Tabel 1 NJ'!C100<5,'Tabel 2 NJ'!D102<0.5),"-",IFERROR('Tabel 2 NJ'!D102/'Tabel 1 NJ'!C100*100,"-")) -> - | F102: =IF(OR('Tabel 1 NJ'!E100<5,'Tabel 2 NJ'!F102<0.5),"-",IFERROR('Tabel 2 NJ'!F102/'Tabel 1 NJ'!E100*100,"-")) -> 6.666666667 | G102: =IF(OR('Tabel 1 NJ'!E100<5,'Tabel 2 NJ'!G102<0.5),"-",IFERROR('Tabel 2 NJ'!G102/'Tabel 1 NJ'!E100*100,"-")) -> 6.665419239 | I102: =IF(OR('Tabel 1 NJ'!G100<5,'Tabel 2 NJ'!I102<0.5),"-",IFERROR('Tabel 2 NJ'!I102/'Tabel 1 NJ'!G100*100,"-")) -> 2.222222222 | J102: =IF(OR('Tabel 1 NJ'!G100<5,'Tabel 2 NJ'!J102<0.5),"-",IFERROR('Tabel 2 NJ'!J102/'Tabel 1 NJ'!G100*100,"-")) -> 2.221806413
A103: Magistre i alt | C103: =IF(OR('Tabel 1 NJ'!C101<5,'Tabel 2 NJ'!C103<0.5),"-",IFERROR('Tabel 2 NJ'!C103/'Tabel 1 NJ'!C101*100,"-")) -> - | D103: =IF(OR('Tabel 1 NJ'!C101<5,'Tabel 2 NJ'!D103<0.5),"-",IFERROR('Tabel 2 NJ'!D103/'Tabel 1 NJ'!C101*100,"-")) -> - | F103: =IF(OR('Tabel 1 NJ'!E101<5,'Tabel 2 NJ'!F103<0.5),"-",IFERROR('Tabel 2 NJ'!F103/'Tabel 1 NJ'!E101*100,"-")) -> 12.12121212 | G103: =IF(OR('Tabel 1 NJ'!E101<5,'Tabel 2 NJ'!G103<0.5),"-",IFERROR('Tabel 2 NJ'!G103/'Tabel 1 NJ'!E101*100,"-")) -> 8.202778739 | I103: =IF(OR('Tabel 1 NJ'!G101<5,'Tabel 2 NJ'!I103<0.5),"-",IFERROR('Tabel 2 NJ'!I103/'Tabel 1 NJ'!G101*100,"-")) -> 7.01754386 | J103: =IF(OR('Tabel 1 NJ'!G101<5,'Tabel 2 NJ'!J103<0.5),"-",IFERROR('Tabel 2 NJ'!J103/'Tabel 1 NJ'!G101*100,"-")) -> 4.748977164
A104: DJØF'ere i alt | C104: =IF(OR('Tabel 1 NJ'!C102<5,'Tabel 2 NJ'!C104<0.5),"-",IFERROR('Tabel 2 NJ'!C104/'Tabel 1 NJ'!C102*100,"-")) -> - | D104: =IF(OR('Tabel 1 NJ'!C102<5,'Tabel 2 NJ'!D104<0.5),"-",IFERROR('Tabel 2 NJ'!D104/'Tabel 1 NJ'!C102*100,"-")) -> - | F104: =IF(OR('Tabel 1 NJ'!E102<5,'Tabel 2 NJ'!F104<0.5),"-",IFERROR('Tabel 2 NJ'!F104/'Tabel 1 NJ'!E102*100,"-")) -> 4.347826087 | G104: =IF(OR('Tabel 1 NJ'!E102<5,'Tabel 2 NJ'!G104<0.5),"-",IFERROR('Tabel 2 NJ'!G104/'Tabel 1 NJ'!E102*100,"-")) -> 4.146339479 | I104: =IF(OR('Tabel 1 NJ'!G102<5,'Tabel 2 NJ'!I104<0.5),"-",IFERROR('Tabel 2 NJ'!I104/'Tabel 1 NJ'!G102*100,"-")) -> 2.380952381 | J104: =IF(OR('Tabel 1 NJ'!G102<5,'Tabel 2 NJ'!J104<0.5),"-",IFERROR('Tabel 2 NJ'!J104/'Tabel 1 NJ'!G102*100,"-")) -> 2.270614477
A109: Thisted
C111: Mænd | F111: Kvinder | I111: I alt
C112: Ledigheds- berørte | D112: Gns. brutto- ledighed | F112: Ledigheds- berørte | G112: Gns. brutto- ledighed | I112: Ledigheds- berørte | J112: Gns. brutto- ledighed
A115: Civ. ing. | C115: =IF(OR('Tabel 1 NJ'!C113<5,'Tabel 2 NJ'!C115<0.5),"-",IFERROR('Tabel 2 NJ'!C115/'Tabel 1 NJ'!C113*100,"-")) -> 3.125 | D115: =IF(OR('Tabel 1 NJ'!C113<5,'Tabel 2 NJ'!D115<0.5),"-",IFERROR('Tabel 2 NJ'!D115/'Tabel 1 NJ'!C113*100,"-")) -> 2.835947733 | F115: =IF(OR('Tabel 1 NJ'!E113<5,'Tabel 2 NJ'!F115<0.5),"-",IFERROR('Tabel 2 NJ'!F115/'Tabel 1 NJ'!E113*100,"-")) -> - | G115: =IF(OR('Tabel 1 NJ'!E113<5,'Tabel 2 NJ'!G115<0.5),"-",IFERROR('Tabel 2 NJ'!G115/'Tabel 1 NJ'!E113*100,"-")) -> - | I115: =IF(OR('Tabel 1 NJ'!G113<5,'Tabel 2 NJ'!I115<0.5),"-",IFERROR('Tabel 2 NJ'!I115/'Tabel 1 NJ'!G113*100,"-")) -> 2.222222222 | J115: =IF(OR('Tabel 1 NJ'!G113<5,'Tabel 2 NJ'!J115<0.5),"-",IFERROR('Tabel 2 NJ'!J115/'Tabel 1 NJ'!G113*100,"-")) -> 2.016673943
A116: Diplom ing. | C116: =IF(OR('Tabel 1 NJ'!C114<5,'Tabel 2 NJ'!C116<0.5),"-",IFERROR('Tabel 2 NJ'!C116/'Tabel 1 NJ'!C114*100,"-")) -> 1.923076923 | D116: =IF(OR('Tabel 1 NJ'!C114<5,'Tabel 2 NJ'!D116<0.5),"-",IFERROR('Tabel 2 NJ'!D116/'Tabel 1 NJ'!C114*100,"-")) -> 1.922717088 | F116: =IF(OR('Tabel 1 NJ'!E114<5,'Tabel 2 NJ'!F116<0.5),"-",IFERROR('Tabel 2 NJ'!F116/'Tabel 1 NJ'!E114*100,"-")) -> - | G116: =IF(OR('Tabel 1 NJ'!E114<5,'Tabel 2 NJ'!G116<0.5),"-",IFERROR('Tabel 2 NJ'!G116/'Tabel 1 NJ'!E114*100,"-")) -> - | I116: =IF(OR('Tabel 1 NJ'!G114<5,'Tabel 2 NJ'!I116<0.5),"-",IFERROR('Tabel 2 NJ'!I116/'Tabel 1 NJ'!G114*100,"-")) -> 1.639344262 | J116: =IF(OR('Tabel 1 NJ'!G114<5,'Tabel 2 NJ'!J116<0.5),"-",IFERROR('Tabel 2 NJ'!J116/'Tabel 1 NJ'!G114*100,"-")) -> 1.639037518
A117: Cand. Scient. Tek. | C117: =IF(OR('Tabel 1 NJ'!C115<5,'Tabel 2 NJ'!C117<0.5),"-",IFERROR('Tabel 2 NJ'!C117/'Tabel 1 NJ'!C115*100,"-")) -> 4.761904762 | D117: =IF(OR('Tabel 1 NJ'!C115<5,'Tabel 2 NJ'!D117<0.5),"-",IFERROR('Tabel 2 NJ'!D117/'Tabel 1 NJ'!C115*100,"-")) -> 4.761013742 | F117: =IF(OR('Tabel 1 NJ'!E115<5,'Tabel 2 NJ'!F117<0.5),"-",IFERROR('Tabel 2 NJ'!F117/'Tabel 1 NJ'!E115*100,"-")) -> 31.25 | G117: =IF(OR('Tabel 1 NJ'!E115<5,'Tabel 2 NJ'!G117<0.5),"-",IFERROR('Tabel 2 NJ'!G117/'Tabel 1 NJ'!E115*100,"-")) -> 23.84145201 | I117: =IF(OR('Tabel 1 NJ'!G115<5,'Tabel 2 NJ'!I117<0.5),"-",IFERROR('Tabel 2 NJ'!I117/'Tabel 1 NJ'!G115*100,"-")) -> 16.21621622 | J117: =IF(OR('Tabel 1 NJ'!G115<5,'Tabel 2 NJ'!J117<0.5),"-",IFERROR('Tabel 2 NJ'!J117/'Tabel 1 NJ'!G115*100,"-")) -> 13.01201407
A118: MA. Hum. | C118: =IF(OR('Tabel 1 NJ'!C116<5,'Tabel 2 NJ'!C118<0.5),"-",IFERROR('Tabel 2 NJ'!C118/'Tabel 1 NJ'!C116*100,"-")) -> 11.62790698 | D118: =IF(OR('Tabel 1 NJ'!C116<5,'Tabel 2 NJ'!D118<0.5),"-",IFERROR('Tabel 2 NJ'!D118/'Tabel 1 NJ'!C116*100,"-")) -> 8.974223223 | F118: =IF(OR('Tabel 1 NJ'!E116<5,'Tabel 2 NJ'!F118<0.5),"-",IFERROR('Tabel 2 NJ'!F118/'Tabel 1 NJ'!E116*100,"-")) -> 8.860759494 | G118: =IF(OR('Tabel 1 NJ'!E116<5,'Tabel 2 NJ'!G118<0.5),"-",IFERROR('Tabel 2 NJ'!G118/'Tabel 1 NJ'!E116*100,"-")) -> 5.819484655 | I118: =IF(OR('Tabel 1 NJ'!G116<5,'Tabel 2 NJ'!I118<0.5),"-",IFERROR('Tabel 2 NJ'!I118/'Tabel 1 NJ'!G116*100,"-")) -> 9.836065574 | J118: =IF(OR('Tabel 1 NJ'!G116<5,'Tabel 2 NJ'!J118<0.5),"-",IFERROR('Tabel 2 NJ'!J118/'Tabel 1 NJ'!G116*100,"-")) -> 6.931400707
A119: MA. Nat. | C119: =IF(OR('Tabel 1 NJ'!C117<5,'Tabel 2 NJ'!C119<0.5),"-",IFERROR('Tabel 2 NJ'!C119/'Tabel 1 NJ'!C117*100,"-")) -> - | D119: =IF(OR('Tabel 1 NJ'!C117<5,'Tabel 2 NJ'!D119<0.5),"-",IFERROR('Tabel 2 NJ'!D119/'Tabel 1 NJ'!C117*100,"-")) -> - | F119: =IF(OR('Tabel 1 NJ'!E117<5,'Tabel 2 NJ'!F119<0.5),"-",IFERROR('Tabel 2 NJ'!F119/'Tabel 1 NJ'!E117*100,"-")) -> 4.545454545 | G119: =IF(OR('Tabel 1 NJ'!E117<5,'Tabel 2 NJ'!G119<0.5),"-",IFERROR('Tabel 2 NJ'!G119/'Tabel 1 NJ'!E117*100,"-")) -> 4.544604027 | I119: =IF(OR('Tabel 1 NJ'!G117<5,'Tabel 2 NJ'!I119<0.5),"-",IFERROR('Tabel 2 NJ'!I119/'Tabel 1 NJ'!G117*100,"-")) -> 2.564102564 | J119: =IF(OR('Tabel 1 NJ'!G117<5,'Tabel 2 NJ'!J119<0.5),"-",IFERROR('Tabel 2 NJ'!J119/'Tabel 1 NJ'!G117*100,"-")) -> 2.563622784
A120: MA. Ph.d. | C120: =IF(OR('Tabel 1 NJ'!C118<5,'Tabel 2 NJ'!C120<0.5),"-",IFERROR('Tabel 2 NJ'!C120/'Tabel 1 NJ'!C118*100,"-")) -> - | D120: =IF(OR('Tabel 1 NJ'!C118<5,'Tabel 2 NJ'!D120<0.5),"-",IFERROR('Tabel 2 NJ'!D120/'Tabel 1 NJ'!C118*100,"-")) -> - | F120: =IF(OR('Tabel 1 NJ'!E118<5,'Tabel 2 NJ'!F120<0.5),"-",IFERROR('Tabel 2 NJ'!F120/'Tabel 1 NJ'!E118*100,"-")) -> - | G120: =IF(OR('Tabel 1 NJ'!E118<5,'Tabel 2 NJ'!G120<0.5),"-",IFERROR('Tabel 2 NJ'!G120/'Tabel 1 NJ'!E118*100,"-")) -> - | I120: =IF(OR('Tabel 1 NJ'!G118<5,'Tabel 2 NJ'!I120<0.5),"-",IFERROR('Tabel 2 NJ'!I120/'Tabel 1 NJ'!G118*100,"-")) -> - | J120: =IF(OR('Tabel 1 NJ'!G118<5,'Tabel 2 NJ'!J120<0.5),"-",IFERROR('Tabel 2 NJ'!J120/'Tabel 1 NJ'!G118*100,"-")) -> -
A121: MA. Samf. | C121: =IF(OR('Tabel 1 NJ'!C119<5,'Tabel 2 NJ'!C121<0.5),"-",IFERROR('Tabel 2 NJ'!C121/'Tabel 1 NJ'!C119*100,"-")) -> - | D121: =IF(OR('Tabel 1 NJ'!C119<5,'Tabel 2 NJ'!D121<0.5),"-",IFERROR('Tabel 2 NJ'!D121/'Tabel 1 NJ'!C119*100,"-")) -> - | F121: =IF(OR('Tabel 1 NJ'!E119<5,'Tabel 2 NJ'!F121<0.5),"-",IFERROR('Tabel 2 NJ'!F121/'Tabel 1 NJ'!E119*100,"-")) -> 9.090909091 | G121: =IF(OR('Tabel 1 NJ'!E119<5,'Tabel 2 NJ'!G121<0.5),"-",IFERROR('Tabel 2 NJ'!G121/'Tabel 1 NJ'!E119*100,"-")) -> 9.089208054 | I121: =IF(OR('Tabel 1 NJ'!G119<5,'Tabel 2 NJ'!I121<0.5),"-",IFERROR('Tabel 2 NJ'!I121/'Tabel 1 NJ'!G119*100,"-")) -> 7.692307692 | J121: =IF(OR('Tabel 1 NJ'!G119<5,'Tabel 2 NJ'!J121<0.5),"-",IFERROR('Tabel 2 NJ'!J121/'Tabel 1 NJ'!G119*100,"-")) -> 7.690868353
A122: Øvrige Mag. | C122: =IF(OR('Tabel 1 NJ'!C120<5,'Tabel 2 NJ'!C122<0.5),"-",IFERROR('Tabel 2 NJ'!C122/'Tabel 1 NJ'!C120*100,"-")) -> - | D122: =IF(OR('Tabel 1 NJ'!C120<5,'Tabel 2 NJ'!D122<0.5),"-",IFERROR('Tabel 2 NJ'!D122/'Tabel 1 NJ'!C120*100,"-")) -> - | F122: =IF(OR('Tabel 1 NJ'!E120<5,'Tabel 2 NJ'!F122<0.5),"-",IFERROR('Tabel 2 NJ'!F122/'Tabel 1 NJ'!E120*100,"-")) -> 37.5 | G122: =IF(OR('Tabel 1 NJ'!E120<5,'Tabel 2 NJ'!G122<0.5),"-",IFERROR('Tabel 2 NJ'!G122/'Tabel 1 NJ'!E120*100,"-")) -> 35.68421381 | I122: =IF(OR('Tabel 1 NJ'!G120<5,'Tabel 2 NJ'!I122<0.5),"-",IFERROR('Tabel 2 NJ'!I122/'Tabel 1 NJ'!G120*100,"-")) -> 20 | J122: =IF(OR('Tabel 1 NJ'!G120<5,'Tabel 2 NJ'!J122<0.5),"-",IFERROR('Tabel 2 NJ'!J122/'Tabel 1 NJ'!G120*100,"-")) -> 19.0315807
A123: Agronom | C123: =IF(OR('Tabel 1 NJ'!C121<5,'Tabel 2 NJ'!C123<0.5),"-",IFERROR('Tabel 2 NJ'!C123/'Tabel 1 NJ'!C121*100,"-")) -> - | D123: =IF(OR('Tabel 1 NJ'!C121<5,'Tabel 2 NJ'!D123<0.5),"-",IFERROR('Tabel 2 NJ'!D123/'Tabel 1 NJ'!C121*100,"-")) -> - | F123: =IF(OR('Tabel 1 NJ'!E121<5,'Tabel 2 NJ'!F123<0.5),"-",IFERROR('Tabel 2 NJ'!F123/'Tabel 1 NJ'!E121*100,"-")) -> - | G123: =IF(OR('Tabel 1 NJ'!E121<5,'Tabel 2 NJ'!G123<0.5),"-",IFERROR('Tabel 2 NJ'!G123/'Tabel 1 NJ'!E121*100,"-")) -> - | I123: =IF(OR('Tabel 1 NJ'!G121<5,'Tabel 2 NJ'!I123<0.5),"-",IFERROR('Tabel 2 NJ'!I123/'Tabel 1 NJ'!G121*100,"-")) -> - | J123: =IF(OR('Tabel 1 NJ'!G121<5,'Tabel 2 NJ'!J123<0.5),"-",IFERROR('Tabel 2 NJ'!J123/'Tabel 1 NJ'!G121*100,"-")) -> -
A124: Landsk. Arkt. | C124: =IF(OR('Tabel 1 NJ'!C122<5,'Tabel 2 NJ'!C124<0.5),"-",IFERROR('Tabel 2 NJ'!C124/'Tabel 1 NJ'!C122*100,"-")) -> - | D124: =IF(OR('Tabel 1 NJ'!C122<5,'Tabel 2 NJ'!D124<0.5),"-",IFERROR('Tabel 2 NJ'!D124/'Tabel 1 NJ'!C122*100,"-")) -> - | F124: =IF(OR('Tabel 1 NJ'!E122<5,'Tabel 2 NJ'!F124<0.5),"-",IFERROR('Tabel 2 NJ'!F124/'Tabel 1 NJ'!E122*100,"-")) -> - | G124: =IF(OR('Tabel 1 NJ'!E122<5,'Tabel 2 NJ'!G124<0.5),"-",IFERROR('Tabel 2 NJ'!G124/'Tabel 1 NJ'!E122*100,"-")) -> - | I124: =IF(OR('Tabel 1 NJ'!G122<5,'Tabel 2 NJ'!I124<0.5),"-",IFERROR('Tabel 2 NJ'!I124/'Tabel 1 NJ'!G122*100,"-")) -> - | J124: =IF(OR('Tabel 1 NJ'!G122<5,'Tabel 2 NJ'!J124<0.5),"-",IFERROR('Tabel 2 NJ'!J124/'Tabel 1 NJ'!G122*100,"-")) -> -
A125: Hortonom | C125: =IF(OR('Tabel 1 NJ'!C123<5,'Tabel 2 NJ'!C125<0.5),"-",IFERROR('Tabel 2 NJ'!C125/'Tabel 1 NJ'!C123*100,"-")) -> - | D125: =IF(OR('Tabel 1 NJ'!C123<5,'Tabel 2 NJ'!D125<0.5),"-",IFERROR('Tabel 2 NJ'!D125/'Tabel 1 NJ'!C123*100,"-")) -> - | F125: =IF(OR('Tabel 1 NJ'!E123<5,'Tabel 2 NJ'!F125<0.5),"-",IFERROR('Tabel 2 NJ'!F125/'Tabel 1 NJ'!E123*100,"-")) -> - | G125: =IF(OR('Tabel 1 NJ'!E123<5,'Tabel 2 NJ'!G125<0.5),"-",IFERROR('Tabel 2 NJ'!G125/'Tabel 1 NJ'!E123*100,"-")) -> - | I125: =IF(OR('Tabel 1 NJ'!G123<5,'Tabel 2 NJ'!I125<0.5),"-",IFERROR('Tabel 2 NJ'!I125/'Tabel 1 NJ'!G123*100,"-")) -> - | J125: =IF(OR('Tabel 1 NJ'!G123<5,'Tabel 2 NJ'!J125<0.5),"-",IFERROR('Tabel 2 NJ'!J125/'Tabel 1 NJ'!G123*100,"-")) -> -
A126: Forstkand. | C126: =IF(OR('Tabel 1 NJ'!C124<5,'Tabel 2 NJ'!C126<0.5),"-",IFERROR('Tabel 2 NJ'!C126/'Tabel 1 NJ'!C124*100,"-")) -> - | D126: =IF(OR('Tabel 1 NJ'!C124<5,'Tabel 2 NJ'!D126<0.5),"-",IFERROR('Tabel 2 NJ'!D126/'Tabel 1 NJ'!C124*100,"-")) -> - | F126: =IF(OR('Tabel 1 NJ'!E124<5,'Tabel 2 NJ'!F126<0.5),"-",IFERROR('Tabel 2 NJ'!F126/'Tabel 1 NJ'!E124*100,"-")) -> - | G126: =IF(OR('Tabel 1 NJ'!E124<5,'Tabel 2 NJ'!G126<0.5),"-",IFERROR('Tabel 2 NJ'!G126/'Tabel 1 NJ'!E124*100,"-")) -> - | I126: =IF(OR('Tabel 1 NJ'!G124<5,'Tabel 2 NJ'!I126<0.5),"-",IFERROR('Tabel 2 NJ'!I126/'Tabel 1 NJ'!G124*100,"-")) -> - | J126: =IF(OR('Tabel 1 NJ'!G124<5,'Tabel 2 NJ'!J126<0.5),"-",IFERROR('Tabel 2 NJ'!J126/'Tabel 1 NJ'!G124*100,"-")) -> -
A127: Jordbrugsakad. | C127: =IF(OR('Tabel 1 NJ'!C125<5,'Tabel 2 NJ'!C127<0.5),"-",IFERROR('Tabel 2 NJ'!C127/'Tabel 1 NJ'!C125*100,"-")) -> - | D127: =IF(OR('Tabel 1 NJ'!C125<5,'Tabel 2 NJ'!D127<0.5),"-",IFERROR('Tabel 2 NJ'!D127/'Tabel 1 NJ'!C125*100,"-")) -> - | F127: =IF(OR('Tabel 1 NJ'!E125<5,'Tabel 2 NJ'!F127<0.5),"-",IFERROR('Tabel 2 NJ'!F127/'Tabel 1 NJ'!E125*100,"-")) -> - | G127: =IF(OR('Tabel 1 NJ'!E125<5,'Tabel 2 NJ'!G127<0.5),"-",IFERROR('Tabel 2 NJ'!G127/'Tabel 1 NJ'!E125*100,"-")) -> - | I127: =IF(OR('Tabel 1 NJ'!G125<5,'Tabel 2 NJ'!I127<0.5),"-",IFERROR('Tabel 2 NJ'!I127/'Tabel 1 NJ'!G125*100,"-")) -> - | J127: =IF(OR('Tabel 1 NJ'!G125<5,'Tabel 2 NJ'!J127<0.5),"-",IFERROR('Tabel 2 NJ'!J127/'Tabel 1 NJ'!G125*100,"-")) -> -
A128: Mejeriing. | C128: =IF(OR('Tabel 1 NJ'!C126<5,'Tabel 2 NJ'!C128<0.5),"-",IFERROR('Tabel 2 NJ'!C128/'Tabel 1 NJ'!C126*100,"-")) -> - | D128: =IF(OR('Tabel 1 NJ'!C126<5,'Tabel 2 NJ'!D128<0.5),"-",IFERROR('Tabel 2 NJ'!D128/'Tabel 1 NJ'!C126*100,"-")) -> - | F128: =IF(OR('Tabel 1 NJ'!E126<5,'Tabel 2 NJ'!F128<0.5),"-",IFERROR('Tabel 2 NJ'!F128/'Tabel 1 NJ'!E126*100,"-")) -> - | G128: =IF(OR('Tabel 1 NJ'!E126<5,'Tabel 2 NJ'!G128<0.5),"-",IFERROR('Tabel 2 NJ'!G128/'Tabel 1 NJ'!E126*100,"-")) -> - | I128: =IF(OR('Tabel 1 NJ'!G126<5,'Tabel 2 NJ'!I128<0.5),"-",IFERROR('Tabel 2 NJ'!I128/'Tabel 1 NJ'!G126*100,"-")) -> - | J128: =IF(OR('Tabel 1 NJ'!G126<5,'Tabel 2 NJ'!J128<0.5),"-",IFERROR('Tabel 2 NJ'!J128/'Tabel 1 NJ'!G126*100,"-")) -> -
A129: Levn.m.kand. | C129: =IF(OR('Tabel 1 NJ'!C127<5,'Tabel 2 NJ'!C129<0.5),"-",IFERROR('Tabel 2 NJ'!C129/'Tabel 1 NJ'!C127*100,"-")) -> - | D129: =IF(OR('Tabel 1 NJ'!C127<5,'Tabel 2 NJ'!D129<0.5),"-",IFERROR('Tabel 2 NJ'!D129/'Tabel 1 NJ'!C127*100,"-")) -> - | F129: =IF(OR('Tabel 1 NJ'!E127<5,'Tabel 2 NJ'!F129<0.5),"-",IFERROR('Tabel 2 NJ'!F129/'Tabel 1 NJ'!E127*100,"-")) -> - | G129: =IF(OR('Tabel 1 NJ'!E127<5,'Tabel 2 NJ'!G129<0.5),"-",IFERROR('Tabel 2 NJ'!G129/'Tabel 1 NJ'!E127*100,"-")) -> - | I129: =IF(OR('Tabel 1 NJ'!G127<5,'Tabel 2 NJ'!I129<0.5),"-",IFERROR('Tabel 2 NJ'!I129/'Tabel 1 NJ'!G127*100,"-")) -> - | J129: =IF(OR('Tabel 1 NJ'!G127<5,'Tabel 2 NJ'!J129<0.5),"-",IFERROR('Tabel 2 NJ'!J129/'Tabel 1 NJ'!G127*100,"-")) -> -
A130: Dyrlæge | C130: =IF(OR('Tabel 1 NJ'!C128<5,'Tabel 2 NJ'!C130<0.5),"-",IFERROR('Tabel 2 NJ'!C130/'Tabel 1 NJ'!C128*100,"-")) -> - | D130: =IF(OR('Tabel 1 NJ'!C128<5,'Tabel 2 NJ'!D130<0.5),"-",IFERROR('Tabel 2 NJ'!D130/'Tabel 1 NJ'!C128*100,"-")) -> - | F130: =IF(OR('Tabel 1 NJ'!E128<5,'Tabel 2 NJ'!F130<0.5),"-",IFERROR('Tabel 2 NJ'!F130/'Tabel 1 NJ'!E128*100,"-")) -> - | G130: =IF(OR('Tabel 1 NJ'!E128<5,'Tabel 2 NJ'!G130<0.5),"-",IFERROR('Tabel 2 NJ'!G130/'Tabel 1 NJ'!E128*100,"-")) -> - | I130: =IF(OR('Tabel 1 NJ'!G128<5,'Tabel 2 NJ'!I130<0.5),"-",IFERROR('Tabel 2 NJ'!I130/'Tabel 1 NJ'!G128*100,"-")) -> - | J130: =IF(OR('Tabel 1 NJ'!G128<5,'Tabel 2 NJ'!J130<0.5),"-",IFERROR('Tabel 2 NJ'!J130/'Tabel 1 NJ'!G128*100,"-")) -> -
A131: Farmaceut | C131: =IF(OR('Tabel 1 NJ'!C129<5,'Tabel 2 NJ'!C131<0.5),"-",IFERROR('Tabel 2 NJ'!C131/'Tabel 1 NJ'!C129*100,"-")) -> - | D131: =IF(OR('Tabel 1 NJ'!C129<5,'Tabel 2 NJ'!D131<0.5),"-",IFERROR('Tabel 2 NJ'!D131/'Tabel 1 NJ'!C129*100,"-")) -> - | F131: =IF(OR('Tabel 1 NJ'!E129<5,'Tabel 2 NJ'!F131<0.5),"-",IFERROR('Tabel 2 NJ'!F131/'Tabel 1 NJ'!E129*100,"-")) -> - | G131: =IF(OR('Tabel 1 NJ'!E129<5,'Tabel 2 NJ'!G131<0.5),"-",IFERROR('Tabel 2 NJ'!G131/'Tabel 1 NJ'!E129*100,"-")) -> - | I131: =IF(OR('Tabel 1 NJ'!G129<5,'Tabel 2 NJ'!I131<0.5),"-",IFERROR('Tabel 2 NJ'!I131/'Tabel 1 NJ'!G129*100,"-")) -> - | J131: =IF(OR('Tabel 1 NJ'!G129<5,'Tabel 2 NJ'!J131<0.5),"-",IFERROR('Tabel 2 NJ'!J131/'Tabel 1 NJ'!G129*100,"-")) -> -
A132: Læge | C132: =IF(OR('Tabel 1 NJ'!C130<5,'Tabel 2 NJ'!C132<0.5),"-",IFERROR('Tabel 2 NJ'!C132/'Tabel 1 NJ'!C130*100,"-")) -> 6.25 | D132: =IF(OR('Tabel 1 NJ'!C130<5,'Tabel 2 NJ'!D132<0.5),"-",IFERROR('Tabel 2 NJ'!D132/'Tabel 1 NJ'!C130*100,"-")) -> 4.229557787 | F132: =IF(OR('Tabel 1 NJ'!E130<5,'Tabel 2 NJ'!F132<0.5),"-",IFERROR('Tabel 2 NJ'!F132/'Tabel 1 NJ'!E130*100,"-")) -> 6.25 | G132: =IF(OR('Tabel 1 NJ'!E130<5,'Tabel 2 NJ'!G132<0.5),"-",IFERROR('Tabel 2 NJ'!G132/'Tabel 1 NJ'!E130*100,"-")) -> 5.671895466 | I132: =IF(OR('Tabel 1 NJ'!G130<5,'Tabel 2 NJ'!I132<0.5),"-",IFERROR('Tabel 2 NJ'!I132/'Tabel 1 NJ'!G130*100,"-")) -> 6.25 | J132: =IF(OR('Tabel 1 NJ'!G130<5,'Tabel 2 NJ'!J132<0.5),"-",IFERROR('Tabel 2 NJ'!J132/'Tabel 1 NJ'!G130*100,"-")) -> 4.950726626
A133: Tandlæge | C133: =IF(OR('Tabel 1 NJ'!C131<5,'Tabel 2 NJ'!C133<0.5),"-",IFERROR('Tabel 2 NJ'!C133/'Tabel 1 NJ'!C131*100,"-")) -> - | D133: =IF(OR('Tabel 1 NJ'!C131<5,'Tabel 2 NJ'!D133<0.5),"-",IFERROR('Tabel 2 NJ'!D133/'Tabel 1 NJ'!C131*100,"-")) -> - | F133: =IF(OR('Tabel 1 NJ'!E131<5,'Tabel 2 NJ'!F133<0.5),"-",IFERROR('Tabel 2 NJ'!F133/'Tabel 1 NJ'!E131*100,"-")) -> - | G133: =IF(OR('Tabel 1 NJ'!E131<5,'Tabel 2 NJ'!G133<0.5),"-",IFERROR('Tabel 2 NJ'!G133/'Tabel 1 NJ'!E131*100,"-")) -> - | I133: =IF(OR('Tabel 1 NJ'!G131<5,'Tabel 2 NJ'!I133<0.5),"-",IFERROR('Tabel 2 NJ'!I133/'Tabel 1 NJ'!G131*100,"-")) -> - | J133: =IF(OR('Tabel 1 NJ'!G131<5,'Tabel 2 NJ'!J133<0.5),"-",IFERROR('Tabel 2 NJ'!J133/'Tabel 1 NJ'!G131*100,"-")) -> -
A134: Arkitekt | C134: =IF(OR('Tabel 1 NJ'!C132<5,'Tabel 2 NJ'!C134<0.5),"-",IFERROR('Tabel 2 NJ'!C134/'Tabel 1 NJ'!C132*100,"-")) -> - | D134: =IF(OR('Tabel 1 NJ'!C132<5,'Tabel 2 NJ'!D134<0.5),"-",IFERROR('Tabel 2 NJ'!D134/'Tabel 1 NJ'!C132*100,"-")) -> - | F134: =IF(OR('Tabel 1 NJ'!E132<5,'Tabel 2 NJ'!F134<0.5),"-",IFERROR('Tabel 2 NJ'!F134/'Tabel 1 NJ'!E132*100,"-")) -> 14.28571429 | G134: =IF(OR('Tabel 1 NJ'!E132<5,'Tabel 2 NJ'!G134<0.5),"-",IFERROR('Tabel 2 NJ'!G134/'Tabel 1 NJ'!E132*100,"-")) -> 14.28304123 | I134: =IF(OR('Tabel 1 NJ'!G132<5,'Tabel 2 NJ'!I134<0.5),"-",IFERROR('Tabel 2 NJ'!I134/'Tabel 1 NJ'!G132*100,"-")) -> 18.18181818 | J134: =IF(OR('Tabel 1 NJ'!G132<5,'Tabel 2 NJ'!J134<0.5),"-",IFERROR('Tabel 2 NJ'!J134/'Tabel 1 NJ'!G132*100,"-")) -> 18.17841611
A135: Landinspek. | C135: =IF(OR('Tabel 1 NJ'!C133<5,'Tabel 2 NJ'!C135<0.5),"-",IFERROR('Tabel 2 NJ'!C135/'Tabel 1 NJ'!C133*100,"-")) -> - | D135: =IF(OR('Tabel 1 NJ'!C133<5,'Tabel 2 NJ'!D135<0.5),"-",IFERROR('Tabel 2 NJ'!D135/'Tabel 1 NJ'!C133*100,"-")) -> - | F135: =IF(OR('Tabel 1 NJ'!E133<5,'Tabel 2 NJ'!F135<0.5),"-",IFERROR('Tabel 2 NJ'!F135/'Tabel 1 NJ'!E133*100,"-")) -> - | G135: =IF(OR('Tabel 1 NJ'!E133<5,'Tabel 2 NJ'!G135<0.5),"-",IFERROR('Tabel 2 NJ'!G135/'Tabel 1 NJ'!E133*100,"-")) -> - | I135: =IF(OR('Tabel 1 NJ'!G133<5,'Tabel 2 NJ'!I135<0.5),"-",IFERROR('Tabel 2 NJ'!I135/'Tabel 1 NJ'!G133*100,"-")) -> - | J135: =IF(OR('Tabel 1 NJ'!G133<5,'Tabel 2 NJ'!J135<0.5),"-",IFERROR('Tabel 2 NJ'!J135/'Tabel 1 NJ'!G133*100,"-")) -> -
A136: Bibliotekar | C136: =IF(OR('Tabel 1 NJ'!C134<5,'Tabel 2 NJ'!C136<0.5),"-",IFERROR('Tabel 2 NJ'!C136/'Tabel 1 NJ'!C134*100,"-")) -> - | D136: =IF(OR('Tabel 1 NJ'!C134<5,'Tabel 2 NJ'!D136<0.5),"-",IFERROR('Tabel 2 NJ'!D136/'Tabel 1 NJ'!C134*100,"-")) -> - | F136: =IF(OR('Tabel 1 NJ'!E134<5,'Tabel 2 NJ'!F136<0.5),"-",IFERROR('Tabel 2 NJ'!F136/'Tabel 1 NJ'!E134*100,"-")) -> - | G136: =IF(OR('Tabel 1 NJ'!E134<5,'Tabel 2 NJ'!G136<0.5),"-",IFERROR('Tabel 2 NJ'!G136/'Tabel 1 NJ'!E134*100,"-")) -> - | I136: =IF(OR('Tabel 1 NJ'!G134<5,'Tabel 2 NJ'!I136<0.5),"-",IFERROR('Tabel 2 NJ'!I136/'Tabel 1 NJ'!G134*100,"-")) -> - | J136: =IF(OR('Tabel 1 NJ'!G134<5,'Tabel 2 NJ'!J136<0.5),"-",IFERROR('Tabel 2 NJ'!J136/'Tabel 1 NJ'!G134*100,"-")) -> -
A137: Musikudd. | C137: =IF(OR('Tabel 1 NJ'!C135<5,'Tabel 2 NJ'!C137<0.5),"-",IFERROR('Tabel 2 NJ'!C137/'Tabel 1 NJ'!C135*100,"-")) -> - | D137: =IF(OR('Tabel 1 NJ'!C135<5,'Tabel 2 NJ'!D137<0.5),"-",IFERROR('Tabel 2 NJ'!D137/'Tabel 1 NJ'!C135*100,"-")) -> - | F137: =IF(OR('Tabel 1 NJ'!E135<5,'Tabel 2 NJ'!F137<0.5),"-",IFERROR('Tabel 2 NJ'!F137/'Tabel 1 NJ'!E135*100,"-")) -> - | G137: =IF(OR('Tabel 1 NJ'!E135<5,'Tabel 2 NJ'!G137<0.5),"-",IFERROR('Tabel 2 NJ'!G137/'Tabel 1 NJ'!E135*100,"-")) -> - | I137: =IF(OR('Tabel 1 NJ'!G135<5,'Tabel 2 NJ'!I137<0.5),"-",IFERROR('Tabel 2 NJ'!I137/'Tabel 1 NJ'!G135*100,"-")) -> - | J137: =IF(OR('Tabel 1 NJ'!G135<5,'Tabel 2 NJ'!J137<0.5),"-",IFERROR('Tabel 2 NJ'!J137/'Tabel 1 NJ'!G135*100,"-")) -> -
A138: Teolog | C138: =IF(OR('Tabel 1 NJ'!C136<5,'Tabel 2 NJ'!C138<0.5),"-",IFERROR('Tabel 2 NJ'!C138/'Tabel 1 NJ'!C136*100,"-")) -> - | D138: =IF(OR('Tabel 1 NJ'!C136<5,'Tabel 2 NJ'!D138<0.5),"-",IFERROR('Tabel 2 NJ'!D138/'Tabel 1 NJ'!C136*100,"-")) -> - | F138: =IF(OR('Tabel 1 NJ'!E136<5,'Tabel 2 NJ'!F138<0.5),"-",IFERROR('Tabel 2 NJ'!F138/'Tabel 1 NJ'!E136*100,"-")) -> - | G138: =IF(OR('Tabel 1 NJ'!E136<5,'Tabel 2 NJ'!G138<0.5),"-",IFERROR('Tabel 2 NJ'!G138/'Tabel 1 NJ'!E136*100,"-")) -> - | I138: =IF(OR('Tabel 1 NJ'!G136<5,'Tabel 2 NJ'!I138<0.5),"-",IFERROR('Tabel 2 NJ'!I138/'Tabel 1 NJ'!G136*100,"-")) -> - | J138: =IF(OR('Tabel 1 NJ'!G136<5,'Tabel 2 NJ'!J138<0.5),"-",IFERROR('Tabel 2 NJ'!J138/'Tabel 1 NJ'!G136*100,"-")) -> -
A139: Psykolog | C139: =IF(OR('Tabel 1 NJ'!C137<5,'Tabel 2 NJ'!C139<0.5),"-",IFERROR('Tabel 2 NJ'!C139/'Tabel 1 NJ'!C137*100,"-")) -> - | D139: =IF(OR('Tabel 1 NJ'!C137<5,'Tabel 2 NJ'!D139<0.5),"-",IFERROR('Tabel 2 NJ'!D139/'Tabel 1 NJ'!C137*100,"-")) -> - | F139: =IF(OR('Tabel 1 NJ'!E137<5,'Tabel 2 NJ'!F139<0.5),"-",IFERROR('Tabel 2 NJ'!F139/'Tabel 1 NJ'!E137*100,"-")) -> - | G139: =IF(OR('Tabel 1 NJ'!E137<5,'Tabel 2 NJ'!G139<0.5),"-",IFERROR('Tabel 2 NJ'!G139/'Tabel 1 NJ'!E137*100,"-")) -> - | I139: =IF(OR('Tabel 1 NJ'!G137<5,'Tabel 2 NJ'!I139<0.5),"-",IFERROR('Tabel 2 NJ'!I139/'Tabel 1 NJ'!G137*100,"-")) -> - | J139: =IF(OR('Tabel 1 NJ'!G137<5,'Tabel 2 NJ'!J139<0.5),"-",IFERROR('Tabel 2 NJ'!J139/'Tabel 1 NJ'!G137*100,"-")) -> -
A140: Jurist | C140: =IF(OR('Tabel 1 NJ'!C138<5,'Tabel 2 NJ'!C140<0.5),"-",IFERROR('Tabel 2 NJ'!C140/'Tabel 1 NJ'!C138*100,"-")) -> - | D140: =IF(OR('Tabel 1 NJ'!C138<5,'Tabel 2 NJ'!D140<0.5),"-",IFERROR('Tabel 2 NJ'!D140/'Tabel 1 NJ'!C138*100,"-")) -> - | F140: =IF(OR('Tabel 1 NJ'!E138<5,'Tabel 2 NJ'!F140<0.5),"-",IFERROR('Tabel 2 NJ'!F140/'Tabel 1 NJ'!E138*100,"-")) -> - | G140: =IF(OR('Tabel 1 NJ'!E138<5,'Tabel 2 NJ'!G140<0.5),"-",IFERROR('Tabel 2 NJ'!G140/'Tabel 1 NJ'!E138*100,"-")) -> - | I140: =IF(OR('Tabel 1 NJ'!G138<5,'Tabel 2 NJ'!I140<0.5),"-",IFERROR('Tabel 2 NJ'!I140/'Tabel 1 NJ'!G138*100,"-")) -> - | J140: =IF(OR('Tabel 1 NJ'!G138<5,'Tabel 2 NJ'!J140<0.5),"-",IFERROR('Tabel 2 NJ'!J140/'Tabel 1 NJ'!G138*100,"-")) -> -
A141: Økonom | C141: =IF(OR('Tabel 1 NJ'!C139<5,'Tabel 2 NJ'!C141<0.5),"-",IFERROR('Tabel 2 NJ'!C141/'Tabel 1 NJ'!C139*100,"-")) -> 12.5 | D141: =IF(OR('Tabel 1 NJ'!C139<5,'Tabel 2 NJ'!D141<0.5),"-",IFERROR('Tabel 2 NJ'!D141/'Tabel 1 NJ'!C139*100,"-")) -> - | F141: =IF(OR('Tabel 1 NJ'!E139<5,'Tabel 2 NJ'!F141<0.5),"-",IFERROR('Tabel 2 NJ'!F141/'Tabel 1 NJ'!E139*100,"-")) -> - | G141: =IF(OR('Tabel 1 NJ'!E139<5,'Tabel 2 NJ'!G141<0.5),"-",IFERROR('Tabel 2 NJ'!G141/'Tabel 1 NJ'!E139*100,"-")) -> - | I141: =IF(OR('Tabel 1 NJ'!G139<5,'Tabel 2 NJ'!I141<0.5),"-",IFERROR('Tabel 2 NJ'!I141/'Tabel 1 NJ'!G139*100,"-")) -> 5.882352941 | J141: =IF(OR('Tabel 1 NJ'!G139<5,'Tabel 2 NJ'!J141<0.5),"-",IFERROR('Tabel 2 NJ'!J141/'Tabel 1 NJ'!G139*100,"-")) -> -
A142: Samf. Adm. | C142: =IF(OR('Tabel 1 NJ'!C140<5,'Tabel 2 NJ'!C142<0.5),"-",IFERROR('Tabel 2 NJ'!C142/'Tabel 1 NJ'!C140*100,"-")) -> 11.76470588 | D142: =IF(OR('Tabel 1 NJ'!C140<5,'Tabel 2 NJ'!D142<0.5),"-",IFERROR('Tabel 2 NJ'!D142/'Tabel 1 NJ'!C140*100,"-")) -> 11.49100568 | F142: =IF(OR('Tabel 1 NJ'!E140<5,'Tabel 2 NJ'!F142<0.5),"-",IFERROR('Tabel 2 NJ'!F142/'Tabel 1 NJ'!E140*100,"-")) -> 12.5 | G142: =IF(OR('Tabel 1 NJ'!E140<5,'Tabel 2 NJ'!G142<0.5),"-",IFERROR('Tabel 2 NJ'!G142/'Tabel 1 NJ'!E140*100,"-")) -> 9.703943949 | I142: =IF(OR('Tabel 1 NJ'!G140<5,'Tabel 2 NJ'!I142<0.5),"-",IFERROR('Tabel 2 NJ'!I142/'Tabel 1 NJ'!G140*100,"-")) -> 12.19512195 | J142: =IF(OR('Tabel 1 NJ'!G140<5,'Tabel 2 NJ'!J142<0.5),"-",IFERROR('Tabel 2 NJ'!J142/'Tabel 1 NJ'!G140*100,"-")) -> 10.44492077
A143: Cand. Merc. | C143: =IF(OR('Tabel 1 NJ'!C141<5,'Tabel 2 NJ'!C143<0.5),"-",IFERROR('Tabel 2 NJ'!C143/'Tabel 1 NJ'!C141*100,"-")) -> - | D143: =IF(OR('Tabel 1 NJ'!C141<5,'Tabel 2 NJ'!D143<0.5),"-",IFERROR('Tabel 2 NJ'!D143/'Tabel 1 NJ'!C141*100,"-")) -> - | F143: =IF(OR('Tabel 1 NJ'!E141<5,'Tabel 2 NJ'!F143<0.5),"-",IFERROR('Tabel 2 NJ'!F143/'Tabel 1 NJ'!E141*100,"-")) -> - | G143: =IF(OR('Tabel 1 NJ'!E141<5,'Tabel 2 NJ'!G143<0.5),"-",IFERROR('Tabel 2 NJ'!G143/'Tabel 1 NJ'!E141*100,"-")) -> - | I143: =IF(OR('Tabel 1 NJ'!G141<5,'Tabel 2 NJ'!I143<0.5),"-",IFERROR('Tabel 2 NJ'!I143/'Tabel 1 NJ'!G141*100,"-")) -> - | J143: =IF(OR('Tabel 1 NJ'!G141<5,'Tabel 2 NJ'!J143<0.5),"-",IFERROR('Tabel 2 NJ'!J143/'Tabel 1 NJ'!G141*100,"-")) -> -
A144: HA | C144: =IF(OR('Tabel 1 NJ'!C142<5,'Tabel 2 NJ'!C144<0.5),"-",IFERROR('Tabel 2 NJ'!C144/'Tabel 1 NJ'!C142*100,"-")) -> 12.5 | D144: =IF(OR('Tabel 1 NJ'!C142<5,'Tabel 2 NJ'!D144<0.5),"-",IFERROR('Tabel 2 NJ'!D144/'Tabel 1 NJ'!C142*100,"-")) -> 12.49766107 | F144: =IF(OR('Tabel 1 NJ'!E142<5,'Tabel 2 NJ'!F144<0.5),"-",IFERROR('Tabel 2 NJ'!F144/'Tabel 1 NJ'!E142*100,"-")) -> - | G144: =IF(OR('Tabel 1 NJ'!E142<5,'Tabel 2 NJ'!G144<0.5),"-",IFERROR('Tabel 2 NJ'!G144/'Tabel 1 NJ'!E142*100,"-")) -> - | I144: =IF(OR('Tabel 1 NJ'!G142<5,'Tabel 2 NJ'!I144<0.5),"-",IFERROR('Tabel 2 NJ'!I144/'Tabel 1 NJ'!G142*100,"-")) -> 7.142857143 | J144: =IF(OR('Tabel 1 NJ'!G142<5,'Tabel 2 NJ'!J144<0.5),"-",IFERROR('Tabel 2 NJ'!J144/'Tabel 1 NJ'!G142*100,"-")) -> 7.141520614
A145: HD | C145: =IF(OR('Tabel 1 NJ'!C143<5,'Tabel 2 NJ'!C145<0.5),"-",IFERROR('Tabel 2 NJ'!C145/'Tabel 1 NJ'!C143*100,"-")) -> - | D145: =IF(OR('Tabel 1 NJ'!C143<5,'Tabel 2 NJ'!D145<0.5),"-",IFERROR('Tabel 2 NJ'!D145/'Tabel 1 NJ'!C143*100,"-")) -> - | F145: =IF(OR('Tabel 1 NJ'!E143<5,'Tabel 2 NJ'!F145<0.5),"-",IFERROR('Tabel 2 NJ'!F145/'Tabel 1 NJ'!E143*100,"-")) -> - | G145: =IF(OR('Tabel 1 NJ'!E143<5,'Tabel 2 NJ'!G145<0.5),"-",IFERROR('Tabel 2 NJ'!G145/'Tabel 1 NJ'!E143*100,"-")) -> - | I145: =IF(OR('Tabel 1 NJ'!G143<5,'Tabel 2 NJ'!I145<0.5),"-",IFERROR('Tabel 2 NJ'!I145/'Tabel 1 NJ'!G143*100,"-")) -> 6.666666667 | J145: =IF(OR('Tabel 1 NJ'!G143<5,'Tabel 2 NJ'!J145<0.5),"-",IFERROR('Tabel 2 NJ'!J145/'Tabel 1 NJ'!G143*100,"-")) -> 5.08534481
A146: Komm. og Sprog | C146: =IF(OR('Tabel 1 NJ'!C144<5,'Tabel 2 NJ'!C146<0.5),"-",IFERROR('Tabel 2 NJ'!C146/'Tabel 1 NJ'!C144*100,"-")) -> - | D146: =IF(OR('Tabel 1 NJ'!C144<5,'Tabel 2 NJ'!D146<0.5),"-",IFERROR('Tabel 2 NJ'!D146/'Tabel 1 NJ'!C144*100,"-")) -> - | F146: =IF(OR('Tabel 1 NJ'!E144<5,'Tabel 2 NJ'!F146<0.5),"-",IFERROR('Tabel 2 NJ'!F146/'Tabel 1 NJ'!E144*100,"-")) -> 18.18181818 | G146: =IF(OR('Tabel 1 NJ'!E144<5,'Tabel 2 NJ'!G146<0.5),"-",IFERROR('Tabel 2 NJ'!G146/'Tabel 1 NJ'!E144*100,"-")) -> 18.17841611 | I146: =IF(OR('Tabel 1 NJ'!G144<5,'Tabel 2 NJ'!I146<0.5),"-",IFERROR('Tabel 2 NJ'!I146/'Tabel 1 NJ'!G144*100,"-")) -> 16.66666667 | J146: =IF(OR('Tabel 1 NJ'!G144<5,'Tabel 2 NJ'!J146<0.5),"-",IFERROR('Tabel 2 NJ'!J146/'Tabel 1 NJ'!G144*100,"-")) -> 16.6635481
A147: Cand. IT. | C147: =IF(OR('Tabel 1 NJ'!C145<5,'Tabel 2 NJ'!C147<0.5),"-",IFERROR('Tabel 2 NJ'!C147/'Tabel 1 NJ'!C145*100,"-")) -> - | D147: =IF(OR('Tabel 1 NJ'!C145<5,'Tabel 2 NJ'!D147<0.5),"-",IFERROR('Tabel 2 NJ'!D147/'Tabel 1 NJ'!C145*100,"-")) -> - | F147: =IF(OR('Tabel 1 NJ'!E145<5,'Tabel 2 NJ'!F147<0.5),"-",IFERROR('Tabel 2 NJ'!F147/'Tabel 1 NJ'!E145*100,"-")) -> - | G147: =IF(OR('Tabel 1 NJ'!E145<5,'Tabel 2 NJ'!G147<0.5),"-",IFERROR('Tabel 2 NJ'!G147/'Tabel 1 NJ'!E145*100,"-")) -> - | I147: =IF(OR('Tabel 1 NJ'!G145<5,'Tabel 2 NJ'!I147<0.5),"-",IFERROR('Tabel 2 NJ'!I147/'Tabel 1 NJ'!G145*100,"-")) -> - | J147: =IF(OR('Tabel 1 NJ'!G145<5,'Tabel 2 NJ'!J147<0.5),"-",IFERROR('Tabel 2 NJ'!J147/'Tabel 1 NJ'!G145*100,"-")) -> -
A148: Bac. Samf. | C148: =IF(OR('Tabel 1 NJ'!C146<5,'Tabel 2 NJ'!C148<0.5),"-",IFERROR('Tabel 2 NJ'!C148/'Tabel 1 NJ'!C146*100,"-")) -> - | D148: =IF(OR('Tabel 1 NJ'!C146<5,'Tabel 2 NJ'!D148<0.5),"-",IFERROR('Tabel 2 NJ'!D148/'Tabel 1 NJ'!C146*100,"-")) -> - | F148: =IF(OR('Tabel 1 NJ'!E146<5,'Tabel 2 NJ'!F148<0.5),"-",IFERROR('Tabel 2 NJ'!F148/'Tabel 1 NJ'!E146*100,"-")) -> - | G148: =IF(OR('Tabel 1 NJ'!E146<5,'Tabel 2 NJ'!G148<0.5),"-",IFERROR('Tabel 2 NJ'!G148/'Tabel 1 NJ'!E146*100,"-")) -> - | I148: =IF(OR('Tabel 1 NJ'!G146<5,'Tabel 2 NJ'!I148<0.5),"-",IFERROR('Tabel 2 NJ'!I148/'Tabel 1 NJ'!G146*100,"-")) -> - | J148: =IF(OR('Tabel 1 NJ'!G146<5,'Tabel 2 NJ'!J148<0.5),"-",IFERROR('Tabel 2 NJ'!J148/'Tabel 1 NJ'!G146*100,"-")) -> -
A149: Bac. Hum. | C149: =IF(OR('Tabel 1 NJ'!C147<5,'Tabel 2 NJ'!C149<0.5),"-",IFERROR('Tabel 2 NJ'!C149/'Tabel 1 NJ'!C147*100,"-")) -> - | D149: =IF(OR('Tabel 1 NJ'!C147<5,'Tabel 2 NJ'!D149<0.5),"-",IFERROR('Tabel 2 NJ'!D149/'Tabel 1 NJ'!C147*100,"-")) -> - | F149: =IF(OR('Tabel 1 NJ'!E147<5,'Tabel 2 NJ'!F149<0.5),"-",IFERROR('Tabel 2 NJ'!F149/'Tabel 1 NJ'!E147*100,"-")) -> - | G149: =IF(OR('Tabel 1 NJ'!E147<5,'Tabel 2 NJ'!G149<0.5),"-",IFERROR('Tabel 2 NJ'!G149/'Tabel 1 NJ'!E147*100,"-")) -> - | I149: =IF(OR('Tabel 1 NJ'!G147<5,'Tabel 2 NJ'!I149<0.5),"-",IFERROR('Tabel 2 NJ'!I149/'Tabel 1 NJ'!G147*100,"-")) -> - | J149: =IF(OR('Tabel 1 NJ'!G147<5,'Tabel 2 NJ'!J149<0.5),"-",IFERROR('Tabel 2 NJ'!J149/'Tabel 1 NJ'!G147*100,"-")) -> -
A150: Bac. Nat. | C150: =IF(OR('Tabel 1 NJ'!C148<5,'Tabel 2 NJ'!C150<0.5),"-",IFERROR('Tabel 2 NJ'!C150/'Tabel 1 NJ'!C148*100,"-")) -> - | D150: =IF(OR('Tabel 1 NJ'!C148<5,'Tabel 2 NJ'!D150<0.5),"-",IFERROR('Tabel 2 NJ'!D150/'Tabel 1 NJ'!C148*100,"-")) -> - | F150: =IF(OR('Tabel 1 NJ'!E148<5,'Tabel 2 NJ'!F150<0.5),"-",IFERROR('Tabel 2 NJ'!F150/'Tabel 1 NJ'!E148*100,"-")) -> - | G150: =IF(OR('Tabel 1 NJ'!E148<5,'Tabel 2 NJ'!G150<0.5),"-",IFERROR('Tabel 2 NJ'!G150/'Tabel 1 NJ'!E148*100,"-")) -> - | I150: =IF(OR('Tabel 1 NJ'!G148<5,'Tabel 2 NJ'!I150<0.5),"-",IFERROR('Tabel 2 NJ'!I150/'Tabel 1 NJ'!G148*100,"-")) -> - | J150: =IF(OR('Tabel 1 NJ'!G148<5,'Tabel 2 NJ'!J150<0.5),"-",IFERROR('Tabel 2 NJ'!J150/'Tabel 1 NJ'!G148*100,"-")) -> -
A151: Andre | C151: =IF(OR('Tabel 1 NJ'!C149<5,'Tabel 2 NJ'!C151<0.5),"-",IFERROR('Tabel 2 NJ'!C151/'Tabel 1 NJ'!C149*100,"-")) -> - | D151: =IF(OR('Tabel 1 NJ'!C149<5,'Tabel 2 NJ'!D151<0.5),"-",IFERROR('Tabel 2 NJ'!D151/'Tabel 1 NJ'!C149*100,"-")) -> - | F151: =IF(OR('Tabel 1 NJ'!E149<5,'Tabel 2 NJ'!F151<0.5),"-",IFERROR('Tabel 2 NJ'!F151/'Tabel 1 NJ'!E149*100,"-")) -> 10.52631579 | G151: =IF(OR('Tabel 1 NJ'!E149<5,'Tabel 2 NJ'!G151<0.5),"-",IFERROR('Tabel 2 NJ'!G151/'Tabel 1 NJ'!E149*100,"-")) -> 10.45869211 | I151: =IF(OR('Tabel 1 NJ'!G149<5,'Tabel 2 NJ'!I151<0.5),"-",IFERROR('Tabel 2 NJ'!I151/'Tabel 1 NJ'!G149*100,"-")) -> 5.405405405 | J151: =IF(OR('Tabel 1 NJ'!G149<5,'Tabel 2 NJ'!J151<0.5),"-",IFERROR('Tabel 2 NJ'!J151/'Tabel 1 NJ'!G149*100,"-")) -> 5.37067973
A153: Total | C153: =IF(OR('Tabel 1 NJ'!C151<5,'Tabel 2 NJ'!C153<0.5),"-",IFERROR('Tabel 2 NJ'!C153/'Tabel 1 NJ'!C151*100,"-")) -> 5.198776758 | D153: =IF(OR('Tabel 1 NJ'!C151<5,'Tabel 2 NJ'!D153<0.5),"-",IFERROR('Tabel 2 NJ'!D153/'Tabel 1 NJ'!C151*100,"-")) -> 4.267955751 | F153: =IF(OR('Tabel 1 NJ'!E151<5,'Tabel 2 NJ'!F153<0.5),"-",IFERROR('Tabel 2 NJ'!F153/'Tabel 1 NJ'!E151*100,"-")) -> 7.541899441 | G153: =IF(OR('Tabel 1 NJ'!E151<5,'Tabel 2 NJ'!G153<0.5),"-",IFERROR('Tabel 2 NJ'!G153/'Tabel 1 NJ'!E151*100,"-")) -> 6.215706641 | I153: =IF(OR('Tabel 1 NJ'!G151<5,'Tabel 2 NJ'!I153<0.5),"-",IFERROR('Tabel 2 NJ'!I153/'Tabel 1 NJ'!G151*100,"-")) -> 6.423357664 | J153: =IF(OR('Tabel 1 NJ'!G151<5,'Tabel 2 NJ'!J153<0.5),"-",IFERROR('Tabel 2 NJ'!J153/'Tabel 1 NJ'!G151*100,"-")) -> 5.285904392
A155: Ingeniører i alt | C155: =IF(OR('Tabel 1 NJ'!C153<5,'Tabel 2 NJ'!C155<0.5),"-",IFERROR('Tabel 2 NJ'!C155/'Tabel 1 NJ'!C153*100,"-")) -> 2.380952381 | D155: =IF(OR('Tabel 1 NJ'!C153<5,'Tabel 2 NJ'!D155<0.5),"-",IFERROR('Tabel 2 NJ'!D155/'Tabel 1 NJ'!C153*100,"-")) -> 2.270614477 | F155: =IF(OR('Tabel 1 NJ'!E153<5,'Tabel 2 NJ'!F155<0.5),"-",IFERROR('Tabel 2 NJ'!F155/'Tabel 1 NJ'!E153*100,"-")) -> - | G155: =IF(OR('Tabel 1 NJ'!E153<5,'Tabel 2 NJ'!G155<0.5),"-",IFERROR('Tabel 2 NJ'!G155/'Tabel 1 NJ'!E153*100,"-")) -> - | I155: =IF(OR('Tabel 1 NJ'!G153<5,'Tabel 2 NJ'!I155<0.5),"-",IFERROR('Tabel 2 NJ'!I155/'Tabel 1 NJ'!G153*100,"-")) -> 1.886792453 | J155: =IF(OR('Tabel 1 NJ'!G153<5,'Tabel 2 NJ'!J155<0.5),"-",IFERROR('Tabel 2 NJ'!J155/'Tabel 1 NJ'!G153*100,"-")) -> 1.799354868
A156: Magistre i alt | C156: =IF(OR('Tabel 1 NJ'!C154<5,'Tabel 2 NJ'!C156<0.5),"-",IFERROR('Tabel 2 NJ'!C156/'Tabel 1 NJ'!C154*100,"-")) -> 8.571428571 | D156: =IF(OR('Tabel 1 NJ'!C154<5,'Tabel 2 NJ'!D156<0.5),"-",IFERROR('Tabel 2 NJ'!D156/'Tabel 1 NJ'!C154*100,"-")) -> 6.762837362 | F156: =IF(OR('Tabel 1 NJ'!E154<5,'Tabel 2 NJ'!F156<0.5),"-",IFERROR('Tabel 2 NJ'!F156/'Tabel 1 NJ'!E154*100,"-")) -> 9.917355372 | G156: =IF(OR('Tabel 1 NJ'!E154<5,'Tabel 2 NJ'!G156<0.5),"-",IFERROR('Tabel 2 NJ'!G156/'Tabel 1 NJ'!E154*100,"-")) -> 7.811368392 | I156: =IF(OR('Tabel 1 NJ'!G154<5,'Tabel 2 NJ'!I156<0.5),"-",IFERROR('Tabel 2 NJ'!I156/'Tabel 1 NJ'!G154*100,"-")) -> 9.42408377 | J156: =IF(OR('Tabel 1 NJ'!G154<5,'Tabel 2 NJ'!J156<0.5),"-",IFERROR('Tabel 2 NJ'!J156/'Tabel 1 NJ'!G154*100,"-")) -> 7.427090004
A157: DJØF'ere i alt | C157: =IF(OR('Tabel 1 NJ'!C155<5,'Tabel 2 NJ'!C157<0.5),"-",IFERROR('Tabel 2 NJ'!C157/'Tabel 1 NJ'!C155*100,"-")) -> 6.779661017 | D157: =IF(OR('Tabel 1 NJ'!C155<5,'Tabel 2 NJ'!D157<0.5),"-",IFERROR('Tabel 2 NJ'!D157/'Tabel 1 NJ'!C155*100,"-")) -> 5.802650677 | F157: =IF(OR('Tabel 1 NJ'!E155<5,'Tabel 2 NJ'!F157<0.5),"-",IFERROR('Tabel 2 NJ'!F157/'Tabel 1 NJ'!E155*100,"-")) -> 4.761904762 | G157: =IF(OR('Tabel 1 NJ'!E155<5,'Tabel 2 NJ'!G157<0.5),"-",IFERROR('Tabel 2 NJ'!G157/'Tabel 1 NJ'!E155*100,"-")) -> 3.696740552 | I157: =IF(OR('Tabel 1 NJ'!G155<5,'Tabel 2 NJ'!I157<0.5),"-",IFERROR('Tabel 2 NJ'!I157/'Tabel 1 NJ'!G155*100,"-")) -> 5.737704918 | J157: =IF(OR('Tabel 1 NJ'!G155<5,'Tabel 2 NJ'!J157<0.5),"-",IFERROR('Tabel 2 NJ'!J157/'Tabel 1 NJ'!G155*100,"-")) -> 4.715172498
A162: Brønderslev
C164: Mænd | F164: Kvinder | I164: I alt
C165: Ledigheds- berørte | D165: Gns. brutto- ledighed | F165: Ledigheds- berørte | G165: Gns. brutto- ledighed | I165: Ledigheds- berørte | J165: Gns. brutto- ledighed
A168: Civ. ing. | C168: =IF(OR('Tabel 1 NJ'!C166<5,'Tabel 2 NJ'!C168<0.5),"-",IFERROR('Tabel 2 NJ'!C168/'Tabel 1 NJ'!C166*100,"-")) -> 1.869158879 | D168: =IF(OR('Tabel 1 NJ'!C166<5,'Tabel 2 NJ'!D168<0.5),"-",IFERROR('Tabel 2 NJ'!D168/'Tabel 1 NJ'!C166*100,"-")) -> 1.868809133 | F168: =IF(OR('Tabel 1 NJ'!E166<5,'Tabel 2 NJ'!F168<0.5),"-",IFERROR('Tabel 2 NJ'!F168/'Tabel 1 NJ'!E166*100,"-")) -> - | G168: =IF(OR('Tabel 1 NJ'!E166<5,'Tabel 2 NJ'!G168<0.5),"-",IFERROR('Tabel 2 NJ'!G168/'Tabel 1 NJ'!E166*100,"-")) -> - | I168: =IF(OR('Tabel 1 NJ'!G166<5,'Tabel 2 NJ'!I168<0.5),"-",IFERROR('Tabel 2 NJ'!I168/'Tabel 1 NJ'!G166*100,"-")) -> 1.360544218 | J168: =IF(OR('Tabel 1 NJ'!G166<5,'Tabel 2 NJ'!J168<0.5),"-",IFERROR('Tabel 2 NJ'!J168/'Tabel 1 NJ'!G166*100,"-")) -> 1.360289641
A169: Diplom ing. | C169: =IF(OR('Tabel 1 NJ'!C167<5,'Tabel 2 NJ'!C169<0.5),"-",IFERROR('Tabel 2 NJ'!C169/'Tabel 1 NJ'!C167*100,"-")) -> 1.492537313 | D169: =IF(OR('Tabel 1 NJ'!C167<5,'Tabel 2 NJ'!D169<0.5),"-",IFERROR('Tabel 2 NJ'!D169/'Tabel 1 NJ'!C167*100,"-")) -> 1.492258039 | F169: =IF(OR('Tabel 1 NJ'!E167<5,'Tabel 2 NJ'!F169<0.5),"-",IFERROR('Tabel 2 NJ'!F169/'Tabel 1 NJ'!E167*100,"-")) -> - | G169: =IF(OR('Tabel 1 NJ'!E167<5,'Tabel 2 NJ'!G169<0.5),"-",IFERROR('Tabel 2 NJ'!G169/'Tabel 1 NJ'!E167*100,"-")) -> - | I169: =IF(OR('Tabel 1 NJ'!G167<5,'Tabel 2 NJ'!I169<0.5),"-",IFERROR('Tabel 2 NJ'!I169/'Tabel 1 NJ'!G167*100,"-")) -> 1.315789474 | J169: =IF(OR('Tabel 1 NJ'!G167<5,'Tabel 2 NJ'!J169<0.5),"-",IFERROR('Tabel 2 NJ'!J169/'Tabel 1 NJ'!G167*100,"-")) -> 1.315543271
A170: Cand. Scient. Tek. | C170: =IF(OR('Tabel 1 NJ'!C168<5,'Tabel 2 NJ'!C170<0.5),"-",IFERROR('Tabel 2 NJ'!C170/'Tabel 1 NJ'!C168*100,"-")) -> 6.666666667 | D170: =IF(OR('Tabel 1 NJ'!C168<5,'Tabel 2 NJ'!D170<0.5),"-",IFERROR('Tabel 2 NJ'!D170/'Tabel 1 NJ'!C168*100,"-")) -> 6.108235098 | F170: =IF(OR('Tabel 1 NJ'!E168<5,'Tabel 2 NJ'!F170<0.5),"-",IFERROR('Tabel 2 NJ'!F170/'Tabel 1 NJ'!E168*100,"-")) -> 23.07692308 | G170: =IF(OR('Tabel 1 NJ'!E168<5,'Tabel 2 NJ'!G170<0.5),"-",IFERROR('Tabel 2 NJ'!G170/'Tabel 1 NJ'!E168*100,"-")) -> 20.94238326 | I170: =IF(OR('Tabel 1 NJ'!G168<5,'Tabel 2 NJ'!I170<0.5),"-",IFERROR('Tabel 2 NJ'!I170/'Tabel 1 NJ'!G168*100,"-")) -> 11.62790698 | J170: =IF(OR('Tabel 1 NJ'!G168<5,'Tabel 2 NJ'!J170<0.5),"-",IFERROR('Tabel 2 NJ'!J170/'Tabel 1 NJ'!G168*100,"-")) -> 10.59297757
A171: MA. Hum. | C171: =IF(OR('Tabel 1 NJ'!C169<5,'Tabel 2 NJ'!C171<0.5),"-",IFERROR('Tabel 2 NJ'!C171/'Tabel 1 NJ'!C169*100,"-")) -> 19.44444444 | D171: =IF(OR('Tabel 1 NJ'!C169<5,'Tabel 2 NJ'!D171<0.5),"-",IFERROR('Tabel 2 NJ'!D171/'Tabel 1 NJ'!C169*100,"-")) -> 15.57031678 | F171: =IF(OR('Tabel 1 NJ'!E169<5,'Tabel 2 NJ'!F171<0.5),"-",IFERROR('Tabel 2 NJ'!F171/'Tabel 1 NJ'!E169*100,"-")) -> 8.219178082 | G171: =IF(OR('Tabel 1 NJ'!E169<5,'Tabel 2 NJ'!G171<0.5),"-",IFERROR('Tabel 2 NJ'!G171/'Tabel 1 NJ'!E169*100,"-")) -> 7.200901565 | I171: =IF(OR('Tabel 1 NJ'!G169<5,'Tabel 2 NJ'!I171<0.5),"-",IFERROR('Tabel 2 NJ'!I171/'Tabel 1 NJ'!G169*100,"-")) -> 11.9266055 | J171: =IF(OR('Tabel 1 NJ'!G169<5,'Tabel 2 NJ'!J171<0.5),"-",IFERROR('Tabel 2 NJ'!J171/'Tabel 1 NJ'!G169*100,"-")) -> 9.965112094
A172: MA. Nat. | C172: =IF(OR('Tabel 1 NJ'!C170<5,'Tabel 2 NJ'!C172<0.5),"-",IFERROR('Tabel 2 NJ'!C172/'Tabel 1 NJ'!C170*100,"-")) -> - | D172: =IF(OR('Tabel 1 NJ'!C170<5,'Tabel 2 NJ'!D172<0.5),"-",IFERROR('Tabel 2 NJ'!D172/'Tabel 1 NJ'!C170*100,"-")) -> - | F172: =IF(OR('Tabel 1 NJ'!E170<5,'Tabel 2 NJ'!F172<0.5),"-",IFERROR('Tabel 2 NJ'!F172/'Tabel 1 NJ'!E170*100,"-")) -> - | G172: =IF(OR('Tabel 1 NJ'!E170<5,'Tabel 2 NJ'!G172<0.5),"-",IFERROR('Tabel 2 NJ'!G172/'Tabel 1 NJ'!E170*100,"-")) -> - | I172: =IF(OR('Tabel 1 NJ'!G170<5,'Tabel 2 NJ'!I172<0.5),"-",IFERROR('Tabel 2 NJ'!I172/'Tabel 1 NJ'!G170*100,"-")) -> - | J172: =IF(OR('Tabel 1 NJ'!G170<5,'Tabel 2 NJ'!J172<0.5),"-",IFERROR('Tabel 2 NJ'!J172/'Tabel 1 NJ'!G170*100,"-")) -> -
A173: MA. Ph.d. | C173: =IF(OR('Tabel 1 NJ'!C171<5,'Tabel 2 NJ'!C173<0.5),"-",IFERROR('Tabel 2 NJ'!C173/'Tabel 1 NJ'!C171*100,"-")) -> - | D173: =IF(OR('Tabel 1 NJ'!C171<5,'Tabel 2 NJ'!D173<0.5),"-",IFERROR('Tabel 2 NJ'!D173/'Tabel 1 NJ'!C171*100,"-")) -> - | F173: =IF(OR('Tabel 1 NJ'!E171<5,'Tabel 2 NJ'!F173<0.5),"-",IFERROR('Tabel 2 NJ'!F173/'Tabel 1 NJ'!E171*100,"-")) -> - | G173: =IF(OR('Tabel 1 NJ'!E171<5,'Tabel 2 NJ'!G173<0.5),"-",IFERROR('Tabel 2 NJ'!G173/'Tabel 1 NJ'!E171*100,"-")) -> - | I173: =IF(OR('Tabel 1 NJ'!G171<5,'Tabel 2 NJ'!I173<0.5),"-",IFERROR('Tabel 2 NJ'!I173/'Tabel 1 NJ'!G171*100,"-")) -> - | J173: =IF(OR('Tabel 1 NJ'!G171<5,'Tabel 2 NJ'!J173<0.5),"-",IFERROR('Tabel 2 NJ'!J173/'Tabel 1 NJ'!G171*100,"-")) -> -
A174: MA. Samf. | C174: =IF(OR('Tabel 1 NJ'!C172<5,'Tabel 2 NJ'!C174<0.5),"-",IFERROR('Tabel 2 NJ'!C174/'Tabel 1 NJ'!C172*100,"-")) -> - | D174: =IF(OR('Tabel 1 NJ'!C172<5,'Tabel 2 NJ'!D174<0.5),"-",IFERROR('Tabel 2 NJ'!D174/'Tabel 1 NJ'!C172*100,"-")) -> - | F174: =IF(OR('Tabel 1 NJ'!E172<5,'Tabel 2 NJ'!F174<0.5),"-",IFERROR('Tabel 2 NJ'!F174/'Tabel 1 NJ'!E172*100,"-")) -> 40 | G174: =IF(OR('Tabel 1 NJ'!E172<5,'Tabel 2 NJ'!G174<0.5),"-",IFERROR('Tabel 2 NJ'!G174/'Tabel 1 NJ'!E172*100,"-")) -> 39.99251544 | I174: =IF(OR('Tabel 1 NJ'!G172<5,'Tabel 2 NJ'!I174<0.5),"-",IFERROR('Tabel 2 NJ'!I174/'Tabel 1 NJ'!G172*100,"-")) -> 28.57142857 | J174: =IF(OR('Tabel 1 NJ'!G172<5,'Tabel 2 NJ'!J174<0.5),"-",IFERROR('Tabel 2 NJ'!J174/'Tabel 1 NJ'!G172*100,"-")) -> 28.56608245
A175: Øvrige Mag. | C175: =IF(OR('Tabel 1 NJ'!C173<5,'Tabel 2 NJ'!C175<0.5),"-",IFERROR('Tabel 2 NJ'!C175/'Tabel 1 NJ'!C173*100,"-")) -> - | D175: =IF(OR('Tabel 1 NJ'!C173<5,'Tabel 2 NJ'!D175<0.5),"-",IFERROR('Tabel 2 NJ'!D175/'Tabel 1 NJ'!C173*100,"-")) -> - | F175: =IF(OR('Tabel 1 NJ'!E173<5,'Tabel 2 NJ'!F175<0.5),"-",IFERROR('Tabel 2 NJ'!F175/'Tabel 1 NJ'!E173*100,"-")) -> - | G175: =IF(OR('Tabel 1 NJ'!E173<5,'Tabel 2 NJ'!G175<0.5),"-",IFERROR('Tabel 2 NJ'!G175/'Tabel 1 NJ'!E173*100,"-")) -> - | I175: =IF(OR('Tabel 1 NJ'!G173<5,'Tabel 2 NJ'!I175<0.5),"-",IFERROR('Tabel 2 NJ'!I175/'Tabel 1 NJ'!G173*100,"-")) -> - | J175: =IF(OR('Tabel 1 NJ'!G173<5,'Tabel 2 NJ'!J175<0.5),"-",IFERROR('Tabel 2 NJ'!J175/'Tabel 1 NJ'!G173*100,"-")) -> -
A176: Agronom | C176: =IF(OR('Tabel 1 NJ'!C174<5,'Tabel 2 NJ'!C176<0.5),"-",IFERROR('Tabel 2 NJ'!C176/'Tabel 1 NJ'!C174*100,"-")) -> - | D176: =IF(OR('Tabel 1 NJ'!C174<5,'Tabel 2 NJ'!D176<0.5),"-",IFERROR('Tabel 2 NJ'!D176/'Tabel 1 NJ'!C174*100,"-")) -> - | F176: =IF(OR('Tabel 1 NJ'!E174<5,'Tabel 2 NJ'!F176<0.5),"-",IFERROR('Tabel 2 NJ'!F176/'Tabel 1 NJ'!E174*100,"-")) -> - | G176: =IF(OR('Tabel 1 NJ'!E174<5,'Tabel 2 NJ'!G176<0.5),"-",IFERROR('Tabel 2 NJ'!G176/'Tabel 1 NJ'!E174*100,"-")) -> - | I176: =IF(OR('Tabel 1 NJ'!G174<5,'Tabel 2 NJ'!I176<0.5),"-",IFERROR('Tabel 2 NJ'!I176/'Tabel 1 NJ'!G174*100,"-")) -> - | J176: =IF(OR('Tabel 1 NJ'!G174<5,'Tabel 2 NJ'!J176<0.5),"-",IFERROR('Tabel 2 NJ'!J176/'Tabel 1 NJ'!G174*100,"-")) -> -
A177: Landsk. Arkt. | C177: =IF(OR('Tabel 1 NJ'!C175<5,'Tabel 2 NJ'!C177<0.5),"-",IFERROR('Tabel 2 NJ'!C177/'Tabel 1 NJ'!C175*100,"-")) -> - | D177: =IF(OR('Tabel 1 NJ'!C175<5,'Tabel 2 NJ'!D177<0.5),"-",IFERROR('Tabel 2 NJ'!D177/'Tabel 1 NJ'!C175*100,"-")) -> - | F177: =IF(OR('Tabel 1 NJ'!E175<5,'Tabel 2 NJ'!F177<0.5),"-",IFERROR('Tabel 2 NJ'!F177/'Tabel 1 NJ'!E175*100,"-")) -> - | G177: =IF(OR('Tabel 1 NJ'!E175<5,'Tabel 2 NJ'!G177<0.5),"-",IFERROR('Tabel 2 NJ'!G177/'Tabel 1 NJ'!E175*100,"-")) -> - | I177: =IF(OR('Tabel 1 NJ'!G175<5,'Tabel 2 NJ'!I177<0.5),"-",IFERROR('Tabel 2 NJ'!I177/'Tabel 1 NJ'!G175*100,"-")) -> - | J177: =IF(OR('Tabel 1 NJ'!G175<5,'Tabel 2 NJ'!J177<0.5),"-",IFERROR('Tabel 2 NJ'!J177/'Tabel 1 NJ'!G175*100,"-")) -> -
A178: Hortonom | C178: =IF(OR('Tabel 1 NJ'!C176<5,'Tabel 2 NJ'!C178<0.5),"-",IFERROR('Tabel 2 NJ'!C178/'Tabel 1 NJ'!C176*100,"-")) -> - | D178: =IF(OR('Tabel 1 NJ'!C176<5,'Tabel 2 NJ'!D178<0.5),"-",IFERROR('Tabel 2 NJ'!D178/'Tabel 1 NJ'!C176*100,"-")) -> - | F178: =IF(OR('Tabel 1 NJ'!E176<5,'Tabel 2 NJ'!F178<0.5),"-",IFERROR('Tabel 2 NJ'!F178/'Tabel 1 NJ'!E176*100,"-")) -> - | G178: =IF(OR('Tabel 1 NJ'!E176<5,'Tabel 2 NJ'!G178<0.5),"-",IFERROR('Tabel 2 NJ'!G178/'Tabel 1 NJ'!E176*100,"-")) -> - | I178: =IF(OR('Tabel 1 NJ'!G176<5,'Tabel 2 NJ'!I178<0.5),"-",IFERROR('Tabel 2 NJ'!I178/'Tabel 1 NJ'!G176*100,"-")) -> - | J178: =IF(OR('Tabel 1 NJ'!G176<5,'Tabel 2 NJ'!J178<0.5),"-",IFERROR('Tabel 2 NJ'!J178/'Tabel 1 NJ'!G176*100,"-")) -> -
A179: Forstkand. | C179: =IF(OR('Tabel 1 NJ'!C177<5,'Tabel 2 NJ'!C179<0.5),"-",IFERROR('Tabel 2 NJ'!C179/'Tabel 1 NJ'!C177*100,"-")) -> - | D179: =IF(OR('Tabel 1 NJ'!C177<5,'Tabel 2 NJ'!D179<0.5),"-",IFERROR('Tabel 2 NJ'!D179/'Tabel 1 NJ'!C177*100,"-")) -> - | F179: =IF(OR('Tabel 1 NJ'!E177<5,'Tabel 2 NJ'!F179<0.5),"-",IFERROR('Tabel 2 NJ'!F179/'Tabel 1 NJ'!E177*100,"-")) -> - | G179: =IF(OR('Tabel 1 NJ'!E177<5,'Tabel 2 NJ'!G179<0.5),"-",IFERROR('Tabel 2 NJ'!G179/'Tabel 1 NJ'!E177*100,"-")) -> - | I179: =IF(OR('Tabel 1 NJ'!G177<5,'Tabel 2 NJ'!I179<0.5),"-",IFERROR('Tabel 2 NJ'!I179/'Tabel 1 NJ'!G177*100,"-")) -> - | J179: =IF(OR('Tabel 1 NJ'!G177<5,'Tabel 2 NJ'!J179<0.5),"-",IFERROR('Tabel 2 NJ'!J179/'Tabel 1 NJ'!G177*100,"-")) -> -
A180: Jordbrugsakad. | C180: =IF(OR('Tabel 1 NJ'!C178<5,'Tabel 2 NJ'!C180<0.5),"-",IFERROR('Tabel 2 NJ'!C180/'Tabel 1 NJ'!C178*100,"-")) -> - | D180: =IF(OR('Tabel 1 NJ'!C178<5,'Tabel 2 NJ'!D180<0.5),"-",IFERROR('Tabel 2 NJ'!D180/'Tabel 1 NJ'!C178*100,"-")) -> - | F180: =IF(OR('Tabel 1 NJ'!E178<5,'Tabel 2 NJ'!F180<0.5),"-",IFERROR('Tabel 2 NJ'!F180/'Tabel 1 NJ'!E178*100,"-")) -> 20 | G180: =IF(OR('Tabel 1 NJ'!E178<5,'Tabel 2 NJ'!G180<0.5),"-",IFERROR('Tabel 2 NJ'!G180/'Tabel 1 NJ'!E178*100,"-")) -> 10.64055386 | I180: =IF(OR('Tabel 1 NJ'!G178<5,'Tabel 2 NJ'!I180<0.5),"-",IFERROR('Tabel 2 NJ'!I180/'Tabel 1 NJ'!G178*100,"-")) -> 7.692307692 | J180: =IF(OR('Tabel 1 NJ'!G178<5,'Tabel 2 NJ'!J180<0.5),"-",IFERROR('Tabel 2 NJ'!J180/'Tabel 1 NJ'!G178*100,"-")) -> 4.092520714
A181: Mejeriing. | C181: =IF(OR('Tabel 1 NJ'!C179<5,'Tabel 2 NJ'!C181<0.5),"-",IFERROR('Tabel 2 NJ'!C181/'Tabel 1 NJ'!C179*100,"-")) -> - | D181: =IF(OR('Tabel 1 NJ'!C179<5,'Tabel 2 NJ'!D181<0.5),"-",IFERROR('Tabel 2 NJ'!D181/'Tabel 1 NJ'!C179*100,"-")) -> - | F181: =IF(OR('Tabel 1 NJ'!E179<5,'Tabel 2 NJ'!F181<0.5),"-",IFERROR('Tabel 2 NJ'!F181/'Tabel 1 NJ'!E179*100,"-")) -> - | G181: =IF(OR('Tabel 1 NJ'!E179<5,'Tabel 2 NJ'!G181<0.5),"-",IFERROR('Tabel 2 NJ'!G181/'Tabel 1 NJ'!E179*100,"-")) -> - | I181: =IF(OR('Tabel 1 NJ'!G179<5,'Tabel 2 NJ'!I181<0.5),"-",IFERROR('Tabel 2 NJ'!I181/'Tabel 1 NJ'!G179*100,"-")) -> - | J181: =IF(OR('Tabel 1 NJ'!G179<5,'Tabel 2 NJ'!J181<0.5),"-",IFERROR('Tabel 2 NJ'!J181/'Tabel 1 NJ'!G179*100,"-")) -> -
A182: Levn.m.kand. | C182: =IF(OR('Tabel 1 NJ'!C180<5,'Tabel 2 NJ'!C182<0.5),"-",IFERROR('Tabel 2 NJ'!C182/'Tabel 1 NJ'!C180*100,"-")) -> - | D182: =IF(OR('Tabel 1 NJ'!C180<5,'Tabel 2 NJ'!D182<0.5),"-",IFERROR('Tabel 2 NJ'!D182/'Tabel 1 NJ'!C180*100,"-")) -> - | F182: =IF(OR('Tabel 1 NJ'!E180<5,'Tabel 2 NJ'!F182<0.5),"-",IFERROR('Tabel 2 NJ'!F182/'Tabel 1 NJ'!E180*100,"-")) -> - | G182: =IF(OR('Tabel 1 NJ'!E180<5,'Tabel 2 NJ'!G182<0.5),"-",IFERROR('Tabel 2 NJ'!G182/'Tabel 1 NJ'!E180*100,"-")) -> - | I182: =IF(OR('Tabel 1 NJ'!G180<5,'Tabel 2 NJ'!I182<0.5),"-",IFERROR('Tabel 2 NJ'!I182/'Tabel 1 NJ'!G180*100,"-")) -> - | J182: =IF(OR('Tabel 1 NJ'!G180<5,'Tabel 2 NJ'!J182<0.5),"-",IFERROR('Tabel 2 NJ'!J182/'Tabel 1 NJ'!G180*100,"-")) -> -
A183: Dyrlæge | C183: =IF(OR('Tabel 1 NJ'!C181<5,'Tabel 2 NJ'!C183<0.5),"-",IFERROR('Tabel 2 NJ'!C183/'Tabel 1 NJ'!C181*100,"-")) -> - | D183: =IF(OR('Tabel 1 NJ'!C181<5,'Tabel 2 NJ'!D183<0.5),"-",IFERROR('Tabel 2 NJ'!D183/'Tabel 1 NJ'!C181*100,"-")) -> - | F183: =IF(OR('Tabel 1 NJ'!E181<5,'Tabel 2 NJ'!F183<0.5),"-",IFERROR('Tabel 2 NJ'!F183/'Tabel 1 NJ'!E181*100,"-")) -> - | G183: =IF(OR('Tabel 1 NJ'!E181<5,'Tabel 2 NJ'!G183<0.5),"-",IFERROR('Tabel 2 NJ'!G183/'Tabel 1 NJ'!E181*100,"-")) -> - | I183: =IF(OR('Tabel 1 NJ'!G181<5,'Tabel 2 NJ'!I183<0.5),"-",IFERROR('Tabel 2 NJ'!I183/'Tabel 1 NJ'!G181*100,"-")) -> - | J183: =IF(OR('Tabel 1 NJ'!G181<5,'Tabel 2 NJ'!J183<0.5),"-",IFERROR('Tabel 2 NJ'!J183/'Tabel 1 NJ'!G181*100,"-")) -> -
A184: Farmaceut | C184: =IF(OR('Tabel 1 NJ'!C182<5,'Tabel 2 NJ'!C184<0.5),"-",IFERROR('Tabel 2 NJ'!C184/'Tabel 1 NJ'!C182*100,"-")) -> - | D184: =IF(OR('Tabel 1 NJ'!C182<5,'Tabel 2 NJ'!D184<0.5),"-",IFERROR('Tabel 2 NJ'!D184/'Tabel 1 NJ'!C182*100,"-")) -> - | F184: =IF(OR('Tabel 1 NJ'!E182<5,'Tabel 2 NJ'!F184<0.5),"-",IFERROR('Tabel 2 NJ'!F184/'Tabel 1 NJ'!E182*100,"-")) -> - | G184: =IF(OR('Tabel 1 NJ'!E182<5,'Tabel 2 NJ'!G184<0.5),"-",IFERROR('Tabel 2 NJ'!G184/'Tabel 1 NJ'!E182*100,"-")) -> - | I184: =IF(OR('Tabel 1 NJ'!G182<5,'Tabel 2 NJ'!I184<0.5),"-",IFERROR('Tabel 2 NJ'!I184/'Tabel 1 NJ'!G182*100,"-")) -> - | J184: =IF(OR('Tabel 1 NJ'!G182<5,'Tabel 2 NJ'!J184<0.5),"-",IFERROR('Tabel 2 NJ'!J184/'Tabel 1 NJ'!G182*100,"-")) -> -
A185: Læge | C185: =IF(OR('Tabel 1 NJ'!C183<5,'Tabel 2 NJ'!C185<0.5),"-",IFERROR('Tabel 2 NJ'!C185/'Tabel 1 NJ'!C183*100,"-")) -> - | D185: =IF(OR('Tabel 1 NJ'!C183<5,'Tabel 2 NJ'!D185<0.5),"-",IFERROR('Tabel 2 NJ'!D185/'Tabel 1 NJ'!C183*100,"-")) -> - | F185: =IF(OR('Tabel 1 NJ'!E183<5,'Tabel 2 NJ'!F185<0.5),"-",IFERROR('Tabel 2 NJ'!F185/'Tabel 1 NJ'!E183*100,"-")) -> - | G185: =IF(OR('Tabel 1 NJ'!E183<5,'Tabel 2 NJ'!G185<0.5),"-",IFERROR('Tabel 2 NJ'!G185/'Tabel 1 NJ'!E183*100,"-")) -> - | I185: =IF(OR('Tabel 1 NJ'!G183<5,'Tabel 2 NJ'!I185<0.5),"-",IFERROR('Tabel 2 NJ'!I185/'Tabel 1 NJ'!G183*100,"-")) -> - | J185: =IF(OR('Tabel 1 NJ'!G183<5,'Tabel 2 NJ'!J185<0.5),"-",IFERROR('Tabel 2 NJ'!J185/'Tabel 1 NJ'!G183*100,"-")) -> -
A186: Tandlæge | C186: =IF(OR('Tabel 1 NJ'!C184<5,'Tabel 2 NJ'!C186<0.5),"-",IFERROR('Tabel 2 NJ'!C186/'Tabel 1 NJ'!C184*100,"-")) -> - | D186: =IF(OR('Tabel 1 NJ'!C184<5,'Tabel 2 NJ'!D186<0.5),"-",IFERROR('Tabel 2 NJ'!D186/'Tabel 1 NJ'!C184*100,"-")) -> - | F186: =IF(OR('Tabel 1 NJ'!E184<5,'Tabel 2 NJ'!F186<0.5),"-",IFERROR('Tabel 2 NJ'!F186/'Tabel 1 NJ'!E184*100,"-")) -> - | G186: =IF(OR('Tabel 1 NJ'!E184<5,'Tabel 2 NJ'!G186<0.5),"-",IFERROR('Tabel 2 NJ'!G186/'Tabel 1 NJ'!E184*100,"-")) -> - | I186: =IF(OR('Tabel 1 NJ'!G184<5,'Tabel 2 NJ'!I186<0.5),"-",IFERROR('Tabel 2 NJ'!I186/'Tabel 1 NJ'!G184*100,"-")) -> - | J186: =IF(OR('Tabel 1 NJ'!G184<5,'Tabel 2 NJ'!J186<0.5),"-",IFERROR('Tabel 2 NJ'!J186/'Tabel 1 NJ'!G184*100,"-")) -> -
A187: Arkitekt | C187: =IF(OR('Tabel 1 NJ'!C185<5,'Tabel 2 NJ'!C187<0.5),"-",IFERROR('Tabel 2 NJ'!C187/'Tabel 1 NJ'!C185*100,"-")) -> - | D187: =IF(OR('Tabel 1 NJ'!C185<5,'Tabel 2 NJ'!D187<0.5),"-",IFERROR('Tabel 2 NJ'!D187/'Tabel 1 NJ'!C185*100,"-")) -> - | F187: =IF(OR('Tabel 1 NJ'!E185<5,'Tabel 2 NJ'!F187<0.5),"-",IFERROR('Tabel 2 NJ'!F187/'Tabel 1 NJ'!E185*100,"-")) -> - | G187: =IF(OR('Tabel 1 NJ'!E185<5,'Tabel 2 NJ'!G187<0.5),"-",IFERROR('Tabel 2 NJ'!G187/'Tabel 1 NJ'!E185*100,"-")) -> - | I187: =IF(OR('Tabel 1 NJ'!G185<5,'Tabel 2 NJ'!I187<0.5),"-",IFERROR('Tabel 2 NJ'!I187/'Tabel 1 NJ'!G185*100,"-")) -> - | J187: =IF(OR('Tabel 1 NJ'!G185<5,'Tabel 2 NJ'!J187<0.5),"-",IFERROR('Tabel 2 NJ'!J187/'Tabel 1 NJ'!G185*100,"-")) -> -
A188: Landinspek. | C188: =IF(OR('Tabel 1 NJ'!C186<5,'Tabel 2 NJ'!C188<0.5),"-",IFERROR('Tabel 2 NJ'!C188/'Tabel 1 NJ'!C186*100,"-")) -> - | D188: =IF(OR('Tabel 1 NJ'!C186<5,'Tabel 2 NJ'!D188<0.5),"-",IFERROR('Tabel 2 NJ'!D188/'Tabel 1 NJ'!C186*100,"-")) -> - | F188: =IF(OR('Tabel 1 NJ'!E186<5,'Tabel 2 NJ'!F188<0.5),"-",IFERROR('Tabel 2 NJ'!F188/'Tabel 1 NJ'!E186*100,"-")) -> - | G188: =IF(OR('Tabel 1 NJ'!E186<5,'Tabel 2 NJ'!G188<0.5),"-",IFERROR('Tabel 2 NJ'!G188/'Tabel 1 NJ'!E186*100,"-")) -> - | I188: =IF(OR('Tabel 1 NJ'!G186<5,'Tabel 2 NJ'!I188<0.5),"-",IFERROR('Tabel 2 NJ'!I188/'Tabel 1 NJ'!G186*100,"-")) -> - | J188: =IF(OR('Tabel 1 NJ'!G186<5,'Tabel 2 NJ'!J188<0.5),"-",IFERROR('Tabel 2 NJ'!J188/'Tabel 1 NJ'!G186*100,"-")) -> -
A189: Bibliotekar | C189: =IF(OR('Tabel 1 NJ'!C187<5,'Tabel 2 NJ'!C189<0.5),"-",IFERROR('Tabel 2 NJ'!C189/'Tabel 1 NJ'!C187*100,"-")) -> - | D189: =IF(OR('Tabel 1 NJ'!C187<5,'Tabel 2 NJ'!D189<0.5),"-",IFERROR('Tabel 2 NJ'!D189/'Tabel 1 NJ'!C187*100,"-")) -> - | F189: =IF(OR('Tabel 1 NJ'!E187<5,'Tabel 2 NJ'!F189<0.5),"-",IFERROR('Tabel 2 NJ'!F189/'Tabel 1 NJ'!E187*100,"-")) -> - | G189: =IF(OR('Tabel 1 NJ'!E187<5,'Tabel 2 NJ'!G189<0.5),"-",IFERROR('Tabel 2 NJ'!G189/'Tabel 1 NJ'!E187*100,"-")) -> - | I189: =IF(OR('Tabel 1 NJ'!G187<5,'Tabel 2 NJ'!I189<0.5),"-",IFERROR('Tabel 2 NJ'!I189/'Tabel 1 NJ'!G187*100,"-")) -> - | J189: =IF(OR('Tabel 1 NJ'!G187<5,'Tabel 2 NJ'!J189<0.5),"-",IFERROR('Tabel 2 NJ'!J189/'Tabel 1 NJ'!G187*100,"-")) -> -
A190: Musikudd. | C190: =IF(OR('Tabel 1 NJ'!C188<5,'Tabel 2 NJ'!C190<0.5),"-",IFERROR('Tabel 2 NJ'!C190/'Tabel 1 NJ'!C188*100,"-")) -> - | D190: =IF(OR('Tabel 1 NJ'!C188<5,'Tabel 2 NJ'!D190<0.5),"-",IFERROR('Tabel 2 NJ'!D190/'Tabel 1 NJ'!C188*100,"-")) -> - | F190: =IF(OR('Tabel 1 NJ'!E188<5,'Tabel 2 NJ'!F190<0.5),"-",IFERROR('Tabel 2 NJ'!F190/'Tabel 1 NJ'!E188*100,"-")) -> - | G190: =IF(OR('Tabel 1 NJ'!E188<5,'Tabel 2 NJ'!G190<0.5),"-",IFERROR('Tabel 2 NJ'!G190/'Tabel 1 NJ'!E188*100,"-")) -> - | I190: =IF(OR('Tabel 1 NJ'!G188<5,'Tabel 2 NJ'!I190<0.5),"-",IFERROR('Tabel 2 NJ'!I190/'Tabel 1 NJ'!G188*100,"-")) -> - | J190: =IF(OR('Tabel 1 NJ'!G188<5,'Tabel 2 NJ'!J190<0.5),"-",IFERROR('Tabel 2 NJ'!J190/'Tabel 1 NJ'!G188*100,"-")) -> -
A191: Teolog | C191: =IF(OR('Tabel 1 NJ'!C189<5,'Tabel 2 NJ'!C191<0.5),"-",IFERROR('Tabel 2 NJ'!C191/'Tabel 1 NJ'!C189*100,"-")) -> - | D191: =IF(OR('Tabel 1 NJ'!C189<5,'Tabel 2 NJ'!D191<0.5),"-",IFERROR('Tabel 2 NJ'!D191/'Tabel 1 NJ'!C189*100,"-")) -> - | F191: =IF(OR('Tabel 1 NJ'!E189<5,'Tabel 2 NJ'!F191<0.5),"-",IFERROR('Tabel 2 NJ'!F191/'Tabel 1 NJ'!E189*100,"-")) -> - | G191: =IF(OR('Tabel 1 NJ'!E189<5,'Tabel 2 NJ'!G191<0.5),"-",IFERROR('Tabel 2 NJ'!G191/'Tabel 1 NJ'!E189*100,"-")) -> - | I191: =IF(OR('Tabel 1 NJ'!G189<5,'Tabel 2 NJ'!I191<0.5),"-",IFERROR('Tabel 2 NJ'!I191/'Tabel 1 NJ'!G189*100,"-")) -> - | J191: =IF(OR('Tabel 1 NJ'!G189<5,'Tabel 2 NJ'!J191<0.5),"-",IFERROR('Tabel 2 NJ'!J191/'Tabel 1 NJ'!G189*100,"-")) -> -
A192: Psykolog | C192: =IF(OR('Tabel 1 NJ'!C190<5,'Tabel 2 NJ'!C192<0.5),"-",IFERROR('Tabel 2 NJ'!C192/'Tabel 1 NJ'!C190*100,"-")) -> - | D192: =IF(OR('Tabel 1 NJ'!C190<5,'Tabel 2 NJ'!D192<0.5),"-",IFERROR('Tabel 2 NJ'!D192/'Tabel 1 NJ'!C190*100,"-")) -> - | F192: =IF(OR('Tabel 1 NJ'!E190<5,'Tabel 2 NJ'!F192<0.5),"-",IFERROR('Tabel 2 NJ'!F192/'Tabel 1 NJ'!E190*100,"-")) -> - | G192: =IF(OR('Tabel 1 NJ'!E190<5,'Tabel 2 NJ'!G192<0.5),"-",IFERROR('Tabel 2 NJ'!G192/'Tabel 1 NJ'!E190*100,"-")) -> - | I192: =IF(OR('Tabel 1 NJ'!G190<5,'Tabel 2 NJ'!I192<0.5),"-",IFERROR('Tabel 2 NJ'!I192/'Tabel 1 NJ'!G190*100,"-")) -> - | J192: =IF(OR('Tabel 1 NJ'!G190<5,'Tabel 2 NJ'!J192<0.5),"-",IFERROR('Tabel 2 NJ'!J192/'Tabel 1 NJ'!G190*100,"-")) -> -
A193: Jurist | C193: =IF(OR('Tabel 1 NJ'!C191<5,'Tabel 2 NJ'!C193<0.5),"-",IFERROR('Tabel 2 NJ'!C193/'Tabel 1 NJ'!C191*100,"-")) -> - | D193: =IF(OR('Tabel 1 NJ'!C191<5,'Tabel 2 NJ'!D193<0.5),"-",IFERROR('Tabel 2 NJ'!D193/'Tabel 1 NJ'!C191*100,"-")) -> - | F193: =IF(OR('Tabel 1 NJ'!E191<5,'Tabel 2 NJ'!F193<0.5),"-",IFERROR('Tabel 2 NJ'!F193/'Tabel 1 NJ'!E191*100,"-")) -> - | G193: =IF(OR('Tabel 1 NJ'!E191<5,'Tabel 2 NJ'!G193<0.5),"-",IFERROR('Tabel 2 NJ'!G193/'Tabel 1 NJ'!E191*100,"-")) -> - | I193: =IF(OR('Tabel 1 NJ'!G191<5,'Tabel 2 NJ'!I193<0.5),"-",IFERROR('Tabel 2 NJ'!I193/'Tabel 1 NJ'!G191*100,"-")) -> - | J193: =IF(OR('Tabel 1 NJ'!G191<5,'Tabel 2 NJ'!J193<0.5),"-",IFERROR('Tabel 2 NJ'!J193/'Tabel 1 NJ'!G191*100,"-")) -> -
A194: Økonom | C194: =IF(OR('Tabel 1 NJ'!C192<5,'Tabel 2 NJ'!C194<0.5),"-",IFERROR('Tabel 2 NJ'!C194/'Tabel 1 NJ'!C192*100,"-")) -> 12.5 | D194: =IF(OR('Tabel 1 NJ'!C192<5,'Tabel 2 NJ'!D194<0.5),"-",IFERROR('Tabel 2 NJ'!D194/'Tabel 1 NJ'!C192*100,"-")) -> 12.49766107 | F194: =IF(OR('Tabel 1 NJ'!E192<5,'Tabel 2 NJ'!F194<0.5),"-",IFERROR('Tabel 2 NJ'!F194/'Tabel 1 NJ'!E192*100,"-")) -> - | G194: =IF(OR('Tabel 1 NJ'!E192<5,'Tabel 2 NJ'!G194<0.5),"-",IFERROR('Tabel 2 NJ'!G194/'Tabel 1 NJ'!E192*100,"-")) -> - | I194: =IF(OR('Tabel 1 NJ'!G192<5,'Tabel 2 NJ'!I194<0.5),"-",IFERROR('Tabel 2 NJ'!I194/'Tabel 1 NJ'!G192*100,"-")) -> 7.692307692 | J194: =IF(OR('Tabel 1 NJ'!G192<5,'Tabel 2 NJ'!J194<0.5),"-",IFERROR('Tabel 2 NJ'!J194/'Tabel 1 NJ'!G192*100,"-")) -> 7.690868353
A195: Samf. Adm. | C195: =IF(OR('Tabel 1 NJ'!C193<5,'Tabel 2 NJ'!C195<0.5),"-",IFERROR('Tabel 2 NJ'!C195/'Tabel 1 NJ'!C193*100,"-")) -> - | D195: =IF(OR('Tabel 1 NJ'!C193<5,'Tabel 2 NJ'!D195<0.5),"-",IFERROR('Tabel 2 NJ'!D195/'Tabel 1 NJ'!C193*100,"-")) -> - | F195: =IF(OR('Tabel 1 NJ'!E193<5,'Tabel 2 NJ'!F195<0.5),"-",IFERROR('Tabel 2 NJ'!F195/'Tabel 1 NJ'!E193*100,"-")) -> 15.78947368 | G195: =IF(OR('Tabel 1 NJ'!E193<5,'Tabel 2 NJ'!G195<0.5),"-",IFERROR('Tabel 2 NJ'!G195/'Tabel 1 NJ'!E193*100,"-")) -> 15.523903 | I195: =IF(OR('Tabel 1 NJ'!G193<5,'Tabel 2 NJ'!I195<0.5),"-",IFERROR('Tabel 2 NJ'!I195/'Tabel 1 NJ'!G193*100,"-")) -> 7.317073171 | J195: =IF(OR('Tabel 1 NJ'!G193<5,'Tabel 2 NJ'!J195<0.5),"-",IFERROR('Tabel 2 NJ'!J195/'Tabel 1 NJ'!G193*100,"-")) -> 7.194003831
A196: Cand. Merc. | C196: =IF(OR('Tabel 1 NJ'!C194<5,'Tabel 2 NJ'!C196<0.5),"-",IFERROR('Tabel 2 NJ'!C196/'Tabel 1 NJ'!C194*100,"-")) -> 2.173913043 | D196: =IF(OR('Tabel 1 NJ'!C194<5,'Tabel 2 NJ'!D196<0.5),"-",IFERROR('Tabel 2 NJ'!D196/'Tabel 1 NJ'!C194*100,"-")) -> 1.972833205 | F196: =IF(OR('Tabel 1 NJ'!E194<5,'Tabel 2 NJ'!F196<0.5),"-",IFERROR('Tabel 2 NJ'!F196/'Tabel 1 NJ'!E194*100,"-")) -> 9.090909091 | G196: =IF(OR('Tabel 1 NJ'!E194<5,'Tabel 2 NJ'!G196<0.5),"-",IFERROR('Tabel 2 NJ'!G196/'Tabel 1 NJ'!E194*100,"-")) -> 7.830440625 | I196: =IF(OR('Tabel 1 NJ'!G194<5,'Tabel 2 NJ'!I196<0.5),"-",IFERROR('Tabel 2 NJ'!I196/'Tabel 1 NJ'!G194*100,"-")) -> 5.555555556 | J196: =IF(OR('Tabel 1 NJ'!G194<5,'Tabel 2 NJ'!J196<0.5),"-",IFERROR('Tabel 2 NJ'!J196/'Tabel 1 NJ'!G194*100,"-")) -> 4.836552388
A197: HA | C197: =IF(OR('Tabel 1 NJ'!C195<5,'Tabel 2 NJ'!C197<0.5),"-",IFERROR('Tabel 2 NJ'!C197/'Tabel 1 NJ'!C195*100,"-")) -> - | D197: =IF(OR('Tabel 1 NJ'!C195<5,'Tabel 2 NJ'!D197<0.5),"-",IFERROR('Tabel 2 NJ'!D197/'Tabel 1 NJ'!C195*100,"-")) -> - | F197: =IF(OR('Tabel 1 NJ'!E195<5,'Tabel 2 NJ'!F197<0.5),"-",IFERROR('Tabel 2 NJ'!F197/'Tabel 1 NJ'!E195*100,"-")) -> - | G197: =IF(OR('Tabel 1 NJ'!E195<5,'Tabel 2 NJ'!G197<0.5),"-",IFERROR('Tabel 2 NJ'!G197/'Tabel 1 NJ'!E195*100,"-")) -> - | I197: =IF(OR('Tabel 1 NJ'!G195<5,'Tabel 2 NJ'!I197<0.5),"-",IFERROR('Tabel 2 NJ'!I197/'Tabel 1 NJ'!G195*100,"-")) -> - | J197: =IF(OR('Tabel 1 NJ'!G195<5,'Tabel 2 NJ'!J197<0.5),"-",IFERROR('Tabel 2 NJ'!J197/'Tabel 1 NJ'!G195*100,"-")) -> -
A198: HD | C198: =IF(OR('Tabel 1 NJ'!C196<5,'Tabel 2 NJ'!C198<0.5),"-",IFERROR('Tabel 2 NJ'!C198/'Tabel 1 NJ'!C196*100,"-")) -> - | D198: =IF(OR('Tabel 1 NJ'!C196<5,'Tabel 2 NJ'!D198<0.5),"-",IFERROR('Tabel 2 NJ'!D198/'Tabel 1 NJ'!C196*100,"-")) -> - | F198: =IF(OR('Tabel 1 NJ'!E196<5,'Tabel 2 NJ'!F198<0.5),"-",IFERROR('Tabel 2 NJ'!F198/'Tabel 1 NJ'!E196*100,"-")) -> - | G198: =IF(OR('Tabel 1 NJ'!E196<5,'Tabel 2 NJ'!G198<0.5),"-",IFERROR('Tabel 2 NJ'!G198/'Tabel 1 NJ'!E196*100,"-")) -> - | I198: =IF(OR('Tabel 1 NJ'!G196<5,'Tabel 2 NJ'!I198<0.5),"-",IFERROR('Tabel 2 NJ'!I198/'Tabel 1 NJ'!G196*100,"-")) -> - | J198: =IF(OR('Tabel 1 NJ'!G196<5,'Tabel 2 NJ'!J198<0.5),"-",IFERROR('Tabel 2 NJ'!J198/'Tabel 1 NJ'!G196*100,"-")) -> -
A199: Komm. og Sprog | C199: =IF(OR('Tabel 1 NJ'!C197<5,'Tabel 2 NJ'!C199<0.5),"-",IFERROR('Tabel 2 NJ'!C199/'Tabel 1 NJ'!C197*100,"-")) -> - | D199: =IF(OR('Tabel 1 NJ'!C197<5,'Tabel 2 NJ'!D199<0.5),"-",IFERROR('Tabel 2 NJ'!D199/'Tabel 1 NJ'!C197*100,"-")) -> - | F199: =IF(OR('Tabel 1 NJ'!E197<5,'Tabel 2 NJ'!F199<0.5),"-",IFERROR('Tabel 2 NJ'!F199/'Tabel 1 NJ'!E197*100,"-")) -> 13.33333333 | G199: =IF(OR('Tabel 1 NJ'!E197<5,'Tabel 2 NJ'!G199<0.5),"-",IFERROR('Tabel 2 NJ'!G199/'Tabel 1 NJ'!E197*100,"-")) -> 10.5324435 | I199: =IF(OR('Tabel 1 NJ'!G197<5,'Tabel 2 NJ'!I199<0.5),"-",IFERROR('Tabel 2 NJ'!I199/'Tabel 1 NJ'!G197*100,"-")) -> 11.76470588 | J199: =IF(OR('Tabel 1 NJ'!G197<5,'Tabel 2 NJ'!J199<0.5),"-",IFERROR('Tabel 2 NJ'!J199/'Tabel 1 NJ'!G197*100,"-")) -> 9.293332502
A200: Cand. IT. | C200: =IF(OR('Tabel 1 NJ'!C198<5,'Tabel 2 NJ'!C200<0.5),"-",IFERROR('Tabel 2 NJ'!C200/'Tabel 1 NJ'!C198*100,"-")) -> - | D200: =IF(OR('Tabel 1 NJ'!C198<5,'Tabel 2 NJ'!D200<0.5),"-",IFERROR('Tabel 2 NJ'!D200/'Tabel 1 NJ'!C198*100,"-")) -> - | F200: =IF(OR('Tabel 1 NJ'!E198<5,'Tabel 2 NJ'!F200<0.5),"-",IFERROR('Tabel 2 NJ'!F200/'Tabel 1 NJ'!E198*100,"-")) -> 33.33333333 | G200: =IF(OR('Tabel 1 NJ'!E198<5,'Tabel 2 NJ'!G200<0.5),"-",IFERROR('Tabel 2 NJ'!G200/'Tabel 1 NJ'!E198*100,"-")) -> 33.3270962 | I200: =IF(OR('Tabel 1 NJ'!G198<5,'Tabel 2 NJ'!I200<0.5),"-",IFERROR('Tabel 2 NJ'!I200/'Tabel 1 NJ'!G198*100,"-")) -> 20 | J200: =IF(OR('Tabel 1 NJ'!G198<5,'Tabel 2 NJ'!J200<0.5),"-",IFERROR('Tabel 2 NJ'!J200/'Tabel 1 NJ'!G198*100,"-")) -> 19.99625772
A201: Bac. Samf. | C201: =IF(OR('Tabel 1 NJ'!C199<5,'Tabel 2 NJ'!C201<0.5),"-",IFERROR('Tabel 2 NJ'!C201/'Tabel 1 NJ'!C199*100,"-")) -> - | D201: =IF(OR('Tabel 1 NJ'!C199<5,'Tabel 2 NJ'!D201<0.5),"-",IFERROR('Tabel 2 NJ'!D201/'Tabel 1 NJ'!C199*100,"-")) -> - | F201: =IF(OR('Tabel 1 NJ'!E199<5,'Tabel 2 NJ'!F201<0.5),"-",IFERROR('Tabel 2 NJ'!F201/'Tabel 1 NJ'!E199*100,"-")) -> - | G201: =IF(OR('Tabel 1 NJ'!E199<5,'Tabel 2 NJ'!G201<0.5),"-",IFERROR('Tabel 2 NJ'!G201/'Tabel 1 NJ'!E199*100,"-")) -> - | I201: =IF(OR('Tabel 1 NJ'!G199<5,'Tabel 2 NJ'!I201<0.5),"-",IFERROR('Tabel 2 NJ'!I201/'Tabel 1 NJ'!G199*100,"-")) -> - | J201: =IF(OR('Tabel 1 NJ'!G199<5,'Tabel 2 NJ'!J201<0.5),"-",IFERROR('Tabel 2 NJ'!J201/'Tabel 1 NJ'!G199*100,"-")) -> -
A202: Bac. Hum. | C202: =IF(OR('Tabel 1 NJ'!C200<5,'Tabel 2 NJ'!C202<0.5),"-",IFERROR('Tabel 2 NJ'!C202/'Tabel 1 NJ'!C200*100,"-")) -> 33.33333333 | D202: =IF(OR('Tabel 1 NJ'!C200<5,'Tabel 2 NJ'!D202<0.5),"-",IFERROR('Tabel 2 NJ'!D202/'Tabel 1 NJ'!C200*100,"-")) -> 33.3270962 | F202: =IF(OR('Tabel 1 NJ'!E200<5,'Tabel 2 NJ'!F202<0.5),"-",IFERROR('Tabel 2 NJ'!F202/'Tabel 1 NJ'!E200*100,"-")) -> - | G202: =IF(OR('Tabel 1 NJ'!E200<5,'Tabel 2 NJ'!G202<0.5),"-",IFERROR('Tabel 2 NJ'!G202/'Tabel 1 NJ'!E200*100,"-")) -> - | I202: =IF(OR('Tabel 1 NJ'!G200<5,'Tabel 2 NJ'!I202<0.5),"-",IFERROR('Tabel 2 NJ'!I202/'Tabel 1 NJ'!G200*100,"-")) -> 14.28571429 | J202: =IF(OR('Tabel 1 NJ'!G200<5,'Tabel 2 NJ'!J202<0.5),"-",IFERROR('Tabel 2 NJ'!J202/'Tabel 1 NJ'!G200*100,"-")) -> 14.28304123
A203: Bac. Nat. | C203: =IF(OR('Tabel 1 NJ'!C201<5,'Tabel 2 NJ'!C203<0.5),"-",IFERROR('Tabel 2 NJ'!C203/'Tabel 1 NJ'!C201*100,"-")) -> - | D203: =IF(OR('Tabel 1 NJ'!C201<5,'Tabel 2 NJ'!D203<0.5),"-",IFERROR('Tabel 2 NJ'!D203/'Tabel 1 NJ'!C201*100,"-")) -> - | F203: =IF(OR('Tabel 1 NJ'!E201<5,'Tabel 2 NJ'!F203<0.5),"-",IFERROR('Tabel 2 NJ'!F203/'Tabel 1 NJ'!E201*100,"-")) -> - | G203: =IF(OR('Tabel 1 NJ'!E201<5,'Tabel 2 NJ'!G203<0.5),"-",IFERROR('Tabel 2 NJ'!G203/'Tabel 1 NJ'!E201*100,"-")) -> - | I203: =IF(OR('Tabel 1 NJ'!G201<5,'Tabel 2 NJ'!I203<0.5),"-",IFERROR('Tabel 2 NJ'!I203/'Tabel 1 NJ'!G201*100,"-")) -> - | J203: =IF(OR('Tabel 1 NJ'!G201<5,'Tabel 2 NJ'!J203<0.5),"-",IFERROR('Tabel 2 NJ'!J203/'Tabel 1 NJ'!G201*100,"-")) -> -
A204: Andre | C204: =IF(OR('Tabel 1 NJ'!C202<5,'Tabel 2 NJ'!C204<0.5),"-",IFERROR('Tabel 2 NJ'!C204/'Tabel 1 NJ'!C202*100,"-")) -> 4.347826087 | D204: =IF(OR('Tabel 1 NJ'!C202<5,'Tabel 2 NJ'!D204<0.5),"-",IFERROR('Tabel 2 NJ'!D204/'Tabel 1 NJ'!C202*100,"-")) -> 3.159244927 | F204: =IF(OR('Tabel 1 NJ'!E202<5,'Tabel 2 NJ'!F204<0.5),"-",IFERROR('Tabel 2 NJ'!F204/'Tabel 1 NJ'!E202*100,"-")) -> - | G204: =IF(OR('Tabel 1 NJ'!E202<5,'Tabel 2 NJ'!G204<0.5),"-",IFERROR('Tabel 2 NJ'!G204/'Tabel 1 NJ'!E202*100,"-")) -> - | I204: =IF(OR('Tabel 1 NJ'!G202<5,'Tabel 2 NJ'!I204<0.5),"-",IFERROR('Tabel 2 NJ'!I204/'Tabel 1 NJ'!G202*100,"-")) -> 2.222222222 | J204: =IF(OR('Tabel 1 NJ'!G202<5,'Tabel 2 NJ'!J204<0.5),"-",IFERROR('Tabel 2 NJ'!J204/'Tabel 1 NJ'!G202*100,"-")) -> 1.614725185
A206: Total | C206: =IF(OR('Tabel 1 NJ'!C204<5,'Tabel 2 NJ'!C206<0.5),"-",IFERROR('Tabel 2 NJ'!C206/'Tabel 1 NJ'!C204*100,"-")) -> 3.777777778 | D206: =IF(OR('Tabel 1 NJ'!C204<5,'Tabel 2 NJ'!D206<0.5),"-",IFERROR('Tabel 2 NJ'!D206/'Tabel 1 NJ'!C204*100,"-")) -> 3.349064776 | F206: =IF(OR('Tabel 1 NJ'!E204<5,'Tabel 2 NJ'!F206<0.5),"-",IFERROR('Tabel 2 NJ'!F206/'Tabel 1 NJ'!E204*100,"-")) -> 5.735660848 | G206: =IF(OR('Tabel 1 NJ'!E204<5,'Tabel 2 NJ'!G206<0.5),"-",IFERROR('Tabel 2 NJ'!G206/'Tabel 1 NJ'!E204*100,"-")) -> 5.108540941 | I206: =IF(OR('Tabel 1 NJ'!G204<5,'Tabel 2 NJ'!I206<0.5),"-",IFERROR('Tabel 2 NJ'!I206/'Tabel 1 NJ'!G204*100,"-")) -> 4.700352526 | J206: =IF(OR('Tabel 1 NJ'!G204<5,'Tabel 2 NJ'!J206<0.5),"-",IFERROR('Tabel 2 NJ'!J206/'Tabel 1 NJ'!G204*100,"-")) -> 4.178148139
A208: Ingeniører i alt | C208: =IF(OR('Tabel 1 NJ'!C206<5,'Tabel 2 NJ'!C208<0.5),"-",IFERROR('Tabel 2 NJ'!C208/'Tabel 1 NJ'!C206*100,"-")) -> 1.724137931 | D208: =IF(OR('Tabel 1 NJ'!C206<5,'Tabel 2 NJ'!D208<0.5),"-",IFERROR('Tabel 2 NJ'!D208/'Tabel 1 NJ'!C206*100,"-")) -> 1.723815321 | F208: =IF(OR('Tabel 1 NJ'!E206<5,'Tabel 2 NJ'!F208<0.5),"-",IFERROR('Tabel 2 NJ'!F208/'Tabel 1 NJ'!E206*100,"-")) -> - | G208: =IF(OR('Tabel 1 NJ'!E206<5,'Tabel 2 NJ'!G208<0.5),"-",IFERROR('Tabel 2 NJ'!G208/'Tabel 1 NJ'!E206*100,"-")) -> - | I208: =IF(OR('Tabel 1 NJ'!G206<5,'Tabel 2 NJ'!I208<0.5),"-",IFERROR('Tabel 2 NJ'!I208/'Tabel 1 NJ'!G206*100,"-")) -> 1.34529148 | J208: =IF(OR('Tabel 1 NJ'!G206<5,'Tabel 2 NJ'!J208<0.5),"-",IFERROR('Tabel 2 NJ'!J208/'Tabel 1 NJ'!G206*100,"-")) -> 1.345039757
A209: Magistre i alt | C209: =IF(OR('Tabel 1 NJ'!C207<5,'Tabel 2 NJ'!C209<0.5),"-",IFERROR('Tabel 2 NJ'!C209/'Tabel 1 NJ'!C207*100,"-")) -> 11.86440678 | D209: =IF(OR('Tabel 1 NJ'!C207<5,'Tabel 2 NJ'!D209<0.5),"-",IFERROR('Tabel 2 NJ'!D209/'Tabel 1 NJ'!C207*100,"-")) -> 9.500532271 | F209: =IF(OR('Tabel 1 NJ'!E207<5,'Tabel 2 NJ'!F209<0.5),"-",IFERROR('Tabel 2 NJ'!F209/'Tabel 1 NJ'!E207*100,"-")) -> 8.163265306 | G209: =IF(OR('Tabel 1 NJ'!E207<5,'Tabel 2 NJ'!G209<0.5),"-",IFERROR('Tabel 2 NJ'!G209/'Tabel 1 NJ'!E207*100,"-")) -> 7.404371341 | I209: =IF(OR('Tabel 1 NJ'!G207<5,'Tabel 2 NJ'!I209<0.5),"-",IFERROR('Tabel 2 NJ'!I209/'Tabel 1 NJ'!G207*100,"-")) -> 9.554140127 | J209: =IF(OR('Tabel 1 NJ'!G207<5,'Tabel 2 NJ'!J209<0.5),"-",IFERROR('Tabel 2 NJ'!J209/'Tabel 1 NJ'!G207*100,"-")) -> 8.192100608
A210: DJØF'ere i alt | C210: =IF(OR('Tabel 1 NJ'!C208<5,'Tabel 2 NJ'!C210<0.5),"-",IFERROR('Tabel 2 NJ'!C210/'Tabel 1 NJ'!C208*100,"-")) -> 2.127659574 | D210: =IF(OR('Tabel 1 NJ'!C208<5,'Tabel 2 NJ'!D210<0.5),"-",IFERROR('Tabel 2 NJ'!D210/'Tabel 1 NJ'!C208*100,"-")) -> 2.029059745 | F210: =IF(OR('Tabel 1 NJ'!E208<5,'Tabel 2 NJ'!F210<0.5),"-",IFERROR('Tabel 2 NJ'!F210/'Tabel 1 NJ'!E208*100,"-")) -> 7.368421053 | G210: =IF(OR('Tabel 1 NJ'!E208<5,'Tabel 2 NJ'!G210<0.5),"-",IFERROR('Tabel 2 NJ'!G210/'Tabel 1 NJ'!E208*100,"-")) -> 6.731510995 | I210: =IF(OR('Tabel 1 NJ'!G208<5,'Tabel 2 NJ'!I210<0.5),"-",IFERROR('Tabel 2 NJ'!I210/'Tabel 1 NJ'!G208*100,"-")) -> 4.761904762 | J210: =IF(OR('Tabel 1 NJ'!G208<5,'Tabel 2 NJ'!J210<0.5),"-",IFERROR('Tabel 2 NJ'!J210/'Tabel 1 NJ'!G208*100,"-")) -> 4.392725717
A215: Frederikshavn
C217: Mænd | F217: Kvinder | I217: I alt
C218: Ledigheds- berørte | D218: Gns. brutto- ledighed | F218: Ledigheds- berørte | G218: Gns. brutto- ledighed | I218: Ledigheds- berørte | J218: Gns. brutto- ledighed
A221: Civ. ing. | C221: =IF(OR('Tabel 1 NJ'!C219<5,'Tabel 2 NJ'!C221<0.5),"-",IFERROR('Tabel 2 NJ'!C221/'Tabel 1 NJ'!C219*100,"-")) -> - | D221: =IF(OR('Tabel 1 NJ'!C219<5,'Tabel 2 NJ'!D221<0.5),"-",IFERROR('Tabel 2 NJ'!D221/'Tabel 1 NJ'!C219*100,"-")) -> - | F221: =IF(OR('Tabel 1 NJ'!E219<5,'Tabel 2 NJ'!F221<0.5),"-",IFERROR('Tabel 2 NJ'!F221/'Tabel 1 NJ'!E219*100,"-")) -> - | G221: =IF(OR('Tabel 1 NJ'!E219<5,'Tabel 2 NJ'!G221<0.5),"-",IFERROR('Tabel 2 NJ'!G221/'Tabel 1 NJ'!E219*100,"-")) -> - | I221: =IF(OR('Tabel 1 NJ'!G219<5,'Tabel 2 NJ'!I221<0.5),"-",IFERROR('Tabel 2 NJ'!I221/'Tabel 1 NJ'!G219*100,"-")) -> - | J221: =IF(OR('Tabel 1 NJ'!G219<5,'Tabel 2 NJ'!J221<0.5),"-",IFERROR('Tabel 2 NJ'!J221/'Tabel 1 NJ'!G219*100,"-")) -> -
A222: Diplom ing. | C222: =IF(OR('Tabel 1 NJ'!C220<5,'Tabel 2 NJ'!C222<0.5),"-",IFERROR('Tabel 2 NJ'!C222/'Tabel 1 NJ'!C220*100,"-")) -> 1.587301587 | D222: =IF(OR('Tabel 1 NJ'!C220<5,'Tabel 2 NJ'!D222<0.5),"-",IFERROR('Tabel 2 NJ'!D222/'Tabel 1 NJ'!C220*100,"-")) -> 1.587004581 | F222: =IF(OR('Tabel 1 NJ'!E220<5,'Tabel 2 NJ'!F222<0.5),"-",IFERROR('Tabel 2 NJ'!F222/'Tabel 1 NJ'!E220*100,"-")) -> 6.25 | G222: =IF(OR('Tabel 1 NJ'!E220<5,'Tabel 2 NJ'!G222<0.5),"-",IFERROR('Tabel 2 NJ'!G222/'Tabel 1 NJ'!E220*100,"-")) -> 3.652622716 | I222: =IF(OR('Tabel 1 NJ'!G220<5,'Tabel 2 NJ'!I222<0.5),"-",IFERROR('Tabel 2 NJ'!I222/'Tabel 1 NJ'!G220*100,"-")) -> 2.53164557 | J222: =IF(OR('Tabel 1 NJ'!G220<5,'Tabel 2 NJ'!J222<0.5),"-",IFERROR('Tabel 2 NJ'!J222/'Tabel 1 NJ'!G220*100,"-")) -> 2.005357621
A223: Cand. Scient. Tek. | C223: =IF(OR('Tabel 1 NJ'!C221<5,'Tabel 2 NJ'!C223<0.5),"-",IFERROR('Tabel 2 NJ'!C223/'Tabel 1 NJ'!C221*100,"-")) -> 16.66666667 | D223: =IF(OR('Tabel 1 NJ'!C221<5,'Tabel 2 NJ'!D223<0.5),"-",IFERROR('Tabel 2 NJ'!D223/'Tabel 1 NJ'!C221*100,"-")) -> 15.50967796 | F223: =IF(OR('Tabel 1 NJ'!E221<5,'Tabel 2 NJ'!F223<0.5),"-",IFERROR('Tabel 2 NJ'!F223/'Tabel 1 NJ'!E221*100,"-")) -> 22.22222222 | G223: =IF(OR('Tabel 1 NJ'!E221<5,'Tabel 2 NJ'!G223<0.5),"-",IFERROR('Tabel 2 NJ'!G223/'Tabel 1 NJ'!E221*100,"-")) -> 17.60258356 | I223: =IF(OR('Tabel 1 NJ'!G221<5,'Tabel 2 NJ'!I223<0.5),"-",IFERROR('Tabel 2 NJ'!I223/'Tabel 1 NJ'!G221*100,"-")) -> 19.04761905 | J223: =IF(OR('Tabel 1 NJ'!G221<5,'Tabel 2 NJ'!J223<0.5),"-",IFERROR('Tabel 2 NJ'!J223/'Tabel 1 NJ'!G221*100,"-")) -> 16.4066375
A224: MA. Hum. | C224: =IF(OR('Tabel 1 NJ'!C222<5,'Tabel 2 NJ'!C224<0.5),"-",IFERROR('Tabel 2 NJ'!C224/'Tabel 1 NJ'!C222*100,"-")) -> 3.846153846 | D224: =IF(OR('Tabel 1 NJ'!C222<5,'Tabel 2 NJ'!D224<0.5),"-",IFERROR('Tabel 2 NJ'!D224/'Tabel 1 NJ'!C222*100,"-")) -> 3.118567954 | F224: =IF(OR('Tabel 1 NJ'!E222<5,'Tabel 2 NJ'!F224<0.5),"-",IFERROR('Tabel 2 NJ'!F224/'Tabel 1 NJ'!E222*100,"-")) -> 12.76595745 | G224: =IF(OR('Tabel 1 NJ'!E222<5,'Tabel 2 NJ'!G224<0.5),"-",IFERROR('Tabel 2 NJ'!G224/'Tabel 1 NJ'!E222*100,"-")) -> 9.905102641 | I224: =IF(OR('Tabel 1 NJ'!G222<5,'Tabel 2 NJ'!I224<0.5),"-",IFERROR('Tabel 2 NJ'!I224/'Tabel 1 NJ'!G222*100,"-")) -> 10.83333333 | J224: =IF(OR('Tabel 1 NJ'!G222<5,'Tabel 2 NJ'!J224<0.5),"-",IFERROR('Tabel 2 NJ'!J224/'Tabel 1 NJ'!G222*100,"-")) -> 8.434686792
A225: MA. Nat. | C225: =IF(OR('Tabel 1 NJ'!C223<5,'Tabel 2 NJ'!C225<0.5),"-",IFERROR('Tabel 2 NJ'!C225/'Tabel 1 NJ'!C223*100,"-")) -> 8.333333333 | D225: =IF(OR('Tabel 1 NJ'!C223<5,'Tabel 2 NJ'!D225<0.5),"-",IFERROR('Tabel 2 NJ'!D225/'Tabel 1 NJ'!C223*100,"-")) -> 8.331774049 | F225: =IF(OR('Tabel 1 NJ'!E223<5,'Tabel 2 NJ'!F225<0.5),"-",IFERROR('Tabel 2 NJ'!F225/'Tabel 1 NJ'!E223*100,"-")) -> - | G225: =IF(OR('Tabel 1 NJ'!E223<5,'Tabel 2 NJ'!G225<0.5),"-",IFERROR('Tabel 2 NJ'!G225/'Tabel 1 NJ'!E223*100,"-")) -> - | I225: =IF(OR('Tabel 1 NJ'!G223<5,'Tabel 2 NJ'!I225<0.5),"-",IFERROR('Tabel 2 NJ'!I225/'Tabel 1 NJ'!G223*100,"-")) -> 5.882352941 | J225: =IF(OR('Tabel 1 NJ'!G223<5,'Tabel 2 NJ'!J225<0.5),"-",IFERROR('Tabel 2 NJ'!J225/'Tabel 1 NJ'!G223*100,"-")) -> 5.88125227
A226: MA. Ph.d. | C226: =IF(OR('Tabel 1 NJ'!C224<5,'Tabel 2 NJ'!C226<0.5),"-",IFERROR('Tabel 2 NJ'!C226/'Tabel 1 NJ'!C224*100,"-")) -> - | D226: =IF(OR('Tabel 1 NJ'!C224<5,'Tabel 2 NJ'!D226<0.5),"-",IFERROR('Tabel 2 NJ'!D226/'Tabel 1 NJ'!C224*100,"-")) -> - | F226: =IF(OR('Tabel 1 NJ'!E224<5,'Tabel 2 NJ'!F226<0.5),"-",IFERROR('Tabel 2 NJ'!F226/'Tabel 1 NJ'!E224*100,"-")) -> - | G226: =IF(OR('Tabel 1 NJ'!E224<5,'Tabel 2 NJ'!G226<0.5),"-",IFERROR('Tabel 2 NJ'!G226/'Tabel 1 NJ'!E224*100,"-")) -> - | I226: =IF(OR('Tabel 1 NJ'!G224<5,'Tabel 2 NJ'!I226<0.5),"-",IFERROR('Tabel 2 NJ'!I226/'Tabel 1 NJ'!G224*100,"-")) -> - | J226: =IF(OR('Tabel 1 NJ'!G224<5,'Tabel 2 NJ'!J226<0.5),"-",IFERROR('Tabel 2 NJ'!J226/'Tabel 1 NJ'!G224*100,"-")) -> -
A227: MA. Samf. | C227: =IF(OR('Tabel 1 NJ'!C225<5,'Tabel 2 NJ'!C227<0.5),"-",IFERROR('Tabel 2 NJ'!C227/'Tabel 1 NJ'!C225*100,"-")) -> - | D227: =IF(OR('Tabel 1 NJ'!C225<5,'Tabel 2 NJ'!D227<0.5),"-",IFERROR('Tabel 2 NJ'!D227/'Tabel 1 NJ'!C225*100,"-")) -> - | F227: =IF(OR('Tabel 1 NJ'!E225<5,'Tabel 2 NJ'!F227<0.5),"-",IFERROR('Tabel 2 NJ'!F227/'Tabel 1 NJ'!E225*100,"-")) -> 20 | G227: =IF(OR('Tabel 1 NJ'!E225<5,'Tabel 2 NJ'!G227<0.5),"-",IFERROR('Tabel 2 NJ'!G227/'Tabel 1 NJ'!E225*100,"-")) -> - | I227: =IF(OR('Tabel 1 NJ'!G225<5,'Tabel 2 NJ'!I227<0.5),"-",IFERROR('Tabel 2 NJ'!I227/'Tabel 1 NJ'!G225*100,"-")) -> 11.11111111 | J227: =IF(OR('Tabel 1 NJ'!G225<5,'Tabel 2 NJ'!J227<0.5),"-",IFERROR('Tabel 2 NJ'!J227/'Tabel 1 NJ'!G225*100,"-")) -> -
A228: Øvrige Mag. | C228: =IF(OR('Tabel 1 NJ'!C226<5,'Tabel 2 NJ'!C228<0.5),"-",IFERROR('Tabel 2 NJ'!C228/'Tabel 1 NJ'!C226*100,"-")) -> - | D228: =IF(OR('Tabel 1 NJ'!C226<5,'Tabel 2 NJ'!D228<0.5),"-",IFERROR('Tabel 2 NJ'!D228/'Tabel 1 NJ'!C226*100,"-")) -> - | F228: =IF(OR('Tabel 1 NJ'!E226<5,'Tabel 2 NJ'!F228<0.5),"-",IFERROR('Tabel 2 NJ'!F228/'Tabel 1 NJ'!E226*100,"-")) -> - | G228: =IF(OR('Tabel 1 NJ'!E226<5,'Tabel 2 NJ'!G228<0.5),"-",IFERROR('Tabel 2 NJ'!G228/'Tabel 1 NJ'!E226*100,"-")) -> - | I228: =IF(OR('Tabel 1 NJ'!G226<5,'Tabel 2 NJ'!I228<0.5),"-",IFERROR('Tabel 2 NJ'!I228/'Tabel 1 NJ'!G226*100,"-")) -> 12.5 | J228: =IF(OR('Tabel 1 NJ'!G226<5,'Tabel 2 NJ'!J228<0.5),"-",IFERROR('Tabel 2 NJ'!J228/'Tabel 1 NJ'!G226*100,"-")) -> 8.74758311
A229: Agronom | C229: =IF(OR('Tabel 1 NJ'!C227<5,'Tabel 2 NJ'!C229<0.5),"-",IFERROR('Tabel 2 NJ'!C229/'Tabel 1 NJ'!C227*100,"-")) -> - | D229: =IF(OR('Tabel 1 NJ'!C227<5,'Tabel 2 NJ'!D229<0.5),"-",IFERROR('Tabel 2 NJ'!D229/'Tabel 1 NJ'!C227*100,"-")) -> - | F229: =IF(OR('Tabel 1 NJ'!E227<5,'Tabel 2 NJ'!F229<0.5),"-",IFERROR('Tabel 2 NJ'!F229/'Tabel 1 NJ'!E227*100,"-")) -> - | G229: =IF(OR('Tabel 1 NJ'!E227<5,'Tabel 2 NJ'!G229<0.5),"-",IFERROR('Tabel 2 NJ'!G229/'Tabel 1 NJ'!E227*100,"-")) -> - | I229: =IF(OR('Tabel 1 NJ'!G227<5,'Tabel 2 NJ'!I229<0.5),"-",IFERROR('Tabel 2 NJ'!I229/'Tabel 1 NJ'!G227*100,"-")) -> - | J229: =IF(OR('Tabel 1 NJ'!G227<5,'Tabel 2 NJ'!J229<0.5),"-",IFERROR('Tabel 2 NJ'!J229/'Tabel 1 NJ'!G227*100,"-")) -> -
A230: Landsk. Arkt. | C230: =IF(OR('Tabel 1 NJ'!C228<5,'Tabel 2 NJ'!C230<0.5),"-",IFERROR('Tabel 2 NJ'!C230/'Tabel 1 NJ'!C228*100,"-")) -> - | D230: =IF(OR('Tabel 1 NJ'!C228<5,'Tabel 2 NJ'!D230<0.5),"-",IFERROR('Tabel 2 NJ'!D230/'Tabel 1 NJ'!C228*100,"-")) -> - | F230: =IF(OR('Tabel 1 NJ'!E228<5,'Tabel 2 NJ'!F230<0.5),"-",IFERROR('Tabel 2 NJ'!F230/'Tabel 1 NJ'!E228*100,"-")) -> - | G230: =IF(OR('Tabel 1 NJ'!E228<5,'Tabel 2 NJ'!G230<0.5),"-",IFERROR('Tabel 2 NJ'!G230/'Tabel 1 NJ'!E228*100,"-")) -> - | I230: =IF(OR('Tabel 1 NJ'!G228<5,'Tabel 2 NJ'!I230<0.5),"-",IFERROR('Tabel 2 NJ'!I230/'Tabel 1 NJ'!G228*100,"-")) -> - | J230: =IF(OR('Tabel 1 NJ'!G228<5,'Tabel 2 NJ'!J230<0.5),"-",IFERROR('Tabel 2 NJ'!J230/'Tabel 1 NJ'!G228*100,"-")) -> -
A231: Hortonom | C231: =IF(OR('Tabel 1 NJ'!C229<5,'Tabel 2 NJ'!C231<0.5),"-",IFERROR('Tabel 2 NJ'!C231/'Tabel 1 NJ'!C229*100,"-")) -> - | D231: =IF(OR('Tabel 1 NJ'!C229<5,'Tabel 2 NJ'!D231<0.5),"-",IFERROR('Tabel 2 NJ'!D231/'Tabel 1 NJ'!C229*100,"-")) -> - | F231: =IF(OR('Tabel 1 NJ'!E229<5,'Tabel 2 NJ'!F231<0.5),"-",IFERROR('Tabel 2 NJ'!F231/'Tabel 1 NJ'!E229*100,"-")) -> - | G231: =IF(OR('Tabel 1 NJ'!E229<5,'Tabel 2 NJ'!G231<0.5),"-",IFERROR('Tabel 2 NJ'!G231/'Tabel 1 NJ'!E229*100,"-")) -> - | I231: =IF(OR('Tabel 1 NJ'!G229<5,'Tabel 2 NJ'!I231<0.5),"-",IFERROR('Tabel 2 NJ'!I231/'Tabel 1 NJ'!G229*100,"-")) -> - | J231: =IF(OR('Tabel 1 NJ'!G229<5,'Tabel 2 NJ'!J231<0.5),"-",IFERROR('Tabel 2 NJ'!J231/'Tabel 1 NJ'!G229*100,"-")) -> -
A232: Forstkand. | C232: =IF(OR('Tabel 1 NJ'!C230<5,'Tabel 2 NJ'!C232<0.5),"-",IFERROR('Tabel 2 NJ'!C232/'Tabel 1 NJ'!C230*100,"-")) -> - | D232: =IF(OR('Tabel 1 NJ'!C230<5,'Tabel 2 NJ'!D232<0.5),"-",IFERROR('Tabel 2 NJ'!D232/'Tabel 1 NJ'!C230*100,"-")) -> - | F232: =IF(OR('Tabel 1 NJ'!E230<5,'Tabel 2 NJ'!F232<0.5),"-",IFERROR('Tabel 2 NJ'!F232/'Tabel 1 NJ'!E230*100,"-")) -> - | G232: =IF(OR('Tabel 1 NJ'!E230<5,'Tabel 2 NJ'!G232<0.5),"-",IFERROR('Tabel 2 NJ'!G232/'Tabel 1 NJ'!E230*100,"-")) -> - | I232: =IF(OR('Tabel 1 NJ'!G230<5,'Tabel 2 NJ'!I232<0.5),"-",IFERROR('Tabel 2 NJ'!I232/'Tabel 1 NJ'!G230*100,"-")) -> - | J232: =IF(OR('Tabel 1 NJ'!G230<5,'Tabel 2 NJ'!J232<0.5),"-",IFERROR('Tabel 2 NJ'!J232/'Tabel 1 NJ'!G230*100,"-")) -> -
A233: Jordbrugsakad. | C233: =IF(OR('Tabel 1 NJ'!C231<5,'Tabel 2 NJ'!C233<0.5),"-",IFERROR('Tabel 2 NJ'!C233/'Tabel 1 NJ'!C231*100,"-")) -> - | D233: =IF(OR('Tabel 1 NJ'!C231<5,'Tabel 2 NJ'!D233<0.5),"-",IFERROR('Tabel 2 NJ'!D233/'Tabel 1 NJ'!C231*100,"-")) -> - | F233: =IF(OR('Tabel 1 NJ'!E231<5,'Tabel 2 NJ'!F233<0.5),"-",IFERROR('Tabel 2 NJ'!F233/'Tabel 1 NJ'!E231*100,"-")) -> - | G233: =IF(OR('Tabel 1 NJ'!E231<5,'Tabel 2 NJ'!G233<0.5),"-",IFERROR('Tabel 2 NJ'!G233/'Tabel 1 NJ'!E231*100,"-")) -> - | I233: =IF(OR('Tabel 1 NJ'!G231<5,'Tabel 2 NJ'!I233<0.5),"-",IFERROR('Tabel 2 NJ'!I233/'Tabel 1 NJ'!G231*100,"-")) -> - | J233: =IF(OR('Tabel 1 NJ'!G231<5,'Tabel 2 NJ'!J233<0.5),"-",IFERROR('Tabel 2 NJ'!J233/'Tabel 1 NJ'!G231*100,"-")) -> -
A234: Mejeriing. | C234: =IF(OR('Tabel 1 NJ'!C232<5,'Tabel 2 NJ'!C234<0.5),"-",IFERROR('Tabel 2 NJ'!C234/'Tabel 1 NJ'!C232*100,"-")) -> - | D234: =IF(OR('Tabel 1 NJ'!C232<5,'Tabel 2 NJ'!D234<0.5),"-",IFERROR('Tabel 2 NJ'!D234/'Tabel 1 NJ'!C232*100,"-")) -> - | F234: =IF(OR('Tabel 1 NJ'!E232<5,'Tabel 2 NJ'!F234<0.5),"-",IFERROR('Tabel 2 NJ'!F234/'Tabel 1 NJ'!E232*100,"-")) -> - | G234: =IF(OR('Tabel 1 NJ'!E232<5,'Tabel 2 NJ'!G234<0.5),"-",IFERROR('Tabel 2 NJ'!G234/'Tabel 1 NJ'!E232*100,"-")) -> - | I234: =IF(OR('Tabel 1 NJ'!G232<5,'Tabel 2 NJ'!I234<0.5),"-",IFERROR('Tabel 2 NJ'!I234/'Tabel 1 NJ'!G232*100,"-")) -> - | J234: =IF(OR('Tabel 1 NJ'!G232<5,'Tabel 2 NJ'!J234<0.5),"-",IFERROR('Tabel 2 NJ'!J234/'Tabel 1 NJ'!G232*100,"-")) -> -
A235: Levn.m.kand. | C235: =IF(OR('Tabel 1 NJ'!C233<5,'Tabel 2 NJ'!C235<0.5),"-",IFERROR('Tabel 2 NJ'!C235/'Tabel 1 NJ'!C233*100,"-")) -> - | D235: =IF(OR('Tabel 1 NJ'!C233<5,'Tabel 2 NJ'!D235<0.5),"-",IFERROR('Tabel 2 NJ'!D235/'Tabel 1 NJ'!C233*100,"-")) -> - | F235: =IF(OR('Tabel 1 NJ'!E233<5,'Tabel 2 NJ'!F235<0.5),"-",IFERROR('Tabel 2 NJ'!F235/'Tabel 1 NJ'!E233*100,"-")) -> - | G235: =IF(OR('Tabel 1 NJ'!E233<5,'Tabel 2 NJ'!G235<0.5),"-",IFERROR('Tabel 2 NJ'!G235/'Tabel 1 NJ'!E233*100,"-")) -> - | I235: =IF(OR('Tabel 1 NJ'!G233<5,'Tabel 2 NJ'!I235<0.5),"-",IFERROR('Tabel 2 NJ'!I235/'Tabel 1 NJ'!G233*100,"-")) -> - | J235: =IF(OR('Tabel 1 NJ'!G233<5,'Tabel 2 NJ'!J235<0.5),"-",IFERROR('Tabel 2 NJ'!J235/'Tabel 1 NJ'!G233*100,"-")) -> -
A236: Dyrlæge | C236: =IF(OR('Tabel 1 NJ'!C234<5,'Tabel 2 NJ'!C236<0.5),"-",IFERROR('Tabel 2 NJ'!C236/'Tabel 1 NJ'!C234*100,"-")) -> - | D236: =IF(OR('Tabel 1 NJ'!C234<5,'Tabel 2 NJ'!D236<0.5),"-",IFERROR('Tabel 2 NJ'!D236/'Tabel 1 NJ'!C234*100,"-")) -> - | F236: =IF(OR('Tabel 1 NJ'!E234<5,'Tabel 2 NJ'!F236<0.5),"-",IFERROR('Tabel 2 NJ'!F236/'Tabel 1 NJ'!E234*100,"-")) -> - | G236: =IF(OR('Tabel 1 NJ'!E234<5,'Tabel 2 NJ'!G236<0.5),"-",IFERROR('Tabel 2 NJ'!G236/'Tabel 1 NJ'!E234*100,"-")) -> - | I236: =IF(OR('Tabel 1 NJ'!G234<5,'Tabel 2 NJ'!I236<0.5),"-",IFERROR('Tabel 2 NJ'!I236/'Tabel 1 NJ'!G234*100,"-")) -> - | J236: =IF(OR('Tabel 1 NJ'!G234<5,'Tabel 2 NJ'!J236<0.5),"-",IFERROR('Tabel 2 NJ'!J236/'Tabel 1 NJ'!G234*100,"-")) -> -
A237: Farmaceut | C237: =IF(OR('Tabel 1 NJ'!C235<5,'Tabel 2 NJ'!C237<0.5),"-",IFERROR('Tabel 2 NJ'!C237/'Tabel 1 NJ'!C235*100,"-")) -> - | D237: =IF(OR('Tabel 1 NJ'!C235<5,'Tabel 2 NJ'!D237<0.5),"-",IFERROR('Tabel 2 NJ'!D237/'Tabel 1 NJ'!C235*100,"-")) -> - | F237: =IF(OR('Tabel 1 NJ'!E235<5,'Tabel 2 NJ'!F237<0.5),"-",IFERROR('Tabel 2 NJ'!F237/'Tabel 1 NJ'!E235*100,"-")) -> 14.28571429 | G237: =IF(OR('Tabel 1 NJ'!E235<5,'Tabel 2 NJ'!G237<0.5),"-",IFERROR('Tabel 2 NJ'!G237/'Tabel 1 NJ'!E235*100,"-")) -> 8.348851921 | I237: =IF(OR('Tabel 1 NJ'!G235<5,'Tabel 2 NJ'!I237<0.5),"-",IFERROR('Tabel 2 NJ'!I237/'Tabel 1 NJ'!G235*100,"-")) -> 11.11111111 | J237: =IF(OR('Tabel 1 NJ'!G235<5,'Tabel 2 NJ'!J237<0.5),"-",IFERROR('Tabel 2 NJ'!J237/'Tabel 1 NJ'!G235*100,"-")) -> 6.493551494
A238: Læge | C238: =IF(OR('Tabel 1 NJ'!C236<5,'Tabel 2 NJ'!C238<0.5),"-",IFERROR('Tabel 2 NJ'!C238/'Tabel 1 NJ'!C236*100,"-")) -> - | D238: =IF(OR('Tabel 1 NJ'!C236<5,'Tabel 2 NJ'!D238<0.5),"-",IFERROR('Tabel 2 NJ'!D238/'Tabel 1 NJ'!C236*100,"-")) -> - | F238: =IF(OR('Tabel 1 NJ'!E236<5,'Tabel 2 NJ'!F238<0.5),"-",IFERROR('Tabel 2 NJ'!F238/'Tabel 1 NJ'!E236*100,"-")) -> - | G238: =IF(OR('Tabel 1 NJ'!E236<5,'Tabel 2 NJ'!G238<0.5),"-",IFERROR('Tabel 2 NJ'!G238/'Tabel 1 NJ'!E236*100,"-")) -> - | I238: =IF(OR('Tabel 1 NJ'!G236<5,'Tabel 2 NJ'!I238<0.5),"-",IFERROR('Tabel 2 NJ'!I238/'Tabel 1 NJ'!G236*100,"-")) -> - | J238: =IF(OR('Tabel 1 NJ'!G236<5,'Tabel 2 NJ'!J238<0.5),"-",IFERROR('Tabel 2 NJ'!J238/'Tabel 1 NJ'!G236*100,"-")) -> -
A239: Tandlæge | C239: =IF(OR('Tabel 1 NJ'!C237<5,'Tabel 2 NJ'!C239<0.5),"-",IFERROR('Tabel 2 NJ'!C239/'Tabel 1 NJ'!C237*100,"-")) -> - | D239: =IF(OR('Tabel 1 NJ'!C237<5,'Tabel 2 NJ'!D239<0.5),"-",IFERROR('Tabel 2 NJ'!D239/'Tabel 1 NJ'!C237*100,"-")) -> - | F239: =IF(OR('Tabel 1 NJ'!E237<5,'Tabel 2 NJ'!F239<0.5),"-",IFERROR('Tabel 2 NJ'!F239/'Tabel 1 NJ'!E237*100,"-")) -> - | G239: =IF(OR('Tabel 1 NJ'!E237<5,'Tabel 2 NJ'!G239<0.5),"-",IFERROR('Tabel 2 NJ'!G239/'Tabel 1 NJ'!E237*100,"-")) -> - | I239: =IF(OR('Tabel 1 NJ'!G237<5,'Tabel 2 NJ'!I239<0.5),"-",IFERROR('Tabel 2 NJ'!I239/'Tabel 1 NJ'!G237*100,"-")) -> - | J239: =IF(OR('Tabel 1 NJ'!G237<5,'Tabel 2 NJ'!J239<0.5),"-",IFERROR('Tabel 2 NJ'!J239/'Tabel 1 NJ'!G237*100,"-")) -> -
A240: Arkitekt | C240: =IF(OR('Tabel 1 NJ'!C238<5,'Tabel 2 NJ'!C240<0.5),"-",IFERROR('Tabel 2 NJ'!C240/'Tabel 1 NJ'!C238*100,"-")) -> - | D240: =IF(OR('Tabel 1 NJ'!C238<5,'Tabel 2 NJ'!D240<0.5),"-",IFERROR('Tabel 2 NJ'!D240/'Tabel 1 NJ'!C238*100,"-")) -> - | F240: =IF(OR('Tabel 1 NJ'!E238<5,'Tabel 2 NJ'!F240<0.5),"-",IFERROR('Tabel 2 NJ'!F240/'Tabel 1 NJ'!E238*100,"-")) -> 20 | G240: =IF(OR('Tabel 1 NJ'!E238<5,'Tabel 2 NJ'!G240<0.5),"-",IFERROR('Tabel 2 NJ'!G240/'Tabel 1 NJ'!E238*100,"-")) -> 17.22696938 | I240: =IF(OR('Tabel 1 NJ'!G238<5,'Tabel 2 NJ'!I240<0.5),"-",IFERROR('Tabel 2 NJ'!I240/'Tabel 1 NJ'!G238*100,"-")) -> 28.57142857 | J240: =IF(OR('Tabel 1 NJ'!G238<5,'Tabel 2 NJ'!J240<0.5),"-",IFERROR('Tabel 2 NJ'!J240/'Tabel 1 NJ'!G238*100,"-")) -> 26.58801935
... 329 more rows

Sheet Tabel 4F NJ
A1: Tabel 4. Antal forsikrede - aldersfordelt
A3: Nordjylland
C5: Under 30 år | D5: 30 - 39 år | E5: 40 - 49 år | F5: 50 - 59 år | G5: Over 60 år | I5: I alt
A7: Civ. ing. | C7: 713 | D7: 1190 | E7: 961 | F7: 712 | G7: 141 | I7: 3717
A8: Diplom ing. | C8: 120 | D8: 173 | E8: 386 | F8: 607 | G8: 190 | I8: 1476
A9: Cand. Scient. Tek. | C9: 554 | D9: 579 | E9: 172 | F9: 59 | G9: 15 | I9: 1379
A10: MA. Hum. | C10: 483 | D10: 945 | E10: 920 | F10: 398 | G10: 167 | I10: 2913
A11: MA. Nat. | C11: 69 | D11: 182 | E11: 247 | F11: 139 | G11: 55 | I11: 692
A12: MA. Ph.d. | C12: 1 | D12: 25 | E12: 35 | F12: 18 | G12: 10 | I12: 89
A13: MA. Samf. | C13: 122 | D13: 145 | E13: 33 | F13: 10 | G13: 3 | I13: 313
A14: Øvrige Mag. | C14: 16 | D14: 44 | E14: 60 | F14: 51 | G14: 41 | I14: 212
A15: Agronom | C15: 2 | D15: 11 | E15: 40 | F15: 60 | G15: 25 | I15: 138
A16: Landsk. Arkt. | C16: 1 | D16: 8 | E16: 3 | F16: 1 | G16: 0 | I16: 13
A17: Hortonom | C17: 0 | D17: 0 | E17: 3 | F17: 0 | G17: 1 | I17: 4
A18: Forstkand. | C18: 0 | D18: 5 | E18: 9 | F18: 6 | G18: 3 | I18: 23
A19: Jordbrugsakad. | C19: 3 | D19: 24 | E19: 55 | F19: 67 | G19: 29 | I19: 178
A20: Mejeriing. | C20: 2 | D20: 2 | E20: 4 | F20: 8 | G20: 5 | I20: 21
A21: Levn.m.kand. | C21: 1 | D21: 1 | E21: 2 | F21: 0 | G21: 0 | I21: 4
A22: Dyrlæge | C22: 17 | D22: 62 | E22: 51 | F22: 45 | G22: 8 | I22: 183
A23: Farmaceut | C23: 11 | D23: 43 | E23: 30 | F23: 17 | G23: 10 | I23: 111
A24: Læge | C24: 185 | D24: 271 | E24: 144 | F24: 92 | G24: 43 | I24: 735
A25: Tandlæge | C25: 23 | D25: 32 | E25: 24 | F25: 28 | G25: 18 | I25: 125
A26: Arkitekt | C26: 9 | D26: 39 | E26: 33 | F26: 25 | G26: 24 | I26: 130
A27: Landinspek. | C27: 15 | D27: 51 | E27: 66 | F27: 73 | G27: 20 | I27: 225
A28: Bibliotekar | C28: 15 | D28: 69 | E28: 105 | F28: 81 | G28: 58 | I28: 328
A29: Musikudd. | C29: 1 | D29: 17 | E29: 21 | F29: 46 | G29: 24 | I29: 109
A30: Teolog | C30: 4 | D30: 26 | E30: 42 | F30: 57 | G30: 22 | I30: 151
A31: Psykolog | C31: 182 | D31: 234 | E31: 139 | F31: 67 | G31: 26 | I31: 648
A32: Jurist | C32: 175 | D32: 187 | E32: 113 | F32: 96 | G32: 22 | I32: 593
A33: Økonom | C33: 107 | D33: 134 | E33: 80 | F33: 95 | G33: 11 | I33: 427
A34: Samf. Adm. | C34: 312 | D34: 569 | E34: 357 | F34: 176 | G34: 39 | I34: 1453
A35: Cand. Merc. | C35: 455 | D35: 685 | E35: 428 | F35: 343 | G35: 28 | I35: 1939
A36: HA | C36: 105 | D36: 57 | E36: 66 | F36: 147 | G36: 31 | I36: 406
A37: HD | C37: 68 | D37: 38 | E37: 76 | F37: 109 | G37: 43 | I37: 334
A38: Komm. og Sprog | C38: 68 | D38: 104 | E38: 100 | F38: 80 | G38: 25 | I38: 377
A39: Cand. IT. | C39: 183 | D39: 239 | E39: 47 | F39: 7 | G39: 0 | I39: 476
A40: Bac. Samf. | C40: 15 | D40: 15 | E40: 26 | F40: 9 | G40: 3 | I40: 68
A41: Bac. Hum. | C41: 91 | D41: 44 | E41: 65 | F41: 38 | G41: 5 | I41: 243
A42: Bac. Nat. | C42: 97 | D42: 64 | E42: 33 | F42: 14 | G42: 3 | I42: 211
A43: Andre | C43: 183 | D43: 379 | E43: 227 | F43: 211 | G43: 104 | I43: 1104
A45: Total | C45: 4405 | D45: 6669 | E45: 5148 | F45: 3925 | G45: 1223 | I45: 21370
A47: Ingeniører i alt | C47: 833 | D47: 1363 | E47: 1347 | F47: 1319 | G47: 331 | I47: 5193
A48: Magistre i alt | C48: 691 | D48: 1341 | E48: 1295 | F48: 616 | G48: 276 | I48: 4219
A49: DJØF'ere i alt | C49: 1154 | D49: 1632 | E49: 1044 | F49: 857 | G49: 131 | I49: 4818
A56: Morsø
C58: Under 30 år | D58: 30 - 39 år | E58: 40 - 49 år | F58: 50 - 59 år | G58: Over 60 år | I58: I alt
A60: Civ. ing. | C60: 3 | D60: 7 | E60: 5 | F60: 6 | G60: 0 | I60: 21
A61: Diplom ing. | C61: 0 | D61: 4 | E61: 8 | F61: 12 | G61: 0 | I61: 24
A62: Cand. Scient. Tek. | C62: 3 | D62: 0 | E62: 1 | F62: 1 | G62: 3 | I62: 8
A63: MA. Hum. | C63: 1 | D63: 8 | E63: 7 | F63: 8 | G63: 6 | I63: 30
A64: MA. Nat. | C64: 0 | D64: 6 | E64: 8 | F64: 5 | G64: 1 | I64: 20
A65: MA. Ph.d. | C65: 0 | D65: 2 | E65: 2 | F65: 0 | G65: 0 | I65: 4
A66: MA. Samf. | C66: 0 | D66: 2 | E66: 0 | F66: 0 | G66: 0 | I66: 2
A67: Øvrige Mag. | C67: 0 | D67: 0 | E67: 0 | F67: 0 | G67: 1 | I67: 1
A68: Agronom | C68: 0 | D68: 0 | E68: 0 | F68: 1 | G68: 3 | I68: 4
A69: Landsk. Arkt. | C69: 0 | D69: 2 | E69: 0 | F69: 0 | G69: 0 | I69: 2
A70: Hortonom | C70: 0 | D70: 0 | E70: 0 | F70: 0 | G70: 0 | I70: 0
A71: Forstkand. | C71: 0 | D71: 0 | E71: 0 | F71: 0 | G71: 0 | I71: 0
A72: Jordbrugsakad. | C72: 0 | D72: 2 | E72: 0 | F72: 1 | G72: 3 | I72: 6
A73: Mejeriing. | C73: 0 | D73: 0 | E73: 0 | F73: 0 | G73: 0 | I73: 0
A74: Levn.m.kand. | C74: 0 | D74: 0 | E74: 0 | F74: 0 | G74: 0 | I74: 0
A75: Dyrlæge | C75: 0 | D75: 1 | E75: 2 | F75: 2 | G75: 0 | I75: 5
A76: Farmaceut | C76: 0 | D76: 0 | E76: 0 | F76: 0 | G76: 1 | I76: 1
A77: Læge | C77: 0 | D77: 0 | E77: 0 | F77: 0 | G77: 0 | I77: 0
A78: Tandlæge | C78: 1 | D78: 0 | E78: 0 | F78: 2 | G78: 1 | I78: 4
A79: Arkitekt | C79: 0 | D79: 1 | E79: 1 | F79: 1 | G79: 2 | I79: 5
A80: Landinspek. | C80: 0 | D80: 1 | E80: 0 | F80: 0 | G80: 1 | I80: 2
A81: Bibliotekar | C81: 0 | D81: 3 | E81: 3 | F81: 0 | G81: 0 | I81: 6
A82: Musikudd. | C82: 0 | D82: 0 | E82: 0 | F82: 0 | G82: 0 | I82: 0
A83: Teolog | C83: 0 | D83: 0 | E83: 0 | F83: 5 | G83: 1 | I83: 6
A84: Psykolog | C84: 1 | D84: 1 | E84: 3 | F84: 3 | G84: 0 | I84: 8
A85: Jurist | C85: 1 | D85: 0 | E85: 3 | F85: 1 | G85: 1 | I85: 6
A86: Økonom | C86: 0 | D86: 0 | E86: 1 | F86: 3 | G86: 0 | I86: 4
A87: Samf. Adm. | C87: 2 | D87: 4 | E87: 2 | F87: 0 | G87: 0 | I87: 8
A88: Cand. Merc. | C88: 3 | D88: 6 | E88: 3 | F88: 4 | G88: 0 | I88: 16
A89: HA | C89: 1 | D89: 0 | E89: 1 | F89: 6 | G89: 0 | I89: 8
A90: HD | C90: 2 | D90: 1 | E90: 0 | F90: 4 | G90: 1 | I90: 8
A91: Komm. og Sprog | C91: 0 | D91: 1 | E91: 1 | F91: 2 | G91: 2 | I91: 6
A92: Cand. IT. | C92: 1 | D92: 0 | E92: 0 | F92: 0 | G92: 0 | I92: 1
A93: Bac. Samf. | C93: 2 | D93: 0 | E93: 0 | F93: 0 | G93: 0 | I93: 2
A94: Bac. Hum. | C94: 1 | D94: 1 | E94: 0 | F94: 0 | G94: 0 | I94: 2
A95: Bac. Nat. | C95: 0 | D95: 1 | E95: 0 | F95: 0 | G95: 0 | I95: 1
A96: Andre | C96: 2 | D96: 4 | E96: 2 | F96: 5 | G96: 3 | I96: 16
A98: Total | C98: 24 | D98: 56 | E98: 53 | F98: 71 | G98: 27 | I98: 231
A100: Ingeniører i alt | C100: 3 | D100: 11 | E100: 13 | F100: 18 | G100: 0 | I100: 45
A101: Magistre i alt | C101: 1 | D101: 18 | E101: 17 | F101: 13 | G101: 8 | I101: 57
A102: DJØF'ere i alt | C102: 7 | D102: 10 | E102: 10 | F102: 14 | G102: 1 | I102: 42
A109: Thisted
C111: Under 30 år | D111: 30 - 39 år | E111: 40 - 49 år | F111: 50 - 59 år | G111: Over 60 år | I111: I alt
A113: Civ. ing. | C113: 8 | D113: 16 | E113: 10 | F113: 5 | G113: 6 | I113: 45
A114: Diplom ing. | C114: 2 | D114: 7 | E114: 16 | F114: 27 | G114: 9 | I114: 61
A115: Cand. Scient. Tek. | C115: 15 | D115: 15 | E115: 4 | F115: 1 | G115: 2 | I115: 37
A116: MA. Hum. | C116: 8 | D116: 46 | E116: 42 | F116: 17 | G116: 9 | I116: 122
A117: MA. Nat. | C117: 0 | D117: 12 | E117: 14 | F117: 7 | G117: 6 | I117: 39
A118: MA. Ph.d. | C118: 0 | D118: 0 | E118: 0 | F118: 1 | G118: 1 | I118: 2
A119: MA. Samf. | C119: 6 | D119: 7 | E119: 0 | F119: 0 | G119: 0 | I119: 13
A120: Øvrige Mag. | C120: 1 | D120: 2 | E120: 4 | F120: 4 | G120: 4 | I120: 15
A121: Agronom | C121: 0 | D121: 1 | E121: 1 | F121: 6 | G121: 1 | I121: 9
A122: Landsk. Arkt. | C122: 0 | D122: 1 | E122: 0 | F122: 0 | G122: 0 | I122: 1
A123: Hortonom | C123: 0 | D123: 0 | E123: 0 | F123: 0 | G123: 0 | I123: 0
A124: Forstkand. | C124: 0 | D124: 0 | E124: 2 | F124: 0 | G124: 1 | I124: 3
A125: Jordbrugsakad. | C125: 0 | D125: 2 | E125: 3 | F125: 6 | G125: 2 | I125: 13
A126: Mejeriing. | C126: 1 | D126: 0 | E126: 0 | F126: 1 | G126: 3 | I126: 5
A127: Levn.m.kand. | C127: 1 | D127: 0 | E127: 0 | F127: 0 | G127: 0 | I127: 1
A128: Dyrlæge | C128: 3 | D128: 8 | E128: 4 | F128: 2 | G128: 0 | I128: 17
A129: Farmaceut | C129: 0 | D129: 2 | E129: 1 | F129: 2 | G129: 2 | I129: 7
A130: Læge | C130: 13 | D130: 9 | E130: 4 | F130: 5 | G130: 1 | I130: 32
A131: Tandlæge | C131: 3 | D131: 1 | E131: 0 | F131: 2 | G131: 1 | I131: 7
A132: Arkitekt | C132: 1 | D132: 3 | E132: 3 | F132: 3 | G132: 1 | I132: 11
A133: Landinspek. | C133: 0 | D133: 0 | E133: 1 | F133: 4 | G133: 0 | I133: 5
A134: Bibliotekar | C134: 1 | D134: 3 | E134: 3 | F134: 2 | G134: 5 | I134: 14
A135: Musikudd. | C135: 0 | D135: 0 | E135: 0 | F135: 3 | G135: 2 | I135: 5
A136: Teolog | C136: 1 | D136: 0 | E136: 4 | F136: 2 | G136: 4 | I136: 11
A137: Psykolog | C137: 2 | D137: 2 | E137: 8 | F137: 2 | G137: 1 | I137: 15
A138: Jurist | C138: 3 | D138: 7 | E138: 2 | F138: 3 | G138: 1 | I138: 16
A139: Økonom | C139: 1 | D139: 6 | E139: 2 | F139: 7 | G139: 1 | I139: 17
A140: Samf. Adm. | C140: 7 | D140: 18 | E140: 8 | F140: 6 | G140: 2 | I140: 41
A141: Cand. Merc. | C141: 4 | D141: 10 | E141: 8 | F141: 12 | G141: 0 | I141: 34
A142: HA | C142: 3 | D142: 3 | E142: 2 | F142: 6 | G142: 0 | I142: 14
A143: HD | C143: 2 | D143: 0 | E143: 2 | F143: 7 | G143: 4 | I143: 15
A144: Komm. og Sprog | C144: 2 | D144: 5 | E144: 3 | F144: 2 | G144: 0 | I144: 12
A145: Cand. IT. | C145: 0 | D145: 6 | E145: 1 | F145: 1 | G145: 0 | I145: 8
A146: Bac. Samf. | C146: 0 | D146: 0 | E146: 2 | F146: 1 | G146: 0 | I146: 3
A147: Bac. Hum. | C147: 2 | D147: 2 | E147: 1 | F147: 1 | G147: 1 | I147: 7
A148: Bac. Nat. | C148: 1 | D148: 2 | E148: 0 | F148: 1 | G148: 0 | I148: 4
A149: Andre | C149: 1 | D149: 10 | E149: 9 | F149: 10 | G149: 7 | I149: 37
A151: Total | C151: 92 | D151: 204 | E151: 161 | F151: 153 | G151: 75 | I151: 685
A153: Ingeniører i alt | C153: 10 | D153: 23 | E153: 26 | F153: 32 | G153: 15 | I153: 106
A154: Magistre i alt | C154: 15 | D154: 67 | E154: 60 | F154: 29 | G154: 20 | I154: 191
A155: DJØF'ere i alt | C155: 18 | D155: 44 | E155: 22 | F155: 34 | G155: 4 | I155: 122
A162: Brønderslev
C164: Under 30 år | D164: 30 - 39 år | E164: 40 - 49 år | F164: 50 - 59 år | G164: Over 60 år | I164: I alt
A166: Civ. ing. | C166: 12 | D166: 42 | E166: 56 | F166: 32 | G166: 5 | I166: 147
A167: Diplom ing. | C167: 2 | D167: 3 | E167: 22 | F167: 39 | G167: 10 | I167: 76
A168: Cand. Scient. Tek. | C168: 18 | D168: 13 | E168: 9 | F168: 3 | G168: 0 | I168: 43
A169: MA. Hum. | C169: 17 | D169: 32 | E169: 38 | F169: 16 | G169: 6 | I169: 109
A170: MA. Nat. | C170: 2 | D170: 6 | E170: 7 | F170: 11 | G170: 2 | I170: 28
A171: MA. Ph.d. | C171: 0 | D171: 1 | E171: 1 | F171: 0 | G171: 0 | I171: 2
A172: MA. Samf. | C172: 2 | D172: 4 | E172: 1 | F172: 0 | G172: 0 | I172: 7
A173: Øvrige Mag. | C173: 1 | D173: 0 | E173: 4 | F173: 5 | G173: 1 | I173: 11
A174: Agronom | C174: 0 | D174: 1 | E174: 4 | F174: 5 | G174: 0 | I174: 10
A175: Landsk. Arkt. | C175: 0 | D175: 2 | E175: 0 | F175: 0 | G175: 0 | I175: 2
A176: Hortonom | C176: 0 | D176: 0 | E176: 0 | F176: 0 | G176: 0 | I176: 0
A177: Forstkand. | C177: 0 | D177: 1 | E177: 0 | F177: 0 | G177: 0 | I177: 1
A178: Jordbrugsakad. | C178: 0 | D178: 4 | E178: 4 | F178: 5 | G178: 0 | I178: 13
A179: Mejeriing. | C179: 0 | D179: 0 | E179: 0 | F179: 1 | G179: 0 | I179: 1
A180: Levn.m.kand. | C180: 0 | D180: 0 | E180: 0 | F180: 0 | G180: 0 | I180: 0
A181: Dyrlæge | C181: 1 | D181: 5 | E181: 7 | F181: 2 | G181: 1 | I181: 16
A182: Farmaceut | C182: 1 | D182: 2 | E182: 1 | F182: 1 | G182: 0 | I182: 5
A183: Læge | C183: 0 | D183: 4 | E183: 7 | F183: 6 | G183: 4 | I183: 21
A184: Tandlæge | C184: 0 | D184: 3 | E184: 2 | F184: 1 | G184: 2 | I184: 8
A185: Arkitekt | C185: 0 | D185: 0 | E185: 0 | F185: 0 | G185: 1 | I185: 1
A186: Landinspek. | C186: 0 | D186: 1 | E186: 6 | F186: 2 | G186: 0 | I186: 9
A187: Bibliotekar | C187: 2 | D187: 2 | E187: 3 | F187: 3 | G187: 6 | I187: 16
A188: Musikudd. | C188: 0 | D188: 1 | E188: 0 | F188: 4 | G188: 2 | I188: 7
A189: Teolog | C189: 0 | D189: 3 | E189: 1 | F189: 3 | G189: 1 | I189: 8
A190: Psykolog | C190: 3 | D190: 14 | E190: 5 | F190: 4 | G190: 0 | I190: 26
A191: Jurist | C191: 7 | D191: 12 | E191: 3 | F191: 4 | G191: 2 | I191: 28
A192: Økonom | C192: 2 | D192: 3 | E192: 1 | F192: 7 | G192: 0 | I192: 13
A193: Samf. Adm. | C193: 6 | D193: 16 | E193: 13 | F193: 5 | G193: 1 | I193: 41
A194: Cand. Merc. | C194: 16 | D194: 29 | E194: 18 | F194: 25 | G194: 2 | I194: 90
A195: HA | C195: 0 | D195: 4 | E195: 6 | F195: 7 | G195: 0 | I195: 17
A196: HD | C196: 0 | D196: 1 | E196: 4 | F196: 8 | G196: 5 | I196: 18
A197: Komm. og Sprog | C197: 1 | D197: 5 | E197: 4 | F197: 7 | G197: 0 | I197: 17
A198: Cand. IT. | C198: 1 | D198: 7 | E198: 2 | F198: 0 | G198: 0 | I198: 10
A199: Bac. Samf. | C199: 0 | D199: 0 | E199: 1 | F199: 0 | G199: 1 | I199: 2
A200: Bac. Hum. | C200: 3 | D200: 4 | E200: 5 | F200: 2 | G200: 0 | I200: 14
A201: Bac. Nat. | C201: 1 | D201: 0 | E201: 1 | F201: 0 | G201: 0 | I201: 2
A202: Andre | C202: 5 | D202: 15 | E202: 10 | F202: 9 | G202: 6 | I202: 45
A204: Total | C204: 103 | D204: 236 | E204: 242 | F204: 212 | G204: 58 | I204: 851
A206: Ingeniører i alt | C206: 14 | D206: 45 | E206: 78 | F206: 71 | G206: 15 | I206: 223
A207: Magistre i alt | C207: 22 | D207: 43 | E207: 51 | F207: 32 | G207: 9 | I207: 157
A208: DJØF'ere i alt | C208: 31 | D208: 64 | E208: 41 | F208: 48 | G208: 5 | I208: 189
A215: Frederikshavn
C217: Under 30 år | D217: 30 - 39 år | E217: 40 - 49 år | F217: 50 - 59 år | G217: Over 60 år | I217: I alt
A219: Civ. ing. | C219: 7 | D219: 22 | E219: 20 | F219: 20 | G219: 7 | I219: 76
A220: Diplom ing. | C220: 0 | D220: 9 | E220: 21 | F220: 40 | G220: 9 | I220: 79
A221: Cand. Scient. Tek. | C221: 7 | D221: 7 | E221: 5 | F221: 2 | G221: 0 | I221: 21
A222: MA. Hum. | C222: 14 | D222: 35 | E222: 42 | F222: 20 | G222: 9 | I222: 120
A223: MA. Nat. | C223: 3 | D223: 1 | E223: 9 | F223: 3 | G223: 1 | I223: 17
A224: MA. Ph.d. | C224: 0 | D224: 0 | E224: 2 | F224: 1 | G224: 0 | I224: 3
A225: MA. Samf. | C225: 4 | D225: 5 | E225: 0 | F225: 0 | G225: 0 | I225: 9
A226: Øvrige Mag. | C226: 0 | D226: 3 | E226: 0 | F226: 1 | G226: 4 | I226: 8
A227: Agronom | C227: 0 | D227: 0 | E227: 3 | F227: 3 | G227: 2 | I227: 8
A228: Landsk. Arkt. | C228: 0 | D228: 0 | E228: 0 | F228: 0 | G228: 0 | I228: 0
A229: Hortonom | C229: 0 | D229: 0 | E229: 0 | F229: 0 | G229: 0 | I229: 0
A230: Forstkand. | C230: 0 | D230: 1 | E230: 1 | F230: 1 | G230: 0 | I230: 3
A231: Jordbrugsakad. | C231: 0 | D231: 1 | E231: 4 | F231: 4 | G231: 2 | I231: 11
A232: Mejeriing. | C232: 0 | D232: 0 | E232: 1 | F232: 0 | G232: 0 | I232: 1
A233: Levn.m.kand. | C233: 0 | D233: 0 | E233: 0 | F233: 0 | G233: 0 | I233: 0
A234: Dyrlæge | C234: 2 | D234: 3 | E234: 4 | F234: 6 | G234: 1 | I234: 16
A235: Farmaceut | C235: 0 | D235: 2 | E235: 2 | F235: 2 | G235: 3 | I235: 9
A236: Læge | C236: 3 | D236: 7 | E236: 1 | F236: 4 | G236: 2 | I236: 17
A237: Tandlæge | C237: 2 | D237: 3 | E237: 1 | F237: 3 | G237: 0 | I237: 9
A238: Arkitekt | C238: 0 | D238: 3 | E238: 2 | F238: 1 | G238: 1 | I238: 7
A239: Landinspek. | C239: 0 | D239: 1 | E239: 7 | F239: 1 | G239: 1 | I239: 10
A240: Bibliotekar | C240: 1 | D240: 4 | E240: 8 | F240: 1 | G240: 4 | I240: 18
A241: Musikudd. | C241: 0 | D241: 0 | E241: 2 | F241: 4 | G241: 2 | I241: 8
A242: Teolog | C242: 0 | D242: 2 | E242: 2 | F242: 6 | G242: 3 | I242: 13
A243: Psykolog | C243: 5 | D243: 6 | E243: 5 | F243: 3 | G243: 1 | I243: 20
... 317 more rows

Sheet Tabel 4 NJ
A1: Tabel 4. Ledighedsberørte - aldersfordelt
A3: Nordjylland
C5: Under 30 år | D5: 30 - 39 år | E5: 40 - 49 år | F5: 50 - 59 år | G5: Over 60 år | I5: I alt
A7: Civ. ing. | C7: 81 | D7: 31 | E7: 10 | F7: 11 | G7: 8 | I7: 141
A8: Diplom ing. | C8: 9 | D8: 6 | E8: 4 | F8: 17 | G8: 12 | I8: 48
A9: Cand. Scient. Tek | C9: 142 | D9: 49 | E9: 6 | F9: 5 | G9: 2 | I9: 204
A10: MA. Hum. | C10: 151 | D10: 122 | E10: 48 | F10: 24 | G10: 11 | I10: 356
A11: MA. Nat. | C11: 17 | D11: 8 | E11: 10 | F11: 4 | G11: 1 | I11: 40
A12: MA. Ph.d. | C12: 0 | D12: 1 | E12: 0 | F12: 3 | G12: 1 | I12: 5
A13: MA. Samf. | C13: 42 | D13: 15 | E13: 3 | F13: 1 | G13: 0 | I13: 61
A14: Øvrige Mag. | C14: 4 | D14: 7 | E14: 5 | F14: 0 | G14: 2 | I14: 18
A15: Agronom | C15: 0 | D15: 1 | E15: 0 | F15: 0 | G15: 2 | I15: 3
A16: Landsk. Arkt. | C16: 0 | D16: 1 | E16: 0 | F16: 0 | G16: 0 | I16: 1
A17: Hortonom | C17: 0 | D17: 0 | E17: 0 | F17: 0 | G17: 0 | I17: 0
A18: Forstkand. | C18: 0 | D18: 0 | E18: 0 | F18: 0 | G18: 0 | I18: 0
A19: Jordbrugsakad. | C19: 0 | D19: 2 | E19: 0 | F19: 0 | G19: 2 | I19: 4
A20: Mejeriing. | C20: 0 | D20: 0 | E20: 0 | F20: 0 | G20: 0 | I20: 0
A21: Levn.m.kand. | C21: 0 | D21: 0 | E21: 0 | F21: 0 | G21: 0 | I21: 0
A22: Dyrlæge | C22: 0 | D22: 1 | E22: 0 | F22: 0 | G22: 0 | I22: 1
A23: Farmaceut | C23: 1 | D23: 3 | E23: 0 | F23: 0 | G23: 0 | I23: 4
A24: Læge | C24: 9 | D24: 5 | E24: 2 | F24: 0 | G24: 0 | I24: 16
A25: Tandlæge | C25: 0 | D25: 0 | E25: 0 | F25: 0 | G25: 0 | I25: 0
A26: Arkitekt | C26: 1 | D26: 3 | E26: 1 | F26: 2 | G26: 0 | I26: 7
A27: Landinspek. | C27: 1 | D27: 0 | E27: 0 | F27: 1 | G27: 2 | I27: 4
A28: Bibliotekar | C28: 3 | D28: 5 | E28: 1 | F28: 6 | G28: 0 | I28: 15
A29: Musikudd. | C29: 0 | D29: 2 | E29: 0 | F29: 1 | G29: 0 | I29: 3
A30: Teolog | C30: 0 | D30: 1 | E30: 1 | F30: 0 | G30: 0 | I30: 2
A31: Psykolog | C31: 31 | D31: 9 | E31: 1 | F31: 0 | G31: 0 | I31: 41
A32: Jurist | C32: 7 | D32: 6 | E32: 0 | F32: 2 | G32: 0 | I32: 15
A33: Økonom | C33: 7 | D33: 3 | E33: 1 | F33: 1 | G33: 1 | I33: 13
A34: Samf. Adm. | C34: 88 | D34: 38 | E34: 11 | F34: 6 | G34: 5 | I34: 148
A35: Cand. Merc. | C35: 70 | D35: 20 | E35: 12 | F35: 7 | G35: 3 | I35: 112
A36: HA | C36: 21 | D36: 3 | E36: 2 | F36: 8 | G36: 2 | I36: 36
A37: HD | C37: 18 | D37: 4 | E37: 0 | F37: 3 | G37: 3 | I37: 28
A38: Komm. og Sprog | C38: 27 | D38: 11 | E38: 6 | F38: 3 | G38: 3 | I38: 50
A39: Cand. IT. | C39: 60 | D39: 27 | E39: 4 | F39: 0 | G39: 0 | I39: 91
A40: Bac. Samf. | C40: 9 | D40: 2 | E40: 4 | F40: 0 | G40: 0 | I40: 15
A41: Bac. Hum. | C41: 28 | D41: 7 | E41: 6 | F41: 4 | G41: 1 | I41: 46
A42: Bac. Nat. | C42: 19 | D42: 4 | E42: 2 | F42: 0 | G42: 0 | I42: 25
A43: Andre | C43: 28 | D43: 20 | E43: 9 | F43: 10 | G43: 8 | I43: 75
A45: Total | C45: 874 | D45: 415 | E45: 149 | F45: 119 | G45: 67 | I45: 1624
A47: Ingeniører i alt | C47: 90 | D47: 37 | E47: 14 | F47: 28 | G47: 20 | I47: 189
A48: Magistre i alt | C48: 214 | D48: 153 | E48: 66 | F48: 32 | G48: 15 | I48: 480
A49: DJØF'ere i alt | C49: 193 | D49: 70 | E49: 26 | F49: 24 | G49: 11 | I49: 324
A56: Morsø
C58: Under 30 år | D58: 30 - 39 år | E58: 40 - 49 år | F58: 50 - 59 år | G58: Over 60 år | I58: I alt
A60: Civ. ing. | C60: 0 | D60: 0 | E60: 0 | F60: 0 | G60: 0 | I60: 0
A61: Diplom ing. | C61: 0 | D61: 0 | E61: 0 | F61: 1 | G61: 0 | I61: 1
A62: Cand. Scient. Tek | C62: 1 | D62: 0 | E62: 0 | F62: 0 | G62: 0 | I62: 1
A63: MA. Hum. | C63: 0 | D63: 2 | E63: 1 | F63: 0 | G63: 0 | I63: 3
A64: MA. Nat. | C64: 0 | D64: 0 | E64: 1 | F64: 0 | G64: 0 | I64: 1
A65: MA. Ph.d. | C65: 0 | D65: 0 | E65: 0 | F65: 0 | G65: 0 | I65: 0
A66: MA. Samf. | C66: 0 | D66: 0 | E66: 0 | F66: 0 | G66: 0 | I66: 0
A67: Øvrige Mag. | C67: 0 | D67: 0 | E67: 0 | F67: 0 | G67: 0 | I67: 0
A68: Agronom | C68: 0 | D68: 0 | E68: 0 | F68: 0 | G68: 0 | I68: 0
A69: Landsk. Arkt. | C69: 0 | D69: 0 | E69: 0 | F69: 0 | G69: 0 | I69: 0
A70: Hortonom | C70: 0 | D70: 0 | E70: 0 | F70: 0 | G70: 0 | I70: 0
A71: Forstkand. | C71: 0 | D71: 0 | E71: 0 | F71: 0 | G71: 0 | I71: 0
A72: Jordbrugsakad. | C72: 0 | D72: 0 | E72: 0 | F72: 0 | G72: 0 | I72: 0
A73: Mejeriing. | C73: 0 | D73: 0 | E73: 0 | F73: 0 | G73: 0 | I73: 0
A74: Levn.m.kand. | C74: 0 | D74: 0 | E74: 0 | F74: 0 | G74: 0 | I74: 0
A75: Dyrlæge | C75: 0 | D75: 0 | E75: 0 | F75: 0 | G75: 0 | I75: 0
A76: Farmaceut | C76: 0 | D76: 0 | E76: 0 | F76: 0 | G76: 0 | I76: 0
A77: Læge | C77: 0 | D77: 0 | E77: 0 | F77: 0 | G77: 0 | I77: 0
A78: Tandlæge | C78: 0 | D78: 0 | E78: 0 | F78: 0 | G78: 0 | I78: 0
A79: Arkitekt | C79: 0 | D79: 0 | E79: 0 | F79: 0 | G79: 0 | I79: 0
A80: Landinspek. | C80: 0 | D80: 0 | E80: 0 | F80: 0 | G80: 0 | I80: 0
A81: Bibliotekar | C81: 0 | D81: 0 | E81: 0 | F81: 0 | G81: 0 | I81: 0
A82: Musikudd. | C82: 0 | D82: 0 | E82: 0 | F82: 0 | G82: 0 | I82: 0
A83: Teolog | C83: 0 | D83: 0 | E83: 0 | F83: 0 | G83: 0 | I83: 0
A84: Psykolog | C84: 0 | D84: 0 | E84: 0 | F84: 0 | G84: 0 | I84: 0
A85: Jurist | C85: 0 | D85: 0 | E85: 0 | F85: 0 | G85: 0 | I85: 0
A86: Økonom | C86: 0 | D86: 0 | E86: 0 | F86: 0 | G86: 0 | I86: 0
A87: Samf. Adm. | C87: 1 | D87: 0 | E87: 0 | F87: 0 | G87: 0 | I87: 1
A88: Cand. Merc. | C88: 0 | D88: 0 | E88: 0 | F88: 0 | G88: 0 | I88: 0
A89: HA | C89: 0 | D89: 0 | E89: 0 | F89: 0 | G89: 0 | I89: 0
A90: HD | C90: 0 | D90: 0 | E90: 0 | F90: 0 | G90: 0 | I90: 0
A91: Komm. og Sprog | C91: 0 | D91: 0 | E91: 0 | F91: 0 | G91: 0 | I91: 0
A92: Cand. IT. | C92: 0 | D92: 0 | E92: 0 | F92: 0 | G92: 0 | I92: 0
A93: Bac. Samf. | C93: 2 | D93: 0 | E93: 0 | F93: 0 | G93: 0 | I93: 2
A94: Bac. Hum. | C94: 1 | D94: 1 | E94: 0 | F94: 0 | G94: 0 | I94: 2
A95: Bac. Nat. | C95: 0 | D95: 0 | E95: 0 | F95: 0 | G95: 0 | I95: 0
A96: Andre | C96: 0 | D96: 1 | E96: 0 | F96: 0 | G96: 0 | I96: 1
A98: Total | C98: 5 | D98: 4 | E98: 2 | F98: 1 | G98: 0 | I98: 12
A100: Ingeniører i alt | C100: 0 | D100: 0 | E100: 0 | F100: 1 | G100: 0 | I100: 1
A101: Magistre i alt | C101: 0 | D101: 2 | E101: 2 | F101: 0 | G101: 0 | I101: 4
A102: DJØF'ere i alt | C102: 1 | D102: 0 | E102: 0 | F102: 0 | G102: 0 | I102: 1
A109: Thisted
C111: Under 30 år | D111: 30 - 39 år | E111: 40 - 49 år | F111: 50 - 59 år | G111: Over 60 år | I111: I alt
A113: Civ. ing. | C113: 1 | D113: 0 | E113: 0 | F113: 0 | G113: 0 | I113: 1
A114: Diplom ing. | C114: 0 | D114: 0 | E114: 0 | F114: 1 | G114: 0 | I114: 1
A115: Cand. Scient. Tek | C115: 3 | D115: 2 | E115: 1 | F115: 0 | G115: 0 | I115: 6
A116: MA. Hum. | C116: 3 | D116: 7 | E116: 2 | F116: 0 | G116: 0 | I116: 12
A117: MA. Nat. | C117: 0 | D117: 0 | E117: 0 | F117: 1 | G117: 0 | I117: 1
A118: MA. Ph.d. | C118: 0 | D118: 0 | E118: 0 | F118: 0 | G118: 1 | I118: 1
A119: MA. Samf. | C119: 1 | D119: 0 | E119: 0 | F119: 0 | G119: 0 | I119: 1
A120: Øvrige Mag. | C120: 0 | D120: 1 | E120: 1 | F120: 0 | G120: 1 | I120: 3
A121: Agronom | C121: 0 | D121: 0 | E121: 0 | F121: 0 | G121: 0 | I121: 0
A122: Landsk. Arkt. | C122: 0 | D122: 0 | E122: 0 | F122: 0 | G122: 0 | I122: 0
A123: Hortonom | C123: 0 | D123: 0 | E123: 0 | F123: 0 | G123: 0 | I123: 0
A124: Forstkand. | C124: 0 | D124: 0 | E124: 0 | F124: 0 | G124: 0 | I124: 0
A125: Jordbrugsakad. | C125: 0 | D125: 0 | E125: 0 | F125: 0 | G125: 0 | I125: 0
A126: Mejeriing. | C126: 0 | D126: 0 | E126: 0 | F126: 0 | G126: 0 | I126: 0
A127: Levn.m.kand. | C127: 0 | D127: 0 | E127: 0 | F127: 0 | G127: 0 | I127: 0
A128: Dyrlæge | C128: 0 | D128: 0 | E128: 0 | F128: 0 | G128: 0 | I128: 0
A129: Farmaceut | C129: 0 | D129: 0 | E129: 0 | F129: 0 | G129: 0 | I129: 0
A130: Læge | C130: 1 | D130: 1 | E130: 0 | F130: 0 | G130: 0 | I130: 2
A131: Tandlæge | C131: 0 | D131: 0 | E131: 0 | F131: 0 | G131: 0 | I131: 0
A132: Arkitekt | C132: 0 | D132: 0 | E132: 1 | F132: 1 | G132: 0 | I132: 2
A133: Landinspek. | C133: 0 | D133: 0 | E133: 0 | F133: 0 | G133: 0 | I133: 0
A134: Bibliotekar | C134: 0 | D134: 0 | E134: 0 | F134: 0 | G134: 0 | I134: 0
A135: Musikudd. | C135: 0 | D135: 0 | E135: 0 | F135: 0 | G135: 0 | I135: 0
A136: Teolog | C136: 0 | D136: 0 | E136: 0 | F136: 0 | G136: 0 | I136: 0
A137: Psykolog | C137: 0 | D137: 0 | E137: 0 | F137: 0 | G137: 0 | I137: 0
A138: Jurist | C138: 0 | D138: 0 | E138: 0 | F138: 0 | G138: 0 | I138: 0
A139: Økonom | C139: 0 | D139: 0 | E139: 0 | F139: 1 | G139: 0 | I139: 1
A140: Samf. Adm. | C140: 0 | D140: 4 | E140: 0 | F140: 0 | G140: 1 | I140: 5
A141: Cand. Merc. | C141: 0 | D141: 0 | E141: 0 | F141: 0 | G141: 0 | I141: 0
A142: HA | C142: 1 | D142: 0 | E142: 0 | F142: 0 | G142: 0 | I142: 1
A143: HD | C143: 0 | D143: 0 | E143: 0 | F143: 1 | G143: 0 | I143: 1
A144: Komm. og Sprog | C144: 2 | D144: 0 | E144: 0 | F144: 0 | G144: 0 | I144: 2
A145: Cand. IT. | C145: 0 | D145: 0 | E145: 0 | F145: 0 | G145: 0 | I145: 0
A146: Bac. Samf. | C146: 0 | D146: 0 | E146: 1 | F146: 0 | G146: 0 | I146: 1
A147: Bac. Hum. | C147: 0 | D147: 0 | E147: 0 | F147: 0 | G147: 0 | I147: 0
A148: Bac. Nat. | C148: 0 | D148: 1 | E148: 0 | F148: 0 | G148: 0 | I148: 1
A149: Andre | C149: 0 | D149: 0 | E149: 2 | F149: 0 | G149: 0 | I149: 2
A151: Total | C151: 12 | D151: 16 | E151: 8 | F151: 5 | G151: 3 | I151: 44
A153: Ingeniører i alt | C153: 1 | D153: 0 | E153: 0 | F153: 1 | G153: 0 | I153: 2
A154: Magistre i alt | C154: 4 | D154: 8 | E154: 3 | F154: 1 | G154: 2 | I154: 18
A155: DJØF'ere i alt | C155: 1 | D155: 4 | E155: 0 | F155: 1 | G155: 1 | I155: 7
A162: Brønderslev
C164: Under 30 år | D164: 30 - 39 år | E164: 40 - 49 år | F164: 50 - 59 år | G164: Over 60 år | I164: I alt
A166: Civ. ing. | C166: 1 | D166: 0 | E166: 1 | F166: 0 | G166: 0 | I166: 2
A167: Diplom ing. | C167: 0 | D167: 0 | E167: 0 | F167: 1 | G167: 0 | I167: 1
A168: Cand. Scient. Tek | C168: 4 | D168: 1 | E168: 0 | F168: 0 | G168: 0 | I168: 5
A169: MA. Hum. | C169: 5 | D169: 3 | E169: 3 | F169: 1 | G169: 1 | I169: 13
A170: MA. Nat. | C170: 0 | D170: 0 | E170: 0 | F170: 0 | G170: 0 | I170: 0
A171: MA. Ph.d. | C171: 0 | D171: 0 | E171: 0 | F171: 0 | G171: 0 | I171: 0
A172: MA. Samf. | C172: 1 | D172: 1 | E172: 0 | F172: 0 | G172: 0 | I172: 2
A173: Øvrige Mag. | C173: 0 | D173: 0 | E173: 0 | F173: 0 | G173: 0 | I173: 0
A174: Agronom | C174: 0 | D174: 0 | E174: 0 | F174: 0 | G174: 0 | I174: 0
A175: Landsk. Arkt. | C175: 0 | D175: 1 | E175: 0 | F175: 0 | G175: 0 | I175: 1
A176: Hortonom | C176: 0 | D176: 0 | E176: 0 | F176: 0 | G176: 0 | I176: 0
A177: Forstkand. | C177: 0 | D177: 0 | E177: 0 | F177: 0 | G177: 0 | I177: 0
A178: Jordbrugsakad. | C178: 0 | D178: 1 | E178: 0 | F178: 0 | G178: 0 | I178: 1
A179: Mejeriing. | C179: 0 | D179: 0 | E179: 0 | F179: 0 | G179: 0 | I179: 0
A180: Levn.m.kand. | C180: 0 | D180: 0 | E180: 0 | F180: 0 | G180: 0 | I180: 0
A181: Dyrlæge | C181: 0 | D181: 0 | E181: 0 | F181: 0 | G181: 0 | I181: 0
A182: Farmaceut | C182: 0 | D182: 0 | E182: 0 | F182: 0 | G182: 0 | I182: 0
A183: Læge | C183: 0 | D183: 0 | E183: 0 | F183: 0 | G183: 0 | I183: 0
A184: Tandlæge | C184: 0 | D184: 0 | E184: 0 | F184: 0 | G184: 0 | I184: 0
A185: Arkitekt | C185: 0 | D185: 0 | E185: 0 | F185: 0 | G185: 0 | I185: 0
A186: Landinspek. | C186: 0 | D186: 0 | E186: 0 | F186: 0 | G186: 0 | I186: 0
A187: Bibliotekar | C187: 0 | D187: 0 | E187: 0 | F187: 0 | G187: 0 | I187: 0
A188: Musikudd. | C188: 0 | D188: 0 | E188: 0 | F188: 0 | G188: 0 | I188: 0
A189: Teolog | C189: 0 | D189: 0 | E189: 0 | F189: 0 | G189: 0 | I189: 0
A190: Psykolog | C190: 0 | D190: 0 | E190: 0 | F190: 0 | G190: 0 | I190: 0
A191: Jurist | C191: 0 | D191: 0 | E191: 0 | F191: 0 | G191: 0 | I191: 0
A192: Økonom | C192: 1 | D192: 0 | E192: 0 | F192: 0 | G192: 0 | I192: 1
A193: Samf. Adm. | C193: 3 | D193: 0 | E193: 0 | F193: 0 | G193: 0 | I193: 3
A194: Cand. Merc. | C194: 2 | D194: 1 | E194: 1 | F194: 1 | G194: 0 | I194: 5
A195: HA | C195: 0 | D195: 0 | E195: 0 | F195: 0 | G195: 0 | I195: 0
A196: HD | C196: 0 | D196: 0 | E196: 0 | F196: 0 | G196: 0 | I196: 0
A197: Komm. og Sprog | C197: 1 | D197: 0 | E197: 1 | F197: 0 | G197: 0 | I197: 2
A198: Cand. IT. | C198: 1 | D198: 0 | E198: 1 | F198: 0 | G198: 0 | I198: 2
A199: Bac. Samf. | C199: 0 | D199: 0 | E199: 0 | F199: 0 | G199: 0 | I199: 0
A200: Bac. Hum. | C200: 1 | D200: 0 | E200: 1 | F200: 0 | G200: 0 | I200: 2
A201: Bac. Nat. | C201: 0 | D201: 0 | E201: 0 | F201: 0 | G201: 0 | I201: 0
A202: Andre | C202: 1 | D202: 0 | E202: 0 | F202: 0 | G202: 0 | I202: 1
A204: Total | C204: 21 | D204: 7 | E204: 8 | F204: 3 | G204: 1 | I204: 40
A206: Ingeniører i alt | C206: 1 | D206: 0 | E206: 1 | F206: 1 | G206: 0 | I206: 3
A207: Magistre i alt | C207: 6 | D207: 4 | E207: 3 | F207: 1 | G207: 1 | I207: 15
A208: DJØF'ere i alt | C208: 6 | D208: 1 | E208: 1 | F208: 1 | G208: 0 | I208: 9
A215: Frederikshavn
C217: Under 30 år | D217: 30 - 39 år | E217: 40 - 49 år | F217: 50 - 59 år | G217: Over 60 år | I217: I alt
A219: Civ. ing. | C219: 0 | D219: 0 | E219: 0 | F219: 0 | G219: 0 | I219: 0
A220: Diplom ing. | C220: 0 | D220: 0 | E220: 0 | F220: 1 | G220: 1 | I220: 2
A221: Cand. Scient. Tek | C221: 2 | D221: 2 | E221: 0 | F221: 0 | G221: 0 | I221: 4
A222: MA. Hum. | C222: 5 | D222: 6 | E222: 0 | F222: 2 | G222: 0 | I222: 13
A223: MA. Nat. | C223: 1 | D223: 0 | E223: 0 | F223: 0 | G223: 0 | I223: 1
A224: MA. Ph.d. | C224: 0 | D224: 0 | E224: 0 | F224: 0 | G224: 0 | I224: 0
A225: MA. Samf. | C225: 1 | D225: 0 | E225: 0 | F225: 0 | G225: 0 | I225: 1
A226: Øvrige Mag. | C226: 0 | D226: 1 | E226: 0 | F226: 0 | G226: 0 | I226: 1
A227: Agronom | C227: 0 | D227: 0 | E227: 0 | F227: 0 | G227: 0 | I227: 0
A228: Landsk. Arkt. | C228: 0 | D228: 0 | E228: 0 | F228: 0 | G228: 0 | I228: 0
A229: Hortonom | C229: 0 | D229: 0 | E229: 0 | F229: 0 | G229: 0 | I229: 0
A230: Forstkand. | C230: 0 | D230: 0 | E230: 0 | F230: 0 | G230: 0 | I230: 0
A231: Jordbrugsakad. | C231: 0 | D231: 0 | E231: 0 | F231: 0 | G231: 0 | I231: 0
A232: Mejeriing. | C232: 0 | D232: 0 | E232: 0 | F232: 0 | G232: 0 | I232: 0
A233: Levn.m.kand. | C233: 0 | D233: 0 | E233: 0 | F233: 0 | G233: 0 | I233: 0
A234: Dyrlæge | C234: 0 | D234: 0 | E234: 0 | F234: 0 | G234: 0 | I234: 0
A235: Farmaceut | C235: 0 | D235: 1 | E235: 0 | F235: 0 | G235: 0 | I235: 1
A236: Læge | C236: 0 | D236: 0 | E236: 0 | F236: 0 | G236: 0 | I236: 0
A237: Tandlæge | C237: 0 | D237: 0 | E237: 0 | F237: 0 | G237: 0 | I237: 0
A238: Arkitekt | C238: 0 | D238: 2 | E238: 0 | F238: 0 | G238: 0 | I238: 2
A239: Landinspek. | C239: 0 | D239: 0 | E239: 0 | F239: 0 | G239: 0 | I239: 0
A240: Bibliotekar | C240: 0 | D240: 0 | E240: 0 | F240: 0 | G240: 0 | I240: 0
A241: Musikudd. | C241: 0 | D241: 0 | E241: 0 | F241: 0 | G241: 0 | I241: 0
A242: Teolog | C242: 0 | D242: 0 | E242: 0 | F242: 0 | G242: 0 | I242: 0
A243: Psykolog | C243: 0 | D243: 0 | E243: 0 | F243: 0 | G243: 0 | I243: 0
... 317 more rows

Sheet Tabel 4(Br) NJ
A1: Tabel 4. Ledighedsberørte - aldersfordelt
A3: Nordjylland
C5: Under 30 år | D5: 30 - 39 år | E5: 40 - 49 år | F5: 50 - 59 år | G5: Over 60 år | I5: I alt
A7: Civ. ing. | C7: 69.11682156 | D7: 27.83321899 | E7: 9.859664442 | F7: 9.916422379 | G7: 6.898272313 | I7: 123.6243997
A8: Diplom ing. | C8: 6.463543941 | D8: 5.057069794 | E8: 3.802158049 | F8: 15.60843261 | G8: 10.45219235 | I8: 41.38339674
A9: Cand. Scient. Tek | C9: 121.6478513 | D9: 41.39898958 | E9: 5.599076904 | F9: 4.814445207 | G9: 1.999625772 | I9: 175.4599888
A10: MA. Hum. | C10: 123.4142082 | D10: 105.3053078 | E10: 38.39331379 | F10: 18.6552735 | G10: 9.156115512 | I10: 294.9242188
A11: MA. Nat. | C11: 15.33524606 | D11: 6.872076343 | E11: 7.574377846 | F11: 3.712343292 | G11: 0.1135158735 | I11: 33.60755941
A12: MA. Ph.d. | C12: 0 | D12: 0.4871203144 | E12: 0 | F12: 2.279673174 | G12: 0.8750701678 | I12: 3.641863656
A13: MA. Samf. | C13: 36.08869207 | D13: 13.6437348 | E13: 2.201708975 | F13: 0.9998128859 | G13: 0 | I13: 52.93394873
A14: Øvrige Mag. | C14: 3.479074409 | D14: 6.308239257 | E14: 4.627954843 | F14: 0 | G14: 1.999625772 | I14: 16.41489428
A15: Agronom | C15: 0 | D15: 0.8613484688 | E15: 0 | F15: 0 | G15: 1.999625772 | I15: 2.860974241
A16: Landsk. Arkt. | C16: 0 | D16: 0.5320276929 | E16: 0 | F16: 0 | G16: 0 | I16: 0.5320276929
A17: Hortonom | C17: 0 | D17: 0 | E17: 0 | F17: 0 | G17: 0 | I17: 0
A18: Forstkand. | C18: 0 | D18: 0 | E18: 0 | F18: 0 | G18: 0 | I18: 0
A19: Jordbrugsakad. | C19: 0 | D19: 1.393376162 | E19: 0 | F19: 0 | G19: 1.999625772 | I19: 3.393001934
A20: Mejeriing. | C20: 0 | D20: 0 | E20: 0 | F20: 0 | G20: 0 | I20: 0
A21: Levn.m.kand. | C21: 0 | D21: 0 | E21: 0 | F21: 0 | G21: 0 | I21: 0
A22: Dyrlæge | C22: 0 | D22: 0.9536580802 | E22: 0 | F22: 0 | G22: 0 | I22: 0.9536580802
A23: Farmaceut | C23: 0.9998128859 | D23: 1.984032932 | E23: 0 | F23: 0 | G23: 0 | I23: 2.983845818
A24: Læge | C24: 4.982847876 | D24: 2.047651718 | E24: 1.953470966 | F24: 0 | G24: 0 | I24: 8.983970561
A25: Tandlæge | C25: 0 | D25: 0 | E25: 0 | F25: 0 | G25: 0 | I25: 0
A26: Arkitekt | C26: 0.9998128859 | D26: 2.860974241 | E26: 0.9998128859 | F26: 1.999625772 | G26: 0 | I26: 6.860225784
A27: Landinspek. | C27: 0.2151811888 | D27: 0 | E27: 0 | F27: 0.8613484688 | G27: 1.815006549 | I27: 2.891536207
A28: Bibliotekar | C28: 2.692571571 | D28: 4.399051955 | E28: 0.4459552174 | F28: 5.305307803 | G28: 0 | I28: 12.84288655
A29: Musikudd. | C29: 0 | D29: 1.999625772 | E29: 0 | F29: 0.9998128859 | G29: 0 | I29: 2.999438658
A30: Teolog | C30: 0 | D30: 0.9998128859 | E30: 0.5657082268 | F30: 0 | G30: 0 | I30: 1.565521113
A31: Psykolog | C31: 27.75712593 | D31: 7.7696002 | E31: 0.3605064554 | F31: 0 | G31: 0 | I31: 35.88723258
A32: Jurist | C32: 6.998690201 | D32: 5.260400424 | E32: 0 | F32: 1.768851743 | G32: 0 | I32: 14.02794237
A33: Økonom | C33: 6.306368116 | D33: 2.999438658 | E33: 0.9075032745 | F33: 0.4702800474 | G33: 0.9998128859 | I33: 11.68340298
A34: Samf. Adm. | C34: 79.31765733 | D34: 33.03249548 | E34: 8.187488305 | F34: 4.198216179 | G34: 3.638121375 | I34: 128.3739787
A35: Cand. Merc. | C35: 62.42686958 | D35: 16.57269382 | E35: 10.44657893 | F35: 5.894717146 | G35: 2.330817689 | I35: 97.67167717
A36: HA | C36: 16.75045219 | D36: 2.999438658 | E36: 1.999625772 | F36: 6.220919354 | G36: 1.214994075 | I36: 29.18543005
A37: HD | C37: 14.740847 | D37: 3.722322709 | E37: 0 | F37: 2.289028878 | G37: 1.836836525 | I37: 22.58903512
A38: Komm. og Sprog | C38: 22.50608121 | D38: 9.567766482 | E38: 5.022765546 | F38: 1.984032932 | G38: 2.260961766 | I38: 41.34160793
A39: Cand. IT. | C39: 51.83247053 | D39: 22.73810266 | E39: 3.860787127 | F39: 0 | G39: 0 | I39: 78.43136032
A40: Bac. Samf. | C40: 7.705981413 | D40: 1.999625772 | E40: 1.940996694 | F40: 0 | G40: 0 | I40: 11.64660388
A41: Bac. Hum. | C41: 24.95103848 | D41: 6.121748893 | E41: 5.465602195 | F41: 3.814008607 | G41: 0.9998128859 | I41: 41.35221106
A42: Bac. Nat. | C42: 16.27393501 | D42: 3.720451569 | E42: 1.277365434 | F42: 0 | G42: 0 | I42: 21.27175201
A43: Andre | C43: 23.02750577 | D43: 16.37809518 | E43: 8.63469095 | F43: 8.727000561 | G43: 5.11195659 | I43: 61.87924905
A45: Total | C45: 746.0306867 | D45: 356.4261211 | E45: 124.1271128 | F45: 100.5195534 | G45: 53.70236387 | I45: 1380.805838
A47: Ingeniører i alt | C47: 75.5803655 | D47: 32.89028878 | E47: 13.66182249 | F47: 25.52485499 | G47: 17.35046467 | I47: 165.0077964
A48: Magistre i alt | C48: 178.3172207 | D48: 132.6164785 | E48: 52.79735545 | F48: 25.64710285 | G48: 12.14432732 | I48: 401.5224849
A49: DJØF'ere i alt | C49: 171.8000374 | D49: 60.86446704 | E49: 21.54119628 | F49: 18.55298447 | G49: 8.183746024 | I49: 280.9424312
A56: Morsø
C58: Under 30 år | D58: 30 - 39 år | E58: 40 - 49 år | F58: 50 - 59 år | G58: Over 60 år | I58: I alt
A60: Civ. ing. | C60: 0 | D60: 0 | E60: 0 | F60: 0 | G60: 0 | I60: 0
A61: Diplom ing. | C61: 0 | D61: 0 | E61: 0 | F61: 0.9998128859 | G61: 0 | I61: 0.9998128859
A62: Cand. Scient. Tek | C62: 0.7054200711 | D62: 0 | E62: 0 | F62: 0 | G62: 0 | I62: 0.7054200711
A63: MA. Hum. | C63: 0 | D63: 1.26114888 | E63: 0.9998128859 | F63: 0 | G63: 0 | I63: 2.260961766
A64: MA. Nat. | C64: 0 | D64: 0 | E64: 0.4459552174 | F64: 0 | G64: 0 | I64: 0.4459552174
A65: MA. Ph.d. | C65: 0 | D65: 0 | E65: 0 | F65: 0 | G65: 0 | I65: 0
A66: MA. Samf. | C66: 0 | D66: 0 | E66: 0 | F66: 0 | G66: 0 | I66: 0
A67: Øvrige Mag. | C67: 0 | D67: 0 | E67: 0 | F67: 0 | G67: 0 | I67: 0
A68: Agronom | C68: 0 | D68: 0 | E68: 0 | F68: 0 | G68: 0 | I68: 0
A69: Landsk. Arkt. | C69: 0 | D69: 0 | E69: 0 | F69: 0 | G69: 0 | I69: 0
A70: Hortonom | C70: 0 | D70: 0 | E70: 0 | F70: 0 | G70: 0 | I70: 0
A71: Forstkand. | C71: 0 | D71: 0 | E71: 0 | F71: 0 | G71: 0 | I71: 0
A72: Jordbrugsakad. | C72: 0 | D72: 0 | E72: 0 | F72: 0 | G72: 0 | I72: 0
A73: Mejeriing. | C73: 0 | D73: 0 | E73: 0 | F73: 0 | G73: 0 | I73: 0
A74: Levn.m.kand. | C74: 0 | D74: 0 | E74: 0 | F74: 0 | G74: 0 | I74: 0
A75: Dyrlæge | C75: 0 | D75: 0 | E75: 0 | F75: 0 | G75: 0 | I75: 0
A76: Farmaceut | C76: 0 | D76: 0 | E76: 0 | F76: 0 | G76: 0 | I76: 0
A77: Læge | C77: 0 | D77: 0 | E77: 0 | F77: 0 | G77: 0 | I77: 0
A78: Tandlæge | C78: 0 | D78: 0 | E78: 0 | F78: 0 | G78: 0 | I78: 0
A79: Arkitekt | C79: 0 | D79: 0 | E79: 0 | F79: 0 | G79: 0 | I79: 0
A80: Landinspek. | C80: 0 | D80: 0 | E80: 0 | F80: 0 | G80: 0 | I80: 0
A81: Bibliotekar | C81: 0 | D81: 0 | E81: 0 | F81: 0 | G81: 0 | I81: 0
A82: Musikudd. | C82: 0 | D82: 0 | E82: 0 | F82: 0 | G82: 0 | I82: 0
A83: Teolog | C83: 0 | D83: 0 | E83: 0 | F83: 0 | G83: 0 | I83: 0
A84: Psykolog | C84: 0 | D84: 0 | E84: 0 | F84: 0 | G84: 0 | I84: 0
A85: Jurist | C85: 0 | D85: 0 | E85: 0 | F85: 0 | G85: 0 | I85: 0
A86: Økonom | C86: 0 | D86: 0 | E86: 0 | F86: 0 | G86: 0 | I86: 0
A87: Samf. Adm. | C87: 0.9536580802 | D87: 0 | E87: 0 | F87: 0 | G87: 0 | I87: 0.9536580802
A88: Cand. Merc. | C88: 0 | D88: 0 | E88: 0 | F88: 0 | G88: 0 | I88: 0
A89: HA | C89: 0 | D89: 0 | E89: 0 | F89: 0 | G89: 0 | I89: 0
A90: HD | C90: 0 | D90: 0 | E90: 0 | F90: 0 | G90: 0 | I90: 0
A91: Komm. og Sprog | C91: 0 | D91: 0 | E91: 0 | F91: 0 | G91: 0 | I91: 0
A92: Cand. IT. | C92: 0 | D92: 0 | E92: 0 | F92: 0 | G92: 0 | I92: 0
A93: Bac. Samf. | C93: 1.168839269 | D93: 0 | E93: 0 | F93: 0 | G93: 0 | I93: 1.168839269
A94: Bac. Hum. | C94: 0.3074908002 | D94: 0.8613484688 | E94: 0 | F94: 0 | G94: 0 | I94: 1.168839269
A95: Bac. Nat. | C95: 0 | D95: 0 | E95: 0 | F95: 0 | G95: 0 | I95: 0
A96: Andre | C96: 0 | D96: 0.4459552174 | E96: 0 | F96: 0 | G96: 0 | I96: 0.4459552174
A98: Total | C98: 3.135408221 | D98: 2.568452567 | E98: 1.445768103 | F98: 0.9998128859 | G98: 0 | I98: 8.149441776
A100: Ingeniører i alt | C100: 0 | D100: 0 | E100: 0 | F100: 0.9998128859 | G100: 0 | I100: 0.9998128859
A101: Magistre i alt | C101: 0 | D101: 1.26114888 | E101: 1.445768103 | F101: 0 | G101: 0 | I101: 2.706916984
A102: DJØF'ere i alt | C102: 0.9536580802 | D102: 0 | E102: 0 | F102: 0 | G102: 0 | I102: 0.9536580802
A109: Thisted
C111: Under 30 år | D111: 30 - 39 år | E111: 40 - 49 år | F111: 50 - 59 år | G111: Over 60 år | I111: I alt
A113: Civ. ing. | C113: 0.9075032745 | D113: 0 | E113: 0 | F113: 0 | G113: 0 | I113: 0.9075032745
A114: Diplom ing. | C114: 0 | D114: 0 | E114: 0 | F114: 0.9998128859 | G114: 0 | I114: 0.9998128859
A115: Cand. Scient. Tek | C115: 2.214806961 | D115: 1.999625772 | E115: 0.6000124743 | F115: 0 | G115: 0 | I115: 4.814445207
A116: MA. Hum. | C116: 2.999438658 | D116: 3.91879249 | E116: 1.538077715 | F116: 0 | G116: 0 | I116: 8.456308863
A117: MA. Nat. | C117: 0 | D117: 0 | E117: 0 | F117: 0.9998128859 | G117: 0 | I117: 0.9998128859
A118: MA. Ph.d. | C118: 0 | D118: 0 | E118: 0 | F118: 0 | G118: 0.8750701678 | I118: 0.8750701678
A119: MA. Samf. | C119: 0.9998128859 | D119: 0 | E119: 0 | F119: 0 | G119: 0 | I119: 0.9998128859
A120: Øvrige Mag. | C120: 0 | D120: 0.8613484688 | E120: 0.99357575 | F120: 0 | G120: 0.9998128859 | I120: 2.854737105
A121: Agronom | C121: 0 | D121: 0 | E121: 0 | F121: 0 | G121: 0 | I121: 0
A122: Landsk. Arkt. | C122: 0 | D122: 0 | E122: 0 | F122: 0 | G122: 0 | I122: 0
A123: Hortonom | C123: 0 | D123: 0 | E123: 0 | F123: 0 | G123: 0 | I123: 0
A124: Forstkand. | C124: 0 | D124: 0 | E124: 0 | F124: 0 | G124: 0 | I124: 0
A125: Jordbrugsakad. | C125: 0 | D125: 0 | E125: 0 | F125: 0 | G125: 0 | I125: 0
A126: Mejeriing. | C126: 0 | D126: 0 | E126: 0 | F126: 0 | G126: 0 | I126: 0
A127: Levn.m.kand. | C127: 0 | D127: 0 | E127: 0 | F127: 0 | G127: 0 | I127: 0
A128: Dyrlæge | C128: 0 | D128: 0 | E128: 0 | F128: 0 | G128: 0 | I128: 0
A129: Farmaceut | C129: 0 | D129: 0 | E129: 0 | F129: 0 | G129: 0 | I129: 0
A130: Læge | C130: 0.6767292459 | D130: 0.9075032745 | E130: 0 | F130: 0 | G130: 0 | I130: 1.58423252
A131: Tandlæge | C131: 0 | D131: 0 | E131: 0 | F131: 0 | G131: 0 | I131: 0
A132: Arkitekt | C132: 0 | D132: 0 | E132: 0.9998128859 | F132: 0.9998128859 | G132: 0 | I132: 1.999625772
A133: Landinspek. | C133: 0 | D133: 0 | E133: 0 | F133: 0 | G133: 0 | I133: 0
A134: Bibliotekar | C134: 0 | D134: 0 | E134: 0 | F134: 0 | G134: 0 | I134: 0
A135: Musikudd. | C135: 0 | D135: 0 | E135: 0 | F135: 0 | G135: 0 | I135: 0
A136: Teolog | C136: 0 | D136: 0 | E136: 0 | F136: 0 | G136: 0 | I136: 0
A137: Psykolog | C137: 0 | D137: 0 | E137: 0 | F137: 0 | G137: 0 | I137: 0
A138: Jurist | C138: 0 | D138: 0 | E138: 0 | F138: 0 | G138: 0 | I138: 0
A139: Økonom | C139: 0 | D139: 0 | E139: 0 | F139: 0.4702800474 | G139: 0 | I139: 0.4702800474
A140: Samf. Adm. | C140: 0 | D140: 3.953096738 | E140: 0 | F140: 0 | G140: 0.3293207759 | I140: 4.282417514
A141: Cand. Merc. | C141: 0 | D141: 0 | E141: 0 | F141: 0 | G141: 0 | I141: 0
A142: HA | C142: 0.9998128859 | D142: 0 | E142: 0 | F142: 0 | G142: 0 | I142: 0.9998128859
A143: HD | C143: 0 | D143: 0 | E143: 0 | F143: 0.7628017214 | G143: 0 | I143: 0.7628017214
A144: Komm. og Sprog | C144: 1.999625772 | D144: 0 | E144: 0 | F144: 0 | G144: 0 | I144: 1.999625772
A145: Cand. IT. | C145: 0 | D145: 0 | E145: 0 | F145: 0 | G145: 0 | I145: 0
A146: Bac. Samf. | C146: 0 | D146: 0 | E146: 0.2151811888 | F146: 0 | G146: 0 | I146: 0.2151811888
A147: Bac. Hum. | C147: 0 | D147: 0 | E147: 0 | F147: 0 | G147: 0 | I147: 0
A148: Bac. Nat. | C148: 0 | D148: 0.9998128859 | E148: 0 | F148: 0 | G148: 0 | I148: 0.9998128859
A149: Andre | C149: 0 | D149: 0 | E149: 1.9871515 | F149: 0 | G149: 0 | I149: 1.9871515
A151: Total | C151: 10.79772968 | D151: 12.64017963 | E151: 6.333811514 | F151: 4.232520427 | G151: 2.20420383 | I151: 36.20844508
A153: Ingeniører i alt | C153: 0.9075032745 | D153: 0 | E153: 0 | F153: 0.9998128859 | G153: 0 | I153: 1.90731616
A154: Magistre i alt | C154: 3.999251544 | D154: 4.780140959 | E154: 2.531653465 | F154: 0.9998128859 | G154: 1.874883054 | I154: 14.18574191
A155: DJØF'ere i alt | C155: 0.9998128859 | D155: 3.953096738 | E155: 0 | F155: 0.4702800474 | G155: 0.3293207759 | I155: 5.752510447
A162: Brønderslev
C164: Under 30 år | D164: 30 - 39 år | E164: 40 - 49 år | F164: 50 - 59 år | G164: Over 60 år | I164: I alt
A166: Civ. ing. | C166: 0.9998128859 | D166: 0 | E166: 0.9998128859 | F166: 0 | G166: 0 | I166: 1.999625772
A167: Diplom ing. | C167: 0 | D167: 0 | E167: 0 | F167: 0.9998128859 | G167: 0 | I167: 0.9998128859
A168: Cand. Scient. Tek | C168: 3.630013098 | D168: 0.924967255 | E168: 0 | F168: 0 | G168: 0 | I168: 4.554980353
A169: MA. Hum. | C169: 4.814445207 | D169: 1.980290651 | E169: 2.067610553 | F169: 0.9998128859 | G169: 0.9998128859 | I169: 10.86197218
A170: MA. Nat. | C170: 0 | D170: 0 | E170: 0 | F170: 0 | G170: 0 | I170: 0
A171: MA. Ph.d. | C171: 0 | D171: 0 | E171: 0 | F171: 0 | G171: 0 | I171: 0
A172: MA. Samf. | C172: 0.9998128859 | D172: 0.9998128859 | E172: 0 | F172: 0 | G172: 0 | I172: 1.999625772
A173: Øvrige Mag. | C173: 0 | D173: 0 | E173: 0 | F173: 0 | G173: 0 | I173: 0
A174: Agronom | C174: 0 | D174: 0 | E174: 0 | F174: 0 | G174: 0 | I174: 0
A175: Landsk. Arkt. | C175: 0 | D175: 0.5320276929 | E175: 0 | F175: 0 | G175: 0 | I175: 0.5320276929
A176: Hortonom | C176: 0 | D176: 0 | E176: 0 | F176: 0 | G176: 0 | I176: 0
A177: Forstkand. | C177: 0 | D177: 0 | E177: 0 | F177: 0 | G177: 0 | I177: 0
A178: Jordbrugsakad. | C178: 0 | D178: 0.5320276929 | E178: 0 | F178: 0 | G178: 0 | I178: 0.5320276929
A179: Mejeriing. | C179: 0 | D179: 0 | E179: 0 | F179: 0 | G179: 0 | I179: 0
A180: Levn.m.kand. | C180: 0 | D180: 0 | E180: 0 | F180: 0 | G180: 0 | I180: 0
A181: Dyrlæge | C181: 0 | D181: 0 | E181: 0 | F181: 0 | G181: 0 | I181: 0
A182: Farmaceut | C182: 0 | D182: 0 | E182: 0 | F182: 0 | G182: 0 | I182: 0
A183: Læge | C183: 0 | D183: 0 | E183: 0 | F183: 0 | G183: 0 | I183: 0
A184: Tandlæge | C184: 0 | D184: 0 | E184: 0 | F184: 0 | G184: 0 | I184: 0
A185: Arkitekt | C185: 0 | D185: 0 | E185: 0 | F185: 0 | G185: 0 | I185: 0
A186: Landinspek. | C186: 0 | D186: 0 | E186: 0 | F186: 0 | G186: 0 | I186: 0
A187: Bibliotekar | C187: 0 | D187: 0 | E187: 0 | F187: 0 | G187: 0 | I187: 0
A188: Musikudd. | C188: 0 | D188: 0 | E188: 0 | F188: 0 | G188: 0 | I188: 0
A189: Teolog | C189: 0 | D189: 0 | E189: 0 | F189: 0 | G189: 0 | I189: 0
A190: Psykolog | C190: 0 | D190: 0 | E190: 0 | F190: 0 | G190: 0 | I190: 0
A191: Jurist | C191: 0 | D191: 0 | E191: 0 | F191: 0 | G191: 0 | I191: 0
A192: Økonom | C192: 0.9998128859 | D192: 0 | E192: 0 | F192: 0 | G192: 0 | I192: 0.9998128859
A193: Samf. Adm. | C193: 2.949541571 | D193: 0 | E193: 0 | F193: 0 | G193: 0 | I193: 2.949541571
A194: Cand. Merc. | C194: 1.999625772 | D194: 0.9075032745 | E194: 0.5382648288 | F194: 0.9075032745 | G194: 0 | I194: 4.35289715
A195: HA | C195: 0 | D195: 0 | E195: 0 | F195: 0 | G195: 0 | I195: 0
A196: HD | C196: 0 | D196: 0 | E196: 0 | F196: 0 | G196: 0 | I196: 0
A197: Komm. og Sprog | C197: 0.9075032745 | D197: 0 | E197: 0.6723632508 | F197: 0 | G197: 0 | I197: 1.579866525
A198: Cand. IT. | C198: 0.9998128859 | D198: 0 | E198: 0.9998128859 | F198: 0 | G198: 0 | I198: 1.999625772
A199: Bac. Samf. | C199: 0 | D199: 0 | E199: 0 | F199: 0 | G199: 0 | I199: 0
A200: Bac. Hum. | C200: 0.9998128859 | D200: 0 | E200: 0.9998128859 | F200: 0 | G200: 0 | I200: 1.999625772
A201: Bac. Nat. | C201: 0 | D201: 0 | E201: 0 | F201: 0 | G201: 0 | I201: 0
A202: Andre | C202: 0.7266263332 | D202: 0 | E202: 0 | F202: 0 | G202: 0 | I202: 0.7266263332
A204: Total | C204: 20.02681968 | D204: 5.344601759 | E204: 6.277677291 | F204: 2.907129046 | G204: 0.9998128859 | I204: 35.55604067
A206: Ingeniører i alt | C206: 0.9998128859 | D206: 0 | E206: 0.9998128859 | F206: 0.9998128859 | G206: 0 | I206: 2.999438658
A207: Magistre i alt | C207: 5.814258093 | D207: 2.980103536 | E207: 2.067610553 | F207: 0.9998128859 | G207: 0.9998128859 | I207: 12.86159795
A208: DJØF'ere i alt | C208: 5.948980228 | D208: 0.9075032745 | E208: 0.5382648288 | F208: 0.9075032745 | G208: 0 | I208: 8.302251606
A215: Frederikshavn
C217: Under 30 år | D217: 30 - 39 år | E217: 40 - 49 år | F217: 50 - 59 år | G217: Over 60 år | I217: I alt
A219: Civ. ing. | C219: 0 | D219: 0 | E219: 0 | F219: 0 | G219: 0 | I219: 0
A220: Diplom ing. | C220: 0 | D220: 0 | E220: 0 | F220: 0.9998128859 | G220: 0.5844196345 | I220: 1.58423252
A221: Cand. Scient. Tek | C221: 1.58423252 | D221: 1.861161355 | E221: 0 | F221: 0 | G221: 0 | I221: 3.445393875
A222: MA. Hum. | C222: 2.958273561 | D222: 5.445019647 | E222: 0 | F222: 1.718330942 | G222: 0 | I222: 10.12162415
A223: MA. Nat. | C223: 0.9998128859 | D223: 0 | E223: 0 | F223: 0 | G223: 0 | I223: 0.9998128859
A224: MA. Ph.d. | C224: 0 | D224: 0 | E224: 0 | F224: 0 | G224: 0 | I224: 0
A225: MA. Samf. | C225: 0.1690263831 | D225: 0 | E225: 0 | F225: 0 | G225: 0 | I225: 0.1690263831
A226: Øvrige Mag. | C226: 0 | D226: 0.6998066488 | E226: 0 | F226: 0 | G226: 0 | I226: 0.6998066488
A227: Agronom | C227: 0 | D227: 0 | E227: 0 | F227: 0 | G227: 0 | I227: 0
A228: Landsk. Arkt. | C228: 0 | D228: 0 | E228: 0 | F228: 0 | G228: 0 | I228: 0
A229: Hortonom | C229: 0 | D229: 0 | E229: 0 | F229: 0 | G229: 0 | I229: 0
A230: Forstkand. | C230: 0 | D230: 0 | E230: 0 | F230: 0 | G230: 0 | I230: 0
A231: Jordbrugsakad. | C231: 0 | D231: 0 | E231: 0 | F231: 0 | G231: 0 | I231: 0
A232: Mejeriing. | C232: 0 | D232: 0 | E232: 0 | F232: 0 | G232: 0 | I232: 0
A233: Levn.m.kand. | C233: 0 | D233: 0 | E233: 0 | F233: 0 | G233: 0 | I233: 0
A234: Dyrlæge | C234: 0 | D234: 0 | E234: 0 | F234: 0 | G234: 0 | I234: 0
A235: Farmaceut | C235: 0 | D235: 0.5844196345 | E235: 0 | F235: 0 | G235: 0 | I235: 0.5844196345
A236: Læge | C236: 0 | D236: 0 | E236: 0 | F236: 0 | G236: 0 | I236: 0
A237: Tandlæge | C237: 0 | D237: 0 | E237: 0 | F237: 0 | G237: 0 | I237: 0
A238: Arkitekt | C238: 0 | D238: 1.861161355 | E238: 0 | F238: 0 | G238: 0 | I238: 1.861161355
A239: Landinspek. | C239: 0 | D239: 0 | E239: 0 | F239: 0 | G239: 0 | I239: 0
A240: Bibliotekar | C240: 0 | D240: 0 | E240: 0 | F240: 0 | G240: 0 | I240: 0
A241: Musikudd. | C241: 0 | D241: 0 | E241: 0 | F241: 0 | G241: 0 | I241: 0
A242: Teolog | C242: 0 | D242: 0 | E242: 0 | F242: 0 | G242: 0 | I242: 0
A243: Psykolog | C243: 0 | D243: 0 | E243: 0 | F243: 0 | G243: 0 | I243: 0
... 317 more rows

Sheet Tabel 4P NJ
A1: Tabel 4. Ledighedsberørte - aldersfordelt
A3: Nordjylland
C5: Under 30 år | D5: 30 - 39 år | E5: 40 - 49 år | F5: 50 - 59 år | G5: Over 60 år | I5: I alt
A7: Civ. ing. | C7: =IF(OR('Tabel 4F NJ'!C7<5,'Tabel 4 NJ'!C7<0.5),"-",IFERROR('Tabel 4 NJ'!C7/'Tabel 4F NJ'!C7*100,"-")) -> 11.36044881 | D7: =IF(OR('Tabel 4F NJ'!D7<5,'Tabel 4 NJ'!D7<0.5),"-",IFERROR('Tabel 4 NJ'!D7/'Tabel 4F NJ'!D7*100,"-")) -> 2.605042017 | E7: =IF(OR('Tabel 4F NJ'!E7<5,'Tabel 4 NJ'!E7<0.5),"-",IFERROR('Tabel 4 NJ'!E7/'Tabel 4F NJ'!E7*100,"-")) -> 1.040582726 | F7: =IF(OR('Tabel 4F NJ'!F7<5,'Tabel 4 NJ'!F7<0.5),"-",IFERROR('Tabel 4 NJ'!F7/'Tabel 4F NJ'!F7*100,"-")) -> 1.54494382 | G7: =IF(OR('Tabel 4F NJ'!G7<5,'Tabel 4 NJ'!G7<0.5),"-",IFERROR('Tabel 4 NJ'!G7/'Tabel 4F NJ'!G7*100,"-")) -> 5.673758865 | I7: =IF(OR('Tabel 4F NJ'!I7<5,'Tabel 4 NJ'!I7<0.5),"-",IFERROR('Tabel 4 NJ'!I7/'Tabel 4F NJ'!I7*100,"-")) -> 3.793381759
A8: Diplom ing. | C8: =IF(OR('Tabel 4F NJ'!C8<5,'Tabel 4 NJ'!C8<0.5),"-",IFERROR('Tabel 4 NJ'!C8/'Tabel 4F NJ'!C8*100,"-")) -> 7.5 | D8: =IF(OR('Tabel 4F NJ'!D8<5,'Tabel 4 NJ'!D8<0.5),"-",IFERROR('Tabel 4 NJ'!D8/'Tabel 4F NJ'!D8*100,"-")) -> 3.468208092 | E8: =IF(OR('Tabel 4F NJ'!E8<5,'Tabel 4 NJ'!E8<0.5),"-",IFERROR('Tabel 4 NJ'!E8/'Tabel 4F NJ'!E8*100,"-")) -> 1.03626943 | F8: =IF(OR('Tabel 4F NJ'!F8<5,'Tabel 4 NJ'!F8<0.5),"-",IFERROR('Tabel 4 NJ'!F8/'Tabel 4F NJ'!F8*100,"-")) -> 2.800658979 | G8: =IF(OR('Tabel 4F NJ'!G8<5,'Tabel 4 NJ'!G8<0.5),"-",IFERROR('Tabel 4 NJ'!G8/'Tabel 4F NJ'!G8*100,"-")) -> 6.315789474 | I8: =IF(OR('Tabel 4F NJ'!I8<5,'Tabel 4 NJ'!I8<0.5),"-",IFERROR('Tabel 4 NJ'!I8/'Tabel 4F NJ'!I8*100,"-")) -> 3.25203252
A9: Cand. Scient. Tek | C9: =IF(OR('Tabel 4F NJ'!C9<5,'Tabel 4 NJ'!C9<0.5),"-",IFERROR('Tabel 4 NJ'!C9/'Tabel 4F NJ'!C9*100,"-")) -> 25.63176895 | D9: =IF(OR('Tabel 4F NJ'!D9<5,'Tabel 4 NJ'!D9<0.5),"-",IFERROR('Tabel 4 NJ'!D9/'Tabel 4F NJ'!D9*100,"-")) -> 8.462867012 | E9: =IF(OR('Tabel 4F NJ'!E9<5,'Tabel 4 NJ'!E9<0.5),"-",IFERROR('Tabel 4 NJ'!E9/'Tabel 4F NJ'!E9*100,"-")) -> 3.488372093 | F9: =IF(OR('Tabel 4F NJ'!F9<5,'Tabel 4 NJ'!F9<0.5),"-",IFERROR('Tabel 4 NJ'!F9/'Tabel 4F NJ'!F9*100,"-")) -> 8.474576271 | G9: =IF(OR('Tabel 4F NJ'!G9<5,'Tabel 4 NJ'!G9<0.5),"-",IFERROR('Tabel 4 NJ'!G9/'Tabel 4F NJ'!G9*100,"-")) -> 13.33333333 | I9: =IF(OR('Tabel 4F NJ'!I9<5,'Tabel 4 NJ'!I9<0.5),"-",IFERROR('Tabel 4 NJ'!I9/'Tabel 4F NJ'!I9*100,"-")) -> 14.7933285
A10: MA. Hum. | C10: =IF(OR('Tabel 4F NJ'!C10<5,'Tabel 4 NJ'!C10<0.5),"-",IFERROR('Tabel 4 NJ'!C10/'Tabel 4F NJ'!C10*100,"-")) -> 31.26293996 | D10: =IF(OR('Tabel 4F NJ'!D10<5,'Tabel 4 NJ'!D10<0.5),"-",IFERROR('Tabel 4 NJ'!D10/'Tabel 4F NJ'!D10*100,"-")) -> 12.91005291 | E10: =IF(OR('Tabel 4F NJ'!E10<5,'Tabel 4 NJ'!E10<0.5),"-",IFERROR('Tabel 4 NJ'!E10/'Tabel 4F NJ'!E10*100,"-")) -> 5.217391304 | F10: =IF(OR('Tabel 4F NJ'!F10<5,'Tabel 4 NJ'!F10<0.5),"-",IFERROR('Tabel 4 NJ'!F10/'Tabel 4F NJ'!F10*100,"-")) -> 6.030150754 | G10: =IF(OR('Tabel 4F NJ'!G10<5,'Tabel 4 NJ'!G10<0.5),"-",IFERROR('Tabel 4 NJ'!G10/'Tabel 4F NJ'!G10*100,"-")) -> 6.586826347 | I10: =IF(OR('Tabel 4F NJ'!I10<5,'Tabel 4 NJ'!I10<0.5),"-",IFERROR('Tabel 4 NJ'!I10/'Tabel 4F NJ'!I10*100,"-")) -> 12.22107793
A11: MA. Nat. | C11: =IF(OR('Tabel 4F NJ'!C11<5,'Tabel 4 NJ'!C11<0.5),"-",IFERROR('Tabel 4 NJ'!C11/'Tabel 4F NJ'!C11*100,"-")) -> 24.63768116 | D11: =IF(OR('Tabel 4F NJ'!D11<5,'Tabel 4 NJ'!D11<0.5),"-",IFERROR('Tabel 4 NJ'!D11/'Tabel 4F NJ'!D11*100,"-")) -> 4.395604396 | E11: =IF(OR('Tabel 4F NJ'!E11<5,'Tabel 4 NJ'!E11<0.5),"-",IFERROR('Tabel 4 NJ'!E11/'Tabel 4F NJ'!E11*100,"-")) -> 4.048582996 | F11: =IF(OR('Tabel 4F NJ'!F11<5,'Tabel 4 NJ'!F11<0.5),"-",IFERROR('Tabel 4 NJ'!F11/'Tabel 4F NJ'!F11*100,"-")) -> 2.877697842 | G11: =IF(OR('Tabel 4F NJ'!G11<5,'Tabel 4 NJ'!G11<0.5),"-",IFERROR('Tabel 4 NJ'!G11/'Tabel 4F NJ'!G11*100,"-")) -> 1.818181818 | I11: =IF(OR('Tabel 4F NJ'!I11<5,'Tabel 4 NJ'!I11<0.5),"-",IFERROR('Tabel 4 NJ'!I11/'Tabel 4F NJ'!I11*100,"-")) -> 5.780346821
A12: MA. Ph.d. | C12: =IF(OR('Tabel 4F NJ'!C12<5,'Tabel 4 NJ'!C12<0.5),"-",IFERROR('Tabel 4 NJ'!C12/'Tabel 4F NJ'!C12*100,"-")) -> - | D12: =IF(OR('Tabel 4F NJ'!D12<5,'Tabel 4 NJ'!D12<0.5),"-",IFERROR('Tabel 4 NJ'!D12/'Tabel 4F NJ'!D12*100,"-")) -> 4 | E12: =IF(OR('Tabel 4F NJ'!E12<5,'Tabel 4 NJ'!E12<0.5),"-",IFERROR('Tabel 4 NJ'!E12/'Tabel 4F NJ'!E12*100,"-")) -> - | F12: =IF(OR('Tabel 4F NJ'!F12<5,'Tabel 4 NJ'!F12<0.5),"-",IFERROR('Tabel 4 NJ'!F12/'Tabel 4F NJ'!F12*100,"-")) -> 16.66666667 | G12: =IF(OR('Tabel 4F NJ'!G12<5,'Tabel 4 NJ'!G12<0.5),"-",IFERROR('Tabel 4 NJ'!G12/'Tabel 4F NJ'!G12*100,"-")) -> 10 | I12: =IF(OR('Tabel 4F NJ'!I12<5,'Tabel 4 NJ'!I12<0.5),"-",IFERROR('Tabel 4 NJ'!I12/'Tabel 4F NJ'!I12*100,"-")) -> 5.617977528
A13: MA. Samf. | C13: =IF(OR('Tabel 4F NJ'!C13<5,'Tabel 4 NJ'!C13<0.5),"-",IFERROR('Tabel 4 NJ'!C13/'Tabel 4F NJ'!C13*100,"-")) -> 34.42622951 | D13: =IF(OR('Tabel 4F NJ'!D13<5,'Tabel 4 NJ'!D13<0.5),"-",IFERROR('Tabel 4 NJ'!D13/'Tabel 4F NJ'!D13*100,"-")) -> 10.34482759 | E13: =IF(OR('Tabel 4F NJ'!E13<5,'Tabel 4 NJ'!E13<0.5),"-",IFERROR('Tabel 4 NJ'!E13/'Tabel 4F NJ'!E13*100,"-")) -> 9.090909091 | F13: =IF(OR('Tabel 4F NJ'!F13<5,'Tabel 4 NJ'!F13<0.5),"-",IFERROR('Tabel 4 NJ'!F13/'Tabel 4F NJ'!F13*100,"-")) -> 10 | G13: =IF(OR('Tabel 4F NJ'!G13<5,'Tabel 4 NJ'!G13<0.5),"-",IFERROR('Tabel 4 NJ'!G13/'Tabel 4F NJ'!G13*100,"-")) -> - | I13: =IF(OR('Tabel 4F NJ'!I13<5,'Tabel 4 NJ'!I13<0.5),"-",IFERROR('Tabel 4 NJ'!I13/'Tabel 4F NJ'!I13*100,"-")) -> 19.48881789
A14: Øvrige Mag. | C14: =IF(OR('Tabel 4F NJ'!C14<5,'Tabel 4 NJ'!C14<0.5),"-",IFERROR('Tabel 4 NJ'!C14/'Tabel 4F NJ'!C14*100,"-")) -> 25 | D14: =IF(OR('Tabel 4F NJ'!D14<5,'Tabel 4 NJ'!D14<0.5),"-",IFERROR('Tabel 4 NJ'!D14/'Tabel 4F NJ'!D14*100,"-")) -> 15.90909091 | E14: =IF(OR('Tabel 4F NJ'!E14<5,'Tabel 4 NJ'!E14<0.5),"-",IFERROR('Tabel 4 NJ'!E14/'Tabel 4F NJ'!E14*100,"-")) -> 8.333333333 | F14: =IF(OR('Tabel 4F NJ'!F14<5,'Tabel 4 NJ'!F14<0.5),"-",IFERROR('Tabel 4 NJ'!F14/'Tabel 4F NJ'!F14*100,"-")) -> - | G14: =IF(OR('Tabel 4F NJ'!G14<5,'Tabel 4 NJ'!G14<0.5),"-",IFERROR('Tabel 4 NJ'!G14/'Tabel 4F NJ'!G14*100,"-")) -> 4.87804878 | I14: =IF(OR('Tabel 4F NJ'!I14<5,'Tabel 4 NJ'!I14<0.5),"-",IFERROR('Tabel 4 NJ'!I14/'Tabel 4F NJ'!I14*100,"-")) -> 8.490566038
A15: Agronom | C15: =IF(OR('Tabel 4F NJ'!C15<5,'Tabel 4 NJ'!C15<0.5),"-",IFERROR('Tabel 4 NJ'!C15/'Tabel 4F NJ'!C15*100,"-")) -> - | D15: =IF(OR('Tabel 4F NJ'!D15<5,'Tabel 4 NJ'!D15<0.5),"-",IFERROR('Tabel 4 NJ'!D15/'Tabel 4F NJ'!D15*100,"-")) -> 9.090909091 | E15: =IF(OR('Tabel 4F NJ'!E15<5,'Tabel 4 NJ'!E15<0.5),"-",IFERROR('Tabel 4 NJ'!E15/'Tabel 4F NJ'!E15*100,"-")) -> - | F15: =IF(OR('Tabel 4F NJ'!F15<5,'Tabel 4 NJ'!F15<0.5),"-",IFERROR('Tabel 4 NJ'!F15/'Tabel 4F NJ'!F15*100,"-")) -> - | G15: =IF(OR('Tabel 4F NJ'!G15<5,'Tabel 4 NJ'!G15<0.5),"-",IFERROR('Tabel 4 NJ'!G15/'Tabel 4F NJ'!G15*100,"-")) -> 8 | I15: =IF(OR('Tabel 4F NJ'!I15<5,'Tabel 4 NJ'!I15<0.5),"-",IFERROR('Tabel 4 NJ'!I15/'Tabel 4F NJ'!I15*100,"-")) -> 2.173913043
A16: Landsk. Arkt. | C16: =IF(OR('Tabel 4F NJ'!C16<5,'Tabel 4 NJ'!C16<0.5),"-",IFERROR('Tabel 4 NJ'!C16/'Tabel 4F NJ'!C16*100,"-")) -> - | D16: =IF(OR('Tabel 4F NJ'!D16<5,'Tabel 4 NJ'!D16<0.5),"-",IFERROR('Tabel 4 NJ'!D16/'Tabel 4F NJ'!D16*100,"-")) -> 12.5 | E16: =IF(OR('Tabel 4F NJ'!E16<5,'Tabel 4 NJ'!E16<0.5),"-",IFERROR('Tabel 4 NJ'!E16/'Tabel 4F NJ'!E16*100,"-")) -> - | F16: =IF(OR('Tabel 4F NJ'!F16<5,'Tabel 4 NJ'!F16<0.5),"-",IFERROR('Tabel 4 NJ'!F16/'Tabel 4F NJ'!F16*100,"-")) -> - | G16: =IF(OR('Tabel 4F NJ'!G16<5,'Tabel 4 NJ'!G16<0.5),"-",IFERROR('Tabel 4 NJ'!G16/'Tabel 4F NJ'!G16*100,"-")) -> - | I16: =IF(OR('Tabel 4F NJ'!I16<5,'Tabel 4 NJ'!I16<0.5),"-",IFERROR('Tabel 4 NJ'!I16/'Tabel 4F NJ'!I16*100,"-")) -> 7.692307692
A17: Hortonom | C17: =IF(OR('Tabel 4F NJ'!C17<5,'Tabel 4 NJ'!C17<0.5),"-",IFERROR('Tabel 4 NJ'!C17/'Tabel 4F NJ'!C17*100,"-")) -> - | D17: =IF(OR('Tabel 4F NJ'!D17<5,'Tabel 4 NJ'!D17<0.5),"-",IFERROR('Tabel 4 NJ'!D17/'Tabel 4F NJ'!D17*100,"-")) -> - | E17: =IF(OR('Tabel 4F NJ'!E17<5,'Tabel 4 NJ'!E17<0.5),"-",IFERROR('Tabel 4 NJ'!E17/'Tabel 4F NJ'!E17*100,"-")) -> - | F17: =IF(OR('Tabel 4F NJ'!F17<5,'Tabel 4 NJ'!F17<0.5),"-",IFERROR('Tabel 4 NJ'!F17/'Tabel 4F NJ'!F17*100,"-")) -> - | G17: =IF(OR('Tabel 4F NJ'!G17<5,'Tabel 4 NJ'!G17<0.5),"-",IFERROR('Tabel 4 NJ'!G17/'Tabel 4F NJ'!G17*100,"-")) -> - | I17: =IF(OR('Tabel 4F NJ'!I17<5,'Tabel 4 NJ'!I17<0.5),"-",IFERROR('Tabel 4 NJ'!I17/'Tabel 4F NJ'!I17*100,"-")) -> -
A18: Forstkand. | C18: =IF(OR('Tabel 4F NJ'!C18<5,'Tabel 4 NJ'!C18<0.5),"-",IFERROR('Tabel 4 NJ'!C18/'Tabel 4F NJ'!C18*100,"-")) -> - | D18: =IF(OR('Tabel 4F NJ'!D18<5,'Tabel 4 NJ'!D18<0.5),"-",IFERROR('Tabel 4 NJ'!D18/'Tabel 4F NJ'!D18*100,"-")) -> - | E18: =IF(OR('Tabel 4F NJ'!E18<5,'Tabel 4 NJ'!E18<0.5),"-",IFERROR('Tabel 4 NJ'!E18/'Tabel 4F NJ'!E18*100,"-")) -> - | F18: =IF(OR('Tabel 4F NJ'!F18<5,'Tabel 4 NJ'!F18<0.5),"-",IFERROR('Tabel 4 NJ'!F18/'Tabel 4F NJ'!F18*100,"-")) -> - | G18: =IF(OR('Tabel 4F NJ'!G18<5,'Tabel 4 NJ'!G18<0.5),"-",IFERROR('Tabel 4 NJ'!G18/'Tabel 4F NJ'!G18*100,"-")) -> - | I18: =IF(OR('Tabel 4F NJ'!I18<5,'Tabel 4 NJ'!I18<0.5),"-",IFERROR('Tabel 4 NJ'!I18/'Tabel 4F NJ'!I18*100,"-")) -> -
A19: Jordbrugsakad. | C19: =IF(OR('Tabel 4F NJ'!C19<5,'Tabel 4 NJ'!C19<0.5),"-",IFERROR('Tabel 4 NJ'!C19/'Tabel 4F NJ'!C19*100,"-")) -> - | D19: =IF(OR('Tabel 4F NJ'!D19<5,'Tabel 4 NJ'!D19<0.5),"-",IFERROR('Tabel 4 NJ'!D19/'Tabel 4F NJ'!D19*100,"-")) -> 8.333333333 | E19: =IF(OR('Tabel 4F NJ'!E19<5,'Tabel 4 NJ'!E19<0.5),"-",IFERROR('Tabel 4 NJ'!E19/'Tabel 4F NJ'!E19*100,"-")) -> - | F19: =IF(OR('Tabel 4F NJ'!F19<5,'Tabel 4 NJ'!F19<0.5),"-",IFERROR('Tabel 4 NJ'!F19/'Tabel 4F NJ'!F19*100,"-")) -> - | G19: =IF(OR('Tabel 4F NJ'!G19<5,'Tabel 4 NJ'!G19<0.5),"-",IFERROR('Tabel 4 NJ'!G19/'Tabel 4F NJ'!G19*100,"-")) -> 6.896551724 | I19: =IF(OR('Tabel 4F NJ'!I19<5,'Tabel 4 NJ'!I19<0.5),"-",IFERROR('Tabel 4 NJ'!I19/'Tabel 4F NJ'!I19*100,"-")) -> 2.247191011
A20: Mejeriing. | C20: =IF(OR('Tabel 4F NJ'!C20<5,'Tabel 4 NJ'!C20<0.5),"-",IFERROR('Tabel 4 NJ'!C20/'Tabel 4F NJ'!C20*100,"-")) -> - | D20: =IF(OR('Tabel 4F NJ'!D20<5,'Tabel 4 NJ'!D20<0.5),"-",IFERROR('Tabel 4 NJ'!D20/'Tabel 4F NJ'!D20*100,"-")) -> - | E20: =IF(OR('Tabel 4F NJ'!E20<5,'Tabel 4 NJ'!E20<0.5),"-",IFERROR('Tabel 4 NJ'!E20/'Tabel 4F NJ'!E20*100,"-")) -> - | F20: =IF(OR('Tabel 4F NJ'!F20<5,'Tabel 4 NJ'!F20<0.5),"-",IFERROR('Tabel 4 NJ'!F20/'Tabel 4F NJ'!F20*100,"-")) -> - | G20: =IF(OR('Tabel 4F NJ'!G20<5,'Tabel 4 NJ'!G20<0.5),"-",IFERROR('Tabel 4 NJ'!G20/'Tabel 4F NJ'!G20*100,"-")) -> - | I20: =IF(OR('Tabel 4F NJ'!I20<5,'Tabel 4 NJ'!I20<0.5),"-",IFERROR('Tabel 4 NJ'!I20/'Tabel 4F NJ'!I20*100,"-")) -> -
A21: Levn.m.kand. | C21: =IF(OR('Tabel 4F NJ'!C21<5,'Tabel 4 NJ'!C21<0.5),"-",IFERROR('Tabel 4 NJ'!C21/'Tabel 4F NJ'!C21*100,"-")) -> - | D21: =IF(OR('Tabel 4F NJ'!D21<5,'Tabel 4 NJ'!D21<0.5),"-",IFERROR('Tabel 4 NJ'!D21/'Tabel 4F NJ'!D21*100,"-")) -> - | E21: =IF(OR('Tabel 4F NJ'!E21<5,'Tabel 4 NJ'!E21<0.5),"-",IFERROR('Tabel 4 NJ'!E21/'Tabel 4F NJ'!E21*100,"-")) -> - | F21: =IF(OR('Tabel 4F NJ'!F21<5,'Tabel 4 NJ'!F21<0.5),"-",IFERROR('Tabel 4 NJ'!F21/'Tabel 4F NJ'!F21*100,"-")) -> - | G21: =IF(OR('Tabel 4F NJ'!G21<5,'Tabel 4 NJ'!G21<0.5),"-",IFERROR('Tabel 4 NJ'!G21/'Tabel 4F NJ'!G21*100,"-")) -> - | I21: =IF(OR('Tabel 4F NJ'!I21<5,'Tabel 4 NJ'!I21<0.5),"-",IFERROR('Tabel 4 NJ'!I21/'Tabel 4F NJ'!I21*100,"-")) -> -
A22: Dyrlæge | C22: =IF(OR('Tabel 4F NJ'!C22<5,'Tabel 4 NJ'!C22<0.5),"-",IFERROR('Tabel 4 NJ'!C22/'Tabel 4F NJ'!C22*100,"-")) -> - | D22: =IF(OR('Tabel 4F NJ'!D22<5,'Tabel 4 NJ'!D22<0.5),"-",IFERROR('Tabel 4 NJ'!D22/'Tabel 4F NJ'!D22*100,"-")) -> 1.612903226 | E22: =IF(OR('Tabel 4F NJ'!E22<5,'Tabel 4 NJ'!E22<0.5),"-",IFERROR('Tabel 4 NJ'!E22/'Tabel 4F NJ'!E22*100,"-")) -> - | F22: =IF(OR('Tabel 4F NJ'!F22<5,'Tabel 4 NJ'!F22<0.5),"-",IFERROR('Tabel 4 NJ'!F22/'Tabel 4F NJ'!F22*100,"-")) -> - | G22: =IF(OR('Tabel 4F NJ'!G22<5,'Tabel 4 NJ'!G22<0.5),"-",IFERROR('Tabel 4 NJ'!G22/'Tabel 4F NJ'!G22*100,"-")) -> - | I22: =IF(OR('Tabel 4F NJ'!I22<5,'Tabel 4 NJ'!I22<0.5),"-",IFERROR('Tabel 4 NJ'!I22/'Tabel 4F NJ'!I22*100,"-")) -> 0.5464480874
A23: Farmaceut | C23: =IF(OR('Tabel 4F NJ'!C23<5,'Tabel 4 NJ'!C23<0.5),"-",IFERROR('Tabel 4 NJ'!C23/'Tabel 4F NJ'!C23*100,"-")) -> 9.090909091 | D23: =IF(OR('Tabel 4F NJ'!D23<5,'Tabel 4 NJ'!D23<0.5),"-",IFERROR('Tabel 4 NJ'!D23/'Tabel 4F NJ'!D23*100,"-")) -> 6.976744186 | E23: =IF(OR('Tabel 4F NJ'!E23<5,'Tabel 4 NJ'!E23<0.5),"-",IFERROR('Tabel 4 NJ'!E23/'Tabel 4F NJ'!E23*100,"-")) -> - | F23: =IF(OR('Tabel 4F NJ'!F23<5,'Tabel 4 NJ'!F23<0.5),"-",IFERROR('Tabel 4 NJ'!F23/'Tabel 4F NJ'!F23*100,"-")) -> - | G23: =IF(OR('Tabel 4F NJ'!G23<5,'Tabel 4 NJ'!G23<0.5),"-",IFERROR('Tabel 4 NJ'!G23/'Tabel 4F NJ'!G23*100,"-")) -> - | I23: =IF(OR('Tabel 4F NJ'!I23<5,'Tabel 4 NJ'!I23<0.5),"-",IFERROR('Tabel 4 NJ'!I23/'Tabel 4F NJ'!I23*100,"-")) -> 3.603603604
A24: Læge | C24: =IF(OR('Tabel 4F NJ'!C24<5,'Tabel 4 NJ'!C24<0.5),"-",IFERROR('Tabel 4 NJ'!C24/'Tabel 4F NJ'!C24*100,"-")) -> 4.864864865 | D24: =IF(OR('Tabel 4F NJ'!D24<5,'Tabel 4 NJ'!D24<0.5),"-",IFERROR('Tabel 4 NJ'!D24/'Tabel 4F NJ'!D24*100,"-")) -> 1.84501845 | E24: =IF(OR('Tabel 4F NJ'!E24<5,'Tabel 4 NJ'!E24<0.5),"-",IFERROR('Tabel 4 NJ'!E24/'Tabel 4F NJ'!E24*100,"-")) -> 1.388888889 | F24: =IF(OR('Tabel 4F NJ'!F24<5,'Tabel 4 NJ'!F24<0.5),"-",IFERROR('Tabel 4 NJ'!F24/'Tabel 4F NJ'!F24*100,"-")) -> - | G24: =IF(OR('Tabel 4F NJ'!G24<5,'Tabel 4 NJ'!G24<0.5),"-",IFERROR('Tabel 4 NJ'!G24/'Tabel 4F NJ'!G24*100,"-")) -> - | I24: =IF(OR('Tabel 4F NJ'!I24<5,'Tabel 4 NJ'!I24<0.5),"-",IFERROR('Tabel 4 NJ'!I24/'Tabel 4F NJ'!I24*100,"-")) -> 2.176870748
A25: Tandlæge | C25: =IF(OR('Tabel 4F NJ'!C25<5,'Tabel 4 NJ'!C25<0.5),"-",IFERROR('Tabel 4 NJ'!C25/'Tabel 4F NJ'!C25*100,"-")) -> - | D25: =IF(OR('Tabel 4F NJ'!D25<5,'Tabel 4 NJ'!D25<0.5),"-",IFERROR('Tabel 4 NJ'!D25/'Tabel 4F NJ'!D25*100,"-")) -> - | E25: =IF(OR('Tabel 4F NJ'!E25<5,'Tabel 4 NJ'!E25<0.5),"-",IFERROR('Tabel 4 NJ'!E25/'Tabel 4F NJ'!E25*100,"-")) -> - | F25: =IF(OR('Tabel 4F NJ'!F25<5,'Tabel 4 NJ'!F25<0.5),"-",IFERROR('Tabel 4 NJ'!F25/'Tabel 4F NJ'!F25*100,"-")) -> - | G25: =IF(OR('Tabel 4F NJ'!G25<5,'Tabel 4 NJ'!G25<0.5),"-",IFERROR('Tabel 4 NJ'!G25/'Tabel 4F NJ'!G25*100,"-")) -> - | I25: =IF(OR('Tabel 4F NJ'!I25<5,'Tabel 4 NJ'!I25<0.5),"-",IFERROR('Tabel 4 NJ'!I25/'Tabel 4F NJ'!I25*100,"-")) -> -
A26: Arkitekt | C26: =IF(OR('Tabel 4F NJ'!C26<5,'Tabel 4 NJ'!C26<0.5),"-",IFERROR('Tabel 4 NJ'!C26/'Tabel 4F NJ'!C26*100,"-")) -> 11.11111111 | D26: =IF(OR('Tabel 4F NJ'!D26<5,'Tabel 4 NJ'!D26<0.5),"-",IFERROR('Tabel 4 NJ'!D26/'Tabel 4F NJ'!D26*100,"-")) -> 7.692307692 | E26: =IF(OR('Tabel 4F NJ'!E26<5,'Tabel 4 NJ'!E26<0.5),"-",IFERROR('Tabel 4 NJ'!E26/'Tabel 4F NJ'!E26*100,"-")) -> 3.03030303 | F26: =IF(OR('Tabel 4F NJ'!F26<5,'Tabel 4 NJ'!F26<0.5),"-",IFERROR('Tabel 4 NJ'!F26/'Tabel 4F NJ'!F26*100,"-")) -> 8 | G26: =IF(OR('Tabel 4F NJ'!G26<5,'Tabel 4 NJ'!G26<0.5),"-",IFERROR('Tabel 4 NJ'!G26/'Tabel 4F NJ'!G26*100,"-")) -> - | I26: =IF(OR('Tabel 4F NJ'!I26<5,'Tabel 4 NJ'!I26<0.5),"-",IFERROR('Tabel 4 NJ'!I26/'Tabel 4F NJ'!I26*100,"-")) -> 5.384615385
A27: Landinspek. | C27: =IF(OR('Tabel 4F NJ'!C27<5,'Tabel 4 NJ'!C27<0.5),"-",IFERROR('Tabel 4 NJ'!C27/'Tabel 4F NJ'!C27*100,"-")) -> 6.666666667 | D27: =IF(OR('Tabel 4F NJ'!D27<5,'Tabel 4 NJ'!D27<0.5),"-",IFERROR('Tabel 4 NJ'!D27/'Tabel 4F NJ'!D27*100,"-")) -> - | E27: =IF(OR('Tabel 4F NJ'!E27<5,'Tabel 4 NJ'!E27<0.5),"-",IFERROR('Tabel 4 NJ'!E27/'Tabel 4F NJ'!E27*100,"-")) -> - | F27: =IF(OR('Tabel 4F NJ'!F27<5,'Tabel 4 NJ'!F27<0.5),"-",IFERROR('Tabel 4 NJ'!F27/'Tabel 4F NJ'!F27*100,"-")) -> 1.369863014 | G27: =IF(OR('Tabel 4F NJ'!G27<5,'Tabel 4 NJ'!G27<0.5),"-",IFERROR('Tabel 4 NJ'!G27/'Tabel 4F NJ'!G27*100,"-")) -> 10 | I27: =IF(OR('Tabel 4F NJ'!I27<5,'Tabel 4 NJ'!I27<0.5),"-",IFERROR('Tabel 4 NJ'!I27/'Tabel 4F NJ'!I27*100,"-")) -> 1.777777778
A28: Bibliotekar | C28: =IF(OR('Tabel 4F NJ'!C28<5,'Tabel 4 NJ'!C28<0.5),"-",IFERROR('Tabel 4 NJ'!C28/'Tabel 4F NJ'!C28*100,"-")) -> 20 | D28: =IF(OR('Tabel 4F NJ'!D28<5,'Tabel 4 NJ'!D28<0.5),"-",IFERROR('Tabel 4 NJ'!D28/'Tabel 4F NJ'!D28*100,"-")) -> 7.246376812 | E28: =IF(OR('Tabel 4F NJ'!E28<5,'Tabel 4 NJ'!E28<0.5),"-",IFERROR('Tabel 4 NJ'!E28/'Tabel 4F NJ'!E28*100,"-")) -> 0.9523809524 | F28: =IF(OR('Tabel 4F NJ'!F28<5,'Tabel 4 NJ'!F28<0.5),"-",IFERROR('Tabel 4 NJ'!F28/'Tabel 4F NJ'!F28*100,"-")) -> 7.407407407 | G28: =IF(OR('Tabel 4F NJ'!G28<5,'Tabel 4 NJ'!G28<0.5),"-",IFERROR('Tabel 4 NJ'!G28/'Tabel 4F NJ'!G28*100,"-")) -> - | I28: =IF(OR('Tabel 4F NJ'!I28<5,'Tabel 4 NJ'!I28<0.5),"-",IFERROR('Tabel 4 NJ'!I28/'Tabel 4F NJ'!I28*100,"-")) -> 4.573170732
A29: Musikudd. | C29: =IF(OR('Tabel 4F NJ'!C29<5,'Tabel 4 NJ'!C29<0.5),"-",IFERROR('Tabel 4 NJ'!C29/'Tabel 4F NJ'!C29*100,"-")) -> - | D29: =IF(OR('Tabel 4F NJ'!D29<5,'Tabel 4 NJ'!D29<0.5),"-",IFERROR('Tabel 4 NJ'!D29/'Tabel 4F NJ'!D29*100,"-")) -> 11.76470588 | E29: =IF(OR('Tabel 4F NJ'!E29<5,'Tabel 4 NJ'!E29<0.5),"-",IFERROR('Tabel 4 NJ'!E29/'Tabel 4F NJ'!E29*100,"-")) -> - | F29: =IF(OR('Tabel 4F NJ'!F29<5,'Tabel 4 NJ'!F29<0.5),"-",IFERROR('Tabel 4 NJ'!F29/'Tabel 4F NJ'!F29*100,"-")) -> 2.173913043 | G29: =IF(OR('Tabel 4F NJ'!G29<5,'Tabel 4 NJ'!G29<0.5),"-",IFERROR('Tabel 4 NJ'!G29/'Tabel 4F NJ'!G29*100,"-")) -> - | I29: =IF(OR('Tabel 4F NJ'!I29<5,'Tabel 4 NJ'!I29<0.5),"-",IFERROR('Tabel 4 NJ'!I29/'Tabel 4F NJ'!I29*100,"-")) -> 2.752293578
A30: Teolog | C30: =IF(OR('Tabel 4F NJ'!C30<5,'Tabel 4 NJ'!C30<0.5),"-",IFERROR('Tabel 4 NJ'!C30/'Tabel 4F NJ'!C30*100,"-")) -> - | D30: =IF(OR('Tabel 4F NJ'!D30<5,'Tabel 4 NJ'!D30<0.5),"-",IFERROR('Tabel 4 NJ'!D30/'Tabel 4F NJ'!D30*100,"-")) -> 3.846153846 | E30: =IF(OR('Tabel 4F NJ'!E30<5,'Tabel 4 NJ'!E30<0.5),"-",IFERROR('Tabel 4 NJ'!E30/'Tabel 4F NJ'!E30*100,"-")) -> 2.380952381 | F30: =IF(OR('Tabel 4F NJ'!F30<5,'Tabel 4 NJ'!F30<0.5),"-",IFERROR('Tabel 4 NJ'!F30/'Tabel 4F NJ'!F30*100,"-")) -> - | G30: =IF(OR('Tabel 4F NJ'!G30<5,'Tabel 4 NJ'!G30<0.5),"-",IFERROR('Tabel 4 NJ'!G30/'Tabel 4F NJ'!G30*100,"-")) -> - | I30: =IF(OR('Tabel 4F NJ'!I30<5,'Tabel 4 NJ'!I30<0.5),"-",IFERROR('Tabel 4 NJ'!I30/'Tabel 4F NJ'!I30*100,"-")) -> 1.324503311
A31: Psykolog | C31: =IF(OR('Tabel 4F NJ'!C31<5,'Tabel 4 NJ'!C31<0.5),"-",IFERROR('Tabel 4 NJ'!C31/'Tabel 4F NJ'!C31*100,"-")) -> 17.03296703 | D31: =IF(OR('Tabel 4F NJ'!D31<5,'Tabel 4 NJ'!D31<0.5),"-",IFERROR('Tabel 4 NJ'!D31/'Tabel 4F NJ'!D31*100,"-")) -> 3.846153846 | E31: =IF(OR('Tabel 4F NJ'!E31<5,'Tabel 4 NJ'!E31<0.5),"-",IFERROR('Tabel 4 NJ'!E31/'Tabel 4F NJ'!E31*100,"-")) -> 0.7194244604 | F31: =IF(OR('Tabel 4F NJ'!F31<5,'Tabel 4 NJ'!F31<0.5),"-",IFERROR('Tabel 4 NJ'!F31/'Tabel 4F NJ'!F31*100,"-")) -> - | G31: =IF(OR('Tabel 4F NJ'!G31<5,'Tabel 4 NJ'!G31<0.5),"-",IFERROR('Tabel 4 NJ'!G31/'Tabel 4F NJ'!G31*100,"-")) -> - | I31: =IF(OR('Tabel 4F NJ'!I31<5,'Tabel 4 NJ'!I31<0.5),"-",IFERROR('Tabel 4 NJ'!I31/'Tabel 4F NJ'!I31*100,"-")) -> 6.327160494
A32: Jurist | C32: =IF(OR('Tabel 4F NJ'!C32<5,'Tabel 4 NJ'!C32<0.5),"-",IFERROR('Tabel 4 NJ'!C32/'Tabel 4F NJ'!C32*100,"-")) -> 4 | D32: =IF(OR('Tabel 4F NJ'!D32<5,'Tabel 4 NJ'!D32<0.5),"-",IFERROR('Tabel 4 NJ'!D32/'Tabel 4F NJ'!D32*100,"-")) -> 3.20855615 | E32: =IF(OR('Tabel 4F NJ'!E32<5,'Tabel 4 NJ'!E32<0.5),"-",IFERROR('Tabel 4 NJ'!E32/'Tabel 4F NJ'!E32*100,"-")) -> - | F32: =IF(OR('Tabel 4F NJ'!F32<5,'Tabel 4 NJ'!F32<0.5),"-",IFERROR('Tabel 4 NJ'!F32/'Tabel 4F NJ'!F32*100,"-")) -> 2.083333333 | G32: =IF(OR('Tabel 4F NJ'!G32<5,'Tabel 4 NJ'!G32<0.5),"-",IFERROR('Tabel 4 NJ'!G32/'Tabel 4F NJ'!G32*100,"-")) -> - | I32: =IF(OR('Tabel 4F NJ'!I32<5,'Tabel 4 NJ'!I32<0.5),"-",IFERROR('Tabel 4 NJ'!I32/'Tabel 4F NJ'!I32*100,"-")) -> 2.529510961
A33: Økonom | C33: =IF(OR('Tabel 4F NJ'!C33<5,'Tabel 4 NJ'!C33<0.5),"-",IFERROR('Tabel 4 NJ'!C33/'Tabel 4F NJ'!C33*100,"-")) -> 6.542056075 | D33: =IF(OR('Tabel 4F NJ'!D33<5,'Tabel 4 NJ'!D33<0.5),"-",IFERROR('Tabel 4 NJ'!D33/'Tabel 4F NJ'!D33*100,"-")) -> 2.23880597 | E33: =IF(OR('Tabel 4F NJ'!E33<5,'Tabel 4 NJ'!E33<0.5),"-",IFERROR('Tabel 4 NJ'!E33/'Tabel 4F NJ'!E33*100,"-")) -> 1.25 | F33: =IF(OR('Tabel 4F NJ'!F33<5,'Tabel 4 NJ'!F33<0.5),"-",IFERROR('Tabel 4 NJ'!F33/'Tabel 4F NJ'!F33*100,"-")) -> 1.052631579 | G33: =IF(OR('Tabel 4F NJ'!G33<5,'Tabel 4 NJ'!G33<0.5),"-",IFERROR('Tabel 4 NJ'!G33/'Tabel 4F NJ'!G33*100,"-")) -> 9.090909091 | I33: =IF(OR('Tabel 4F NJ'!I33<5,'Tabel 4 NJ'!I33<0.5),"-",IFERROR('Tabel 4 NJ'!I33/'Tabel 4F NJ'!I33*100,"-")) -> 3.044496487
A34: Samf. Adm. | C34: =IF(OR('Tabel 4F NJ'!C34<5,'Tabel 4 NJ'!C34<0.5),"-",IFERROR('Tabel 4 NJ'!C34/'Tabel 4F NJ'!C34*100,"-")) -> 28.20512821 | D34: =IF(OR('Tabel 4F NJ'!D34<5,'Tabel 4 NJ'!D34<0.5),"-",IFERROR('Tabel 4 NJ'!D34/'Tabel 4F NJ'!D34*100,"-")) -> 6.678383128 | E34: =IF(OR('Tabel 4F NJ'!E34<5,'Tabel 4 NJ'!E34<0.5),"-",IFERROR('Tabel 4 NJ'!E34/'Tabel 4F NJ'!E34*100,"-")) -> 3.081232493 | F34: =IF(OR('Tabel 4F NJ'!F34<5,'Tabel 4 NJ'!F34<0.5),"-",IFERROR('Tabel 4 NJ'!F34/'Tabel 4F NJ'!F34*100,"-")) -> 3.409090909 | G34: =IF(OR('Tabel 4F NJ'!G34<5,'Tabel 4 NJ'!G34<0.5),"-",IFERROR('Tabel 4 NJ'!G34/'Tabel 4F NJ'!G34*100,"-")) -> 12.82051282 | I34: =IF(OR('Tabel 4F NJ'!I34<5,'Tabel 4 NJ'!I34<0.5),"-",IFERROR('Tabel 4 NJ'!I34/'Tabel 4F NJ'!I34*100,"-")) -> 10.18582244
A35: Cand. Merc. | C35: =IF(OR('Tabel 4F NJ'!C35<5,'Tabel 4 NJ'!C35<0.5),"-",IFERROR('Tabel 4 NJ'!C35/'Tabel 4F NJ'!C35*100,"-")) -> 15.38461538 | D35: =IF(OR('Tabel 4F NJ'!D35<5,'Tabel 4 NJ'!D35<0.5),"-",IFERROR('Tabel 4 NJ'!D35/'Tabel 4F NJ'!D35*100,"-")) -> 2.919708029 | E35: =IF(OR('Tabel 4F NJ'!E35<5,'Tabel 4 NJ'!E35<0.5),"-",IFERROR('Tabel 4 NJ'!E35/'Tabel 4F NJ'!E35*100,"-")) -> 2.803738318 | F35: =IF(OR('Tabel 4F NJ'!F35<5,'Tabel 4 NJ'!F35<0.5),"-",IFERROR('Tabel 4 NJ'!F35/'Tabel 4F NJ'!F35*100,"-")) -> 2.040816327 | G35: =IF(OR('Tabel 4F NJ'!G35<5,'Tabel 4 NJ'!G35<0.5),"-",IFERROR('Tabel 4 NJ'!G35/'Tabel 4F NJ'!G35*100,"-")) -> 10.71428571 | I35: =IF(OR('Tabel 4F NJ'!I35<5,'Tabel 4 NJ'!I35<0.5),"-",IFERROR('Tabel 4 NJ'!I35/'Tabel 4F NJ'!I35*100,"-")) -> 5.776173285
A36: HA | C36: =IF(OR('Tabel 4F NJ'!C36<5,'Tabel 4 NJ'!C36<0.5),"-",IFERROR('Tabel 4 NJ'!C36/'Tabel 4F NJ'!C36*100,"-")) -> 20 | D36: =IF(OR('Tabel 4F NJ'!D36<5,'Tabel 4 NJ'!D36<0.5),"-",IFERROR('Tabel 4 NJ'!D36/'Tabel 4F NJ'!D36*100,"-")) -> 5.263157895 | E36: =IF(OR('Tabel 4F NJ'!E36<5,'Tabel 4 NJ'!E36<0.5),"-",IFERROR('Tabel 4 NJ'!E36/'Tabel 4F NJ'!E36*100,"-")) -> 3.03030303 | F36: =IF(OR('Tabel 4F NJ'!F36<5,'Tabel 4 NJ'!F36<0.5),"-",IFERROR('Tabel 4 NJ'!F36/'Tabel 4F NJ'!F36*100,"-")) -> 5.442176871 | G36: =IF(OR('Tabel 4F NJ'!G36<5,'Tabel 4 NJ'!G36<0.5),"-",IFERROR('Tabel 4 NJ'!G36/'Tabel 4F NJ'!G36*100,"-")) -> 6.451612903 | I36: =IF(OR('Tabel 4F NJ'!I36<5,'Tabel 4 NJ'!I36<0.5),"-",IFERROR('Tabel 4 NJ'!I36/'Tabel 4F NJ'!I36*100,"-")) -> 8.866995074
A37: HD | C37: =IF(OR('Tabel 4F NJ'!C37<5,'Tabel 4 NJ'!C37<0.5),"-",IFERROR('Tabel 4 NJ'!C37/'Tabel 4F NJ'!C37*100,"-")) -> 26.47058824 | D37: =IF(OR('Tabel 4F NJ'!D37<5,'Tabel 4 NJ'!D37<0.5),"-",IFERROR('Tabel 4 NJ'!D37/'Tabel 4F NJ'!D37*100,"-")) -> 10.52631579 | E37: =IF(OR('Tabel 4F NJ'!E37<5,'Tabel 4 NJ'!E37<0.5),"-",IFERROR('Tabel 4 NJ'!E37/'Tabel 4F NJ'!E37*100,"-")) -> - | F37: =IF(OR('Tabel 4F NJ'!F37<5,'Tabel 4 NJ'!F37<0.5),"-",IFERROR('Tabel 4 NJ'!F37/'Tabel 4F NJ'!F37*100,"-")) -> 2.752293578 | G37: =IF(OR('Tabel 4F NJ'!G37<5,'Tabel 4 NJ'!G37<0.5),"-",IFERROR('Tabel 4 NJ'!G37/'Tabel 4F NJ'!G37*100,"-")) -> 6.976744186 | I37: =IF(OR('Tabel 4F NJ'!I37<5,'Tabel 4 NJ'!I37<0.5),"-",IFERROR('Tabel 4 NJ'!I37/'Tabel 4F NJ'!I37*100,"-")) -> 8.383233533
A38: Komm. og Sprog | C38: =IF(OR('Tabel 4F NJ'!C38<5,'Tabel 4 NJ'!C38<0.5),"-",IFERROR('Tabel 4 NJ'!C38/'Tabel 4F NJ'!C38*100,"-")) -> 39.70588235 | D38: =IF(OR('Tabel 4F NJ'!D38<5,'Tabel 4 NJ'!D38<0.5),"-",IFERROR('Tabel 4 NJ'!D38/'Tabel 4F NJ'!D38*100,"-")) -> 10.57692308 | E38: =IF(OR('Tabel 4F NJ'!E38<5,'Tabel 4 NJ'!E38<0.5),"-",IFERROR('Tabel 4 NJ'!E38/'Tabel 4F NJ'!E38*100,"-")) -> 6 | F38: =IF(OR('Tabel 4F NJ'!F38<5,'Tabel 4 NJ'!F38<0.5),"-",IFERROR('Tabel 4 NJ'!F38/'Tabel 4F NJ'!F38*100,"-")) -> 3.75 | G38: =IF(OR('Tabel 4F NJ'!G38<5,'Tabel 4 NJ'!G38<0.5),"-",IFERROR('Tabel 4 NJ'!G38/'Tabel 4F NJ'!G38*100,"-")) -> 12 | I38: =IF(OR('Tabel 4F NJ'!I38<5,'Tabel 4 NJ'!I38<0.5),"-",IFERROR('Tabel 4 NJ'!I38/'Tabel 4F NJ'!I38*100,"-")) -> 13.26259947
A39: Cand. IT. | C39: =IF(OR('Tabel 4F NJ'!C39<5,'Tabel 4 NJ'!C39<0.5),"-",IFERROR('Tabel 4 NJ'!C39/'Tabel 4F NJ'!C39*100,"-")) -> 32.78688525 | D39: =IF(OR('Tabel 4F NJ'!D39<5,'Tabel 4 NJ'!D39<0.5),"-",IFERROR('Tabel 4 NJ'!D39/'Tabel 4F NJ'!D39*100,"-")) -> 11.29707113 | E39: =IF(OR('Tabel 4F NJ'!E39<5,'Tabel 4 NJ'!E39<0.5),"-",IFERROR('Tabel 4 NJ'!E39/'Tabel 4F NJ'!E39*100,"-")) -> 8.510638298 | F39: =IF(OR('Tabel 4F NJ'!F39<5,'Tabel 4 NJ'!F39<0.5),"-",IFERROR('Tabel 4 NJ'!F39/'Tabel 4F NJ'!F39*100,"-")) -> - | G39: =IF(OR('Tabel 4F NJ'!G39<5,'Tabel 4 NJ'!G39<0.5),"-",IFERROR('Tabel 4 NJ'!G39/'Tabel 4F NJ'!G39*100,"-")) -> - | I39: =IF(OR('Tabel 4F NJ'!I39<5,'Tabel 4 NJ'!I39<0.5),"-",IFERROR('Tabel 4 NJ'!I39/'Tabel 4F NJ'!I39*100,"-")) -> 19.11764706
A40: Bac. Samf. | C40: =IF(OR('Tabel 4F NJ'!C40<5,'Tabel 4 NJ'!C40<0.5),"-",IFERROR('Tabel 4 NJ'!C40/'Tabel 4F NJ'!C40*100,"-")) -> 60 | D40: =IF(OR('Tabel 4F NJ'!D40<5,'Tabel 4 NJ'!D40<0.5),"-",IFERROR('Tabel 4 NJ'!D40/'Tabel 4F NJ'!D40*100,"-")) -> 13.33333333 | E40: =IF(OR('Tabel 4F NJ'!E40<5,'Tabel 4 NJ'!E40<0.5),"-",IFERROR('Tabel 4 NJ'!E40/'Tabel 4F NJ'!E40*100,"-")) -> 15.38461538 | F40: =IF(OR('Tabel 4F NJ'!F40<5,'Tabel 4 NJ'!F40<0.5),"-",IFERROR('Tabel 4 NJ'!F40/'Tabel 4F NJ'!F40*100,"-")) -> - | G40: =IF(OR('Tabel 4F NJ'!G40<5,'Tabel 4 NJ'!G40<0.5),"-",IFERROR('Tabel 4 NJ'!G40/'Tabel 4F NJ'!G40*100,"-")) -> - | I40: =IF(OR('Tabel 4F NJ'!I40<5,'Tabel 4 NJ'!I40<0.5),"-",IFERROR('Tabel 4 NJ'!I40/'Tabel 4F NJ'!I40*100,"-")) -> 22.05882353
A41: Bac. Hum. | C41: =IF(OR('Tabel 4F NJ'!C41<5,'Tabel 4 NJ'!C41<0.5),"-",IFERROR('Tabel 4 NJ'!C41/'Tabel 4F NJ'!C41*100,"-")) -> 30.76923077 | D41: =IF(OR('Tabel 4F NJ'!D41<5,'Tabel 4 NJ'!D41<0.5),"-",IFERROR('Tabel 4 NJ'!D41/'Tabel 4F NJ'!D41*100,"-")) -> 15.90909091 | E41: =IF(OR('Tabel 4F NJ'!E41<5,'Tabel 4 NJ'!E41<0.5),"-",IFERROR('Tabel 4 NJ'!E41/'Tabel 4F NJ'!E41*100,"-")) -> 9.230769231 | F41: =IF(OR('Tabel 4F NJ'!F41<5,'Tabel 4 NJ'!F41<0.5),"-",IFERROR('Tabel 4 NJ'!F41/'Tabel 4F NJ'!F41*100,"-")) -> 10.52631579 | G41: =IF(OR('Tabel 4F NJ'!G41<5,'Tabel 4 NJ'!G41<0.5),"-",IFERROR('Tabel 4 NJ'!G41/'Tabel 4F NJ'!G41*100,"-")) -> 20 | I41: =IF(OR('Tabel 4F NJ'!I41<5,'Tabel 4 NJ'!I41<0.5),"-",IFERROR('Tabel 4 NJ'!I41/'Tabel 4F NJ'!I41*100,"-")) -> 18.93004115
A42: Bac. Nat. | C42: =IF(OR('Tabel 4F NJ'!C42<5,'Tabel 4 NJ'!C42<0.5),"-",IFERROR('Tabel 4 NJ'!C42/'Tabel 4F NJ'!C42*100,"-")) -> 19.58762887 | D42: =IF(OR('Tabel 4F NJ'!D42<5,'Tabel 4 NJ'!D42<0.5),"-",IFERROR('Tabel 4 NJ'!D42/'Tabel 4F NJ'!D42*100,"-")) -> 6.25 | E42: =IF(OR('Tabel 4F NJ'!E42<5,'Tabel 4 NJ'!E42<0.5),"-",IFERROR('Tabel 4 NJ'!E42/'Tabel 4F NJ'!E42*100,"-")) -> 6.060606061 | F42: =IF(OR('Tabel 4F NJ'!F42<5,'Tabel 4 NJ'!F42<0.5),"-",IFERROR('Tabel 4 NJ'!F42/'Tabel 4F NJ'!F42*100,"-")) -> - | G42: =IF(OR('Tabel 4F NJ'!G42<5,'Tabel 4 NJ'!G42<0.5),"-",IFERROR('Tabel 4 NJ'!G42/'Tabel 4F NJ'!G42*100,"-")) -> - | I42: =IF(OR('Tabel 4F NJ'!I42<5,'Tabel 4 NJ'!I42<0.5),"-",IFERROR('Tabel 4 NJ'!I42/'Tabel 4F NJ'!I42*100,"-")) -> 11.84834123
A43: Andre | C43: =IF(OR('Tabel 4F NJ'!C43<5,'Tabel 4 NJ'!C43<0.5),"-",IFERROR('Tabel 4 NJ'!C43/'Tabel 4F NJ'!C43*100,"-")) -> 15.30054645 | D43: =IF(OR('Tabel 4F NJ'!D43<5,'Tabel 4 NJ'!D43<0.5),"-",IFERROR('Tabel 4 NJ'!D43/'Tabel 4F NJ'!D43*100,"-")) -> 5.277044855 | E43: =IF(OR('Tabel 4F NJ'!E43<5,'Tabel 4 NJ'!E43<0.5),"-",IFERROR('Tabel 4 NJ'!E43/'Tabel 4F NJ'!E43*100,"-")) -> 3.964757709 | F43: =IF(OR('Tabel 4F NJ'!F43<5,'Tabel 4 NJ'!F43<0.5),"-",IFERROR('Tabel 4 NJ'!F43/'Tabel 4F NJ'!F43*100,"-")) -> 4.739336493 | G43: =IF(OR('Tabel 4F NJ'!G43<5,'Tabel 4 NJ'!G43<0.5),"-",IFERROR('Tabel 4 NJ'!G43/'Tabel 4F NJ'!G43*100,"-")) -> 7.692307692 | I43: =IF(OR('Tabel 4F NJ'!I43<5,'Tabel 4 NJ'!I43<0.5),"-",IFERROR('Tabel 4 NJ'!I43/'Tabel 4F NJ'!I43*100,"-")) -> 6.793478261
A45: Total | C45: =IF(OR('Tabel 4F NJ'!C45<5,'Tabel 4 NJ'!C45<0.5),"-",IFERROR('Tabel 4 NJ'!C45/'Tabel 4F NJ'!C45*100,"-")) -> 19.84108967 | D45: =IF(OR('Tabel 4F NJ'!D45<5,'Tabel 4 NJ'!D45<0.5),"-",IFERROR('Tabel 4 NJ'!D45/'Tabel 4F NJ'!D45*100,"-")) -> 6.222822012 | E45: =IF(OR('Tabel 4F NJ'!E45<5,'Tabel 4 NJ'!E45<0.5),"-",IFERROR('Tabel 4 NJ'!E45/'Tabel 4F NJ'!E45*100,"-")) -> 2.894327894 | F45: =IF(OR('Tabel 4F NJ'!F45<5,'Tabel 4 NJ'!F45<0.5),"-",IFERROR('Tabel 4 NJ'!F45/'Tabel 4F NJ'!F45*100,"-")) -> 3.031847134 | G45: =IF(OR('Tabel 4F NJ'!G45<5,'Tabel 4 NJ'!G45<0.5),"-",IFERROR('Tabel 4 NJ'!G45/'Tabel 4F NJ'!G45*100,"-")) -> 5.478331971 | I45: =IF(OR('Tabel 4F NJ'!I45<5,'Tabel 4 NJ'!I45<0.5),"-",IFERROR('Tabel 4 NJ'!I45/'Tabel 4F NJ'!I45*100,"-")) -> 7.599438465
A47: Ingeniører i alt | C47: =IF(OR('Tabel 4F NJ'!C47<5,'Tabel 4 NJ'!C47<0.5),"-",IFERROR('Tabel 4 NJ'!C47/'Tabel 4F NJ'!C47*100,"-")) -> 10.80432173 | D47: =IF(OR('Tabel 4F NJ'!D47<5,'Tabel 4 NJ'!D47<0.5),"-",IFERROR('Tabel 4 NJ'!D47/'Tabel 4F NJ'!D47*100,"-")) -> 2.714600147 | E47: =IF(OR('Tabel 4F NJ'!E47<5,'Tabel 4 NJ'!E47<0.5),"-",IFERROR('Tabel 4 NJ'!E47/'Tabel 4F NJ'!E47*100,"-")) -> 1.039346696 | F47: =IF(OR('Tabel 4F NJ'!F47<5,'Tabel 4 NJ'!F47<0.5),"-",IFERROR('Tabel 4 NJ'!F47/'Tabel 4F NJ'!F47*100,"-")) -> 2.122820318 | G47: =IF(OR('Tabel 4F NJ'!G47<5,'Tabel 4 NJ'!G47<0.5),"-",IFERROR('Tabel 4 NJ'!G47/'Tabel 4F NJ'!G47*100,"-")) -> 6.042296073 | I47: =IF(OR('Tabel 4F NJ'!I47<5,'Tabel 4 NJ'!I47<0.5),"-",IFERROR('Tabel 4 NJ'!I47/'Tabel 4F NJ'!I47*100,"-")) -> 3.639514731
A48: Magistre i alt | C48: =IF(OR('Tabel 4F NJ'!C48<5,'Tabel 4 NJ'!C48<0.5),"-",IFERROR('Tabel 4 NJ'!C48/'Tabel 4F NJ'!C48*100,"-")) -> 30.96960926 | D48: =IF(OR('Tabel 4F NJ'!D48<5,'Tabel 4 NJ'!D48<0.5),"-",IFERROR('Tabel 4 NJ'!D48/'Tabel 4F NJ'!D48*100,"-")) -> 11.40939597 | E48: =IF(OR('Tabel 4F NJ'!E48<5,'Tabel 4 NJ'!E48<0.5),"-",IFERROR('Tabel 4 NJ'!E48/'Tabel 4F NJ'!E48*100,"-")) -> 5.096525097 | F48: =IF(OR('Tabel 4F NJ'!F48<5,'Tabel 4 NJ'!F48<0.5),"-",IFERROR('Tabel 4 NJ'!F48/'Tabel 4F NJ'!F48*100,"-")) -> 5.194805195 | G48: =IF(OR('Tabel 4F NJ'!G48<5,'Tabel 4 NJ'!G48<0.5),"-",IFERROR('Tabel 4 NJ'!G48/'Tabel 4F NJ'!G48*100,"-")) -> 5.434782609 | I48: =IF(OR('Tabel 4F NJ'!I48<5,'Tabel 4 NJ'!I48<0.5),"-",IFERROR('Tabel 4 NJ'!I48/'Tabel 4F NJ'!I48*100,"-")) -> 11.37710358
A49: DJØF'ere i alt | C49: =IF(OR('Tabel 4F NJ'!C49<5,'Tabel 4 NJ'!C49<0.5),"-",IFERROR('Tabel 4 NJ'!C49/'Tabel 4F NJ'!C49*100,"-")) -> 16.72443674 | D49: =IF(OR('Tabel 4F NJ'!D49<5,'Tabel 4 NJ'!D49<0.5),"-",IFERROR('Tabel 4 NJ'!D49/'Tabel 4F NJ'!D49*100,"-")) -> 4.289215686 | E49: =IF(OR('Tabel 4F NJ'!E49<5,'Tabel 4 NJ'!E49<0.5),"-",IFERROR('Tabel 4 NJ'!E49/'Tabel 4F NJ'!E49*100,"-")) -> 2.490421456 | F49: =IF(OR('Tabel 4F NJ'!F49<5,'Tabel 4 NJ'!F49<0.5),"-",IFERROR('Tabel 4 NJ'!F49/'Tabel 4F NJ'!F49*100,"-")) -> 2.800466744 | G49: =IF(OR('Tabel 4F NJ'!G49<5,'Tabel 4 NJ'!G49<0.5),"-",IFERROR('Tabel 4 NJ'!G49/'Tabel 4F NJ'!G49*100,"-")) -> 8.396946565 | I49: =IF(OR('Tabel 4F NJ'!I49<5,'Tabel 4 NJ'!I49<0.5),"-",IFERROR('Tabel 4 NJ'!I49/'Tabel 4F NJ'!I49*100,"-")) -> 6.724782067
A56: Morsø
C58: Under 30 år | D58: 30 - 39 år | E58: 40 - 49 år | F58: 50 - 59 år | G58: Over 60 år | I58: I alt
A60: Civ. ing. | C60: =IF(OR('Tabel 4F NJ'!C60<5,'Tabel 4 NJ'!C60<0.5),"-",IFERROR('Tabel 4 NJ'!C60/'Tabel 4F NJ'!C60*100,"-")) -> - | D60: =IF(OR('Tabel 4F NJ'!D60<5,'Tabel 4 NJ'!D60<0.5),"-",IFERROR('Tabel 4 NJ'!D60/'Tabel 4F NJ'!D60*100,"-")) -> - | E60: =IF(OR('Tabel 4F NJ'!E60<5,'Tabel 4 NJ'!E60<0.5),"-",IFERROR('Tabel 4 NJ'!E60/'Tabel 4F NJ'!E60*100,"-")) -> - | F60: =IF(OR('Tabel 4F NJ'!F60<5,'Tabel 4 NJ'!F60<0.5),"-",IFERROR('Tabel 4 NJ'!F60/'Tabel 4F NJ'!F60*100,"-")) -> - | G60: =IF(OR('Tabel 4F NJ'!G60<5,'Tabel 4 NJ'!G60<0.5),"-",IFERROR('Tabel 4 NJ'!G60/'Tabel 4F NJ'!G60*100,"-")) -> - | I60: =IF(OR('Tabel 4F NJ'!I60<5,'Tabel 4 NJ'!I60<0.5),"-",IFERROR('Tabel 4 NJ'!I60/'Tabel 4F NJ'!I60*100,"-")) -> -
A61: Diplom ing. | C61: =IF(OR('Tabel 4F NJ'!C61<5,'Tabel 4 NJ'!C61<0.5),"-",IFERROR('Tabel 4 NJ'!C61/'Tabel 4F NJ'!C61*100,"-")) -> - | D61: =IF(OR('Tabel 4F NJ'!D61<5,'Tabel 4 NJ'!D61<0.5),"-",IFERROR('Tabel 4 NJ'!D61/'Tabel 4F NJ'!D61*100,"-")) -> - | E61: =IF(OR('Tabel 4F NJ'!E61<5,'Tabel 4 NJ'!E61<0.5),"-",IFERROR('Tabel 4 NJ'!E61/'Tabel 4F NJ'!E61*100,"-")) -> - | F61: =IF(OR('Tabel 4F NJ'!F61<5,'Tabel 4 NJ'!F61<0.5),"-",IFERROR('Tabel 4 NJ'!F61/'Tabel 4F NJ'!F61*100,"-")) -> 8.333333333 | G61: =IF(OR('Tabel 4F NJ'!G61<5,'Tabel 4 NJ'!G61<0.5),"-",IFERROR('Tabel 4 NJ'!G61/'Tabel 4F NJ'!G61*100,"-")) -> - | I61: =IF(OR('Tabel 4F NJ'!I61<5,'Tabel 4 NJ'!I61<0.5),"-",IFERROR('Tabel 4 NJ'!I61/'Tabel 4F NJ'!I61*100,"-")) -> 4.166666667
A62: Cand. Scient. Tek | C62: =IF(OR('Tabel 4F NJ'!C62<5,'Tabel 4 NJ'!C62<0.5),"-",IFERROR('Tabel 4 NJ'!C62/'Tabel 4F NJ'!C62*100,"-")) -> - | D62: =IF(OR('Tabel 4F NJ'!D62<5,'Tabel 4 NJ'!D62<0.5),"-",IFERROR('Tabel 4 NJ'!D62/'Tabel 4F NJ'!D62*100,"-")) -> - | E62: =IF(OR('Tabel 4F NJ'!E62<5,'Tabel 4 NJ'!E62<0.5),"-",IFERROR('Tabel 4 NJ'!E62/'Tabel 4F NJ'!E62*100,"-")) -> - | F62: =IF(OR('Tabel 4F NJ'!F62<5,'Tabel 4 NJ'!F62<0.5),"-",IFERROR('Tabel 4 NJ'!F62/'Tabel 4F NJ'!F62*100,"-")) -> - | G62: =IF(OR('Tabel 4F NJ'!G62<5,'Tabel 4 NJ'!G62<0.5),"-",IFERROR('Tabel 4 NJ'!G62/'Tabel 4F NJ'!G62*100,"-")) -> - | I62: =IF(OR('Tabel 4F NJ'!I62<5,'Tabel 4 NJ'!I62<0.5),"-",IFERROR('Tabel 4 NJ'!I62/'Tabel 4F NJ'!I62*100,"-")) -> 12.5
A63: MA. Hum. | C63: =IF(OR('Tabel 4F NJ'!C63<5,'Tabel 4 NJ'!C63<0.5),"-",IFERROR('Tabel 4 NJ'!C63/'Tabel 4F NJ'!C63*100,"-")) -> - | D63: =IF(OR('Tabel 4F NJ'!D63<5,'Tabel 4 NJ'!D63<0.5),"-",IFERROR('Tabel 4 NJ'!D63/'Tabel 4F NJ'!D63*100,"-")) -> 25 | E63: =IF(OR('Tabel 4F NJ'!E63<5,'Tabel 4 NJ'!E63<0.5),"-",IFERROR('Tabel 4 NJ'!E63/'Tabel 4F NJ'!E63*100,"-")) -> 14.28571429 | F63: =IF(OR('Tabel 4F NJ'!F63<5,'Tabel 4 NJ'!F63<0.5),"-",IFERROR('Tabel 4 NJ'!F63/'Tabel 4F NJ'!F63*100,"-")) -> - | G63: =IF(OR('Tabel 4F NJ'!G63<5,'Tabel 4 NJ'!G63<0.5),"-",IFERROR('Tabel 4 NJ'!G63/'Tabel 4F NJ'!G63*100,"-")) -> - | I63: =IF(OR('Tabel 4F NJ'!I63<5,'Tabel 4 NJ'!I63<0.5),"-",IFERROR('Tabel 4 NJ'!I63/'Tabel 4F NJ'!I63*100,"-")) -> 10
A64: MA. Nat. | C64: =IF(OR('Tabel 4F NJ'!C64<5,'Tabel 4 NJ'!C64<0.5),"-",IFERROR('Tabel 4 NJ'!C64/'Tabel 4F NJ'!C64*100,"-")) -> - | D64: =IF(OR('Tabel 4F NJ'!D64<5,'Tabel 4 NJ'!D64<0.5),"-",IFERROR('Tabel 4 NJ'!D64/'Tabel 4F NJ'!D64*100,"-")) -> - | E64: =IF(OR('Tabel 4F NJ'!E64<5,'Tabel 4 NJ'!E64<0.5),"-",IFERROR('Tabel 4 NJ'!E64/'Tabel 4F NJ'!E64*100,"-")) -> 12.5 | F64: =IF(OR('Tabel 4F NJ'!F64<5,'Tabel 4 NJ'!F64<0.5),"-",IFERROR('Tabel 4 NJ'!F64/'Tabel 4F NJ'!F64*100,"-")) -> - | G64: =IF(OR('Tabel 4F NJ'!G64<5,'Tabel 4 NJ'!G64<0.5),"-",IFERROR('Tabel 4 NJ'!G64/'Tabel 4F NJ'!G64*100,"-")) -> - | I64: =IF(OR('Tabel 4F NJ'!I64<5,'Tabel 4 NJ'!I64<0.5),"-",IFERROR('Tabel 4 NJ'!I64/'Tabel 4F NJ'!I64*100,"-")) -> 5
A65: MA. Ph.d. | C65: =IF(OR('Tabel 4F NJ'!C65<5,'Tabel 4 NJ'!C65<0.5),"-",IFERROR('Tabel 4 NJ'!C65/'Tabel 4F NJ'!C65*100,"-")) -> - | D65: =IF(OR('Tabel 4F NJ'!D65<5,'Tabel 4 NJ'!D65<0.5),"-",IFERROR('Tabel 4 NJ'!D65/'Tabel 4F NJ'!D65*100,"-")) -> - | E65: =IF(OR('Tabel 4F NJ'!E65<5,'Tabel 4 NJ'!E65<0.5),"-",IFERROR('Tabel 4 NJ'!E65/'Tabel 4F NJ'!E65*100,"-")) -> - | F65: =IF(OR('Tabel 4F NJ'!F65<5,'Tabel 4 NJ'!F65<0.5),"-",IFERROR('Tabel 4 NJ'!F65/'Tabel 4F NJ'!F65*100,"-")) -> - | G65: =IF(OR('Tabel 4F NJ'!G65<5,'Tabel 4 NJ'!G65<0.5),"-",IFERROR('Tabel 4 NJ'!G65/'Tabel 4F NJ'!G65*100,"-")) -> - | I65: =IF(OR('Tabel 4F NJ'!I65<5,'Tabel 4 NJ'!I65<0.5),"-",IFERROR('Tabel 4 NJ'!I65/'Tabel 4F NJ'!I65*100,"-")) -> -
A66: MA. Samf. | C66: =IF(OR('Tabel 4F NJ'!C66<5,'Tabel 4 NJ'!C66<0.5),"-",IFERROR('Tabel 4 NJ'!C66/'Tabel 4F NJ'!C66*100,"-")) -> - | D66: =IF(OR('Tabel 4F NJ'!D66<5,'Tabel 4 NJ'!D66<0.5),"-",IFERROR('Tabel 4 NJ'!D66/'Tabel 4F NJ'!D66*100,"-")) -> - | E66: =IF(OR('Tabel 4F NJ'!E66<5,'Tabel 4 NJ'!E66<0.5),"-",IFERROR('Tabel 4 NJ'!E66/'Tabel 4F NJ'!E66*100,"-")) -> - | F66: =IF(OR('Tabel 4F NJ'!F66<5,'Tabel 4 NJ'!F66<0.5),"-",IFERROR('Tabel 4 NJ'!F66/'Tabel 4F NJ'!F66*100,"-")) -> - | G66: =IF(OR('Tabel 4F NJ'!G66<5,'Tabel 4 NJ'!G66<0.5),"-",IFERROR('Tabel 4 NJ'!G66/'Tabel 4F NJ'!G66*100,"-")) -> - | I66: =IF(OR('Tabel 4F NJ'!I66<5,'Tabel 4 NJ'!I66<0.5),"-",IFERROR('Tabel 4 NJ'!I66/'Tabel 4F NJ'!I66*100,"-")) -> -
A67: Øvrige Mag. | C67: =IF(OR('Tabel 4F NJ'!C67<5,'Tabel 4 NJ'!C67<0.5),"-",IFERROR('Tabel 4 NJ'!C67/'Tabel 4F NJ'!C67*100,"-")) -> - | D67: =IF(OR('Tabel 4F NJ'!D67<5,'Tabel 4 NJ'!D67<0.5),"-",IFERROR('Tabel 4 NJ'!D67/'Tabel 4F NJ'!D67*100,"-")) -> - | E67: =IF(OR('Tabel 4F NJ'!E67<5,'Tabel 4 NJ'!E67<0.5),"-",IFERROR('Tabel 4 NJ'!E67/'Tabel 4F NJ'!E67*100,"-")) -> - | F67: =IF(OR('Tabel 4F NJ'!F67<5,'Tabel 4 NJ'!F67<0.5),"-",IFERROR('Tabel 4 NJ'!F67/'Tabel 4F NJ'!F67*100,"-")) -> - | G67: =IF(OR('Tabel 4F NJ'!G67<5,'Tabel 4 NJ'!G67<0.5),"-",IFERROR('Tabel 4 NJ'!G67/'Tabel 4F NJ'!G67*100,"-")) -> - | I67: =IF(OR('Tabel 4F NJ'!I67<5,'Tabel 4 NJ'!I67<0.5),"-",IFERROR('Tabel 4 NJ'!I67/'Tabel 4F NJ'!I67*100,"-")) -> -
A68: Agronom | C68: =IF(OR('Tabel 4F NJ'!C68<5,'Tabel 4 NJ'!C68<0.5),"-",IFERROR('Tabel 4 NJ'!C68/'Tabel 4F NJ'!C68*100,"-")) -> - | D68: =IF(OR('Tabel 4F NJ'!D68<5,'Tabel 4 NJ'!D68<0.5),"-",IFERROR('Tabel 4 NJ'!D68/'Tabel 4F NJ'!D68*100,"-")) -> - | E68: =IF(OR('Tabel 4F NJ'!E68<5,'Tabel 4 NJ'!E68<0.5),"-",IFERROR('Tabel 4 NJ'!E68/'Tabel 4F NJ'!E68*100,"-")) -> - | F68: =IF(OR('Tabel 4F NJ'!F68<5,'Tabel 4 NJ'!F68<0.5),"-",IFERROR('Tabel 4 NJ'!F68/'Tabel 4F NJ'!F68*100,"-")) -> - | G68: =IF(OR('Tabel 4F NJ'!G68<5,'Tabel 4 NJ'!G68<0.5),"-",IFERROR('Tabel 4 NJ'!G68/'Tabel 4F NJ'!G68*100,"-")) -> - | I68: =IF(OR('Tabel 4F NJ'!I68<5,'Tabel 4 NJ'!I68<0.5),"-",IFERROR('Tabel 4 NJ'!I68/'Tabel 4F NJ'!I68*100,"-")) -> -
A69: Landsk. Arkt. | C69: =IF(OR('Tabel 4F NJ'!C69<5,'Tabel 4 NJ'!C69<0.5),"-",IFERROR('Tabel 4 NJ'!C69/'Tabel 4F NJ'!C69*100,"-")) -> - | D69: =IF(OR('Tabel 4F NJ'!D69<5,'Tabel 4 NJ'!D69<0.5),"-",IFERROR('Tabel 4 NJ'!D69/'Tabel 4F NJ'!D69*100,"-")) -> - | E69: =IF(OR('Tabel 4F NJ'!E69<5,'Tabel 4 NJ'!E69<0.5),"-",IFERROR('Tabel 4 NJ'!E69/'Tabel 4F NJ'!E69*100,"-")) -> - | F69: =IF(OR('Tabel 4F NJ'!F69<5,'Tabel 4 NJ'!F69<0.5),"-",IFERROR('Tabel 4 NJ'!F69/'Tabel 4F NJ'!F69*100,"-")) -> - | G69: =IF(OR('Tabel 4F NJ'!G69<5,'Tabel 4 NJ'!G69<0.5),"-",IFERROR('Tabel 4 NJ'!G69/'Tabel 4F NJ'!G69*100,"-")) -> - | I69: =IF(OR('Tabel 4F NJ'!I69<5,'Tabel 4 NJ'!I69<0.5),"-",IFERROR('Tabel 4 NJ'!I69/'Tabel 4F NJ'!I69*100,"-")) -> -
A70: Hortonom | C70: =IF(OR('Tabel 4F NJ'!C70<5,'Tabel 4 NJ'!C70<0.5),"-",IFERROR('Tabel 4 NJ'!C70/'Tabel 4F NJ'!C70*100,"-")) -> - | D70: =IF(OR('Tabel 4F NJ'!D70<5,'Tabel 4 NJ'!D70<0.5),"-",IFERROR('Tabel 4 NJ'!D70/'Tabel 4F NJ'!D70*100,"-")) -> - | E70: =IF(OR('Tabel 4F NJ'!E70<5,'Tabel 4 NJ'!E70<0.5),"-",IFERROR('Tabel 4 NJ'!E70/'Tabel 4F NJ'!E70*100,"-")) -> - | F70: =IF(OR('Tabel 4F NJ'!F70<5,'Tabel 4 NJ'!F70<0.5),"-",IFERROR('Tabel 4 NJ'!F70/'Tabel 4F NJ'!F70*100,"-")) -> - | G70: =IF(OR('Tabel 4F NJ'!G70<5,'Tabel 4 NJ'!G70<0.5),"-",IFERROR('Tabel 4 NJ'!G70/'Tabel 4F NJ'!G70*100,"-")) -> - | I70: =IF(OR('Tabel 4F NJ'!I70<5,'Tabel 4 NJ'!I70<0.5),"-",IFERROR('Tabel 4 NJ'!I70/'Tabel 4F NJ'!I70*100,"-")) -> -
A71: Forstkand. | C71: =IF(OR('Tabel 4F NJ'!C71<5,'Tabel 4 NJ'!C71<0.5),"-",IFERROR('Tabel 4 NJ'!C71/'Tabel 4F NJ'!C71*100,"-")) -> - | D71: =IF(OR('Tabel 4F NJ'!D71<5,'Tabel 4 NJ'!D71<0.5),"-",IFERROR('Tabel 4 NJ'!D71/'Tabel 4F NJ'!D71*100,"-")) -> - | E71: =IF(OR('Tabel 4F NJ'!E71<5,'Tabel 4 NJ'!E71<0.5),"-",IFERROR('Tabel 4 NJ'!E71/'Tabel 4F NJ'!E71*100,"-")) -> - | F71: =IF(OR('Tabel 4F NJ'!F71<5,'Tabel 4 NJ'!F71<0.5),"-",IFERROR('Tabel 4 NJ'!F71/'Tabel 4F NJ'!F71*100,"-")) -> - | G71: =IF(OR('Tabel 4F NJ'!G71<5,'Tabel 4 NJ'!G71<0.5),"-",IFERROR('Tabel 4 NJ'!G71/'Tabel 4F NJ'!G71*100,"-")) -> - | I71: =IF(OR('Tabel 4F NJ'!I71<5,'Tabel 4 NJ'!I71<0.5),"-",IFERROR('Tabel 4 NJ'!I71/'Tabel 4F NJ'!I71*100,"-")) -> -
A72: Jordbrugsakad. | C72: =IF(OR('Tabel 4F NJ'!C72<5,'Tabel 4 NJ'!C72<0.5),"-",IFERROR('Tabel 4 NJ'!C72/'Tabel 4F NJ'!C72*100,"-")) -> - | D72: =IF(OR('Tabel 4F NJ'!D72<5,'Tabel 4 NJ'!D72<0.5),"-",IFERROR('Tabel 4 NJ'!D72/'Tabel 4F NJ'!D72*100,"-")) -> - | E72: =IF(OR('Tabel 4F NJ'!E72<5,'Tabel 4 NJ'!E72<0.5),"-",IFERROR('Tabel 4 NJ'!E72/'Tabel 4F NJ'!E72*100,"-")) -> - | F72: =IF(OR('Tabel 4F NJ'!F72<5,'Tabel 4 NJ'!F72<0.5),"-",IFERROR('Tabel 4 NJ'!F72/'Tabel 4F NJ'!F72*100,"-")) -> - | G72: =IF(OR('Tabel 4F NJ'!G72<5,'Tabel 4 NJ'!G72<0.5),"-",IFERROR('Tabel 4 NJ'!G72/'Tabel 4F NJ'!G72*100,"-")) -> - | I72: =IF(OR('Tabel 4F NJ'!I72<5,'Tabel 4 NJ'!I72<0.5),"-",IFERROR('Tabel 4 NJ'!I72/'Tabel 4F NJ'!I72*100,"-")) -> -
A73: Mejeriing. | C73: =IF(OR('Tabel 4F NJ'!C73<5,'Tabel 4 NJ'!C73<0.5),"-",IFERROR('Tabel 4 NJ'!C73/'Tabel 4F NJ'!C73*100,"-")) -> - | D73: =IF(OR('Tabel 4F NJ'!D73<5,'Tabel 4 NJ'!D73<0.5),"-",IFERROR('Tabel 4 NJ'!D73/'Tabel 4F NJ'!D73*100,"-")) -> - | E73: =IF(OR('Tabel 4F NJ'!E73<5,'Tabel 4 NJ'!E73<0.5),"-",IFERROR('Tabel 4 NJ'!E73/'Tabel 4F NJ'!E73*100,"-")) -> - | F73: =IF(OR('Tabel 4F NJ'!F73<5,'Tabel 4 NJ'!F73<0.5),"-",IFERROR('Tabel 4 NJ'!F73/'Tabel 4F NJ'!F73*100,"-")) -> - | G73: =IF(OR('Tabel 4F NJ'!G73<5,'Tabel 4 NJ'!G73<0.5),"-",IFERROR('Tabel 4 NJ'!G73/'Tabel 4F NJ'!G73*100,"-")) -> - | I73: =IF(OR('Tabel 4F NJ'!I73<5,'Tabel 4 NJ'!I73<0.5),"-",IFERROR('Tabel 4 NJ'!I73/'Tabel 4F NJ'!I73*100,"-")) -> -
A74: Levn.m.kand. | C74: =IF(OR('Tabel 4F NJ'!C74<5,'Tabel 4 NJ'!C74<0.5),"-",IFERROR('Tabel 4 NJ'!C74/'Tabel 4F NJ'!C74*100,"-")) -> - | D74: =IF(OR('Tabel 4F NJ'!D74<5,'Tabel 4 NJ'!D74<0.5),"-",IFERROR('Tabel 4 NJ'!D74/'Tabel 4F NJ'!D74*100,"-")) -> - | E74: =IF(OR('Tabel 4F NJ'!E74<5,'Tabel 4 NJ'!E74<0.5),"-",IFERROR('Tabel 4 NJ'!E74/'Tabel 4F NJ'!E74*100,"-")) -> - | F74: =IF(OR('Tabel 4F NJ'!F74<5,'Tabel 4 NJ'!F74<0.5),"-",IFERROR('Tabel 4 NJ'!F74/'Tabel 4F NJ'!F74*100,"-")) -> - | G74: =IF(OR('Tabel 4F NJ'!G74<5,'Tabel 4 NJ'!G74<0.5),"-",IFERROR('Tabel 4 NJ'!G74/'Tabel 4F NJ'!G74*100,"-")) -> - | I74: =IF(OR('Tabel 4F NJ'!I74<5,'Tabel 4 NJ'!I74<0.5),"-",IFERROR('Tabel 4 NJ'!I74/'Tabel 4F NJ'!I74*100,"-")) -> -
A75: Dyrlæge | C75: =IF(OR('Tabel 4F NJ'!C75<5,'Tabel 4 NJ'!C75<0.5),"-",IFERROR('Tabel 4 NJ'!C75/'Tabel 4F NJ'!C75*100,"-")) -> - | D75: =IF(OR('Tabel 4F NJ'!D75<5,'Tabel 4 NJ'!D75<0.5),"-",IFERROR('Tabel 4 NJ'!D75/'Tabel 4F NJ'!D75*100,"-")) -> - | E75: =IF(OR('Tabel 4F NJ'!E75<5,'Tabel 4 NJ'!E75<0.5),"-",IFERROR('Tabel 4 NJ'!E75/'Tabel 4F NJ'!E75*100,"-")) -> - | F75: =IF(OR('Tabel 4F NJ'!F75<5,'Tabel 4 NJ'!F75<0.5),"-",IFERROR('Tabel 4 NJ'!F75/'Tabel 4F NJ'!F75*100,"-")) -> - | G75: =IF(OR('Tabel 4F NJ'!G75<5,'Tabel 4 NJ'!G75<0.5),"-",IFERROR('Tabel 4 NJ'!G75/'Tabel 4F NJ'!G75*100,"-")) -> - | I75: =IF(OR('Tabel 4F NJ'!I75<5,'Tabel 4 NJ'!I75<0.5),"-",IFERROR('Tabel 4 NJ'!I75/'Tabel 4F NJ'!I75*100,"-")) -> -
A76: Farmaceut | C76: =IF(OR('Tabel 4F NJ'!C76<5,'Tabel 4 NJ'!C76<0.5),"-",IFERROR('Tabel 4 NJ'!C76/'Tabel 4F NJ'!C76*100,"-")) -> - | D76: =IF(OR('Tabel 4F NJ'!D76<5,'Tabel 4 NJ'!D76<0.5),"-",IFERROR('Tabel 4 NJ'!D76/'Tabel 4F NJ'!D76*100,"-")) -> - | E76: =IF(OR('Tabel 4F NJ'!E76<5,'Tabel 4 NJ'!E76<0.5),"-",IFERROR('Tabel 4 NJ'!E76/'Tabel 4F NJ'!E76*100,"-")) -> - | F76: =IF(OR('Tabel 4F NJ'!F76<5,'Tabel 4 NJ'!F76<0.5),"-",IFERROR('Tabel 4 NJ'!F76/'Tabel 4F NJ'!F76*100,"-")) -> - | G76: =IF(OR('Tabel 4F NJ'!G76<5,'Tabel 4 NJ'!G76<0.5),"-",IFERROR('Tabel 4 NJ'!G76/'Tabel 4F NJ'!G76*100,"-")) -> - | I76: =IF(OR('Tabel 4F NJ'!I76<5,'Tabel 4 NJ'!I76<0.5),"-",IFERROR('Tabel 4 NJ'!I76/'Tabel 4F NJ'!I76*100,"-")) -> -
A77: Læge | C77: =IF(OR('Tabel 4F NJ'!C77<5,'Tabel 4 NJ'!C77<0.5),"-",IFERROR('Tabel 4 NJ'!C77/'Tabel 4F NJ'!C77*100,"-")) -> - | D77: =IF(OR('Tabel 4F NJ'!D77<5,'Tabel 4 NJ'!D77<0.5),"-",IFERROR('Tabel 4 NJ'!D77/'Tabel 4F NJ'!D77*100,"-")) -> - | E77: =IF(OR('Tabel 4F NJ'!E77<5,'Tabel 4 NJ'!E77<0.5),"-",IFERROR('Tabel 4 NJ'!E77/'Tabel 4F NJ'!E77*100,"-")) -> - | F77: =IF(OR('Tabel 4F NJ'!F77<5,'Tabel 4 NJ'!F77<0.5),"-",IFERROR('Tabel 4 NJ'!F77/'Tabel 4F NJ'!F77*100,"-")) -> - | G77: =IF(OR('Tabel 4F NJ'!G77<5,'Tabel 4 NJ'!G77<0.5),"-",IFERROR('Tabel 4 NJ'!G77/'Tabel 4F NJ'!G77*100,"-")) -> - | I77: =IF(OR('Tabel 4F NJ'!I77<5,'Tabel 4 NJ'!I77<0.5),"-",IFERROR('Tabel 4 NJ'!I77/'Tabel 4F NJ'!I77*100,"-")) -> -
A78: Tandlæge | C78: =IF(OR('Tabel 4F NJ'!C78<5,'Tabel 4 NJ'!C78<0.5),"-",IFERROR('Tabel 4 NJ'!C78/'Tabel 4F NJ'!C78*100,"-")) -> - | D78: =IF(OR('Tabel 4F NJ'!D78<5,'Tabel 4 NJ'!D78<0.5),"-",IFERROR('Tabel 4 NJ'!D78/'Tabel 4F NJ'!D78*100,"-")) -> - | E78: =IF(OR('Tabel 4F NJ'!E78<5,'Tabel 4 NJ'!E78<0.5),"-",IFERROR('Tabel 4 NJ'!E78/'Tabel 4F NJ'!E78*100,"-")) -> - | F78: =IF(OR('Tabel 4F NJ'!F78<5,'Tabel 4 NJ'!F78<0.5),"-",IFERROR('Tabel 4 NJ'!F78/'Tabel 4F NJ'!F78*100,"-")) -> - | G78: =IF(OR('Tabel 4F NJ'!G78<5,'Tabel 4 NJ'!G78<0.5),"-",IFERROR('Tabel 4 NJ'!G78/'Tabel 4F NJ'!G78*100,"-")) -> - | I78: =IF(OR('Tabel 4F NJ'!I78<5,'Tabel 4 NJ'!I78<0.5),"-",IFERROR('Tabel 4 NJ'!I78/'Tabel 4F NJ'!I78*100,"-")) -> -
A79: Arkitekt | C79: =IF(OR('Tabel 4F NJ'!C79<5,'Tabel 4 NJ'!C79<0.5),"-",IFERROR('Tabel 4 NJ'!C79/'Tabel 4F NJ'!C79*100,"-")) -> - | D79: =IF(OR('Tabel 4F NJ'!D79<5,'Tabel 4 NJ'!D79<0.5),"-",IFERROR('Tabel 4 NJ'!D79/'Tabel 4F NJ'!D79*100,"-")) -> - | E79: =IF(OR('Tabel 4F NJ'!E79<5,'Tabel 4 NJ'!E79<0.5),"-",IFERROR('Tabel 4 NJ'!E79/'Tabel 4F NJ'!E79*100,"-")) -> - | F79: =IF(OR('Tabel 4F NJ'!F79<5,'Tabel 4 NJ'!F79<0.5),"-",IFERROR('Tabel 4 NJ'!F79/'Tabel 4F NJ'!F79*100,"-")) -> - | G79: =IF(OR('Tabel 4F NJ'!G79<5,'Tabel 4 NJ'!G79<0.5),"-",IFERROR('Tabel 4 NJ'!G79/'Tabel 4F NJ'!G79*100,"-")) -> - | I79: =IF(OR('Tabel 4F NJ'!I79<5,'Tabel 4 NJ'!I79<0.5),"-",IFERROR('Tabel 4 NJ'!I79/'Tabel 4F NJ'!I79*100,"-")) -> -
A80: Landinspek. | C80: =IF(OR('Tabel 4F NJ'!C80<5,'Tabel 4 NJ'!C80<0.5),"-",IFERROR('Tabel 4 NJ'!C80/'Tabel 4F NJ'!C80*100,"-")) -> - | D80: =IF(OR('Tabel 4F NJ'!D80<5,'Tabel 4 NJ'!D80<0.5),"-",IFERROR('Tabel 4 NJ'!D80/'Tabel 4F NJ'!D80*100,"-")) -> - | E80: =IF(OR('Tabel 4F NJ'!E80<5,'Tabel 4 NJ'!E80<0.5),"-",IFERROR('Tabel 4 NJ'!E80/'Tabel 4F NJ'!E80*100,"-")) -> - | F80: =IF(OR('Tabel 4F NJ'!F80<5,'Tabel 4 NJ'!F80<0.5),"-",IFERROR('Tabel 4 NJ'!F80/'Tabel 4F NJ'!F80*100,"-")) -> - | G80: =IF(OR('Tabel 4F NJ'!G80<5,'Tabel 4 NJ'!G80<0.5),"-",IFERROR('Tabel 4 NJ'!G80/'Tabel 4F NJ'!G80*100,"-")) -> - | I80: =IF(OR('Tabel 4F NJ'!I80<5,'Tabel 4 NJ'!I80<0.5),"-",IFERROR('Tabel 4 NJ'!I80/'Tabel 4F NJ'!I80*100,"-")) -> -
A81: Bibliotekar | C81: =IF(OR('Tabel 4F NJ'!C81<5,'Tabel 4 NJ'!C81<0.5),"-",IFERROR('Tabel 4 NJ'!C81/'Tabel 4F NJ'!C81*100,"-")) -> - | D81: =IF(OR('Tabel 4F NJ'!D81<5,'Tabel 4 NJ'!D81<0.5),"-",IFERROR('Tabel 4 NJ'!D81/'Tabel 4F NJ'!D81*100,"-")) -> - | E81: =IF(OR('Tabel 4F NJ'!E81<5,'Tabel 4 NJ'!E81<0.5),"-",IFERROR('Tabel 4 NJ'!E81/'Tabel 4F NJ'!E81*100,"-")) -> - | F81: =IF(OR('Tabel 4F NJ'!F81<5,'Tabel 4 NJ'!F81<0.5),"-",IFERROR('Tabel 4 NJ'!F81/'Tabel 4F NJ'!F81*100,"-")) -> - | G81: =IF(OR('Tabel 4F NJ'!G81<5,'Tabel 4 NJ'!G81<0.5),"-",IFERROR('Tabel 4 NJ'!G81/'Tabel 4F NJ'!G81*100,"-")) -> - | I81: =IF(OR('Tabel 4F NJ'!I81<5,'Tabel 4 NJ'!I81<0.5),"-",IFERROR('Tabel 4 NJ'!I81/'Tabel 4F NJ'!I81*100,"-")) -> -
A82: Musikudd. | C82: =IF(OR('Tabel 4F NJ'!C82<5,'Tabel 4 NJ'!C82<0.5),"-",IFERROR('Tabel 4 NJ'!C82/'Tabel 4F NJ'!C82*100,"-")) -> - | D82: =IF(OR('Tabel 4F NJ'!D82<5,'Tabel 4 NJ'!D82<0.5),"-",IFERROR('Tabel 4 NJ'!D82/'Tabel 4F NJ'!D82*100,"-")) -> - | E82: =IF(OR('Tabel 4F NJ'!E82<5,'Tabel 4 NJ'!E82<0.5),"-",IFERROR('Tabel 4 NJ'!E82/'Tabel 4F NJ'!E82*100,"-")) -> - | F82: =IF(OR('Tabel 4F NJ'!F82<5,'Tabel 4 NJ'!F82<0.5),"-",IFERROR('Tabel 4 NJ'!F82/'Tabel 4F NJ'!F82*100,"-")) -> - | G82: =IF(OR('Tabel 4F NJ'!G82<5,'Tabel 4 NJ'!G82<0.5),"-",IFERROR('Tabel 4 NJ'!G82/'Tabel 4F NJ'!G82*100,"-")) -> - | I82: =IF(OR('Tabel 4F NJ'!I82<5,'Tabel 4 NJ'!I82<0.5),"-",IFERROR('Tabel 4 NJ'!I82/'Tabel 4F NJ'!I82*100,"-")) -> -
A83: Teolog | C83: =IF(OR('Tabel 4F NJ'!C83<5,'Tabel 4 NJ'!C83<0.5),"-",IFERROR('Tabel 4 NJ'!C83/'Tabel 4F NJ'!C83*100,"-")) -> - | D83: =IF(OR('Tabel 4F NJ'!D83<5,'Tabel 4 NJ'!D83<0.5),"-",IFERROR('Tabel 4 NJ'!D83/'Tabel 4F NJ'!D83*100,"-")) -> - | E83: =IF(OR('Tabel 4F NJ'!E83<5,'Tabel 4 NJ'!E83<0.5),"-",IFERROR('Tabel 4 NJ'!E83/'Tabel 4F NJ'!E83*100,"-")) -> - | F83: =IF(OR('Tabel 4F NJ'!F83<5,'Tabel 4 NJ'!F83<0.5),"-",IFERROR('Tabel 4 NJ'!F83/'Tabel 4F NJ'!F83*100,"-")) -> - | G83: =IF(OR('Tabel 4F NJ'!G83<5,'Tabel 4 NJ'!G83<0.5),"-",IFERROR('Tabel 4 NJ'!G83/'Tabel 4F NJ'!G83*100,"-")) -> - | I83: =IF(OR('Tabel 4F NJ'!I83<5,'Tabel 4 NJ'!I83<0.5),"-",IFERROR('Tabel 4 NJ'!I83/'Tabel 4F NJ'!I83*100,"-")) -> -
A84: Psykolog | C84: =IF(OR('Tabel 4F NJ'!C84<5,'Tabel 4 NJ'!C84<0.5),"-",IFERROR('Tabel 4 NJ'!C84/'Tabel 4F NJ'!C84*100,"-")) -> - | D84: =IF(OR('Tabel 4F NJ'!D84<5,'Tabel 4 NJ'!D84<0.5),"-",IFERROR('Tabel 4 NJ'!D84/'Tabel 4F NJ'!D84*100,"-")) -> - | E84: =IF(OR('Tabel 4F NJ'!E84<5,'Tabel 4 NJ'!E84<0.5),"-",IFERROR('Tabel 4 NJ'!E84/'Tabel 4F NJ'!E84*100,"-")) -> - | F84: =IF(OR('Tabel 4F NJ'!F84<5,'Tabel 4 NJ'!F84<0.5),"-",IFERROR('Tabel 4 NJ'!F84/'Tabel 4F NJ'!F84*100,"-")) -> - | G84: =IF(OR('Tabel 4F NJ'!G84<5,'Tabel 4 NJ'!G84<0.5),"-",IFERROR('Tabel 4 NJ'!G84/'Tabel 4F NJ'!G84*100,"-")) -> - | I84: =IF(OR('Tabel 4F NJ'!I84<5,'Tabel 4 NJ'!I84<0.5),"-",IFERROR('Tabel 4 NJ'!I84/'Tabel 4F NJ'!I84*100,"-")) -> -
A85: Jurist | C85: =IF(OR('Tabel 4F NJ'!C85<5,'Tabel 4 NJ'!C85<0.5),"-",IFERROR('Tabel 4 NJ'!C85/'Tabel 4F NJ'!C85*100,"-")) -> - | D85: =IF(OR('Tabel 4F NJ'!D85<5,'Tabel 4 NJ'!D85<0.5),"-",IFERROR('Tabel 4 NJ'!D85/'Tabel 4F NJ'!D85*100,"-")) -> - | E85: =IF(OR('Tabel 4F NJ'!E85<5,'Tabel 4 NJ'!E85<0.5),"-",IFERROR('Tabel 4 NJ'!E85/'Tabel 4F NJ'!E85*100,"-")) -> - | F85: =IF(OR('Tabel 4F NJ'!F85<5,'Tabel 4 NJ'!F85<0.5),"-",IFERROR('Tabel 4 NJ'!F85/'Tabel 4F NJ'!F85*100,"-")) -> - | G85: =IF(OR('Tabel 4F NJ'!G85<5,'Tabel 4 NJ'!G85<0.5),"-",IFERROR('Tabel 4 NJ'!G85/'Tabel 4F NJ'!G85*100,"-")) -> - | I85: =IF(OR('Tabel 4F NJ'!I85<5,'Tabel 4 NJ'!I85<0.5),"-",IFERROR('Tabel 4 NJ'!I85/'Tabel 4F NJ'!I85*100,"-")) -> -
A86: Økonom | C86: =IF(OR('Tabel 4F NJ'!C86<5,'Tabel 4 NJ'!C86<0.5),"-",IFERROR('Tabel 4 NJ'!C86/'Tabel 4F NJ'!C86*100,"-")) -> - | D86: =IF(OR('Tabel 4F NJ'!D86<5,'Tabel 4 NJ'!D86<0.5),"-",IFERROR('Tabel 4 NJ'!D86/'Tabel 4F NJ'!D86*100,"-")) -> - | E86: =IF(OR('Tabel 4F NJ'!E86<5,'Tabel 4 NJ'!E86<0.5),"-",IFERROR('Tabel 4 NJ'!E86/'Tabel 4F NJ'!E86*100,"-")) -> - | F86: =IF(OR('Tabel 4F NJ'!F86<5,'Tabel 4 NJ'!F86<0.5),"-",IFERROR('Tabel 4 NJ'!F86/'Tabel 4F NJ'!F86*100,"-")) -> - | G86: =IF(OR('Tabel 4F NJ'!G86<5,'Tabel 4 NJ'!G86<0.5),"-",IFERROR('Tabel 4 NJ'!G86/'Tabel 4F NJ'!G86*100,"-")) -> - | I86: =IF(OR('Tabel 4F NJ'!I86<5,'Tabel 4 NJ'!I86<0.5),"-",IFERROR('Tabel 4 NJ'!I86/'Tabel 4F NJ'!I86*100,"-")) -> -
A87: Samf. Adm. | C87: =IF(OR('Tabel 4F NJ'!C87<5,'Tabel 4 NJ'!C87<0.5),"-",IFERROR('Tabel 4 NJ'!C87/'Tabel 4F NJ'!C87*100,"-")) -> - | D87: =IF(OR('Tabel 4F NJ'!D87<5,'Tabel 4 NJ'!D87<0.5),"-",IFERROR('Tabel 4 NJ'!D87/'Tabel 4F NJ'!D87*100,"-")) -> - | E87: =IF(OR('Tabel 4F NJ'!E87<5,'Tabel 4 NJ'!E87<0.5),"-",IFERROR('Tabel 4 NJ'!E87/'Tabel 4F NJ'!E87*100,"-")) -> - | F87: =IF(OR('Tabel 4F NJ'!F87<5,'Tabel 4 NJ'!F87<0.5),"-",IFERROR('Tabel 4 NJ'!F87/'Tabel 4F NJ'!F87*100,"-")) -> - | G87: =IF(OR('Tabel 4F NJ'!G87<5,'Tabel 4 NJ'!G87<0.5),"-",IFERROR('Tabel 4 NJ'!G87/'Tabel 4F NJ'!G87*100,"-")) -> - | I87: =IF(OR('Tabel 4F NJ'!I87<5,'Tabel 4 NJ'!I87<0.5),"-",IFERROR('Tabel 4 NJ'!I87/'Tabel 4F NJ'!I87*100,"-")) -> 12.5
A88: Cand. Merc. | C88: =IF(OR('Tabel 4F NJ'!C88<5,'Tabel 4 NJ'!C88<0.5),"-",IFERROR('Tabel 4 NJ'!C88/'Tabel 4F NJ'!C88*100,"-")) -> - | D88: =IF(OR('Tabel 4F NJ'!D88<5,'Tabel 4 NJ'!D88<0.5),"-",IFERROR('Tabel 4 NJ'!D88/'Tabel 4F NJ'!D88*100,"-")) -> - | E88: =IF(OR('Tabel 4F NJ'!E88<5,'Tabel 4 NJ'!E88<0.5),"-",IFERROR('Tabel 4 NJ'!E88/'Tabel 4F NJ'!E88*100,"-")) -> - | F88: =IF(OR('Tabel 4F NJ'!F88<5,'Tabel 4 NJ'!F88<0.5),"-",IFERROR('Tabel 4 NJ'!F88/'Tabel 4F NJ'!F88*100,"-")) -> - | G88: =IF(OR('Tabel 4F NJ'!G88<5,'Tabel 4 NJ'!G88<0.5),"-",IFERROR('Tabel 4 NJ'!G88/'Tabel 4F NJ'!G88*100,"-")) -> - | I88: =IF(OR('Tabel 4F NJ'!I88<5,'Tabel 4 NJ'!I88<0.5),"-",IFERROR('Tabel 4 NJ'!I88/'Tabel 4F NJ'!I88*100,"-")) -> -
A89: HA | C89: =IF(OR('Tabel 4F NJ'!C89<5,'Tabel 4 NJ'!C89<0.5),"-",IFERROR('Tabel 4 NJ'!C89/'Tabel 4F NJ'!C89*100,"-")) -> - | D89: =IF(OR('Tabel 4F NJ'!D89<5,'Tabel 4 NJ'!D89<0.5),"-",IFERROR('Tabel 4 NJ'!D89/'Tabel 4F NJ'!D89*100,"-")) -> - | E89: =IF(OR('Tabel 4F NJ'!E89<5,'Tabel 4 NJ'!E89<0.5),"-",IFERROR('Tabel 4 NJ'!E89/'Tabel 4F NJ'!E89*100,"-")) -> - | F89: =IF(OR('Tabel 4F NJ'!F89<5,'Tabel 4 NJ'!F89<0.5),"-",IFERROR('Tabel 4 NJ'!F89/'Tabel 4F NJ'!F89*100,"-")) -> - | G89: =IF(OR('Tabel 4F NJ'!G89<5,'Tabel 4 NJ'!G89<0.5),"-",IFERROR('Tabel 4 NJ'!G89/'Tabel 4F NJ'!G89*100,"-")) -> - | I89: =IF(OR('Tabel 4F NJ'!I89<5,'Tabel 4 NJ'!I89<0.5),"-",IFERROR('Tabel 4 NJ'!I89/'Tabel 4F NJ'!I89*100,"-")) -> -
A90: HD | C90: =IF(OR('Tabel 4F NJ'!C90<5,'Tabel 4 NJ'!C90<0.5),"-",IFERROR('Tabel 4 NJ'!C90/'Tabel 4F NJ'!C90*100,"-")) -> - | D90: =IF(OR('Tabel 4F NJ'!D90<5,'Tabel 4 NJ'!D90<0.5),"-",IFERROR('Tabel 4 NJ'!D90/'Tabel 4F NJ'!D90*100,"-")) -> - | E90: =IF(OR('Tabel 4F NJ'!E90<5,'Tabel 4 NJ'!E90<0.5),"-",IFERROR('Tabel 4 NJ'!E90/'Tabel 4F NJ'!E90*100,"-")) -> - | F90: =IF(OR('Tabel 4F NJ'!F90<5,'Tabel 4 NJ'!F90<0.5),"-",IFERROR('Tabel 4 NJ'!F90/'Tabel 4F NJ'!F90*100,"-")) -> - | G90: =IF(OR('Tabel 4F NJ'!G90<5,'Tabel 4 NJ'!G90<0.5),"-",IFERROR('Tabel 4 NJ'!G90/'Tabel 4F NJ'!G90*100,"-")) -> - | I90: =IF(OR('Tabel 4F NJ'!I90<5,'Tabel 4 NJ'!I90<0.5),"-",IFERROR('Tabel 4 NJ'!I90/'Tabel 4F NJ'!I90*100,"-")) -> -
A91: Komm. og Sprog | C91: =IF(OR('Tabel 4F NJ'!C91<5,'Tabel 4 NJ'!C91<0.5),"-",IFERROR('Tabel 4 NJ'!C91/'Tabel 4F NJ'!C91*100,"-")) -> - | D91: =IF(OR('Tabel 4F NJ'!D91<5,'Tabel 4 NJ'!D91<0.5),"-",IFERROR('Tabel 4 NJ'!D91/'Tabel 4F NJ'!D91*100,"-")) -> - | E91: =IF(OR('Tabel 4F NJ'!E91<5,'Tabel 4 NJ'!E91<0.5),"-",IFERROR('Tabel 4 NJ'!E91/'Tabel 4F NJ'!E91*100,"-")) -> - | F91: =IF(OR('Tabel 4F NJ'!F91<5,'Tabel 4 NJ'!F91<0.5),"-",IFERROR('Tabel 4 NJ'!F91/'Tabel 4F NJ'!F91*100,"-")) -> - | G91: =IF(OR('Tabel 4F NJ'!G91<5,'Tabel 4 NJ'!G91<0.5),"-",IFERROR('Tabel 4 NJ'!G91/'Tabel 4F NJ'!G91*100,"-")) -> - | I91: =IF(OR('Tabel 4F NJ'!I91<5,'Tabel 4 NJ'!I91<0.5),"-",IFERROR('Tabel 4 NJ'!I91/'Tabel 4F NJ'!I91*100,"-")) -> -
A92: Cand. IT. | C92: =IF(OR('Tabel 4F NJ'!C92<5,'Tabel 4 NJ'!C92<0.5),"-",IFERROR('Tabel 4 NJ'!C92/'Tabel 4F NJ'!C92*100,"-")) -> - | D92: =IF(OR('Tabel 4F NJ'!D92<5,'Tabel 4 NJ'!D92<0.5),"-",IFERROR('Tabel 4 NJ'!D92/'Tabel 4F NJ'!D92*100,"-")) -> - | E92: =IF(OR('Tabel 4F NJ'!E92<5,'Tabel 4 NJ'!E92<0.5),"-",IFERROR('Tabel 4 NJ'!E92/'Tabel 4F NJ'!E92*100,"-")) -> - | F92: =IF(OR('Tabel 4F NJ'!F92<5,'Tabel 4 NJ'!F92<0.5),"-",IFERROR('Tabel 4 NJ'!F92/'Tabel 4F NJ'!F92*100,"-")) -> - | G92: =IF(OR('Tabel 4F NJ'!G92<5,'Tabel 4 NJ'!G92<0.5),"-",IFERROR('Tabel 4 NJ'!G92/'Tabel 4F NJ'!G92*100,"-")) -> - | I92: =IF(OR('Tabel 4F NJ'!I92<5,'Tabel 4 NJ'!I92<0.5),"-",IFERROR('Tabel 4 NJ'!I92/'Tabel 4F NJ'!I92*100,"-")) -> -
A93: Bac. Samf. | C93: =IF(OR('Tabel 4F NJ'!C93<5,'Tabel 4 NJ'!C93<0.5),"-",IFERROR('Tabel 4 NJ'!C93/'Tabel 4F NJ'!C93*100,"-")) -> - | D93: =IF(OR('Tabel 4F NJ'!D93<5,'Tabel 4 NJ'!D93<0.5),"-",IFERROR('Tabel 4 NJ'!D93/'Tabel 4F NJ'!D93*100,"-")) -> - | E93: =IF(OR('Tabel 4F NJ'!E93<5,'Tabel 4 NJ'!E93<0.5),"-",IFERROR('Tabel 4 NJ'!E93/'Tabel 4F NJ'!E93*100,"-")) -> - | F93: =IF(OR('Tabel 4F NJ'!F93<5,'Tabel 4 NJ'!F93<0.5),"-",IFERROR('Tabel 4 NJ'!F93/'Tabel 4F NJ'!F93*100,"-")) -> - | G93: =IF(OR('Tabel 4F NJ'!G93<5,'Tabel 4 NJ'!G93<0.5),"-",IFERROR('Tabel 4 NJ'!G93/'Tabel 4F NJ'!G93*100,"-")) -> - | I93: =IF(OR('Tabel 4F NJ'!I93<5,'Tabel 4 NJ'!I93<0.5),"-",IFERROR('Tabel 4 NJ'!I93/'Tabel 4F NJ'!I93*100,"-")) -> -
A94: Bac. Hum. | C94: =IF(OR('Tabel 4F NJ'!C94<5,'Tabel 4 NJ'!C94<0.5),"-",IFERROR('Tabel 4 NJ'!C94/'Tabel 4F NJ'!C94*100,"-")) -> - | D94: =IF(OR('Tabel 4F NJ'!D94<5,'Tabel 4 NJ'!D94<0.5),"-",IFERROR('Tabel 4 NJ'!D94/'Tabel 4F NJ'!D94*100,"-")) -> - | E94: =IF(OR('Tabel 4F NJ'!E94<5,'Tabel 4 NJ'!E94<0.5),"-",IFERROR('Tabel 4 NJ'!E94/'Tabel 4F NJ'!E94*100,"-")) -> - | F94: =IF(OR('Tabel 4F NJ'!F94<5,'Tabel 4 NJ'!F94<0.5),"-",IFERROR('Tabel 4 NJ'!F94/'Tabel 4F NJ'!F94*100,"-")) -> - | G94: =IF(OR('Tabel 4F NJ'!G94<5,'Tabel 4 NJ'!G94<0.5),"-",IFERROR('Tabel 4 NJ'!G94/'Tabel 4F NJ'!G94*100,"-")) -> - | I94: =IF(OR('Tabel 4F NJ'!I94<5,'Tabel 4 NJ'!I94<0.5),"-",IFERROR('Tabel 4 NJ'!I94/'Tabel 4F NJ'!I94*100,"-")) -> -
A95: Bac. Nat. | C95: =IF(OR('Tabel 4F NJ'!C95<5,'Tabel 4 NJ'!C95<0.5),"-",IFERROR('Tabel 4 NJ'!C95/'Tabel 4F NJ'!C95*100,"-")) -> - | D95: =IF(OR('Tabel 4F NJ'!D95<5,'Tabel 4 NJ'!D95<0.5),"-",IFERROR('Tabel 4 NJ'!D95/'Tabel 4F NJ'!D95*100,"-")) -> - | E95: =IF(OR('Tabel 4F NJ'!E95<5,'Tabel 4 NJ'!E95<0.5),"-",IFERROR('Tabel 4 NJ'!E95/'Tabel 4F NJ'!E95*100,"-")) -> - | F95: =IF(OR('Tabel 4F NJ'!F95<5,'Tabel 4 NJ'!F95<0.5),"-",IFERROR('Tabel 4 NJ'!F95/'Tabel 4F NJ'!F95*100,"-")) -> - | G95: =IF(OR('Tabel 4F NJ'!G95<5,'Tabel 4 NJ'!G95<0.5),"-",IFERROR('Tabel 4 NJ'!G95/'Tabel 4F NJ'!G95*100,"-")) -> - | I95: =IF(OR('Tabel 4F NJ'!I95<5,'Tabel 4 NJ'!I95<0.5),"-",IFERROR('Tabel 4 NJ'!I95/'Tabel 4F NJ'!I95*100,"-")) -> -
A96: Andre | C96: =IF(OR('Tabel 4F NJ'!C96<5,'Tabel 4 NJ'!C96<0.5),"-",IFERROR('Tabel 4 NJ'!C96/'Tabel 4F NJ'!C96*100,"-")) -> - | D96: =IF(OR('Tabel 4F NJ'!D96<5,'Tabel 4 NJ'!D96<0.5),"-",IFERROR('Tabel 4 NJ'!D96/'Tabel 4F NJ'!D96*100,"-")) -> - | E96: =IF(OR('Tabel 4F NJ'!E96<5,'Tabel 4 NJ'!E96<0.5),"-",IFERROR('Tabel 4 NJ'!E96/'Tabel 4F NJ'!E96*100,"-")) -> - | F96: =IF(OR('Tabel 4F NJ'!F96<5,'Tabel 4 NJ'!F96<0.5),"-",IFERROR('Tabel 4 NJ'!F96/'Tabel 4F NJ'!F96*100,"-")) -> - | G96: =IF(OR('Tabel 4F NJ'!G96<5,'Tabel 4 NJ'!G96<0.5),"-",IFERROR('Tabel 4 NJ'!G96/'Tabel 4F NJ'!G96*100,"-")) -> - | I96: =IF(OR('Tabel 4F NJ'!I96<5,'Tabel 4 NJ'!I96<0.5),"-",IFERROR('Tabel 4 NJ'!I96/'Tabel 4F NJ'!I96*100,"-")) -> 6.25
A98: Total | C98: =IF(OR('Tabel 4F NJ'!C98<5,'Tabel 4 NJ'!C98<0.5),"-",IFERROR('Tabel 4 NJ'!C98/'Tabel 4F NJ'!C98*100,"-")) -> 20.83333333 | D98: =IF(OR('Tabel 4F NJ'!D98<5,'Tabel 4 NJ'!D98<0.5),"-",IFERROR('Tabel 4 NJ'!D98/'Tabel 4F NJ'!D98*100,"-")) -> 7.142857143 | E98: =IF(OR('Tabel 4F NJ'!E98<5,'Tabel 4 NJ'!E98<0.5),"-",IFERROR('Tabel 4 NJ'!E98/'Tabel 4F NJ'!E98*100,"-")) -> 3.773584906 | F98: =IF(OR('Tabel 4F NJ'!F98<5,'Tabel 4 NJ'!F98<0.5),"-",IFERROR('Tabel 4 NJ'!F98/'Tabel 4F NJ'!F98*100,"-")) -> 1.408450704 | G98: =IF(OR('Tabel 4F NJ'!G98<5,'Tabel 4 NJ'!G98<0.5),"-",IFERROR('Tabel 4 NJ'!G98/'Tabel 4F NJ'!G98*100,"-")) -> - | I98: =IF(OR('Tabel 4F NJ'!I98<5,'Tabel 4 NJ'!I98<0.5),"-",IFERROR('Tabel 4 NJ'!I98/'Tabel 4F NJ'!I98*100,"-")) -> 5.194805195
A100: Ingeniører i alt | C100: =IF(OR('Tabel 4F NJ'!C100<5,'Tabel 4 NJ'!C100<0.5),"-",IFERROR('Tabel 4 NJ'!C100/'Tabel 4F NJ'!C100*100,"-")) -> - | D100: =IF(OR('Tabel 4F NJ'!D100<5,'Tabel 4 NJ'!D100<0.5),"-",IFERROR('Tabel 4 NJ'!D100/'Tabel 4F NJ'!D100*100,"-")) -> - | E100: =IF(OR('Tabel 4F NJ'!E100<5,'Tabel 4 NJ'!E100<0.5),"-",IFERROR('Tabel 4 NJ'!E100/'Tabel 4F NJ'!E100*100,"-")) -> - | F100: =IF(OR('Tabel 4F NJ'!F100<5,'Tabel 4 NJ'!F100<0.5),"-",IFERROR('Tabel 4 NJ'!F100/'Tabel 4F NJ'!F100*100,"-")) -> 5.555555556 | G100: =IF(OR('Tabel 4F NJ'!G100<5,'Tabel 4 NJ'!G100<0.5),"-",IFERROR('Tabel 4 NJ'!G100/'Tabel 4F NJ'!G100*100,"-")) -> - | I100: =IF(OR('Tabel 4F NJ'!I100<5,'Tabel 4 NJ'!I100<0.5),"-",IFERROR('Tabel 4 NJ'!I100/'Tabel 4F NJ'!I100*100,"-")) -> 2.222222222
A101: Magistre i alt | C101: =IF(OR('Tabel 4F NJ'!C101<5,'Tabel 4 NJ'!C101<0.5),"-",IFERROR('Tabel 4 NJ'!C101/'Tabel 4F NJ'!C101*100,"-")) -> - | D101: =IF(OR('Tabel 4F NJ'!D101<5,'Tabel 4 NJ'!D101<0.5),"-",IFERROR('Tabel 4 NJ'!D101/'Tabel 4F NJ'!D101*100,"-")) -> 11.11111111 | E101: =IF(OR('Tabel 4F NJ'!E101<5,'Tabel 4 NJ'!E101<0.5),"-",IFERROR('Tabel 4 NJ'!E101/'Tabel 4F NJ'!E101*100,"-")) -> 11.76470588 | F101: =IF(OR('Tabel 4F NJ'!F101<5,'Tabel 4 NJ'!F101<0.5),"-",IFERROR('Tabel 4 NJ'!F101/'Tabel 4F NJ'!F101*100,"-")) -> - | G101: =IF(OR('Tabel 4F NJ'!G101<5,'Tabel 4 NJ'!G101<0.5),"-",IFERROR('Tabel 4 NJ'!G101/'Tabel 4F NJ'!G101*100,"-")) -> - | I101: =IF(OR('Tabel 4F NJ'!I101<5,'Tabel 4 NJ'!I101<0.5),"-",IFERROR('Tabel 4 NJ'!I101/'Tabel 4F NJ'!I101*100,"-")) -> 7.01754386
A102: DJØF'ere i alt | C102: =IF(OR('Tabel 4F NJ'!C102<5,'Tabel 4 NJ'!C102<0.5),"-",IFERROR('Tabel 4 NJ'!C102/'Tabel 4F NJ'!C102*100,"-")) -> 14.28571429 | D102: =IF(OR('Tabel 4F NJ'!D102<5,'Tabel 4 NJ'!D102<0.5),"-",IFERROR('Tabel 4 NJ'!D102/'Tabel 4F NJ'!D102*100,"-")) -> - | E102: =IF(OR('Tabel 4F NJ'!E102<5,'Tabel 4 NJ'!E102<0.5),"-",IFERROR('Tabel 4 NJ'!E102/'Tabel 4F NJ'!E102*100,"-")) -> - | F102: =IF(OR('Tabel 4F NJ'!F102<5,'Tabel 4 NJ'!F102<0.5),"-",IFERROR('Tabel 4 NJ'!F102/'Tabel 4F NJ'!F102*100,"-")) -> - | G102: =IF(OR('Tabel 4F NJ'!G102<5,'Tabel 4 NJ'!G102<0.5),"-",IFERROR('Tabel 4 NJ'!G102/'Tabel 4F NJ'!G102*100,"-")) -> - | I102: =IF(OR('Tabel 4F NJ'!I102<5,'Tabel 4 NJ'!I102<0.5),"-",IFERROR('Tabel 4 NJ'!I102/'Tabel 4F NJ'!I102*100,"-")) -> 2.380952381
A109: Thisted
C111: Under 30 år | D111: 30 - 39 år | E111: 40 - 49 år | F111: 50 - 59 år | G111: Over 60 år | I111: I alt
A113: Civ. ing. | C113: =IF(OR('Tabel 4F NJ'!C113<5,'Tabel 4 NJ'!C113<0.5),"-",IFERROR('Tabel 4 NJ'!C113/'Tabel 4F NJ'!C113*100,"-")) -> 12.5 | D113: =IF(OR('Tabel 4F NJ'!D113<5,'Tabel 4 NJ'!D113<0.5),"-",IFERROR('Tabel 4 NJ'!D113/'Tabel 4F NJ'!D113*100,"-")) -> - | E113: =IF(OR('Tabel 4F NJ'!E113<5,'Tabel 4 NJ'!E113<0.5),"-",IFERROR('Tabel 4 NJ'!E113/'Tabel 4F NJ'!E113*100,"-")) -> - | F113: =IF(OR('Tabel 4F NJ'!F113<5,'Tabel 4 NJ'!F113<0.5),"-",IFERROR('Tabel 4 NJ'!F113/'Tabel 4F NJ'!F113*100,"-")) -> - | G113: =IF(OR('Tabel 4F NJ'!G113<5,'Tabel 4 NJ'!G113<0.5),"-",IFERROR('Tabel 4 NJ'!G113/'Tabel 4F NJ'!G113*100,"-")) -> - | I113: =IF(OR('Tabel 4F NJ'!I113<5,'Tabel 4 NJ'!I113<0.5),"-",IFERROR('Tabel 4 NJ'!I113/'Tabel 4F NJ'!I113*100,"-")) -> 2.222222222
A114: Diplom ing. | C114: =IF(OR('Tabel 4F NJ'!C114<5,'Tabel 4 NJ'!C114<0.5),"-",IFERROR('Tabel 4 NJ'!C114/'Tabel 4F NJ'!C114*100,"-")) -> - | D114: =IF(OR('Tabel 4F NJ'!D114<5,'Tabel 4 NJ'!D114<0.5),"-",IFERROR('Tabel 4 NJ'!D114/'Tabel 4F NJ'!D114*100,"-")) -> - | E114: =IF(OR('Tabel 4F NJ'!E114<5,'Tabel 4 NJ'!E114<0.5),"-",IFERROR('Tabel 4 NJ'!E114/'Tabel 4F NJ'!E114*100,"-")) -> - | F114: =IF(OR('Tabel 4F NJ'!F114<5,'Tabel 4 NJ'!F114<0.5),"-",IFERROR('Tabel 4 NJ'!F114/'Tabel 4F NJ'!F114*100,"-")) -> 3.703703704 | G114: =IF(OR('Tabel 4F NJ'!G114<5,'Tabel 4 NJ'!G114<0.5),"-",IFERROR('Tabel 4 NJ'!G114/'Tabel 4F NJ'!G114*100,"-")) -> - | I114: =IF(OR('Tabel 4F NJ'!I114<5,'Tabel 4 NJ'!I114<0.5),"-",IFERROR('Tabel 4 NJ'!I114/'Tabel 4F NJ'!I114*100,"-")) -> 1.639344262
A115: Cand. Scient. Tek | C115: =IF(OR('Tabel 4F NJ'!C115<5,'Tabel 4 NJ'!C115<0.5),"-",IFERROR('Tabel 4 NJ'!C115/'Tabel 4F NJ'!C115*100,"-")) -> 20 | D115: =IF(OR('Tabel 4F NJ'!D115<5,'Tabel 4 NJ'!D115<0.5),"-",IFERROR('Tabel 4 NJ'!D115/'Tabel 4F NJ'!D115*100,"-")) -> 13.33333333 | E115: =IF(OR('Tabel 4F NJ'!E115<5,'Tabel 4 NJ'!E115<0.5),"-",IFERROR('Tabel 4 NJ'!E115/'Tabel 4F NJ'!E115*100,"-")) -> - | F115: =IF(OR('Tabel 4F NJ'!F115<5,'Tabel 4 NJ'!F115<0.5),"-",IFERROR('Tabel 4 NJ'!F115/'Tabel 4F NJ'!F115*100,"-")) -> - | G115: =IF(OR('Tabel 4F NJ'!G115<5,'Tabel 4 NJ'!G115<0.5),"-",IFERROR('Tabel 4 NJ'!G115/'Tabel 4F NJ'!G115*100,"-")) -> - | I115: =IF(OR('Tabel 4F NJ'!I115<5,'Tabel 4 NJ'!I115<0.5),"-",IFERROR('Tabel 4 NJ'!I115/'Tabel 4F NJ'!I115*100,"-")) -> 16.21621622
A116: MA. Hum. | C116: =IF(OR('Tabel 4F NJ'!C116<5,'Tabel 4 NJ'!C116<0.5),"-",IFERROR('Tabel 4 NJ'!C116/'Tabel 4F NJ'!C116*100,"-")) -> 37.5 | D116: =IF(OR('Tabel 4F NJ'!D116<5,'Tabel 4 NJ'!D116<0.5),"-",IFERROR('Tabel 4 NJ'!D116/'Tabel 4F NJ'!D116*100,"-")) -> 15.2173913 | E116: =IF(OR('Tabel 4F NJ'!E116<5,'Tabel 4 NJ'!E116<0.5),"-",IFERROR('Tabel 4 NJ'!E116/'Tabel 4F NJ'!E116*100,"-")) -> 4.761904762 | F116: =IF(OR('Tabel 4F NJ'!F116<5,'Tabel 4 NJ'!F116<0.5),"-",IFERROR('Tabel 4 NJ'!F116/'Tabel 4F NJ'!F116*100,"-")) -> - | G116: =IF(OR('Tabel 4F NJ'!G116<5,'Tabel 4 NJ'!G116<0.5),"-",IFERROR('Tabel 4 NJ'!G116/'Tabel 4F NJ'!G116*100,"-")) -> - | I116: =IF(OR('Tabel 4F NJ'!I116<5,'Tabel 4 NJ'!I116<0.5),"-",IFERROR('Tabel 4 NJ'!I116/'Tabel 4F NJ'!I116*100,"-")) -> 9.836065574
A117: MA. Nat. | C117: =IF(OR('Tabel 4F NJ'!C117<5,'Tabel 4 NJ'!C117<0.5),"-",IFERROR('Tabel 4 NJ'!C117/'Tabel 4F NJ'!C117*100,"-")) -> - | D117: =IF(OR('Tabel 4F NJ'!D117<5,'Tabel 4 NJ'!D117<0.5),"-",IFERROR('Tabel 4 NJ'!D117/'Tabel 4F NJ'!D117*100,"-")) -> - | E117: =IF(OR('Tabel 4F NJ'!E117<5,'Tabel 4 NJ'!E117<0.5),"-",IFERROR('Tabel 4 NJ'!E117/'Tabel 4F NJ'!E117*100,"-")) -> - | F117: =IF(OR('Tabel 4F NJ'!F117<5,'Tabel 4 NJ'!F117<0.5),"-",IFERROR('Tabel 4 NJ'!F117/'Tabel 4F NJ'!F117*100,"-")) -> 14.28571429 | G117: =IF(OR('Tabel 4F NJ'!G117<5,'Tabel 4 NJ'!G117<0.5),"-",IFERROR('Tabel 4 NJ'!G117/'Tabel 4F NJ'!G117*100,"-")) -> - | I117: =IF(OR('Tabel 4F NJ'!I117<5,'Tabel 4 NJ'!I117<0.5),"-",IFERROR('Tabel 4 NJ'!I117/'Tabel 4F NJ'!I117*100,"-")) -> 2.564102564
A118: MA. Ph.d. | C118: =IF(OR('Tabel 4F NJ'!C118<5,'Tabel 4 NJ'!C118<0.5),"-",IFERROR('Tabel 4 NJ'!C118/'Tabel 4F NJ'!C118*100,"-")) -> - | D118: =IF(OR('Tabel 4F NJ'!D118<5,'Tabel 4 NJ'!D118<0.5),"-",IFERROR('Tabel 4 NJ'!D118/'Tabel 4F NJ'!D118*100,"-")) -> - | E118: =IF(OR('Tabel 4F NJ'!E118<5,'Tabel 4 NJ'!E118<0.5),"-",IFERROR('Tabel 4 NJ'!E118/'Tabel 4F NJ'!E118*100,"-")) -> - | F118: =IF(OR('Tabel 4F NJ'!F118<5,'Tabel 4 NJ'!F118<0.5),"-",IFERROR('Tabel 4 NJ'!F118/'Tabel 4F NJ'!F118*100,"-")) -> - | G118: =IF(OR('Tabel 4F NJ'!G118<5,'Tabel 4 NJ'!G118<0.5),"-",IFERROR('Tabel 4 NJ'!G118/'Tabel 4F NJ'!G118*100,"-")) -> - | I118: =IF(OR('Tabel 4F NJ'!I118<5,'Tabel 4 NJ'!I118<0.5),"-",IFERROR('Tabel 4 NJ'!I118/'Tabel 4F NJ'!I118*100,"-")) -> -
A119: MA. Samf. | C119: =IF(OR('Tabel 4F NJ'!C119<5,'Tabel 4 NJ'!C119<0.5),"-",IFERROR('Tabel 4 NJ'!C119/'Tabel 4F NJ'!C119*100,"-")) -> 16.66666667 | D119: =IF(OR('Tabel 4F NJ'!D119<5,'Tabel 4 NJ'!D119<0.5),"-",IFERROR('Tabel 4 NJ'!D119/'Tabel 4F NJ'!D119*100,"-")) -> - | E119: =IF(OR('Tabel 4F NJ'!E119<5,'Tabel 4 NJ'!E119<0.5),"-",IFERROR('Tabel 4 NJ'!E119/'Tabel 4F NJ'!E119*100,"-")) -> - | F119: =IF(OR('Tabel 4F NJ'!F119<5,'Tabel 4 NJ'!F119<0.5),"-",IFERROR('Tabel 4 NJ'!F119/'Tabel 4F NJ'!F119*100,"-")) -> - | G119: =IF(OR('Tabel 4F NJ'!G119<5,'Tabel 4 NJ'!G119<0.5),"-",IFERROR('Tabel 4 NJ'!G119/'Tabel 4F NJ'!G119*100,"-")) -> - | I119: =IF(OR('Tabel 4F NJ'!I119<5,'Tabel 4 NJ'!I119<0.5),"-",IFERROR('Tabel 4 NJ'!I119/'Tabel 4F NJ'!I119*100,"-")) -> 7.692307692
A120: Øvrige Mag. | C120: =IF(OR('Tabel 4F NJ'!C120<5,'Tabel 4 NJ'!C120<0.5),"-",IFERROR('Tabel 4 NJ'!C120/'Tabel 4F NJ'!C120*100,"-")) -> - | D120: =IF(OR('Tabel 4F NJ'!D120<5,'Tabel 4 NJ'!D120<0.5),"-",IFERROR('Tabel 4 NJ'!D120/'Tabel 4F NJ'!D120*100,"-")) -> - | E120: =IF(OR('Tabel 4F NJ'!E120<5,'Tabel 4 NJ'!E120<0.5),"-",IFERROR('Tabel 4 NJ'!E120/'Tabel 4F NJ'!E120*100,"-")) -> - | F120: =IF(OR('Tabel 4F NJ'!F120<5,'Tabel 4 NJ'!F120<0.5),"-",IFERROR('Tabel 4 NJ'!F120/'Tabel 4F NJ'!F120*100,"-")) -> - | G120: =IF(OR('Tabel 4F NJ'!G120<5,'Tabel 4 NJ'!G120<0.5),"-",IFERROR('Tabel 4 NJ'!G120/'Tabel 4F NJ'!G120*100,"-")) -> - | I120: =IF(OR('Tabel 4F NJ'!I120<5,'Tabel 4 NJ'!I120<0.5),"-",IFERROR('Tabel 4 NJ'!I120/'Tabel 4F NJ'!I120*100,"-")) -> 20
A121: Agronom | C121: =IF(OR('Tabel 4F NJ'!C121<5,'Tabel 4 NJ'!C121<0.5),"-",IFERROR('Tabel 4 NJ'!C121/'Tabel 4F NJ'!C121*100,"-")) -> - | D121: =IF(OR('Tabel 4F NJ'!D121<5,'Tabel 4 NJ'!D121<0.5),"-",IFERROR('Tabel 4 NJ'!D121/'Tabel 4F NJ'!D121*100,"-")) -> - | E121: =IF(OR('Tabel 4F NJ'!E121<5,'Tabel 4 NJ'!E121<0.5),"-",IFERROR('Tabel 4 NJ'!E121/'Tabel 4F NJ'!E121*100,"-")) -> - | F121: =IF(OR('Tabel 4F NJ'!F121<5,'Tabel 4 NJ'!F121<0.5),"-",IFERROR('Tabel 4 NJ'!F121/'Tabel 4F NJ'!F121*100,"-")) -> - | G121: =IF(OR('Tabel 4F NJ'!G121<5,'Tabel 4 NJ'!G121<0.5),"-",IFERROR('Tabel 4 NJ'!G121/'Tabel 4F NJ'!G121*100,"-")) -> - | I121: =IF(OR('Tabel 4F NJ'!I121<5,'Tabel 4 NJ'!I121<0.5),"-",IFERROR('Tabel 4 NJ'!I121/'Tabel 4F NJ'!I121*100,"-")) -> -
A122: Landsk. Arkt. | C122: =IF(OR('Tabel 4F NJ'!C122<5,'Tabel 4 NJ'!C122<0.5),"-",IFERROR('Tabel 4 NJ'!C122/'Tabel 4F NJ'!C122*100,"-")) -> - | D122: =IF(OR('Tabel 4F NJ'!D122<5,'Tabel 4 NJ'!D122<0.5),"-",IFERROR('Tabel 4 NJ'!D122/'Tabel 4F NJ'!D122*100,"-")) -> - | E122: =IF(OR('Tabel 4F NJ'!E122<5,'Tabel 4 NJ'!E122<0.5),"-",IFERROR('Tabel 4 NJ'!E122/'Tabel 4F NJ'!E122*100,"-")) -> - | F122: =IF(OR('Tabel 4F NJ'!F122<5,'Tabel 4 NJ'!F122<0.5),"-",IFERROR('Tabel 4 NJ'!F122/'Tabel 4F NJ'!F122*100,"-")) -> - | G122: =IF(OR('Tabel 4F NJ'!G122<5,'Tabel 4 NJ'!G122<0.5),"-",IFERROR('Tabel 4 NJ'!G122/'Tabel 4F NJ'!G122*100,"-")) -> - | I122: =IF(OR('Tabel 4F NJ'!I122<5,'Tabel 4 NJ'!I122<0.5),"-",IFERROR('Tabel 4 NJ'!I122/'Tabel 4F NJ'!I122*100,"-")) -> -
A123: Hortonom | C123: =IF(OR('Tabel 4F NJ'!C123<5,'Tabel 4 NJ'!C123<0.5),"-",IFERROR('Tabel 4 NJ'!C123/'Tabel 4F NJ'!C123*100,"-")) -> - | D123: =IF(OR('Tabel 4F NJ'!D123<5,'Tabel 4 NJ'!D123<0.5),"-",IFERROR('Tabel 4 NJ'!D123/'Tabel 4F NJ'!D123*100,"-")) -> - | E123: =IF(OR('Tabel 4F NJ'!E123<5,'Tabel 4 NJ'!E123<0.5),"-",IFERROR('Tabel 4 NJ'!E123/'Tabel 4F NJ'!E123*100,"-")) -> - | F123: =IF(OR('Tabel 4F NJ'!F123<5,'Tabel 4 NJ'!F123<0.5),"-",IFERROR('Tabel 4 NJ'!F123/'Tabel 4F NJ'!F123*100,"-")) -> - | G123: =IF(OR('Tabel 4F NJ'!G123<5,'Tabel 4 NJ'!G123<0.5),"-",IFERROR('Tabel 4 NJ'!G123/'Tabel 4F NJ'!G123*100,"-")) -> - | I123: =IF(OR('Tabel 4F NJ'!I123<5,'Tabel 4 NJ'!I123<0.5),"-",IFERROR('Tabel 4 NJ'!I123/'Tabel 4F NJ'!I123*100,"-")) -> -
A124: Forstkand. | C124: =IF(OR('Tabel 4F NJ'!C124<5,'Tabel 4 NJ'!C124<0.5),"-",IFERROR('Tabel 4 NJ'!C124/'Tabel 4F NJ'!C124*100,"-")) -> - | D124: =IF(OR('Tabel 4F NJ'!D124<5,'Tabel 4 NJ'!D124<0.5),"-",IFERROR('Tabel 4 NJ'!D124/'Tabel 4F NJ'!D124*100,"-")) -> - | E124: =IF(OR('Tabel 4F NJ'!E124<5,'Tabel 4 NJ'!E124<0.5),"-",IFERROR('Tabel 4 NJ'!E124/'Tabel 4F NJ'!E124*100,"-")) -> - | F124: =IF(OR('Tabel 4F NJ'!F124<5,'Tabel 4 NJ'!F124<0.5),"-",IFERROR('Tabel 4 NJ'!F124/'Tabel 4F NJ'!F124*100,"-")) -> - | G124: =IF(OR('Tabel 4F NJ'!G124<5,'Tabel 4 NJ'!G124<0.5),"-",IFERROR('Tabel 4 NJ'!G124/'Tabel 4F NJ'!G124*100,"-")) -> - | I124: =IF(OR('Tabel 4F NJ'!I124<5,'Tabel 4 NJ'!I124<0.5),"-",IFERROR('Tabel 4 NJ'!I124/'Tabel 4F NJ'!I124*100,"-")) -> -
A125: Jordbrugsakad. | C125: =IF(OR('Tabel 4F NJ'!C125<5,'Tabel 4 NJ'!C125<0.5),"-",IFERROR('Tabel 4 NJ'!C125/'Tabel 4F NJ'!C125*100,"-")) -> - | D125: =IF(OR('Tabel 4F NJ'!D125<5,'Tabel 4 NJ'!D125<0.5),"-",IFERROR('Tabel 4 NJ'!D125/'Tabel 4F NJ'!D125*100,"-")) -> - | E125: =IF(OR('Tabel 4F NJ'!E125<5,'Tabel 4 NJ'!E125<0.5),"-",IFERROR('Tabel 4 NJ'!E125/'Tabel 4F NJ'!E125*100,"-")) -> - | F125: =IF(OR('Tabel 4F NJ'!F125<5,'Tabel 4 NJ'!F125<0.5),"-",IFERROR('Tabel 4 NJ'!F125/'Tabel 4F NJ'!F125*100,"-")) -> - | G125: =IF(OR('Tabel 4F NJ'!G125<5,'Tabel 4 NJ'!G125<0.5),"-",IFERROR('Tabel 4 NJ'!G125/'Tabel 4F NJ'!G125*100,"-")) -> - | I125: =IF(OR('Tabel 4F NJ'!I125<5,'Tabel 4 NJ'!I125<0.5),"-",IFERROR('Tabel 4 NJ'!I125/'Tabel 4F NJ'!I125*100,"-")) -> -
A126: Mejeriing. | C126: =IF(OR('Tabel 4F NJ'!C126<5,'Tabel 4 NJ'!C126<0.5),"-",IFERROR('Tabel 4 NJ'!C126/'Tabel 4F NJ'!C126*100,"-")) -> - | D126: =IF(OR('Tabel 4F NJ'!D126<5,'Tabel 4 NJ'!D126<0.5),"-",IFERROR('Tabel 4 NJ'!D126/'Tabel 4F NJ'!D126*100,"-")) -> - | E126: =IF(OR('Tabel 4F NJ'!E126<5,'Tabel 4 NJ'!E126<0.5),"-",IFERROR('Tabel 4 NJ'!E126/'Tabel 4F NJ'!E126*100,"-")) -> - | F126: =IF(OR('Tabel 4F NJ'!F126<5,'Tabel 4 NJ'!F126<0.5),"-",IFERROR('Tabel 4 NJ'!F126/'Tabel 4F NJ'!F126*100,"-")) -> - | G126: =IF(OR('Tabel 4F NJ'!G126<5,'Tabel 4 NJ'!G126<0.5),"-",IFERROR('Tabel 4 NJ'!G126/'Tabel 4F NJ'!G126*100,"-")) -> - | I126: =IF(OR('Tabel 4F NJ'!I126<5,'Tabel 4 NJ'!I126<0.5),"-",IFERROR('Tabel 4 NJ'!I126/'Tabel 4F NJ'!I126*100,"-")) -> -
A127: Levn.m.kand. | C127: =IF(OR('Tabel 4F NJ'!C127<5,'Tabel 4 NJ'!C127<0.5),"-",IFERROR('Tabel 4 NJ'!C127/'Tabel 4F NJ'!C127*100,"-")) -> - | D127: =IF(OR('Tabel 4F NJ'!D127<5,'Tabel 4 NJ'!D127<0.5),"-",IFERROR('Tabel 4 NJ'!D127/'Tabel 4F NJ'!D127*100,"-")) -> - | E127: =IF(OR('Tabel 4F NJ'!E127<5,'Tabel 4 NJ'!E127<0.5),"-",IFERROR('Tabel 4 NJ'!E127/'Tabel 4F NJ'!E127*100,"-")) -> - | F127: =IF(OR('Tabel 4F NJ'!F127<5,'Tabel 4 NJ'!F127<0.5),"-",IFERROR('Tabel 4 NJ'!F127/'Tabel 4F NJ'!F127*100,"-")) -> - | G127: =IF(OR('Tabel 4F NJ'!G127<5,'Tabel 4 NJ'!G127<0.5),"-",IFERROR('Tabel 4 NJ'!G127/'Tabel 4F NJ'!G127*100,"-")) -> - | I127: =IF(OR('Tabel 4F NJ'!I127<5,'Tabel 4 NJ'!I127<0.5),"-",IFERROR('Tabel 4 NJ'!I127/'Tabel 4F NJ'!I127*100,"-")) -> -
A128: Dyrlæge | C128: =IF(OR('Tabel 4F NJ'!C128<5,'Tabel 4 NJ'!C128<0.5),"-",IFERROR('Tabel 4 NJ'!C128/'Tabel 4F NJ'!C128*100,"-")) -> - | D128: =IF(OR('Tabel 4F NJ'!D128<5,'Tabel 4 NJ'!D128<0.5),"-",IFERROR('Tabel 4 NJ'!D128/'Tabel 4F NJ'!D128*100,"-")) -> - | E128: =IF(OR('Tabel 4F NJ'!E128<5,'Tabel 4 NJ'!E128<0.5),"-",IFERROR('Tabel 4 NJ'!E128/'Tabel 4F NJ'!E128*100,"-")) -> - | F128: =IF(OR('Tabel 4F NJ'!F128<5,'Tabel 4 NJ'!F128<0.5),"-",IFERROR('Tabel 4 NJ'!F128/'Tabel 4F NJ'!F128*100,"-")) -> - | G128: =IF(OR('Tabel 4F NJ'!G128<5,'Tabel 4 NJ'!G128<0.5),"-",IFERROR('Tabel 4 NJ'!G128/'Tabel 4F NJ'!G128*100,"-")) -> - | I128: =IF(OR('Tabel 4F NJ'!I128<5,'Tabel 4 NJ'!I128<0.5),"-",IFERROR('Tabel 4 NJ'!I128/'Tabel 4F NJ'!I128*100,"-")) -> -
A129: Farmaceut | C129: =IF(OR('Tabel 4F NJ'!C129<5,'Tabel 4 NJ'!C129<0.5),"-",IFERROR('Tabel 4 NJ'!C129/'Tabel 4F NJ'!C129*100,"-")) -> - | D129: =IF(OR('Tabel 4F NJ'!D129<5,'Tabel 4 NJ'!D129<0.5),"-",IFERROR('Tabel 4 NJ'!D129/'Tabel 4F NJ'!D129*100,"-")) -> - | E129: =IF(OR('Tabel 4F NJ'!E129<5,'Tabel 4 NJ'!E129<0.5),"-",IFERROR('Tabel 4 NJ'!E129/'Tabel 4F NJ'!E129*100,"-")) -> - | F129: =IF(OR('Tabel 4F NJ'!F129<5,'Tabel 4 NJ'!F129<0.5),"-",IFERROR('Tabel 4 NJ'!F129/'Tabel 4F NJ'!F129*100,"-")) -> - | G129: =IF(OR('Tabel 4F NJ'!G129<5,'Tabel 4 NJ'!G129<0.5),"-",IFERROR('Tabel 4 NJ'!G129/'Tabel 4F NJ'!G129*100,"-")) -> - | I129: =IF(OR('Tabel 4F NJ'!I129<5,'Tabel 4 NJ'!I129<0.5),"-",IFERROR('Tabel 4 NJ'!I129/'Tabel 4F NJ'!I129*100,"-")) -> -
A130: Læge | C130: =IF(OR('Tabel 4F NJ'!C130<5,'Tabel 4 NJ'!C130<0.5),"-",IFERROR('Tabel 4 NJ'!C130/'Tabel 4F NJ'!C130*100,"-")) -> 7.692307692 | D130: =IF(OR('Tabel 4F NJ'!D130<5,'Tabel 4 NJ'!D130<0.5),"-",IFERROR('Tabel 4 NJ'!D130/'Tabel 4F NJ'!D130*100,"-")) -> 11.11111111 | E130: =IF(OR('Tabel 4F NJ'!E130<5,'Tabel 4 NJ'!E130<0.5),"-",IFERROR('Tabel 4 NJ'!E130/'Tabel 4F NJ'!E130*100,"-")) -> - | F130: =IF(OR('Tabel 4F NJ'!F130<5,'Tabel 4 NJ'!F130<0.5),"-",IFERROR('Tabel 4 NJ'!F130/'Tabel 4F NJ'!F130*100,"-")) -> - | G130: =IF(OR('Tabel 4F NJ'!G130<5,'Tabel 4 NJ'!G130<0.5),"-",IFERROR('Tabel 4 NJ'!G130/'Tabel 4F NJ'!G130*100,"-")) -> - | I130: =IF(OR('Tabel 4F NJ'!I130<5,'Tabel 4 NJ'!I130<0.5),"-",IFERROR('Tabel 4 NJ'!I130/'Tabel 4F NJ'!I130*100,"-")) -> 6.25
A131: Tandlæge | C131: =IF(OR('Tabel 4F NJ'!C131<5,'Tabel 4 NJ'!C131<0.5),"-",IFERROR('Tabel 4 NJ'!C131/'Tabel 4F NJ'!C131*100,"-")) -> - | D131: =IF(OR('Tabel 4F NJ'!D131<5,'Tabel 4 NJ'!D131<0.5),"-",IFERROR('Tabel 4 NJ'!D131/'Tabel 4F NJ'!D131*100,"-")) -> - | E131: =IF(OR('Tabel 4F NJ'!E131<5,'Tabel 4 NJ'!E131<0.5),"-",IFERROR('Tabel 4 NJ'!E131/'Tabel 4F NJ'!E131*100,"-")) -> - | F131: =IF(OR('Tabel 4F NJ'!F131<5,'Tabel 4 NJ'!F131<0.5),"-",IFERROR('Tabel 4 NJ'!F131/'Tabel 4F NJ'!F131*100,"-")) -> - | G131: =IF(OR('Tabel 4F NJ'!G131<5,'Tabel 4 NJ'!G131<0.5),"-",IFERROR('Tabel 4 NJ'!G131/'Tabel 4F NJ'!G131*100,"-")) -> - | I131: =IF(OR('Tabel 4F NJ'!I131<5,'Tabel 4 NJ'!I131<0.5),"-",IFERROR('Tabel 4 NJ'!I131/'Tabel 4F NJ'!I131*100,"-")) -> -
A132: Arkitekt | C132: =IF(OR('Tabel 4F NJ'!C132<5,'Tabel 4 NJ'!C132<0.5),"-",IFERROR('Tabel 4 NJ'!C132/'Tabel 4F NJ'!C132*100,"-")) -> - | D132: =IF(OR('Tabel 4F NJ'!D132<5,'Tabel 4 NJ'!D132<0.5),"-",IFERROR('Tabel 4 NJ'!D132/'Tabel 4F NJ'!D132*100,"-")) -> - | E132: =IF(OR('Tabel 4F NJ'!E132<5,'Tabel 4 NJ'!E132<0.5),"-",IFERROR('Tabel 4 NJ'!E132/'Tabel 4F NJ'!E132*100,"-")) -> - | F132: =IF(OR('Tabel 4F NJ'!F132<5,'Tabel 4 NJ'!F132<0.5),"-",IFERROR('Tabel 4 NJ'!F132/'Tabel 4F NJ'!F132*100,"-")) -> - | G132: =IF(OR('Tabel 4F NJ'!G132<5,'Tabel 4 NJ'!G132<0.5),"-",IFERROR('Tabel 4 NJ'!G132/'Tabel 4F NJ'!G132*100,"-")) -> - | I132: =IF(OR('Tabel 4F NJ'!I132<5,'Tabel 4 NJ'!I132<0.5),"-",IFERROR('Tabel 4 NJ'!I132/'Tabel 4F NJ'!I132*100,"-")) -> 18.18181818
A133: Landinspek. | C133: =IF(OR('Tabel 4F NJ'!C133<5,'Tabel 4 NJ'!C133<0.5),"-",IFERROR('Tabel 4 NJ'!C133/'Tabel 4F NJ'!C133*100,"-")) -> - | D133: =IF(OR('Tabel 4F NJ'!D133<5,'Tabel 4 NJ'!D133<0.5),"-",IFERROR('Tabel 4 NJ'!D133/'Tabel 4F NJ'!D133*100,"-")) -> - | E133: =IF(OR('Tabel 4F NJ'!E133<5,'Tabel 4 NJ'!E133<0.5),"-",IFERROR('Tabel 4 NJ'!E133/'Tabel 4F NJ'!E133*100,"-")) -> - | F133: =IF(OR('Tabel 4F NJ'!F133<5,'Tabel 4 NJ'!F133<0.5),"-",IFERROR('Tabel 4 NJ'!F133/'Tabel 4F NJ'!F133*100,"-")) -> - | G133: =IF(OR('Tabel 4F NJ'!G133<5,'Tabel 4 NJ'!G133<0.5),"-",IFERROR('Tabel 4 NJ'!G133/'Tabel 4F NJ'!G133*100,"-")) -> - | I133: =IF(OR('Tabel 4F NJ'!I133<5,'Tabel 4 NJ'!I133<0.5),"-",IFERROR('Tabel 4 NJ'!I133/'Tabel 4F NJ'!I133*100,"-")) -> -
A134: Bibliotekar | C134: =IF(OR('Tabel 4F NJ'!C134<5,'Tabel 4 NJ'!C134<0.5),"-",IFERROR('Tabel 4 NJ'!C134/'Tabel 4F NJ'!C134*100,"-")) -> - | D134: =IF(OR('Tabel 4F NJ'!D134<5,'Tabel 4 NJ'!D134<0.5),"-",IFERROR('Tabel 4 NJ'!D134/'Tabel 4F NJ'!D134*100,"-")) -> - | E134: =IF(OR('Tabel 4F NJ'!E134<5,'Tabel 4 NJ'!E134<0.5),"-",IFERROR('Tabel 4 NJ'!E134/'Tabel 4F NJ'!E134*100,"-")) -> - | F134: =IF(OR('Tabel 4F NJ'!F134<5,'Tabel 4 NJ'!F134<0.5),"-",IFERROR('Tabel 4 NJ'!F134/'Tabel 4F NJ'!F134*100,"-")) -> - | G134: =IF(OR('Tabel 4F NJ'!G134<5,'Tabel 4 NJ'!G134<0.5),"-",IFERROR('Tabel 4 NJ'!G134/'Tabel 4F NJ'!G134*100,"-")) -> - | I134: =IF(OR('Tabel 4F NJ'!I134<5,'Tabel 4 NJ'!I134<0.5),"-",IFERROR('Tabel 4 NJ'!I134/'Tabel 4F NJ'!I134*100,"-")) -> -
A135: Musikudd. | C135: =IF(OR('Tabel 4F NJ'!C135<5,'Tabel 4 NJ'!C135<0.5),"-",IFERROR('Tabel 4 NJ'!C135/'Tabel 4F NJ'!C135*100,"-")) -> - | D135: =IF(OR('Tabel 4F NJ'!D135<5,'Tabel 4 NJ'!D135<0.5),"-",IFERROR('Tabel 4 NJ'!D135/'Tabel 4F NJ'!D135*100,"-")) -> - | E135: =IF(OR('Tabel 4F NJ'!E135<5,'Tabel 4 NJ'!E135<0.5),"-",IFERROR('Tabel 4 NJ'!E135/'Tabel 4F NJ'!E135*100,"-")) -> - | F135: =IF(OR('Tabel 4F NJ'!F135<5,'Tabel 4 NJ'!F135<0.5),"-",IFERROR('Tabel 4 NJ'!F135/'Tabel 4F NJ'!F135*100,"-")) -> - | G135: =IF(OR('Tabel 4F NJ'!G135<5,'Tabel 4 NJ'!G135<0.5),"-",IFERROR('Tabel 4 NJ'!G135/'Tabel 4F NJ'!G135*100,"-")) -> - | I135: =IF(OR('Tabel 4F NJ'!I135<5,'Tabel 4 NJ'!I135<0.5),"-",IFERROR('Tabel 4 NJ'!I135/'Tabel 4F NJ'!I135*100,"-")) -> -
A136: Teolog | C136: =IF(OR('Tabel 4F NJ'!C136<5,'Tabel 4 NJ'!C136<0.5),"-",IFERROR('Tabel 4 NJ'!C136/'Tabel 4F NJ'!C136*100,"-")) -> - | D136: =IF(OR('Tabel 4F NJ'!D136<5,'Tabel 4 NJ'!D136<0.5),"-",IFERROR('Tabel 4 NJ'!D136/'Tabel 4F NJ'!D136*100,"-")) -> - | E136: =IF(OR('Tabel 4F NJ'!E136<5,'Tabel 4 NJ'!E136<0.5),"-",IFERROR('Tabel 4 NJ'!E136/'Tabel 4F NJ'!E136*100,"-")) -> - | F136: =IF(OR('Tabel 4F NJ'!F136<5,'Tabel 4 NJ'!F136<0.5),"-",IFERROR('Tabel 4 NJ'!F136/'Tabel 4F NJ'!F136*100,"-")) -> - | G136: =IF(OR('Tabel 4F NJ'!G136<5,'Tabel 4 NJ'!G136<0.5),"-",IFERROR('Tabel 4 NJ'!G136/'Tabel 4F NJ'!G136*100,"-")) -> - | I136: =IF(OR('Tabel 4F NJ'!I136<5,'Tabel 4 NJ'!I136<0.5),"-",IFERROR('Tabel 4 NJ'!I136/'Tabel 4F NJ'!I136*100,"-")) -> -
A137: Psykolog | C137: =IF(OR('Tabel 4F NJ'!C137<5,'Tabel 4 NJ'!C137<0.5),"-",IFERROR('Tabel 4 NJ'!C137/'Tabel 4F NJ'!C137*100,"-")) -> - | D137: =IF(OR('Tabel 4F NJ'!D137<5,'Tabel 4 NJ'!D137<0.5),"-",IFERROR('Tabel 4 NJ'!D137/'Tabel 4F NJ'!D137*100,"-")) -> - | E137: =IF(OR('Tabel 4F NJ'!E137<5,'Tabel 4 NJ'!E137<0.5),"-",IFERROR('Tabel 4 NJ'!E137/'Tabel 4F NJ'!E137*100,"-")) -> - | F137: =IF(OR('Tabel 4F NJ'!F137<5,'Tabel 4 NJ'!F137<0.5),"-",IFERROR('Tabel 4 NJ'!F137/'Tabel 4F NJ'!F137*100,"-")) -> - | G137: =IF(OR('Tabel 4F NJ'!G137<5,'Tabel 4 NJ'!G137<0.5),"-",IFERROR('Tabel 4 NJ'!G137/'Tabel 4F NJ'!G137*100,"-")) -> - | I137: =IF(OR('Tabel 4F NJ'!I137<5,'Tabel 4 NJ'!I137<0.5),"-",IFERROR('Tabel 4 NJ'!I137/'Tabel 4F NJ'!I137*100,"-")) -> -
A138: Jurist | C138: =IF(OR('Tabel 4F NJ'!C138<5,'Tabel 4 NJ'!C138<0.5),"-",IFERROR('Tabel 4 NJ'!C138/'Tabel 4F NJ'!C138*100,"-")) -> - | D138: =IF(OR('Tabel 4F NJ'!D138<5,'Tabel 4 NJ'!D138<0.5),"-",IFERROR('Tabel 4 NJ'!D138/'Tabel 4F NJ'!D138*100,"-")) -> - | E138: =IF(OR('Tabel 4F NJ'!E138<5,'Tabel 4 NJ'!E138<0.5),"-",IFERROR('Tabel 4 NJ'!E138/'Tabel 4F NJ'!E138*100,"-")) -> - | F138: =IF(OR('Tabel 4F NJ'!F138<5,'Tabel 4 NJ'!F138<0.5),"-",IFERROR('Tabel 4 NJ'!F138/'Tabel 4F NJ'!F138*100,"-")) -> - | G138: =IF(OR('Tabel 4F NJ'!G138<5,'Tabel 4 NJ'!G138<0.5),"-",IFERROR('Tabel 4 NJ'!G138/'Tabel 4F NJ'!G138*100,"-")) -> - | I138: =IF(OR('Tabel 4F NJ'!I138<5,'Tabel 4 NJ'!I138<0.5),"-",IFERROR('Tabel 4 NJ'!I138/'Tabel 4F NJ'!I138*100,"-")) -> -
A139: Økonom | C139: =IF(OR('Tabel 4F NJ'!C139<5,'Tabel 4 NJ'!C139<0.5),"-",IFERROR('Tabel 4 NJ'!C139/'Tabel 4F NJ'!C139*100,"-")) -> - | D139: =IF(OR('Tabel 4F NJ'!D139<5,'Tabel 4 NJ'!D139<0.5),"-",IFERROR('Tabel 4 NJ'!D139/'Tabel 4F NJ'!D139*100,"-")) -> - | E139: =IF(OR('Tabel 4F NJ'!E139<5,'Tabel 4 NJ'!E139<0.5),"-",IFERROR('Tabel 4 NJ'!E139/'Tabel 4F NJ'!E139*100,"-")) -> - | F139: =IF(OR('Tabel 4F NJ'!F139<5,'Tabel 4 NJ'!F139<0.5),"-",IFERROR('Tabel 4 NJ'!F139/'Tabel 4F NJ'!F139*100,"-")) -> 14.28571429 | G139: =IF(OR('Tabel 4F NJ'!G139<5,'Tabel 4 NJ'!G139<0.5),"-",IFERROR('Tabel 4 NJ'!G139/'Tabel 4F NJ'!G139*100,"-")) -> - | I139: =IF(OR('Tabel 4F NJ'!I139<5,'Tabel 4 NJ'!I139<0.5),"-",IFERROR('Tabel 4 NJ'!I139/'Tabel 4F NJ'!I139*100,"-")) -> 5.882352941
A140: Samf. Adm. | C140: =IF(OR('Tabel 4F NJ'!C140<5,'Tabel 4 NJ'!C140<0.5),"-",IFERROR('Tabel 4 NJ'!C140/'Tabel 4F NJ'!C140*100,"-")) -> - | D140: =IF(OR('Tabel 4F NJ'!D140<5,'Tabel 4 NJ'!D140<0.5),"-",IFERROR('Tabel 4 NJ'!D140/'Tabel 4F NJ'!D140*100,"-")) -> 22.22222222 | E140: =IF(OR('Tabel 4F NJ'!E140<5,'Tabel 4 NJ'!E140<0.5),"-",IFERROR('Tabel 4 NJ'!E140/'Tabel 4F NJ'!E140*100,"-")) -> - | F140: =IF(OR('Tabel 4F NJ'!F140<5,'Tabel 4 NJ'!F140<0.5),"-",IFERROR('Tabel 4 NJ'!F140/'Tabel 4F NJ'!F140*100,"-")) -> - | G140: =IF(OR('Tabel 4F NJ'!G140<5,'Tabel 4 NJ'!G140<0.5),"-",IFERROR('Tabel 4 NJ'!G140/'Tabel 4F NJ'!G140*100,"-")) -> - | I140: =IF(OR('Tabel 4F NJ'!I140<5,'Tabel 4 NJ'!I140<0.5),"-",IFERROR('Tabel 4 NJ'!I140/'Tabel 4F NJ'!I140*100,"-")) -> 12.19512195
A141: Cand. Merc. | C141: =IF(OR('Tabel 4F NJ'!C141<5,'Tabel 4 NJ'!C141<0.5),"-",IFERROR('Tabel 4 NJ'!C141/'Tabel 4F NJ'!C141*100,"-")) -> - | D141: =IF(OR('Tabel 4F NJ'!D141<5,'Tabel 4 NJ'!D141<0.5),"-",IFERROR('Tabel 4 NJ'!D141/'Tabel 4F NJ'!D141*100,"-")) -> - | E141: =IF(OR('Tabel 4F NJ'!E141<5,'Tabel 4 NJ'!E141<0.5),"-",IFERROR('Tabel 4 NJ'!E141/'Tabel 4F NJ'!E141*100,"-")) -> - | F141: =IF(OR('Tabel 4F NJ'!F141<5,'Tabel 4 NJ'!F141<0.5),"-",IFERROR('Tabel 4 NJ'!F141/'Tabel 4F NJ'!F141*100,"-")) -> - | G141: =IF(OR('Tabel 4F NJ'!G141<5,'Tabel 4 NJ'!G141<0.5),"-",IFERROR('Tabel 4 NJ'!G141/'Tabel 4F NJ'!G141*100,"-")) -> - | I141: =IF(OR('Tabel 4F NJ'!I141<5,'Tabel 4 NJ'!I141<0.5),"-",IFERROR('Tabel 4 NJ'!I141/'Tabel 4F NJ'!I141*100,"-")) -> -
A142: HA | C142: =IF(OR('Tabel 4F NJ'!C142<5,'Tabel 4 NJ'!C142<0.5),"-",IFERROR('Tabel 4 NJ'!C142/'Tabel 4F NJ'!C142*100,"-")) -> - | D142: =IF(OR('Tabel 4F NJ'!D142<5,'Tabel 4 NJ'!D142<0.5),"-",IFERROR('Tabel 4 NJ'!D142/'Tabel 4F NJ'!D142*100,"-")) -> - | E142: =IF(OR('Tabel 4F NJ'!E142<5,'Tabel 4 NJ'!E142<0.5),"-",IFERROR('Tabel 4 NJ'!E142/'Tabel 4F NJ'!E142*100,"-")) -> - | F142: =IF(OR('Tabel 4F NJ'!F142<5,'Tabel 4 NJ'!F142<0.5),"-",IFERROR('Tabel 4 NJ'!F142/'Tabel 4F NJ'!F142*100,"-")) -> - | G142: =IF(OR('Tabel 4F NJ'!G142<5,'Tabel 4 NJ'!G142<0.5),"-",IFERROR('Tabel 4 NJ'!G142/'Tabel 4F NJ'!G142*100,"-")) -> - | I142: =IF(OR('Tabel 4F NJ'!I142<5,'Tabel 4 NJ'!I142<0.5),"-",IFERROR('Tabel 4 NJ'!I142/'Tabel 4F NJ'!I142*100,"-")) -> 7.142857143
A143: HD | C143: =IF(OR('Tabel 4F NJ'!C143<5,'Tabel 4 NJ'!C143<0.5),"-",IFERROR('Tabel 4 NJ'!C143/'Tabel 4F NJ'!C143*100,"-")) -> - | D143: =IF(OR('Tabel 4F NJ'!D143<5,'Tabel 4 NJ'!D143<0.5),"-",IFERROR('Tabel 4 NJ'!D143/'Tabel 4F NJ'!D143*100,"-")) -> - | E143: =IF(OR('Tabel 4F NJ'!E143<5,'Tabel 4 NJ'!E143<0.5),"-",IFERROR('Tabel 4 NJ'!E143/'Tabel 4F NJ'!E143*100,"-")) -> - | F143: =IF(OR('Tabel 4F NJ'!F143<5,'Tabel 4 NJ'!F143<0.5),"-",IFERROR('Tabel 4 NJ'!F143/'Tabel 4F NJ'!F143*100,"-")) -> 14.28571429 | G143: =IF(OR('Tabel 4F NJ'!G143<5,'Tabel 4 NJ'!G143<0.5),"-",IFERROR('Tabel 4 NJ'!G143/'Tabel 4F NJ'!G143*100,"-")) -> - | I143: =IF(OR('Tabel 4F NJ'!I143<5,'Tabel 4 NJ'!I143<0.5),"-",IFERROR('Tabel 4 NJ'!I143/'Tabel 4F NJ'!I143*100,"-")) -> 6.666666667
A144: Komm. og Sprog | C144: =IF(OR('Tabel 4F NJ'!C144<5,'Tabel 4 NJ'!C144<0.5),"-",IFERROR('Tabel 4 NJ'!C144/'Tabel 4F NJ'!C144*100,"-")) -> - | D144: =IF(OR('Tabel 4F NJ'!D144<5,'Tabel 4 NJ'!D144<0.5),"-",IFERROR('Tabel 4 NJ'!D144/'Tabel 4F NJ'!D144*100,"-")) -> - | E144: =IF(OR('Tabel 4F NJ'!E144<5,'Tabel 4 NJ'!E144<0.5),"-",IFERROR('Tabel 4 NJ'!E144/'Tabel 4F NJ'!E144*100,"-")) -> - | F144: =IF(OR('Tabel 4F NJ'!F144<5,'Tabel 4 NJ'!F144<0.5),"-",IFERROR('Tabel 4 NJ'!F144/'Tabel 4F NJ'!F144*100,"-")) -> - | G144: =IF(OR('Tabel 4F NJ'!G144<5,'Tabel 4 NJ'!G144<0.5),"-",IFERROR('Tabel 4 NJ'!G144/'Tabel 4F NJ'!G144*100,"-")) -> - | I144: =IF(OR('Tabel 4F NJ'!I144<5,'Tabel 4 NJ'!I144<0.5),"-",IFERROR('Tabel 4 NJ'!I144/'Tabel 4F NJ'!I144*100,"-")) -> 16.66666667
